Workbook

Sheet Kuntakortti
A1: Valtiovarainministeriö/Kunta- ja aluehallinto-osasto,12.2.2015 | H1: Valitse kunta
A2: KUNTIEN TALOUSARVIOT 2014-2015 JA TALOUSSUUNNITELMAT 2016-2017 | H2: valikosta:
A4: =INDEX(Luvut!$B$3:'Luvut'!$B$304,$A$7) -> KOKO MAA (Manner-Suomi) | D4: 2014 | G4: 2015 | J4: 2016 | M4: 2017
A6: Asukasluku | D6: =VLOOKUP($A$4,Luvut!$B$3:$AU$304,2) -> 5422604 | G6: =VLOOKUP($A$4,Luvut!$B$3:$EG$304,47) -> 5422604 | I6: =((G6/D6)-1)*100 -> 0 | J6: =VLOOKUP($A$4,Luvut!$B$3:$EG$304,92) -> 5422604 | L6: =((J6/G6)-1)*100 -> 0 | M6: =VLOOKUP($A$4,Luvut!$B$3:$HG$304,137) -> 5422604 | O6: =((M6/J6)-1)*100 -> 0
A7: 99
D20: 1000 | E20: euro/as | G20: 1000 | H20: euro/as | I20: muut.% | J20: 1000 | K20: euro/as | L20: muut.% | M20: 1000 | N20: euro/as | O20: muut.%
A22: Henkilöstömenot (palkat+sivukulut) | D22: =VLOOKUP($A$4,Luvut!$B$3:$AY$304,14) -> 14369953 | E22: =D22*1000/$D$6 -> 2650.009663 | G22: =VLOOKUP($A$4,Luvut!$B$3:$EG$304,59) -> 14166311 | H22: =G22*1000/$G$6 -> 2612.455381 | I22: =((G22/D22)-1)*100 -> -1.417137551 | J22: =VLOOKUP($A$4,Luvut!$B$3:$EG$304,104) -> 12389035 | K22: =J22*1000/$J$6 -> 2284.702147 | L22: =((J22/G22)-1)*100 -> -12.54579262 | M22: =VLOOKUP($A$4,Luvut!$B$3:$HS$304,149) -> 12388394 | N22: =M22*1000/$J$6 -> 2284.583938 | O22: =((M22/J22)-1)*100 -> -0.005173930011
A23: Palvelujen ostot | D23: =VLOOKUP($A$4,Luvut!$B$3:$GA$304,181) -> 17172481 | E23: =D23*1000/$D$6 -> 3166.832946 | G23: =VLOOKUP($A$4,Luvut!$B$3:$GA$304,182) -> 17040467 | H23: =G23*1000/$G$6 -> 3142.487816 | I23: =((G23/D23)-1)*100 -> -0.7687532163 | J23: =VLOOKUP($A$4,Luvut!$B$3:$GB$304,183) -> 14790425 | K23: =J23*1000/$J$6 -> 2727.550269 | L23: =((J23/G23)-1)*100 -> -13.20410996 | M23: =VLOOKUP($A$4,Luvut!$B$3:$HS$304,184) -> 15032368 | N23: =M23*1000/$J$6 -> 2772.167763 | O23: =((M23/J23)-1)*100 -> 1.635808302
A24: Toimintatuotot, sis. valmistus omaan käyt. | D24: =VLOOKUP($A$4,Luvut!$B$3:$AU$304,15) -> 11268359 | E24: =D24*1000/$D$6 -> 2078.034649 | G24: =VLOOKUP($A$4,Luvut!$B$3:$EG$304,60) -> 10255483 | H24: =G24*1000/$G$6 -> 1891.246899 | I24: -8.988673506 | J24: =VLOOKUP($A$4,Luvut!$B$3:$EG$304,105) -> 9038183 | K24: =J24*1000/$J$6 -> 1666.760656 | L24: -11.86974811 | M24: =VLOOKUP($A$4,Luvut!$B$3:$HS$304,150) -> 9201565 | N24: =M24*1000/$J$6 -> 1696.890461 | O24: 1.807686346
A25: Toimintakulut | D25: =VLOOKUP($A$4,Luvut!$B$3:$AU$304,16) -> 38010636 | E25: =D25*1000/$D$6 -> 7009.664729 | G25: =VLOOKUP($A$4,Luvut!$B$3:$EG$304,61) -> 37419893 | H25: =G25*1000/$G$6 -> 6900.723896 | I25: -1.554151843 | J25: =VLOOKUP($A$4,Luvut!$B$3:$EG$304,106) -> 34982981 | K25: =J25*1000/$J$6 -> 6451.325046 | L25: -6.512343582 | M25: =VLOOKUP($A$4,Luvut!$B$3:$HS$304,151) -> 35309757 | N25: =M25*1000/$J$6 -> 6511.586869 | O25: 0.934099927
A26: Toimintakate | D26: =VLOOKUP($A$4,Luvut!$B$3:$AU$304,17) -> -27309974 | E26: -5036.320926 | G26: =VLOOKUP($A$4,Luvut!$B$3:$EG$304,62) -> -27764675 | H26: -5120.173813 | I26: 1.664963138 | J26: =VLOOKUP($A$4,Luvut!$B$3:$EG$304,107) -> -27787824 | K26: =J26*1000/$J$6 -> -5124.442795 | L26: 0.08337572833 | M26: =VLOOKUP($A$4,Luvut!$B$3:$HS$304,152) -> -28132140 | N26: =M26*1000/$J$6 -> -5187.939226 | O26: 1.239089466
A28: Verotulot | D28: =VLOOKUP($A$4,Luvut!$B$3:$AU$304,18) -> 20060179 | E28: 3699.362705 | G28: =VLOOKUP($A$4,Luvut!$B$3:$EG$304,63) -> 20603368 | H28: 3799.533951 | I28: 2.707797373 | J28: =VLOOKUP($A$4,Luvut!$B$3:$EG$304,108) -> 21009796 | K28: =J28*1000/$J$6 -> 3874.484657 | L28: 1.972628941 | M28: =VLOOKUP($A$4,Luvut!$B$3:$HS$304,153) -> 21660024 | N28: =M28*1000/$J$6 -> 3994.395313 | O28: 3.094880122
A29: Valtionosuudet, | D29: =VLOOKUP($A$4,Luvut!$B$3:$AU$304,19) -> 7691793 | E29: 1418.468507 | G29: =VLOOKUP($A$4,Luvut!$B$3:$EG$304,64) -> 7618805 | H29: 1405.008553 | I29: -0.9489074914 | J29: =VLOOKUP($A$4,Luvut!$B$3:$EG$304,109) -> 7593217 | K29: =J29*1000/$J$6 -> 1400.289787 | L29: -0.3358531948 | M29: =VLOOKUP($A$4,Luvut!$B$3:$HS$304,154) -> 7591480 | N29: =M29*1000/$J$6 -> 1399.969461 | O29: -0.0228756797
A31: Verorahoitus | D31: =SUM(D28:D29) -> 27751972 | E31: 5117.831212 | G31: =SUM(G28:G29) -> 28222173 | H31: 5204.542504 | I31: 1.694297616 | J31: =SUM(J28:J29) -> 28603013 | K31: =J31*1000/$J$6 -> 5274.774444 | L31: 1.349435424 | M31: =SUM(M28:M29) -> 29251504 | N31: =M31*1000/$J$6 -> 5394.364774 | O31: 2.267212199
A36: Vuosikate | D36: =VLOOKUP($A$4,Luvut!$B$3:$AU$304,24) -> 1665948 | E36: 307.2228767 | G36: =VLOOKUP($A$4,Luvut!$B$3:$EG$304,69) -> 1630646 | H36: 300.7127203 | J36: =VLOOKUP($A$4,Luvut!$B$3:$EG$304,114) -> 1721328 | K36: =J36*1000/$J$6 -> 317.4356822 | M36: =VLOOKUP($A$4,Luvut!$B$3:$HS$304,159) -> 1986624 | N36: =M36*1000/$J$6 -> 366.3597784
A38: Suunnitelman mukaiset | D38: =VLOOKUP($A$4,Luvut!$B$3:$AU$304,25) -> 2452494 | E38: 452.2723769 | G38: =VLOOKUP($A$4,Luvut!$B$3:$EG$304,70) -> 2474015 | H38: 456.2411343 | I38: 0.8775148889 | J38: =VLOOKUP($A$4,Luvut!$B$3:$EG$304,115) -> 2523571 | K38: =J38*1000/$J$6 -> 465.3799171 | L38: 2.003059804 | M38: =VLOOKUP($A$4,Luvut!$B$3:$HS$304,160) -> 2567355 | N38: =M38*1000/$J$6 -> 473.4542666 | O38: 1.73500171
A39: poistot ja arvonalennukset
A52: Investoinnit, netto | D52: =D53+D54+D55 -> -3341128 | E52: -616.1482564 | G52: =G53+G54+G55 -> -3033031 | H52: =G52*1000/$G$6 -> -559.3310889 | I52: -9.221346803 | J52: =J53+J54+J55 -> -3075321 | K52: =J52*1000/$J$6 -> -567.129925 | L52: 1.394314796 | M52: =M53+M54+M55 -> -2955455 | N52: =M52*1000/$J$6 -> -545.025047 | O52: =((M52/J52)-1)*100 -> -3.897674422
A53: - Investointimenot | D53: =VLOOKUP($A$4,Luvut!$B$3:$HS$304,188) -> -4136168 | E53: -762.7641628 | G53: =VLOOKUP($A$4,Luvut!$B$3:$HS$304,191) -> -3685980 | H53: -679.7435328 | I53: -10.88418072 | J53: =VLOOKUP($A$4,Luvut!$B$3:$HS$304,194) -> -3553405 | K53: -655.2949469 | L53: -3.596736824 | M53: =VLOOKUP($A$4,Luvut!$B$3:$HS$304,197) -> -3447334 | N53: -635.7340495 | O53: -2.985052365
A54: + Rahoitusosuudet investointimenoihin | D54: =VLOOKUP($A$4,Luvut!$B$3:$HS$304,189) -> 228903 | E54: 42.21274502 | G54: =VLOOKUP($A$4,Luvut!$B$3:$HS$304,192) -> 199911 | H54: 36.86623622 | I54: -12.66562692 | J54: =VLOOKUP($A$4,Luvut!$B$3:$HS$304,195) -> 92787 | K54: 17.11115176 | L54: -53.5858457 | M54: =VLOOKUP($A$4,Luvut!$B$3:$HS$304,198) -> 96814 | N54: 17.8537839 | O54: 4.340047636
A55: + Investointihyödykkeiden luovutustulot | D55: =VLOOKUP($A$4,Luvut!$B$3:$HS$304,190) -> 566137 | E55: 104.4031613 | G55: =VLOOKUP($A$4,Luvut!$B$3:$HS$304,193) -> 453038 | H55: 83.54620769 | I55: =((G55/D55)-1)*100 -> -19.97731998 | J55: =VLOOKUP($A$4,Luvut!$B$3:$HS$304,196) -> 385297 | K55: 71.05387006 | L55: -14.95260883 | M55: =VLOOKUP($A$4,Luvut!$B$3:$HS$304,199) -> 395065 | N55: 72.85521864 | O55: 2.535187141
A67: Lainakanta | D67: =VLOOKUP($A$4,Luvut!$B$3:$HF$304,206) -> 14680561 | E67: 2707.289892 | G67: =VLOOKUP($A$4,Luvut!$B$3:$HF$304,210) -> 16015215 | H67: 2953.417768 | I67: =((G67/D67)-1)*100 -> 9.091301075 | J67: =VLOOKUP($A$4,Luvut!$B$3:$HP$304,214) -> 17484933 | K67: =J67*1000/$J$6 -> 3224.453233 | L67: =((J67/G67)-1)*100 -> 9.177010736 | M67: =VLOOKUP($A$4,Luvut!$B$3:$HP$304,218) -> 18496611 | N67: =M67*1000/$J$6 -> 3411.020056 | O67: =((M67/J67)-1)*100 -> 5.785998722
A72: Tuloveroprosentti | D72: =VLOOKUP($A$4,Luvut!$B$3:$HS$304,43) -> 19.75 | G72: =VLOOKUP($A$4,Luvut!$B$3:$HS$304,88) -> 19.85 | J72: =VLOOKUP($A$4,Luvut!$B$3:$HS$304,133) -> 0 | M72: =VLOOKUP($A$4,Luvut!$B$3:$HS$304,178) -> 0
A74: Henkilöstön määrä | D74: =VLOOKUP($A$4,Luvut!$B$3:$HS$304,44) -> 241075 | G74: =VLOOKUP($A$4,Luvut!$B$3:$HS$304,91) -> 237075 | J74: =VLOOKUP($A$4,Luvut!$B$3:$HS$304,134) -> 234926 | M74: =VLOOKUP($A$4,Luvut!$B$3:$HS$304,179) -> 228816
A76: Lähde: Tilastokeskus ja kunnat
A77: HUOM: Janakkala, Juupajoki, Kaskinen, Multia, Padasjoki, Pihtipudas, Posio, Rautalampi, Sauvo, Soini, Sysmä, Turku ja Viitasaari eivät lähettäneet TA ja TP tietoja
A78: (HUOM: Turku mukana lainakanta-, investointimenot- ja poistotietoilla | M78: Kunnat vuoden 2015 kuntajaolla

Sheet Luvut
B1: 1 | C1: 2 | D1: hakee muualta | E1: 92 | F1: 93 | G1: 94 | H1: vanha | I1: 96 | J1: 97 | K1: 98 | L1: 99 | M1: 100 | N1: 101 | O1: 14 | P1: 15 | Q1: 16 | R1: 17 | S1: 18 | T1: 19 | V1: summana | Y1: 24 | Z1: 25 | AJ1: kaavasta | AR1: 43 | AS1: 44 | AT1: kaavasta | AV1: 47 | AW1: hakee muualta | BA1: vanha | BH1: 59 | BI1: 60 | BJ1: 61 | BK1: 62 | BL1: 63 | BM1: 64 | BO1: summana | BR1: 69 | BS1: 70 | CK1: 88 | CL1: kaavasta | CM1: 133 | CN1: 91 | CO1: 92 | CP1: hakee muualta | CQ1: 92 | CR1: 93 | CS1: 94 | CT1: vanha | CU1: 96 | CV1: 97 | CW1: 98 | CX1: 99 | CY1: 100 | CZ1: 101 | DA1: 104 | DB1: 105 | DC1: 106 | DD1: 107 | DE1: 108 | DF1: 109 | DH1: summana | DK1: 114 | DL1: 115 | DV1: kaavasta | ED1: 133 | EE1: 134 | EF1: kaavasta | EG1: 133 | EH1: 137 | EK1: 140 | ET1: 149 | EU1: 150 | EV1: 151 | EW1: 152 | EX1: 153 | EY1: 154 | FD1: 159 | FE1: 169 | FW1: 178 | FX1: 179 | FZ1: 181 | GA1: 182 | GB1: 183 | GC1: 184 | GG1: 188 | GH1: 189 | GI1: 190 | GJ1: 191 | GK1: 192 | GL1: 193 | GM1: 194 | GN1: 195 | GO1: 196 | GP1: 197 | GQ1: 198 | GR1: 199 | GS1: 2011 | GT1: 152 | GU1: 2012 | GV1: 154 | GW1: 2013 | GY1: 206 | HC1: 210 | HG1: 214 | HK1: 218
A2: Kunta nro | B2: Kunta | C2: Asukasluku 2014 | D2: Lainat e/asukas | E2: Lainanhoitokate | F2: Suhteellinen velkaantuneisuus-% | G2: Rahoitusvarallisuus, e/as | H2: Vuosikate | I2: Suunnitelman mukaiset poistot | J2: Tilikauden tulos | K2: Omavaraisuusaste, % | L2: Rahavarat e/as | M2: Kassan riittävyys, pv | N2: Kassasta maksut, €/as | O2: Henkilöstökulut | P2: Toimintatuotot | Q2: Toimintakulut | R2: Toimintakate | S2: Verotulot | T2: Valtionosuudet | U2: Alv-takaisinperintä | V2: Käyttökate | W2: Korkotuotot/-menot, netto | X2: Muut rahoitustuotot/-menot, netto (sis Osinkotuotot) | Y2: Vuosikate | Z2: Sumu-poistot ja arvonalet | AA2: Satunnaiset tuotot | AB2: Satunnaiset kulut | AC2: Tilikauden tulos | AD2: Poistoeron lisäys(-) tai vähennys(+) | AE2: Varausten lisäys(-) tai vähennys(+) | AF2: Rahastojen lisäys(-) tai vähennys(+) | AG2: Tilikauden yli- tai alijäämä | AH2: Kumulat yli/alij | AI2: Tulorah (toiminnan rahavirta) | AJ2: Investoinnit, netto | AK2: Saamisten muutos (ent Pitkäaikaisten saamisten muutokset, netto) | AL2: Pitkäaikaisten lainojen vähennys | AM2: Toim ja inv rahavirta | AN2: Verotulot | AO2: Kunnallisvero | AP2: Osuus yhteisöveron tuotosta | AQ2: Kiinteistövero | AR2: Tuloveroprosentti | AS2: Henkilöstömäärä | AT2: Yhden veroprosentin tuotto 2006 | AU2: Sijoitus vuosikatteen mukaan | AV2: Asukasluku 2015 | AW2: Lainat e/asukas | AX2: Lainanhoitokate | AY2: Suhteellinen velkaantuneisuus-% | AZ2: Rahoitusvarallisuus, e/as | BA2: Vuosikate | BB2: Suunnitelman mukaiset poistot | BC2: Tilikauden tulos | BD2: Omavaraisuusaste, % | BE2: Rahavarat e/as | BF2: Kassan riittävyys, pv | BG2: Kassasta maksut, €/as | BH2: Henkilöstökulut | BI2: Toimintatuotot | BJ2: Toimintakulut | BK2: Toimintakate | BL2: Verotulot | BM2: Valtionosuudet | BN2: Alv-takaisinperintä | BO2: Käyttökate | BP2: Korkotuotot/-menot, netto | BQ2: Muut rahoitustuotot/-menot, netto (sis Osinkotuotot) | BR2: Vuosikate | BS2: Sumu-poistot ja arvonalet | BT2: Satu. tuotot | BU2: Satu. kulut | BV2: Tilikauden tulos | BW2: Poistoeron lisäys(-) tai vähennys(+) | BX2: Varausten lisäys(-) tai vähennys(+) | BY2: Rahastojen lisäys(-) tai vähennys(+) | BZ2: Tilikauden yli- tai alijäämä | CA2: Kumulat yli/alij | CB2: Tulorah (toiminnan rahavirta) | CC2: Investoinnit, netto | CD2: Saamisten muutos (ent Pitkäaikaisten saamisten muutokset, netto) | CE2: Pitkäaikaisten lainojen vähennys | CF2: Toim ja inv rahavirta | CG2: Verotulot | CH2: Kunnallisvero | CI2: Osuus yhteisöveron tuotosta | CJ2: Kiinteistövero | CK2: Tuloveroprosentti | CL2: Yhden veroprosentin tuotto 2006 | CM2: Sijoitus vuosikatteen mukaan | CN2: Henkilöstömäärä | CO2: Asukasluku 2016 | CP2: Lainat e/asukas | CQ2: Lainanhoitokate | CR2: Suhteellinen velkaantuneisuus-% | CS2: Rahoitusvarallisuus, e/as | CT2: Vuosikate | CU2: Suunnitelman mukaiset poistot | CV2: Tilikauden tulos | CW2: Omavaraisuusaste, % | CX2: Rahavarat e/as | CY2: Kassan riittävyys, pv | CZ2: Kassasta maksut, €/as | DA2: Henkilöstökulut | DB2: Toimintatuotot | DC2: Toimintakulut | DD2: Toimintakate | DE2: Verotulot | DF2: Valtionosuudet | DG2: Alv-takaisinperintä | DH2: Käyttökate | DI2: Korkotuotot/-menot, netto | DJ2: Muut rahoitustuotot/-menot, netto (sis Osinkotuotot) | DK2: Vuosikate | DL2: Sumu-poistot ja arvonalet | DM2: Satu. tuotot | DN2: Satu. kulut | DO2: Tilikauden tulos | DP2: Poistoeron lisäys(-) tai vähennys(+) | DQ2: Varausten lisäys(-) tai vähennys(+) | DR2: Rahastojen lisäys(-) tai vähennys(+) | DS2: Tilikauden yli- tai alijäämä | DT2: Kumulat yli/alij | DU2: Tulorah (toiminnan rahavirta) | DV2: Investoinnit, netto | DW2: Saamisten muutos (ent Pitkäaikaisten saamisten muutokset, netto) | DX2: Pitkäaikaisten lainojen vähennys | DY2: Toim ja inv rahavirta | DZ2: Verotulot | EA2: Kunnallisvero | EB2: Osuus yhteisöveron tuotosta | EC2: Kiinteistövero | ED2: Tuloveroprosentti | EE2: Henkilöstömäärä | EF2: Yhden veroprosentin tuotto 2006 | EG2: Sijoitus vuosikatteen mukaan | EH2: Asukasluku 2017 | EI2: Lainat e/asukas | EJ2: Lainanhoitokate | EK2: Suhteellinen velkaantuneisuus-% | EL2: Rahoitusvarallisuus, e/as | EM2: Vuosikate | EN2: Suunnitelman mukaiset poistot | EO2: Tilikauden tulos | EP2: Omavaraisuusaste, % | EQ2: Rahavarat e/as | ER2: Kassan riittävyys, pv | ES2: Kassasta maksut, €/as | ET2: Henkilöstökulut | EU2: Toimintatuotot | EV2: Toimintakulut | EW2: Toimintakate | EX2: Verotulot | EY2: Valtionosuudet | EZ2: Alv-takaisinperintä | FA2: Käyttökate | FB2: Korkotuotot/-menot, netto | FC2: Muut rahoitustuotot/-menot, netto (sis Osinkotuotot) | FD2: Vuosikate | FE2: Sumu-poistot ja arvonalet. | FF2: Satu. tuotot | FG2: Satu. kulut | FH2: Tilikauden tulos | FI2: Poistoeron lisäys(-) tai vähennys(+) | FJ2: Varausten lisäys(-) tai vähennys(+) | FK2: Rahastojen lisäys(-) tai vähennys(+) | FL2: Tilikauden yli- tai alijäämä | FM2: Kumulat yli/alij | FN2: Tulorah (toiminnan rahavirta) | FO2: Investoinnit, netto | FP2: Saamisten muutos (ent Pitkäaikaisten saamisten muutokset, netto) | FQ2: Pitkäaikaisten lainojen vähennys | FR2: Toim ja inv rahavirta | FS2: Verotulot | FT2: Kunnallisvero | FU2: Osuus yhteisöveron tuotosta | FV2: Kiinteistövero | FW2: Tuloveroprosentti | FX2: Henkilöstömäärä | FY2: Sijoitus vuosikatteen mukaan | FZ2: Palvelujen ostot 2014 | GA2: Palvelujen ostot 2015 | GB2: Palvelujen ostot 2016 | GC2: Palvelujen ostot 2017 | GD2: Harkvar2011 | GE2: Harkvar2012 | GF2: Harkvar2013 | GG2: Investointimenot 2014 | GH2: Rahoitusos. inv.menoihin | GI2: Inv.hyödykk. luovutustulot | GJ2: Investointimenot 2015 | GK2: Rahoitusos. inv.menoihin | GL2: Inv.hyödykkeiden luovutustulot | GM2: Investointimenot 2016 | GN2: Rahoitusosuudet investointimenoihin | GO2: Investointihyödykkeiden luovutustulot | GP2: Investointimenot 2017 | GQ2: Rahoitusos. inv.menoihin | GR2: Inv.hyödykkeiden luovutustulot | GS2: Pitkäaikaisten lainojen lisäys | GT2: ± Lyhytaikaisten lainojen muutos | GU2: Pitkäaikaisten lainojen lisäys | GV2: ± Lyhytaikaisten lainojen muutos | GW2: Pitkäaikaisten lainojen lisäys | GX2: ± Lyhytaikaisten lainojen muutos | GY2: Lainakanta 2014 | GZ2: josta pitkäaik | HA2: josta lyhytaik | HB2: Lainasaamiset | HC2: Lainakanta 2015 | HD2: josta pitkäaik | HE2: josta lyhytaik | HF2: Lainasaamiset | HG2: Lainakanta 2016 | HH2: josta pitkäaik | HI2: josta lyhytaik | HJ2: Lainasaamiset | HK2: Lainakanta 2017
A3: 20 | B3: Akaa | C3: 17108 | E3: 0.7588319379 | F3: 44.9 | G3: -1980 | K3: 43.5 | L3: 212 | M3: 12 | N3: 6059.09543 | O3: 49387 | P3: 23309 | Q3: 111171 | R3: -87862 | S3: 57850 | T3: 30502 | Y3: 280 | Z3: 3862 | AR3: 21 | AS3: 1029 | AU3: 199 | AV3: =C3 -> 17108 | AX3: -0.4159336942 | AY3: 51.9 | AZ3: -2485 | BD3: 37.8 | BE3: 158 | BF3: 8 | BG3: 7406.151512 | BH3: 48260 | BI3: 23726 | BJ3: 110229 | BK3: -86503 | BL3: 58700 | BM3: 29700 | BR3: 1631 | BS3: 4481 | CK3: 21,25 | CM3: 307 | CN3: 990 | CO3: =AV3 -> 17108 | CQ3: 0.6043176329 | CR3: 48.72661511 | CS3: -2688.099135 | CW3: 37.01165491 | CX3: 98.55038578 | CY3: 4.936072254 | CZ3: 7287.350947 | DA3: 48000 | DB3: 23421 | DC3: 109277 | DD3: -85856 | DE3: 62560 | DF3: 29920 | DK3: 6293 | DL3: 4556 | ED3: 22,25 | EE3: 989 | EG3: 205 | EH3: =CO3 -> 17108 | ET3: 47872 | EU3: 23432 | EV3: 108972 | EW3: -85540 | EX3: 64665 | EY3: 30430 | FD3: 9220 | FE3: 4831 | FW3: 22,25 | FX3: 986 | FZ3: 45958 | GA3: 46155 | GB3: 45777 | GC3: 45731 | GF3: 1540 | GG3: -14813 | GH3: 1204 | GI3: 680 | GJ3: -7824 | GK3: 641 | GL3: 680 | GM3: -6246 | GN3: 808 | GO3: 680 | GP3: -9555 | GQ3: 555 | GR3: 680 | GS3: 7000 | GU3: 10204 | GW3: 7509 | GY3: 52206 | GZ3: 28998 | HA3: 5033 | HB3: 42 | HC3: 57403 | HG3: 56194 | HH3: 34511 | HI3: 6387 | HJ3: 7333 | HK3: 55621 | HY3: 4670 | HZ3: =HY3*-1 -> -4670
A4: 5 | B4: Alajärvi | C4: 10227 | E4: 1.039768437 | F4: 29.1 | G4: -2055 | K4: 47.2 | L4: 316 | M4: 11 | N4: 10581.96959 | O4: 43152 | P4: 41240 | Q4: 99883 | R4: -58643 | S4: 28139 | T4: 33318 | Y4: 2436 | Z4: 3125 | AR4: 21 | AS4: 988 | AU4: 120 | AV4: =C4 -> 10227 | AX4: 0.2648361382 | AY4: 33.5 | AZ4: -2443 | BD4: 42 | BE4: 321 | BF4: 11 | BG4: 10728.18465 | BH4: 42506 | BI4: 41868 | BJ4: 100217 | BK4: -58349 | BL4: 29162 | BM4: 33873 | BR4: 4329 | BS4: 2989 | CK4: 21,5 | CM4: 219 | CN4: 953 | CO4: =AV4 -> 10227 | CQ4: 0.1518987342 | CR4: 38.19534125 | CS4: -3121.345458 | CW4: 35.7482685 | CX4: 360.5162804 | CY4: 11.65933133 | CZ4: 11286.10541 | DA4: 42241 | DB4: 42496 | DC4: 100750 | DD4: -58254 | DE4: 29375 | DF4: 33873 | DK4: 4407 | DL4: 3128 | ED4: 22 | EE4: 930 | EG4: 268 | EH4: =CO4 -> 10227 | ET4: 42452 | EU4: 43133 | EV4: 101771 | EW4: -58638 | EX4: 29893 | EY4: 33873 | FD4: 4516 | FE4: 3068 | FW4: 22 | FX4: 928 | FZ4: 48384 | GA4: 49241 | GB4: 49980 | GC4: 50729 | GG4: -2866 | GH4: 253 | GJ4: -3283 | GK4: 200 | GM4: -6473 | GN4: 480 | GP4: -2215 | GS4: 2500 | GU4: 6000 | GW4: 9000 | GX4: 1500 | GY4: 27855 | GZ4: 13515 | HA4: 4517 | HB4: 1162 | HC4: 26516 | HG4: 27905 | HH4: 20854 | HI4: 7148 | HJ4: 566 | HK4: 25738 | HY4: 3040 | HZ4: -3040
A5: 9 | B5: Alavieska | C5: 2740 | E5: 0.7041906327 | F5: 56.7 | G5: -2821 | K5: 37 | L5: 403 | M5: 22 | N5: 8734.181818 | O5: 3549 | P5: 2344 | Q5: 17535 | R5: -15191 | S5: 7383 | T5: 7913 | Y5: 22 | Z5: 720 | AR5: 21,5 | AS5: 64 | AU5: 229 | AV5: 2740 | AX5: 0.05185979971 | AY5: 59.4 | AZ5: -3134 | BD5: 34 | BE5: 147 | BF5: 7 | BG5: 7455.632017 | BH5: 3623 | BI5: 2401 | BJ5: 17251 | BK5: -14850 | BL5: 7293 | BM5: 8500 | BR5: 836 | BS5: 835 | CK5: 21,5 | CM5: 234 | CN5: 65 | CO5: 2740 | CQ5: 0.1872392638 | CR5: 76.88030107 | CS5: -4426.277372 | CW5: 27.35470942 | CX5: 302.919708 | CY5: 11.58907463 | CZ5: 9540.510949 | DA5: 3678 | DB5: 2437 | DC5: 17510 | DD5: -15073 | DE5: 7397 | DF5: 8644 | DK5: 856 | DL5: 860 | ED5: 21,5 | EE5: 64 | EG5: 176 | EH5: 2740 | ET5: 3740 | EU5: 2478 | EV5: 17808 | EW5: -15330 | EX5: 7634 | EY5: 8822 | FD5: 1010 | FE5: 890 | FW5: 21,5 | FX5: 63 | FZ5: 12934 | GA5: 12429 | GB5: 12615 | GC5: 12830 | GD5: 300 | GF5: 360 | GG5: -911 | GH5: 19 | GI5: 20 | GJ5: -963 | GK5: 108 | GL5: 20 | GM5: -636 | GO5: 20 | GP5: -455 | GR5: 20 | GS5: 1393 | GT5: -1000 | GV5: 3700 | GW5: 3900 | GX5: 4000 | GY5: 12457 | GZ5: 5127 | HA5: 2469 | HB5: 798 | HC5: 12337 | HG5: 12568 | HH5: 6976 | HI5: 5581 | HJ5: 84 | HK5: 11968 | HY5: 792 | HZ5: -792
A6: 10 | B6: Alavus | C6: 12228 | E6: 0.7925311203 | F6: 42.6 | G6: -1469 | K6: 54.9 | L6: 1040 | M6: 52 | N6: 6691.190812 | O6: 34240 | P6: 22022 | Q6: 89786 | R6: -67764 | S6: 33181 | T6: 37657 | Y6: 3193 | Z6: 2880 | AR6: 20,75 | AS6: 950 | AU6: 182 | AV6: 12228 | AX6: 0.5507936508 | AY6: 45.2 | AZ6: -1664 | BD6: 52.3 | BE6: 1116 | BF6: 54 | BG6: 7495.607852 | BH6: 34120 | BI6: 21873 | BJ6: 88966 | BK6: -67093 | BL6: 33402 | BM6: 36891 | BR6: 3567 | BS6: 2942 | CK6: 20,75 | CM6: 150 | CN6: 950 | CO6: 12228 | CQ6: 0.6444541868 | CR6: 50.3005637 | CS6: -2319.103696 | CW6: 49.82904901 | CX6: 894.7497547 | CY6: 42.5502115 | CZ6: 7675.253517 | DA6: 34320 | DB6: 22157 | DC6: 90123 | DD6: -67966 | DE6: 33946 | DF6: 36891 | DK6: 3216 | DL6: 2690 | ED6: 20,75 | EE6: 950 | EG6: 192 | EH6: 12228 | ET6: 34520 | EU6: 22442 | EV6: 91279 | EW6: -68837 | EX6: 34864 | EY6: 36891 | FD6: 3253 | FE6: 2869 | FW6: 20,75 | FX6: 950 | FZ6: 42609 | GA6: 42102 | GB6: 42802 | GC6: 43520 | GG6: -4680 | GH6: 422 | GI6: 340 | GJ6: -5817 | GK6: 380 | GL6: 380 | GM6: -5220 | GN6: 215 | GP6: -3690 | GQ6: 165 | GS6: 3000 | GT6: 1298 | GU6: 5000 | GV6: -298 | GW6: 10900 | GX6: -3500 | GY6: 30552 | GZ6: 14563 | HA6: 4130 | HB6: 1433 | HC6: 31778 | HG6: 33338 | HH6: 26545 | HI6: 4676 | HJ6: 3962 | HK6: 33512 | HY6: 2706 | HZ6: -2706
A7: 16 | B7: Asikkala | C7: 8405 | E7: 3.673333333 | F7: 47.2 | G7: -2410 | K7: 52.1 | L7: 38 | M7: 2 | N7: 6265.356554 | O7: 12932 | P7: 6837 | Q7: 51845 | R7: -45008 | S7: 29205 | T7: 17004 | Y7: 1117 | Z7: 2000 | AR7: 20,75 | AS7: 295 | AU7: 138 | AV7: 8405 | AX7: 2.292964245 | AY7: 50.3 | AZ7: -2756 | BD7: 49.3 | BE7: 35 | BF7: 2 | BG7: 6547.571209 | BH7: 13100 | BI7: 5900 | BJ7: 49815 | BK7: -43915 | BL7: 29365 | BM7: 16450 | BR7: 1740 | BS7: 1800 | CK7: 20,75 | CM7: 112 | CN7: 290 | CO7: 8405 | CQ7: 0.4148051525 | CR7: 44.41592768 | CS7: -2539.678763 | CW7: 51.53028317 | CX7: 40.57108864 | CY7: 1.899417043 | CZ7: 7796.311719 | DA7: 13300 | DB7: 6000 | DC7: 50300 | DD7: -44300 | DE7: 29942 | DF7: 16100 | DK7: 1542 | DL7: 1800 | ED7: 20,75 | EE7: 290 | EG7: 159 | EH7: 8405 | ET7: 13500 | EU7: 6100 | EV7: 51296 | EW7: -45196 | EX7: 30713 | EY7: 16100 | FD7: 1377 | FE7: 1800 | FW7: 20,75 | FX7: 285 | FZ7: 35148 | GA7: 33700 | GB7: 34000 | GC7: 34500 | GG7: -8780 | GH7: 1115 | GI7: 0 | GJ7: -2335 | GK7: 45 | GM7: -2220 | GP7: -1800 | GS7: 6950 | GT7: 2200 | GU7: 450 | GV7: 1500 | GW7: 600 | GX7: 2400 | GY7: 14000 | GZ7: 6437 | HA7: 10195 | HB7: 9211 | HC7: 13000 | HG7: 13000 | HH7: 1574 | HI7: 13530 | HJ7: 887 | HK7: 13000 | HY7: 380 | HZ7: -380
A8: 18 | B8: Askola | C8: 4991 | E8: -0.8244274809 | F8: 63.7 | G8: -2853 | K8: 32.3 | L8: 172 | M8: 11 | N8: 8208.918754 | O8: 12846 | P8: 4091 | Q8: 28190 | R8: -24099 | S8: 17854 | T8: 6798 | Y8: 493 | Z8: 965 | AR8: 20,25 | AS8: 296 | AU8: 314 | AV8: 4991 | AX8: 0.9418212479 | AY8: 57.2 | AZ8: -2703 | BD8: 31.1 | BE8: 203 | BF8: 13 | BG8: 5570.970329 | BH8: 13114 | BI8: 4238 | BJ8: 28298 | BK8: -24060 | BL8: 18249 | BM8: 6750 | BR8: 874 | BS8: 1055 | CK8: 20,25 | CM8: 158 | CN8: 290 | CO8: 4991 | CQ8: 1.389784946 | CR8: 54.54641128 | CS8: -2696.653977 | CW8: 30.78700462 | CX8: 196.7541575 | CY8: 11.95364349 | CZ8: 6007.814065 | DA8: 13376 | DB8: 4410 | DC8: 28893 | DD8: -24483 | DE8: 18797 | DF8: 6615 | DK8: 816 | DL8: 1182 | ED8: 20,75 | EE8: 290 | EG8: 169 | EH8: 4991 | ET8: 13643 | EU8: 4619 | EV8: 29698 | EW8: -25079 | EX8: 19466 | EY8: 6468 | FD8: 695 | FE8: 1150 | FW8: 20,75 | FX8: 290 | FZ8: 11285 | GA8: 11486 | GB8: 11659 | GC8: 11833 | GE8: 650 | GG8: -4555 | GH8: 889 | GI8: 150 | GJ8: -2984 | GK8: 330 | GL8: 100 | GM8: -2450 | GN8: 50 | GO8: 100 | GP8: -2466 | GQ8: 304 | GR8: 100 | GS8: 1500 | GT8: 1168 | GU8: 1000 | GV8: -740 | GX8: 670 | GY8: 14372 | GZ8: 10650 | HA8: 2743 | HB8: 0 | HC8: 15850 | HG8: 17480 | HH8: 9918 | HI8: 2784 | HJ8: 0 | HK8: 18990 | HY8: 699 | HZ8: -699
A9: 19 | B9: Aura | C9: 3962 | E9: 0.4494163424 | F9: 64.9 | G9: -2543 | K9: 25.1 | L9: 212 | M9: 14 | N9: 5500.377358 | O9: 7562 | P9: 2860 | Q9: 21657 | R9: -18797 | S9: 13725 | T9: 5035 | Y9: -183 | Z9: 634 | AR9: 21 | AS9: 172 | AU9: 280 | AV9: 3962 | AX9: -1.108630952 | AY9: 79.5 | AZ9: -3172 | BD9: 15 | BE9: 360 | BF9: 22 | BG9: 5883.404684 | BH9: 7567 | BI9: 2813 | BJ9: 22131 | BK9: -19318 | BL9: 14065 | BM9: 5265 | BR9: -91 | BS9: 621 | CK9: 21 | CM9: 311 | CN9: 172 | CO9: 3962 | CQ9: 1.057831325 | CR9: 71.18982406 | CS9: -3249.873801 | CW9: 15.99503025 | CX9: 304.1393236 | CY9: 19.42260985 | CZ9: 5715.547703 | DA9: 7618 | DB9: 2852 | DC9: 22289 | DD9: -19437 | DE9: 14920 | DF9: 5000 | DK9: 327 | DL9: 693 | ED9: 21,75 | EE9: 173 | EG9: 201 | EH9: 3962 | ET9: 7704 | EU9: 2876 | EV9: 22392 | EW9: -19516 | EX9: 15521 | EY9: 5000 | FD9: 849 | FE9: 821 | FW9: 21,75 | FX9: 175 | FZ9: 11693 | GA9: 11936 | GB9: 12052 | GC9: 12057 | GE9: 500 | GF9: 515 | GG9: -2301 | GH9: 680 | GI9: 302 | GJ9: -1344 | GK9: 79 | GL9: 200 | GM9: -1422 | GO9: 200 | GP9: -1302 | GR9: 200 | GS9: 2500 | GT9: -1750 | GV9: 3400 | GX9: -60 | GY9: 15002 | GZ9: 6566 | HA9: 4572 | HB9: 0 | HC9: 15485 | HG9: 16520 | HH9: 5123 | HI9: 8151 | HJ9: 0 | HK9: 16905 | HY9: 607 | HZ9: -607
A10: 46 | B10: Enonkoski | C10: 1522 | E10: 6.936507937 | F10: 10.5 | G10: 1526 | K10: 88.9 | L10: 1999 | M10: 100 | N10: 7266.922095 | O10: 4739 | P10: 2219 | Q10: 11932 | R10: -9713 | S10: 4449 | T10: 5180 | Y10: 19 | Z10: 439 | AR10: 21 | AS10: 104 | AU10: 141 | AV10: 1522 | AY10: 11.3 | AZ10: 1324 | BD10: 87.7 | BE10: 1985 | BF10: 97 | BG10: 7500.652742 | BH10: 4714 | BI10: 2286 | BJ10: 11405 | BK10: -9119 | BL10: 4528 | BM10: 5083 | BR10: 571 | BS10: 532 | CK10: 21 | CM10: 271 | CN10: 102 | CO10: 1522 | CQ10: 6.872 | CR10: 15.71440845 | CS10: 632.0630749 | CW10: 83.73340368 | CX10: 1687.910644 | CY10: 72.55939023 | CZ10: 8490.801577 | DA10: 4748 | DB10: 2286 | DC10: 11439 | DD10: -9153 | DE10: 4468 | DF10: 5100 | DK10: 498 | DL10: 566 | ED10: 21 | EE10: 103 | EG10: 39 | EH10: 1522 | ET10: 4744 | EU10: 2286 | EV10: 11435 | EW10: -9149 | EX10: 4557 | EY10: 5300 | FD10: 786 | FE10: 689 | FW10: 21 | FX10: 103 | FZ10: 5368 | GA10: 4899 | GB10: 4899 | GC10: 4899 | GG10: -496 | GJ10: -460 | GK10: 5 | GM10: -486 | GN10: 50 | GP10: -1321 | GQ10: 225 | GW10: 800 | GX10: 80 | GY10: 680 | GZ10: 0 | HA10: 0 | HB10: 665 | HC10: 0 | HG10: 0 | HH10: 680 | HI10: 80 | HJ10: 631 | HK10: 760 | HY10: 63 | HZ10: -63
A11: 47 | B11: Enontekiö | C11: 1891 | E11: 0.8394230769 | F11: 35.4 | G11: -2424 | K11: 52.5 | L11: 102 | M11: 4 | N11: 9041.732699 | O11: 7139 | P11: 2359 | Q11: 16842 | R11: -14483 | S11: 5580 | T11: 8730 | Y11: 23 | Z11: 306 | AR11: 20,75 | AS11: 160 | AU11: 83 | AV11: 1891 | AX11: 0.616334283 | AY11: 35 | AZ11: -2528 | BD11: 52.4 | BE11: 254 | BF11: 9 | BG11: 9775.531915 | BH11: 7557 | BI11: 2559 | BJ11: 17146 | BK11: -14587 | BL11: 5986 | BM11: 8715 | BR11: 347 | BS11: 329 | CK11: 20,75 | CM11: 80 | CN11: 160 | CO11: 1891 | CQ11: 0.2448979592 | CR11: 36.84495844 | CS11: -2776.837652 | CW11: 50.33712916 | CX11: 37.01745108 | CY11: 1.384823848 | CZ11: 9756.742464 | DA11: 7557 | DB11: 2559 | DC11: 17146 | DD11: -14587 | DE11: 5986 | DF11: 8715 | DK11: 347 | DL11: 300 | ED11: 20,75 | EE11: 160 | EG11: 261 | EH11: 1891 | ET11: 7557 | EU11: 2559 | EV11: 17146 | EW11: -14587 | EX11: 5986 | EY11: 8715 | FD11: 347 | FE11: 300 | FW11: 20,75 | FX11: 160 | FZ11: 7861 | GA11: 7722 | GB11: 7722 | GC11: 7722 | GG11: -1440 | GH11: 150 | GI11: 100 | GJ11: -1231 | GK11: 122 | GM11: -1000 | GP11: -1000 | GS11: 1000 | GT11: -42 | GU11: 1350 | GV11: 20 | GX11: 1063 | GY11: 4939 | GZ11: 3093 | HA11: 873 | HB11: 1834 | HC11: 6159 | HG11: 6159 | HH11: 2739 | HI11: 1956 | HJ11: 1834 | HK11: 6159 | HY11: 874 | HZ11: -874
A12: 49 | B12: Espoo | C12: 260753 | E12: 2.449075174 | F12: 23.9 | G12: 1837 | K12: 86.5 | L12: 2435 | M12: 134 | N12: 6609.093682 | O12: 650643 | P12: 786133 | Q12: 2086222 | R12: -1366834 | S12: 1336653 | T12: 31439 | Y12: 82189 | Z12: 114475 | AR12: 18 | AS12: 14160 | AU12: 26 | AV12: 260753 | AX12: 5.500851095 | AY12: 24.2 | AZ12: 1636 | BD12: 86.3 | BE12: 2425 | BF12: 133 | BG12: 6672.553967 | BH12: 655812 | BI12: 867385 | BJ12: 2191873 | BK12: -1396307 | BL12: 1386045 | BM12: 5500 | BR12: 95496 | BS12: 119518 | CK12: 18 | CM12: 14 | CN12: 14160 | CO12: 260753 | CQ12: 2.556450383 | CR12: 33.7073947 | CS12: 1498.364352 | CW12: 81.62640207 | CX12: 3000.306804 | CY12: 157.0873698 | CZ12: 6971.356034 | DA12: 662684 | DB12: 936001 | DC12: 2282168 | DD12: -1425951 | DE12: 1432265 | DF12: 3500 | DK12: 108742 | DL12: 129941 | ED12: 18 | EE12: 14160 | EG12: 27 | EH12: 260753 | ET12: 667931 | EU12: 991808 | EV12: 2311199 | EW12: -1397825 | EX12: 1485833 | EY12: 500 | FD12: 180491 | FE12: 137779 | FW12: 18 | FX12: 14160 | FZ12: 963135 | GA12: 1008473 | GB12: 1063021 | GC12: 1078434 | GG12: -273139 | GH12: 73539 | GI12: 30310 | GJ12: -325339 | GK12: 61158 | GL12: 50380 | GM12: -282025 | GN12: 3311 | GO12: 54080 | GP12: -271703 | GQ12: 18295 | GR12: 65480 | GU12: 22556 | GV12: 5005 | GW12: 116000 | GX12: 93207 | GY12: 282146 | GZ12: 134565 | HA12: 25144 | HB12: 286806 | HC12: 441411 | HG12: 628148 | HH12: 174505 | HI12: 164160 | HJ12: 286656 | HK12: 722598 | HY12: 55179 | HZ12: -55179
A13: 50 | B13: Eura | C13: 12368 | E13: 2.996190476 | F13: 29.8 | G13: -1443 | K13: 63 | L13: 89 | M13: 5 | N13: 6315.276883 | O13: 35964 | P13: 10976 | Q13: 77721 | R13: -66745 | S13: 43084 | T13: 23983 | Y13: 0 | Z13: 2900 | AR13: 20,5 | AS13: 816 | AU13: 172 | AV13: 12368 | AX13: 2.09716909 | AY13: 30 | AZ13: -1481 | BD13: 62.5 | BE13: 52 | BF13: 3 | BG13: 6287.360954 | BH13: 37002 | BI13: 10859 | BJ13: 76600 | BK13: -65741 | BL13: 43218 | BM13: 24106 | BR13: 1286 | BS13: 3086 | CK13: 20,5 | CM13: 111 | CN13: 816 | CO13: 12368 | CQ13: 1.914602347 | CR13: 37.48953869 | CS13: -2006.872574 | CW13: 56.26088754 | CX13: 44.38874515 | CY13: 2.258979099 | CZ13: 7172.218629 | DA13: 37555 | DB13: 11083 | DC13: 78260 | DD13: -67177 | DE13: 43993 | DF13: 23500 | DK13: -24 | DL13: 3306 | ED13: 20,5 | EE13: 816 | EG13: 187 | EH13: 12368 | ET13: 38031 | EU13: 11224 | EV13: 79912 | EW13: -68688 | EX13: 44794 | EY13: 23300 | FD13: -963 | FE13: 3106 | FW13: 20,5 | FX13: 816 | FZ13: 229436 | GA13: 28392 | GB13: 29297 | GC13: 30256 | GG13: -8997 | GH13: 687 | GI13: 150 | GJ13: -6018 | GK13: 634 | GL13: 50 | GM13: -3336 | GO13: 50 | GP13: -1513 | GR13: 50 | GS13: 4043 | GU13: 296 | GV13: 1600 | GW13: 6400 | GX13: -100 | GY13: 24639 | GZ13: 5579 | HA13: 5600 | HB13: 3914 | HC13: 26377 | HG13: 29813 | HH13: 9465 | HI13: 7508 | HJ13: 3730 | HK13: 32450 | HY13: 818 | HZ13: -818
A14: 51 | B14: Eurajoki | C14: 5931 | E14: 5.856216216 | F14: 33.1 | G14: 2366 | K14: 81 | L14: 4160 | M14: 191 | N14: 7969.54141 | O14: 17881 | P14: 4597 | Q14: 42844 | R14: -38247 | S14: 38581 | T14: 9468 | Y14: 9641 | Z14: 1837 | AR14: 18 | AS14: 380 | AU14: 9 | AV14: 5931 | AX14: 9.244755245 | AY14: 27.7 | AZ14: 1729 | BD14: 83.5 | BE14: 3320 | BF14: 146 | BG14: 8282.50591 | BH14: 18799 | BI14: 4616 | BJ14: 43633 | BK14: -39017 | BL14: 39568 | BM14: 7395 | BR14: 7946 | BS14: 2202 | CK14: 18 | CM14: 2 | CN14: 380 | CO14: 5931 | CQ14: 20.67064846 | CR14: 19.88082554 | CS14: 2310.571573 | CW14: 87.3235794 | CX14: 3643.736301 | CY14: 161.1048364 | CZ14: 8255.268926 | ED14: 18 | EE14: 380 | EG14: 1 | EH14: 5931 | FW14: 18 | FX14: 380 | FZ14: 20496 | GA14: 20340 | GG14: -7129 | GJ14: -3555 | GM14: -4165 | GO14: 100 | GP14: -9835 | GT14: -81 | GY14: 3454 | GZ14: 4310 | HA14: 702 | HB14: 226 | HC14: 3098 | HG14: 2742 | HH14: 3454 | HI14: 356 | HJ14: 450 | HK14: 2386 | HY14: 701 | HZ14: -701
A15: 52 | B15: Evijärvi | C15: 2685 | E15: 2.376271186 | F15: 26.8 | G15: -1370 | K15: 62.4 | L15: 208 | M15: 12 | N15: 6473.243538 | O15: 4232 | P15: 1810 | Q15: 18478 | R15: -16668 | S15: 8193 | T15: 8200 | Y15: -297 | Z15: 343 | AR15: 21,5 | AS15: 71 | AU15: 45 | AV15: 2685 | AX15: 0.1308243728 | AY15: 27.4 | AZ15: -1498 | BD15: 60.5 | BE15: 163 | BF15: 9 | BG15: 6975.428146 | BH15: 4185 | BI15: 1838 | BJ15: 18344 | BK15: -16506 | BL15: 8535 | BM15: 7860 | BR15: -80 | BS15: 399 | CK15: 21,5 | CM15: 236 | CN15: 74 | CO15: 2685 | CQ15: -0.1972477064 | CR15: 29.10698299 | CS15: -1606.331471 | CW15: 57.60276172 | CX15: 185.1024209 | CY15: 9.713788487 | CZ15: 6955.307263 | DA15: 4352 | DB15: 1841 | DC15: 19011 | DD15: -17170 | DE15: 9918 | DF15: 7703 | DK15: 465 | DL15: 465 | ED15: 26 | EE15: 71 | EG15: 287 | EH15: 2685 | ET15: 4396 | EU15: 1846 | EV15: 19273 | EW15: -17427 | EX15: 10524 | EY15: 7395 | FD15: 490 | FE15: 490 | FW15: 27,5 | FX15: 71 | FZ15: 12715 | GA15: 12633 | GB15: 13059 | GC15: 13242 | GD15: 400 | GG15: -2195 | GI15: 5170 | GJ15: -1012 | GM15: -2659 | GP15: -1595 | GT15: -500 | GV15: 150 | GX15: 1100 | GY15: 4409 | GZ15: 1098 | HA15: 2151 | HB15: 165 | HC15: 5495 | HG15: 7683 | HH15: 409 | HI15: 3193 | HJ15: 228 | HK15: 8781 | HY15: 500 | HZ15: -500
A16: 61 | B16: Forssa | C16: 17667 | E16: 1.59417102 | F16: 40.9 | G16: -1455 | K16: 61.2 | L16: 583 | M16: 33 | N16: 6490.102619 | O16: 30910 | P16: 25990 | Q16: 117723 | R16: -91733 | S16: 57650 | T16: 39406 | Y16: 4800 | Z16: 5458 | AR16: 20 | AS16: 591 | AU16: 140 | AV16: 17667 | AX16: 1.078155206 | AY16: 40.3 | AZ16: -1566 | BD16: 60.1 | BE16: 441 | BF16: 24 | BG16: 6634.963615 | BH16: 30529 | BI16: 26562 | BJ16: 119083 | BK16: -92521 | BL16: 58300 | BM16: 39100 | BR16: 4290 | BS16: 5799 | CK16: 20 | CM16: 131 | CN16: 590 | CO16: 17667 | CQ16: 2.418424566 | CR16: 38.16266217 | CS16: -1500.311315 | CW16: 59.61437719 | CX16: 605.8753608 | CY16: 31.58160213 | CZ16: 7002.320711 | DA16: 30529 | DB16: 26853 | DC16: 119384 | DD16: -92531 | DE16: 58500 | DF16: 38500 | DK16: 3777 | DL16: 5900 | ED16: 20 | EE16: 587 | EG16: 62 | EH16: 17667 | ET16: 30600 | EU16: 27133 | EV16: 119777 | EW16: -92644 | EX16: 60795 | EY16: 38300 | FD16: 5657 | FE16: 6201 | FW16: 20,75 | FX16: 587 | FZ16: 71557 | GA16: 72667 | GB16: 72970 | GC16: 73288 | GG16: -20614 | GH16: 556 | GI16: 5182 | GJ16: -10160 | GL16: 260 | GM16: -8920 | GO16: 260 | GP16: -7920 | GR16: 260 | GS16: 8000 | GT16: -6793 | GU16: 3000 | GV16: 869 | GX16: 2301 | GY16: 25000 | GZ16: 25778 | HA16: 8646 | HB16: 1072 | HC16: 32325 | HG16: 40850 | HH16: 17512 | HI16: 16978 | HJ16: 272 | HK16: 42775 | HY16: 2820 | HZ16: -2820
A17: 69 | B17: Haapajärvi | C17: 7616 | E17: 0.8065054212 | F17: 74.3 | G17: -2490 | K17: 42.1 | L17: 2079 | M17: 108 | N17: 7045.99816 | O17: 12995 | P17: 8615 | Q17: 52842 | R17: -44227 | S17: 21690 | T17: 23229 | Y17: 1574 | Z17: 1460 | AR17: 21 | AS17: 227 | AU17: 35 | AV17: 7616 | AX17: 0.3946916173 | AY17: 72.2 | AZ17: -2426 | BD17: 43.1 | BE17: 2015 | BF17: 104 | BG17: 7080.748593 | BH17: 12802 | BI17: 8860 | BJ17: 53145 | BK17: -44285 | BL17: 23019 | BM17: 23250 | BR17: 2411 | BS17: 1500 | CK17: 22 | CM17: 128 | CN17: 224 | CO17: 7616 | CQ17: -0.1892232835 | CR17: 76.44500815 | CS17: -2764.180672 | CW17: 38.25477461 | CX17: 2056.066176 | CY17: 96.7357491 | CZ17: 7757.878151 | DA17: 13002 | DB17: 9091 | DC17: 53845 | DD17: -44754 | DE17: 23249 | DF17: 23947 | DK17: 2642 | DL17: 1520 | ED17: 22 | EE17: 223 | EG17: 299 | EH17: 7616 | ET17: 13206 | EU17: 9182 | EV17: 54754 | EW17: -45572 | EX17: 23481 | EY17: 24666 | FD17: 2774 | FE17: 1530 | FW17: 22 | FX17: 221 | FZ17: 33830 | GA17: 34346 | GB17: 34897 | GC17: 35495 | GD17: 800 | GG17: -3328 | GH17: 448 | GI17: 50 | GJ17: -2805 | GK17: 430 | GL17: 50 | GM17: -3340 | GN17: 685 | GO17: 50 | GP17: -2505 | GQ17: 450 | GR17: 50 | GS17: 3400 | GT17: -2296 | GU17: 3780 | GV17: -672 | GW17: 6079 | GX17: 1193 | GY17: 30409 | GZ17: 23413 | HA17: 6399 | HB17: 1199 | HC17: 28382 | HG17: 26347 | HH17: 23733 | HI17: 6920 | HJ17: 1184 | HK17: 24077 | HY17: 5099 | HZ17: -5099
A18: 71 | B18: Haapavesi | C18: 7241 | E18: 0.7512019231 | F18: 35.4 | G18: -2017 | K18: 41.7 | L18: 897 | M18: 30 | N18: 10732.80065 | O18: 41718 | P18: 44226 | Q18: 85174 | R18: -40948 | S18: 21238 | T18: 22034 | Y18: 2261 | Z18: 2223 | AR18: 21,25 | AS18: 1050 | AU18: 211 | AV18: 7241 | AX18: 0.3950729927 | AY18: 37.8 | AZ18: -2346 | BD18: 38.2 | BE18: 974 | BF18: 32 | BG18: 11093.64273 | BH18: 41278 | BI18: 45089 | BJ18: 87023 | BK18: -41934 | BL18: 20988 | BM18: 22160 | BR18: 1315 | BS18: 2568 | CK18: 21,25 | CM18: 190 | CN18: 1050 | CO18: 7241 | CQ18: 0.4137566138 | CR18: 44.81528429 | CS18: -3000 | CW18: 31.59090011 | CX18: 1031.349261 | CY18: 31.86938069 | CZ18: 11812.04254 | DE18: 21311 | DF18: 22689 | DK18: 2106 | DL18: 2600 | ED18: 21,25 | EG18: 230 | EH18: 7241 | EX18: 21807 | EY18: 23505 | FD18: 3278 | FE18: 2550 | FW18: 21,25 | FZ18: 24049 | GA18: 25211 | GG18: -6870 | GH18: 1307 | GJ18: -5228 | GK18: 607 | GL18: 60 | GM18: -2100 | GO18: 70 | GP18: -2760 | GR18: 70 | GS18: 3465 | GT18: 1000 | GU18: 5009 | GV18: -1000 | GW18: 5020 | GX18: 3000 | GY18: 24424 | GZ18: 12131 | HA18: 3370 | HB18: 0 | HC18: 27704 | HG18: 27704 | HH18: 14957 | HI18: 6615 | HJ18: 0 | HK18: 27704 | HY18: 1987 | HZ18: -1987
A19: 72 | B19: Hailuoto | C19: 999 | E19: 37.28571429 | F19: 30.2 | G19: 3787 | K19: 77.5 | L19: 5668 | M19: 317 | N19: 6516.932271 | O19: 3497 | P19: 1502 | Q19: 7648 | R19: -6146 | S19: 3089 | T19: 3181 | Y19: 109 | Z19: 500 | AR19: 19,25 | AS19: 56 | AU19: 3 | AV19: 999 | AX19: 3.939849624 | AY19: 33.5 | AZ19: 2367 | BD19: 77.4 | BE19: 3941 | BF19: 147 | BG19: 9815.415822 | BH19: 3802 | BI19: 2054 | BJ19: 8666 | BK19: -6612 | BL19: 3374 | BM19: 3262 | BR19: 8 | BS19: 425 | CK19: 20 | CM19: 19 | CN19: 55 | CO19: 999 | CQ19: -1.717948718 | CR19: 26.43992703 | CS19: 821.8218218 | CW19: 77.41885022 | CX19: 2598.598599 | CY19: 98.16015746 | CZ19: 9662.662663 | DA19: 3802 | DB19: 2054 | DC19: 8666 | DD19: -6612 | DE19: 3374 | DF19: 3262 | DK19: 8 | DL19: 425 | ED19: 20 | EE19: 55 | EG19: 301 | EH19: 999 | ET19: 3802 | EU19: 2054 | EV19: 8666 | EW19: -6612 | EX19: 3374 | EY19: 3262 | FD19: 8 | FE19: 425 | FW19: 20 | FX19: 55 | FZ19: 3077 | GA19: 3338 | GB19: 3338 | GC19: 3338 | GG19: -864 | GH19: 325 | GI19: 250 | GJ19: -1274 | GK19: 250 | GL19: 3 | GM19: -278 | GP19: -5 | GT19: -101 | GV19: 0 | GY19: 1062 | GZ19: 1263 | HA19: 101 | HB19: 28 | HC19: 962 | HG19: 862 | HH19: 1062 | HI19: 101 | HJ19: 20 | HK19: 762 | HY19: 0 | HZ19: 0
A20: 74 | B20: Halsua | C20: 1229 | E20: 0.6037151703 | F20: 69.2 | G20: -3566 | K20: 33.1 | L20: 75 | M20: 4 | N20: 7410.980392 | O20: 2455 | P20: 975 | Q20: 8315 | R20: -7340 | S20: 3980 | T20: 3846 | Y20: 150 | Z20: 127 | AR20: 21,5 | AU20: 264 | AV20: 1229 | AX20: -0.01131221719 | AY20: 68.2 | AZ20: -2349 | BD20: 35.2 | BE20: 65 | BF20: 3 | BG20: 7539.262821 | BH20: 2188 | BI20: 994 | BJ20: 8086 | BK20: -7092 | BL20: 3958 | BM20: 3609 | BR20: 120 | BS20: 116 | CK20: 21,5 | CM20: 284 | CO20: 1229 | CQ20: 1.047826087 | CR20: 50.09122978 | CS20: -2352.318959 | CW20: 42.89473684 | CX20: 248.1692433 | CY20: 13.25139864 | CZ20: 6835.638731 | DA20: 2220 | DB20: 1033 | DC20: 8216 | DD20: -7183 | DE20: 4098 | DF20: 3678 | DK20: 190 | DL20: 116 | ED20: 22,5 | EG20: 239 | EH20: 1229 | ET20: 2220 | EU20: 1033 | EV20: 8216 | EW20: -7183 | EX20: 4098 | EY20: 3678 | FD20: 189 | FE20: 116 | FW20: 22,5 | FZ20: 5122 | GA20: 5165 | GB20: 5247 | GC20: 5247 | GE20: 170 | GF20: 160 | GG20: -2647 | GJ20: -200 | GL20: 18 | GM20: -146 | GP20: -151 | GS20: 1020 | GT20: 150 | GU20: 155 | GV20: 150 | GX20: -1250 | GY20: 1629 | GZ20: 3666 | HA20: 1256 | HB20: 65 | HC20: 3231 | HG20: 3230 | HH20: 2010 | HI20: 1528 | HJ20: 65 | HK20: 3200 | HY20: 188 | HZ20: -188
A21: 75 | B21: Hamina | C21: 21203 | E21: 0.7394378194 | F21: 77.8 | G21: -4022 | K21: 47.6 | L21: 357 | M21: 17 | N21: 7477.269542 | O21: 62604 | P21: 31058 | Q21: 139293 | R21: -108738 | S21: 80967 | T21: 32279 | Y21: 8010 | Z21: 8936 | AR21: 21 | AS21: 1298 | AU21: 114 | AV21: 21203 | AX21: 0.616761539 | AY21: 75.5 | AZ21: -4209 | BD21: 46.4 | BE21: 381 | BF21: 19 | BG21: 7451.213775 | BH21: 62651 | BI21: 31914 | BJ21: 140537 | BK21: -109149 | BL21: 82300 | BM21: 34220 | BR21: 9133 | BS21: 8946 | CK21: 21 | CM21: 54 | CN21: 1293 | CO21: 21203 | CQ21: 0.6612967914 | CR21: 75.66868975 | CS21: -4142.621327 | CW21: 45.29686321 | CX21: 452.3416498 | CY21: 22.47592357 | CZ21: 7345.847286 | DA21: 63217 | DB21: 32588 | DC21: 142514 | DD21: -110452 | DE21: 83400 | DF21: 34700 | DK21: 9420 | DL21: 9217 | ED21: 21 | EE21: 1288 | EG21: 87 | EH21: 21203 | ET21: 63782 | EU21: 32383 | EV21: 143201 | EW21: -111344 | EX21: 85400 | EY21: 35000 | FD21: 10788 | FE21: 9140 | FW21: 21 | FX21: 1286 | FZ21: 51811 | GA21: 52478 | GB21: 53391 | GC21: 53594 | GG21: -8821 | GH21: 50 | GI21: 2260 | GJ21: -10623 | GK21: 118 | GL21: 1310 | GM21: -8895 | GO21: 1310 | GP21: -8010 | GR21: 1310 | GS21: 9906 | GT21: -2000 | GU21: 13500 | GW21: 11800 | GX21: 4602 | GY21: 79953 | GZ21: 62225 | HA21: 12897 | HB21: 6562 | HC21: 85768 | HG21: 84841 | HH21: 64705 | HI21: 13826 | HJ21: 6534 | HK21: 81747 | HY21: 9905 | HZ21: -9905
A22: 77 | B22: Hankasalmi | C22: 5404 | E22: 0.02721685689 | F22: 28.2 | G22: -867 | K22: 63.4 | L22: 445 | M22: 21 | N22: 7752.139865 | O22: 18125 | P22: 12174 | Q22: 44756 | R22: -32582 | S22: 15065 | T22: 18035 | Y22: 428 | Z22: 1450 | AR22: 21,5 | AS22: 369 | AU22: 292 | AV22: 5404 | AX22: 1.02262931 | AY22: 25.6 | AZ22: -992 | BD22: 62.4 | BE22: 468 | BF22: 22 | BG22: 7752.796626 | BH22: 18454 | BI22: 12301 | BJ22: 44401 | BK22: -32100 | BL22: 15310 | BM22: 18600 | BR22: 1700 | BS22: 1500 | CK22: 21,5 | CM22: 157 | CN22: 369 | CO22: 5404 | CQ22: -0.06644518272 | CR22: 30.5318815 | CS22: -1650.814212 | CW22: 55.72716839 | CX22: 208.7342709 | CY22: 8.875953952 | CZ22: 8583.641747 | DA22: 18701 | DB22: 12457 | DC22: 44987 | DD22: -32530 | DE22: 15500 | DF22: 18750 | DK22: 1600 | DL22: 1400 | ED22: 21,5 | EE22: 363 | EG22: 285 | EH22: 5404 | ET22: 19040 | EU22: 12681 | EV22: 45801 | EW22: -33120 | EX22: 15750 | EY22: 19100 | FD22: 1600 | FE22: 1400 | FW22: 21,5 | FZ22: 20096 | GA22: 19380 | GB22: 19640 | GC22: 19995 | GG22: -4191 | GH22: 816 | GI22: 120 | GJ22: -3212 | GL22: 120 | GM22: -748 | GO22: 120 | GS22: 3500 | GT22: 200 | GV22: -50 | GW22: 522 | GX22: 2000 | GY22: 6679 | GZ22: 4610 | HA22: 810 | HB22: 0 | HC22: 7785 | HG22: 6919 | HH22: 3612 | HI22: 2760 | HJ22: 0 | HY22: 985 | HZ22: -985
A23: 78 | B23: Hanko | C23: 9109 | E23: 0.6773709688 | F23: 76.9 | G23: -5577 | K23: 31.9 | L23: 183 | M23: 7 | N23: 9252.522035 | O23: 31458 | P23: 20188 | Q23: 73635 | R23: -53672 | S23: 41073 | T23: 12430 | Y23: 1002 | Z23: 4125 | AR23: 21,75 | AS23: 619 | AU23: 8 | AV23: 9109 | AX23: 0.2453561951 | AY23: 82.6 | AZ23: -6074 | BD23: 27.8 | BE23: 85 | BF23: 3 | BG23: 9348.548613 | BH23: 30616 | BI23: 21053 | BJ23: 72990 | BK23: -52202 | BL23: 40981 | BM23: 11700 | BR23: 1943 | BS23: 3800 | CK23: 21,75 | CM23: 129 | CN23: 612 | CO23: 9109 | CQ23: 0.6045995562 | CR23: 79.27129493 | CS23: -6208.255571 | CW23: 40.67207947 | CX23: 74.21231749 | CY23: 2.01282386 | CZ23: 13457.45966 | DB23: 23000 | DC23: 73000 | DD23: -50000 | DE23: 41227 | DF23: 11700 | DK23: 3970 | DL23: 3800 | ED23: 21,75 | EE23: 604 | EG23: 38 | EH23: 9109 | EU23: 23000 | EV23: 73000 | EW23: -50000 | EX23: 42408 | EY23: 11700 | FD23: 5024 | FE23: 3800 | FW23: 21,75 | FX23: 595 | FZ23: 29011 | GA23: 29561 | GF23: 830 | GG23: -13907 | GH23: 0 | GI23: 10 | GJ23: -3650 | GL23: 10 | GM23: -4010 | GO23: 10 | GP23: -4010 | GR23: 10 | GS23: 10000 | GT23: -295 | GU23: 10000 | GW23: 10190 | GX23: 46 | GY23: 64040 | GZ23: 17263 | HA23: 32564 | HB23: 1704 | HC23: 65771 | HG23: 65836 | HH23: 10163 | HI23: 41771 | HJ23: 30427 | HK23: 64847 | HY23: 13300 | HZ23: -13300
A24: 79 | B24: Harjavalta | C24: 7407 | F24: 12 | G24: 905 | K24: 86.8 | L24: 1134 | M24: 68 | N24: 6045.842217 | O24: 15979 | P24: 6477 | Q24: 48763 | R24: -42286 | S24: 30760 | T24: 14339 | Y24: 2899 | Z24: 2000 | AR24: 19,75 | AS24: 317 | AU24: 317 | AV24: 7407 | AX24: -4404 | AY24: 26.8 | AZ24: -934 | BD24: 70.8 | BE24: 180 | BF24: 9 | BG24: 7483.034999 | BH24: 15910 | BI24: 5935 | BJ24: 48326 | BK24: -42423 | BL24: 30500 | BM24: 12505 | BR24: 637 | BS24: 2121 | CK24: 19,75 | CM24: 319 | CN24: 312,5 | CO24: 7407 | CQ24: 1.919472914 | CR24: 38.49316701 | CS24: -2071.283921 | CW24: 57.95144749 | CX24: 114.7563116 | CY24: 5.089820359 | CZ24: 8229.377616 | DA24: 15659 | DB24: 5826 | DC24: 47813 | DD24: -42016 | DE24: 31400 | DF24: 12200 | DK24: 1663 | DL24: 2083 | ED24: 20,75 | EE24: 311,5 | EG24: 222 | EH24: 7407 | ET24: 15598 | EU24: 5258 | EV24: 46799 | EW24: -41570 | EX24: 31400 | EY24: 11800 | FD24: 1710 | FE24: 2083 | FW24: 20,75 | FX24: 311 | FZ24: 27565 | GA24: 27220 | GB24: 27264 | GC24: 27309 | GG24: -3868 | GH24: 55 | GI24: 190 | GJ24: -2366 | GL24: 150 | GM24: -2236 | GO24: 150 | GP24: -2473 | GR24: 150 | GV24: 5000 | GW24: 10000 | GX24: -1000 | GY24: 13000 | GZ24: 0 | HA24: 0 | HB24: 32 | HC24: 14509 | HG24: 14887 | HH24: 8000 | HI24: 5429 | HJ24: 32 | HK24: 15439 | HY24: 0 | HZ24: 0
A25: 81 | B25: Hartola | C25: 3098 | E25: 0.7305986696 | F25: 50.2 | G25: -2163 | K25: 34.4 | L25: 548 | M25: 31 | N25: 6544.349939 | O25: 5087 | P25: 2990 | Q25: 21785 | R25: -18795 | S25: 10017 | T25: 8924 | Y25: -57 | Z25: 483 | AR25: 21,5 | AS25: 110 | AU25: 113 | AV25: 3098 | AX25: -0.1924855491 | AY25: 47.9 | AZ25: -2568 | BD25: 30.4 | BE25: 210 | BF25: 11 | BG25: 7255.850234 | BH25: 4868 | BI25: 2722 | BJ25: 21358 | BK25: -18636 | BL25: 10127 | BM25: 8779 | BR25: 54 | BS25: 533 | CK25: 21,5 | CM25: 297 | CN25: 102 | CO25: 3098 | CQ25: 0.3184971098 | CR25: 50.52305129 | CS25: -2967.398321 | CW25: 25.80494009 | CX25: 297.2885733 | CY25: 13.81462152 | CZ25: 7854.744997 | DA25: 4840 | DB25: 2640 | DC25: 21473 | DD25: -18833 | DE25: 10142 | DF25: 8598 | DK25: -309 | DL25: 512 | ED25: 21,5 | EE25: 96 | EG25: 235 | EH25: 3098 | ET25: 4807 | EU25: 2639 | EV25: 21666 | EW25: -19027 | EX25: 10342 | EY25: 8533 | FD25: -368 | FE25: 470 | FW25: 21,5 | FX25: 96 | FZ25: 15317 | GA25: 15129 | GB25: 15273 | GC25: 15499 | GF25: 420 | GG25: -5629 | GH25: 1430 | GI25: 100 | GJ25: -4530 | GK25: 2400 | GL25: 127 | GM25: -2910 | GN25: 1050 | GO25: 100 | GP25: -230 | GR25: 100 | GU25: 1500 | GW25: 2000 | GX25: 500 | GY25: 10717 | GZ25: 5767 | HA25: 1525 | HB25: 86 | HC25: 13636 | HG25: 15036 | HH25: 6218 | HI25: 1997 | HJ25: 291 | HK25: 15036 | HY25: 1545 | HZ25: -1545
A26: 82 | B26: Hattula | C26: 9684 | E26: 0.9237147595 | F26: 54.6 | G26: -2516 | K26: 46.7 | L26: 2 | M26: 0 | N26: 5590.37389 | O26: 21014 | P26: 11085 | Q26: 53872 | R26: -42787 | S26: 35285 | T26: 10100 | Y26: 2449 | Z26: 1499 | AR26: 20 | AS26: 421 | AU26: 243 | AV26: 9684 | AX26: -0.01096224117 | AY26: 63.3 | AZ26: -2945 | BD26: 40.9 | BE26: 9 | BF26: 1 | BG26: 5551.851852 | BH26: 20667 | BI26: 10495 | BJ26: 53515 | BK26: -43020 | BL26: 35740 | BM26: 9350 | BR26: 1746 | BS26: 1345 | CK26: 20 | CM26: 266 | CN26: 409 | CO26: 9684 | CQ26: 1.178523936 | CR26: 55.25258268 | CS26: -2756.505576 | CW26: 44.15730781 | CX26: 19.51672862 | CY26: 1.325538497 | CZ26: 5374.122264 | DA26: 20786 | DB26: 10592 | DC26: 53886 | DD26: -43294 | DE26: 36600 | DF26: 9209 | DK26: 1971 | DL26: 1400 | ED26: 20 | EE26: 400 | EG26: 127 | EH26: 9684 | ET26: 20996 | EU26: 10654 | EV26: 54404 | EW26: -43750 | EX26: 37730 | EY26: 9356 | FD26: 2792 | FE26: 1725 | FW26: 20 | FX26: 400 | FZ26: 24649 | GA26: 25131 | GB26: 25341 | GC26: 25576 | GG26: -4522 | GH26: 500 | GJ26: -7617 | GK26: 1065 | GM26: -7787 | GN26: 1065 | GP26: -2275 | GQ26: 300 | GS26: 4000 | GT26: -877 | GU26: 4000 | GV26: 1617 | GW26: 4000 | GX26: -2384 | GY26: 25442 | GZ26: 15345 | HA26: 5732 | HB26: 4398 | HC26: 30748 | HG26: 35999 | HH26: 18073 | HI26: 5586 | HJ26: 4398 | HK26: 35682 | HY26: 1420 | HZ26: -1420
A27: 86 | B27: Hausjärvi | C27: 8808 | E27: 0.6995037221 | F27: 56.8 | G27: -2267 | K27: 43.2 | L27: 582 | M27: 37 | N27: 5759.623027 | O27: 16749 | P27: 10385 | Q27: 52480 | R27: -42095 | S27: 31558 | T27: 13138 | Y27: 2027 | Z27: 2312 | AR27: 21 | AS27: 382 | AU27: 161 | AV27: 8808 | AX27: 0.2868252516 | AY27: 57.6 | AZ27: -2745 | BD27: 40.6 | BE27: 242 | BF27: 14 | BG27: 6319.760884 | BH27: 17000 | BI27: 11013 | BJ27: 53488 | BK27: -42475 | BL27: 32020 | BM27: 12388 | BR27: 1314 | BS27: 2236 | CK27: 21 | CM27: 206 | CN27: 386 | CO27: 8808 | CQ27: 0.4618908788 | CR27: 58.99359306 | CS27: -2989.327884 | CW27: 38.19264361 | CX27: 258.0608538 | CY27: 14.58716484 | CZ27: 6457.198002 | DA27: 17000 | DB27: 11077 | DC27: 54222 | DD27: -43145 | DE27: 34047 | DF27: 12395 | DK27: 2719 | DL27: 2320 | ED27: 21,75 | EE27: 384 | EG27: 191 | EH27: 8808 | ET27: 17000 | EU27: 11143 | EV27: 54966 | EW27: -43823 | EX27: 35174 | EY27: 12204 | FD27: 2945 | FE27: 2650 | FW27: 21,75 | FX27: 384 | FZ27: 27310 | GA27: 27734 | GB27: 28468 | GC27: 29213 | GG27: -5318 | GI27: 7 | GJ27: -1655 | GL27: 444 | GM27: -2263 | GN27: 100 | GO27: 270 | GP27: -4520 | GR27: 270 | GS27: 5500 | GU27: 3500 | GV27: 1000 | GW27: 6600 | GX27: 500 | GY27: 29722 | GZ27: 18837 | HA27: 3808 | HB27: 205 | HC27: 28886 | HG27: 28278 | HH27: 19772 | HI27: 6215 | HJ27: 177 | HK27: 29776 | HY27: 3465 | HZ27: -3465
A28: 111 | B28: Heinola | C28: 19979 | E28: 1.055670297 | F28: 51.7 | G28: 349 | K28: 64.4 | L28: 3063 | M28: 174 | N28: 9958.192819 | O28: 60248 | P28: 34251 | Q28: 141666 | R28: -107685 | S28: 71700 | T28: 38760 | Y28: 4199 | Z28: 5300 | AR28: 20,5 | AS28: 1150 | AU28: 105 | AV28: 19979 | AX28: 0.981910164 | AY28: 49.7 | AZ28: 453 | BD28: 64.6 | BE28: 3201 | BF28: 169 | BG28: 6918.956661 | BH28: 58088 | BI28: 33737 | BJ28: 139109 | BK28: -105727 | BL28: 70850 | BM28: 38400 | BR28: 5205 | BS28: 5200 | CK28: 20,5 | CM28: 84 | CN28: 1150 | CO28: 19979 | CQ28: 1.542428424 | CR28: 50.7991965 | CS28: 477.9518494 | CW28: 64.07704448 | CX28: 3362.180289 | CY28: 178.8679472 | CZ28: 6860.903949 | DA28: 57674 | DB28: 33271 | DC28: 138364 | DD28: -105448 | DE28: 71280 | DF28: 37900 | DK28: 5323 | DL28: 5200 | ED28: 20,5 | EE28: 1150 | EG28: 94 | EH28: 19979 | ET28: 57609 | EU28: 33372 | EV28: 138536 | EW28: -105519 | EX28: 72050 | EY28: 37300 | FD28: 5230 | FE28: 5200 | FW28: 20,5 | FX28: 1150 | FZ28: 59201 | GA28: 58454 | GB28: 58364 | GC28: 58384 | GG28: -5856 | GH28: 420 | GI28: 409 | GJ28: -11106 | GL28: 309 | GM28: -15472 | GN28: 2662 | GO28: 9 | GP28: -10142 | GR28: 9 | GS28: 5500 | GT28: -5000 | GV28: 2500 | GW28: 9200 | GX28: -1500 | GY28: 45000 | GZ28: 39457 | HA28: 8223 | HB28: 1074 | HC28: 50500 | HG28: 57200 | HH28: 32998 | HI28: 14787 | HJ28: 2374 | HK28: 61900 | HY28: 6262 | HZ28: -6262
A29: 90 | B29: Heinävesi | C29: 3667 | E29: 1.354008192 | F29: 41.1 | G29: -2132 | K29: 56.3 | L29: 415 | M29: 17 | N29: 10080.21949 | O29: 13541 | P29: 5254 | Q29: 29582 | R29: -24328 | S29: 11513 | T29: 13022 | Y29: 476 | Z29: 1631 | AR29: 20,75 | AS29: 294 | AU29: 190 | AV29: 3667 | AX29: -0.3216374269 | AY29: 54.9 | AZ29: -3148 | BD29: 46.6 | BE29: 651 | BF29: 27 | BG29: 8735.168359 | BH29: 13487 | BI29: 5309 | BJ29: 29830 | BK29: -24521 | BL29: 11801 | BM29: 13489 | BR29: 998 | BS29: 1695 | CK29: 20,75 | CM29: 270 | CN29: 290 | CO29: 3667 | CQ29: 1.526510481 | CR29: 65.28831563 | CS29: -3903.190619 | CW29: 41.68634575 | CX29: 932.9151895 | CY29: 37.58096069 | CZ29: 9060.812653 | DA29: 13489 | DB29: 5379 | DC29: 29834 | DD29: -24455 | DE29: 11624 | DF29: 13489 | DK29: 922 | DL29: 1730 | ED29: 20,75 | EE29: 290 | EG29: 137 | EH29: 3667 | ET29: 13481 | EU29: 5379 | EV29: 29820 | EW29: -24441 | EX29: 11855 | EY29: 13489 | FD29: 1193 | FE29: 1818 | FW29: 20,75 | FX29: 290 | FZ29: 12541 | GA29: 12744 | GB29: 12746 | GC29: 12740 | GG29: -1682 | GH29: 219 | GJ29: -1553 | GK29: 42 | GM29: -1052 | GN29: 140 | GP29: -2825 | GQ29: 250 | GT29: 4496 | GU29: 3830 | GV29: 505 | GW29: 203 | GX29: 3999 | GY29: 15597 | GZ29: 222 | HA29: 7218 | HB29: 595 | HC29: 15760 | HG29: 15793 | HH29: 3507 | HI29: 11975 | HJ29: 95 | HK29: 17218 | HY29: 225 | HZ29: -225
A30: 91 | B30: Helsinki | C30: 612664 | E30: 4.923439563 | F30: 42.3 | G30: -1495 | K30: 75.9 | L30: 1361 | M30: 58 | N30: 7090.257716 | O30: 1972839 | P30: 1905591 | Q30: 4852146 | R30: -3087911 | S30: 2921500 | T30: 254600 | Y30: 326731 | Z30: 433047 | AR30: 18,5 | AU30: 6 | AV30: 612664 | AX30: 2.94570607 | AY30: 40.5 | AZ30: -1565 | BD30: 76.3 | BE30: 1105 | BF30: 46 | BG30: 8754.048228 | BH30: 1849125 | BI30: 1116536 | BJ30: 4272926 | BK30: -3283197 | BL30: 3013500 | BM30: 244000 | BR30: 150681 | BS30: 345399 | CK30: 18,5 | CM30: 7 | CO30: 612664 | CQ30: 3.800232062 | CR30: 44.39381278 | CS30: -1567.067757 | CW30: 76.17615815 | CX30: 1503.680647 | CY30: 62.93107924 | CZ30: 8721.341551 | DA30: 1849986 | DB30: 1132678 | DC30: 4333128 | DD30: -3327387 | DE30: 3089500 | DF30: 244000 | DK30: 202887 | DL30: 356374 | ED30: 18,5 | EG30: 14 | EH30: 612664 | ET30: 1845851 | EU30: 1184331 | EV30: 4452163 | EW30: -3394639 | EX30: 3200500 | EY30: 244000 | FD30: 234905 | FE30: 370831 | FW30: 18,5 | FZ30: 1623580 | GA30: 1643680 | GB30: 1661362 | GC30: 1681858 | GG30: -708404 | GH30: 9570 | GI30: 128000 | GJ30: -609683 | GK30: 2495 | GL30: 138000 | GM30: -610313 | GN30: 3105 | GO30: 138000 | GP30: -609492 | GQ30: 3694 | GR30: 138000 | GS30: 231653 | GU30: 57438 | GW30: 403000 | GY30: 1793000 | GZ30: 1151215 | HA30: 134633 | HB30: 1633364 | HC30: 2012000 | HG30: 2291000 | HH30: 1277633 | HI30: 220933 | HJ30: 1523644 | HK30: 2562000 | HY30: 116591 | HZ30: -116591
A31: 97 | B31: Hirvensalmi | C31: 2338 | E31: 3.40247678 | F31: 22.8 | G31: 631 | K31: 73 | L31: 2007 | M31: 106 | N31: 6888.237756 | O31: 4074 | P31: 2801 | Q31: 16522 | R31: -13721 | S31: 6670 | T31: 7350 | Y31: 476 | Z31: 637 | AR31: 19,5 | AS31: 87 | AU31: 57 | AV31: 2338 | AX31: 3.989847716 | AY31: 21.2 | AZ31: 853 | BD31: 73.8 | BE31: 2138 | BF31: 113 | BG31: 6934.371056 | BH31: 4005 | BI31: 2806 | BJ31: 16265 | BK31: -13459 | BL31: 7228 | BM31: 6820 | BR31: 761 | BS31: 761 | CK31: 19,5 | CM31: 62 | CN31: 85 | CO31: 2338 | CQ31: 13.12408759 | CR31: 18.28005915 | CS31: 1118.905047 | CW31: 77.61301989 | CX31: 2347.305389 | CY31: 114.0209472 | CZ31: 7514.114628 | DA31: 4020 | DB31: 2803 | DC31: 16303 | DD31: -13500 | DE31: 7269 | DF31: 6820 | DK31: 762 | DL31: 761 | ED31: 19,5 | EE31: 85 | EG31: 15 | EH31: 2338 | ET31: 4016 | EU31: 2804 | EV31: 16295 | EW31: -13491 | EX31: 7261 | EY31: 6820 | FD31: 762 | FE31: 761 | FW31: 19,5 | FX31: 85 | FZ31: 10876 | GA31: 10678 | GB31: 10695 | GC31: 10692 | GG31: -1298 | GH31: 115 | GI31: 100 | GJ31: -992 | GK31: 135 | GL31: 96 | GM31: -970 | GN31: 30 | GO31: 96 | GP31: -1150 | GQ31: 125 | GR31: 96 | GY31: 1307 | GZ31: 1100 | HA31: 183 | HB31: 66 | HC31: 1323 | HG31: 1421 | HH31: 834 | HI31: 133 | HJ31: 38 | HK31: 1604 | HY31: 301 | HZ31: -301
A32: 98 | B32: Hollola | C32: 21987 | E32: 1.773881499 | F32: 30.5 | G32: -1320 | K32: 61.4 | L32: 525 | M32: 23 | N32: 8357.493188 | O32: 85827 | P32: 177402 | Q32: 280983 | R32: -103824 | S32: 83800 | T32: 26200 | Y32: 5648 | Z32: 7219 | AR32: 20,75 | AS32: 1928 | AU32: 116 | AV32: 21987 | AX32: 0.4305803571 | AY32: 37 | AZ32: -1625 | BD32: 54.7 | BE32: 655 | BF32: 27 | BG32: 8702.775007 | BH32: 84096 | BI32: 177579 | BJ32: 282985 | BK32: -105637 | BL32: 85750 | BM32: 27350 | BR32: 7560 | BS32: 7823 | CK32: 21 | CM32: 210 | CN32: 1928 | CO32: 21987 | CQ32: 1.368087656 | CR32: 41.37419887 | CS32: -2050.25697 | CW32: 50.20350759 | CX32: 695.8657388 | CY32: 27.51296945 | CZ32: 9231.682358 | DB32: 177615 | DC32: 284498 | DD32: -106883 | DE32: 87722 | DF32: 28116 | DK32: 8255 | DL32: 9000 | ED32: 21 | EE32: 1928 | EG32: 117 | EH32: 21987 | EU32: 179259 | EV32: 288268 | EW32: -109009 | EX32: 89915 | EY32: 28959 | FD32: 9015 | FE32: 9000 | FW32: 21 | FX32: 1928 | FZ32: 154224 | GA32: 159586 | GG32: -15678 | GH32: 2010 | GI32: 300 | GJ32: -15507 | GK32: 816 | GL32: 420 | GM32: -11667 | GO32: 300 | GP32: -13203 | GR32: 300 | GS32: 6000 | GT32: -1000 | GU32: 14700 | GW32: 16000 | GX32: 800 | GY32: 54167 | GZ32: 18412 | HA32: 6005 | HB32: 1383 | HC32: 57900 | HG32: 61000 | HH32: 38147 | HI32: 8450 | HJ32: 1449 | HK32: 64000 | HY32: 3784 | HZ32: -3784
A33: 99 | B33: Honkajoki | C33: 1819 | E33: 0.3230769231 | F33: 33.4 | G33: -2802 | K33: 34.9 | L33: 91 | M33: 3 | N33: 10376.62338 | O33: 9126 | P33: 8839 | Q33: 19177 | R33: -10338 | S33: 5863 | T33: 4635 | Y33: 127 | Z33: 369 | AR33: 21,25 | AS33: 196 | AU33: 265 | AV33: 1819 | AX33: 0.7450271248 | AY33: 34.1 | AZ33: -2916 | BD33: 33.2 | BE33: 128 | BF33: 4 | BG33: 10751.0917 | BH33: 8272 | BI33: 8053 | BJ33: 17935 | BK33: -9882 | BL33: 6207 | BM33: 4417 | BR33: 700 | BS33: 359 | CK33: 21,5 | CM33: 137 | CN33: 193 | CO33: 1819 | CQ33: 0.5365025467 | CR33: 33.68298983 | CS33: -2958.768554 | CW33: 32.53215265 | CX33: 103.3534909 | CY33: 3.501199041 | CZ33: 10774.60143 | DA33: 8276 | DB33: 8032 | DC33: 18046 | DD33: -10014 | DE33: 6217 | DF33: 4417 | DK33: 584 | DL33: 334 | ED33: 21,5 | EE33: 188 | EG33: 232 | EH33: 1819 | ET33: 8322 | EU33: 8074 | EV33: 18171 | EW33: -10097 | EX33: 6378 | EY33: 4417 | FD33: 665 | FE33: 334 | FW33: 21,5 | FX33: 183 | FZ33: 8959 | GA33: 1998 | GB33: 1983 | GC33: 1983 | GD33: 300 | GE33: 240 | GG33: -265 | GI33: 15 | GJ33: -259 | GL33: 220 | GM33: -210 | GO33: 200 | GP33: -196 | GS33: 200 | GT33: -60 | GU33: 470 | GV33: 330 | GW33: 400 | GX33: 13 | GY33: 3472 | GZ33: 2890 | HA33: 761 | HB33: 19 | HC33: 3043 | HG33: 2757 | HH33: 2692 | HI33: 1202 | HJ33: 6 | HK33: 2556 | HY33: 435 | HZ33: -435
A34: 102 | B34: Huittinen | C34: 10543 | E34: 2.704287827 | F34: 28.9 | G34: -725 | K34: 66.9 | L34: 680 | M34: 36 | N34: 6866.516262 | O34: 37849 | P34: 15991 | Q34: 72587 | R34: -56596 | S34: 31602 | T34: 26082 | Y34: 781 | Z34: 3497 | AR34: 20,25 | AS34: 718 | AU34: 42 | AV34: 10543 | AX34: 1.032391048 | AY34: 32.8 | AZ34: -1247 | BD34: 63.8 | BE34: 540 | BF34: 26 | BG34: 7576.39085 | BH34: 36503 | BI34: 15682 | BJ34: 70281 | BK34: -54599 | BL34: 32490 | BM34: 25078 | BR34: 2728 | BS34: 3536 | CK34: 20,25 | CM34: 159 | CN34: 722 | CO34: 10543 | CQ34: 1.257252326 | CR34: 34.97791781 | CS34: -1500.901072 | CW34: 60.89587124 | CX34: 494.640994 | CY34: 24.68102901 | CZ34: 7315.090581 | DA34: 37607 | DB34: 15615 | DC34: 71727 | DD34: -56112 | DE34: 32905 | DF34: 24468 | DK34: 939 | DL34: 3855 | ED34: 20,25 | EE34: 722 | EG34: 203 | EH34: 10543 | ET34: 37757 | EU34: 15680 | EV34: 72449 | EW34: -56769 | EX34: 33733 | EY34: 23624 | FD34: 190 | FE34: 3811 | FW34: 20,25 | FX34: 722 | FZ34: 26385 | GA34: 26016 | GB34: 26367 | GC34: 26933 | GG34: -9890 | GH34: 135 | GJ34: -7281 | GK34: 80 | GM34: -2602 | GP34: -4502 | GQ34: 370 | GS34: 1500 | GU34: 3000 | GW34: 4000 | GY34: 26200 | GZ34: 9320 | HA34: 1358 | HB34: 0 | HC34: 23500 | HG34: 24800 | HH34: 12851 | HI34: 1824 | HJ34: 0 | HK34: 28900 | HY34: 1775 | HZ34: -1775
A35: 103 | B35: Humppila | C35: 2463 | E35: 0.2105263158 | F35: 47.3 | G35: -1820 | K35: 47.7 | L35: 30 | M35: 2 | N35: 6260.087895 | O35: 3987 | P35: 2353 | Q35: 15065 | R35: -12712 | S35: 6696 | T35: 6192 | Y35: 139 | Z35: 381 | AR35: 21 | AS35: 100 | AU35: 270 | AV35: 2463 | AX35: 0.1843317972 | AY35: 50.1 | AZ35: -1820 | BD35: 44 | BE35: 341 | BF35: 19 | BG35: 6549.679487 | BH35: 4039 | BI35: 2626 | BJ35: 15547 | BK35: -12921 | BL35: 7307 | BM35: 6015 | BR35: 390 | BS35: 389 | CK35: 21,5 | CM35: 216 | CN35: 100 | CO35: 2463 | CQ35: 0.3699936427 | CR35: 39.36272932 | CS35: -1719.041819 | CW35: 49.90989515 | CX35: 321.1530654 | CY35: 17.05446276 | CZ35: 6873.325213 | DA35: 4033 | DB35: 2629 | DC35: 15549 | DD35: -12920 | DE35: 7307 | DF35: 6015 | DK35: 391 | DL35: 386 | ED35: 22 | EE35: 100 | EG35: 193 | EH35: 2463 | ET35: 4033 | EU35: 2629 | EV35: 15549 | EW35: -12920 | EX35: 7307 | EY35: 6015 | FD35: 391 | FE35: 386 | FW35: 22 | FX35: 100 | FZ35: 9319 | GA35: 9667 | GB35: 9672 | GC35: 9672 | GE35: 320 | GG35: -392 | GI35: 43 | GJ35: -546 | GL35: 303 | GM35: -1200 | GN35: 170 | GO35: 275 | GP35: -900 | GR35: 275 | GS35: 1500 | GT35: 151 | GU35: 1500 | GV35: 350 | GX35: 1 | GY35: 3870 | GZ35: 2976 | HA35: 2354 | HB35: 420 | HC35: 3880 | HG35: 4200 | HH35: 1870 | HI35: 2603 | HJ35: 426 | HK35: 4500 | HY35: 958 | HZ35: -958
A36: 105 | B36: Hyrynsalmi | C36: 2565 | E36: 0.03056234719 | F36: 24.4 | G36: -1059 | K36: 65.2 | L36: 418 | M36: 20 | N36: 7755.988024 | O36: 5004 | P36: 2311 | Q36: 20082 | R36: -17771 | S36: 7775 | T36: 10091 | Y36: 33 | Z36: 603 | AR36: 21,75 | AS36: 81 | AU36: 291 | AV36: 2565 | AX36: 0.3772151899 | AY36: 40 | AZ36: -2024 | BD36: 54.8 | BE36: 668 | BF36: 27 | BG36: 9058.009988 | BH36: 4700 | BI36: 2071 | BJ36: 19731 | BK36: -17660 | BL36: 7948 | BM36: 10265 | BR36: 491 | BS36: 539 | CK36: 21,75 | CM36: 202 | CN36: 78 | CO36: 2565 | CQ36: 0.04273084479 | CR36: 41.52198929 | CS36: -2367.641326 | CW36: 52.61236596 | CX36: 279.9220273 | CY36: 11.14101093 | CZ36: 9170.760234 | DB36: 2224 | DC36: 19847 | DD36: -17623 | DE36: 7981 | DF36: 9629 | DK36: -83 | DL36: 580 | EE36: 76 | EG36: 274 | EH36: 2565 | EU36: 2224 | EV36: 19847 | EW36: -17623 | EX36: 8267 | EY36: 9822 | FD36: 396 | FE36: 580 | FX36: 76 | FZ36: 13556 | GA36: 13455 | GE36: 350 | GG36: -518 | GH36: 38 | GJ36: -280 | GK36: 28 | GL36: 65 | GS36: 500 | GT36: 500 | GU36: 3140 | GV36: 200 | GW36: 920 | GX36: 1900 | GY36: 6212 | GZ36: 1839 | HA36: 1714 | HB36: 0 | HC36: 5726 | HH36: 4312 | HI36: 2724 | HJ36: 0 | HY36: 734 | HZ36: -734
A37: 106 | B37: Hyvinkää | C37: 46188 | E37: 1.190700483 | F37: 43.1 | G37: -1950 | K37: 61.9 | L37: 232 | M37: 13 | N37: 6298.943484 | O37: 128254 | P37: 59768 | Q37: 292133 | R37: -239300 | S37: 192200 | T37: 47900 | Y37: 5242 | Z37: 19400 | AR37: 19,75 | AS37: 2281 | AU37: 80 | AV37: 46188 | AX37: 0.6364113602 | AY37: 49.2 | AZ37: -2357 | BD37: 57.8 | BE37: 180 | BF37: 10 | BG37: 6837.712757 | BH37: 125138 | BI37: 59151 | BJ37: 290067 | BK37: -236544 | BL37: 195800 | BM37: 46000 | BR37: 9049 | BS37: 20000 | CK37: 19,75 | CM37: 102 | CN37: 2218 | CO37: 46188 | CQ37: 0.8660933661 | CR37: 51.95710127 | CS37: -2455.118213 | CW37: 54.5756093 | CX37: 442.3010306 | CY37: 23.1714885 | CZ37: 6967.177622 | DA37: 125138 | DB37: 59151 | DC37: 296903 | DD37: -243380 | DE37: 201666 | DF37: 46000 | DK37: 7627 | DL37: 20000 | ED37: 19,75 | EE37: 2218 | EG37: 113 | EH37: 46188 | ET37: 125138 | EU37: 59151 | EV37: 303997 | EW37: -250474 | EX37: 214660 | EY37: 46000 | FD37: 13633 | FE37: 20000 | FW37: 20,5 | FX37: 2218 | FZ37: 119483 | GA37: 122368 | GB37: 129204 | GC37: 136298 | GG37: -20995 | GH37: 245 | GI37: 8000 | GJ37: -23215 | GK37: 145 | GL37: 7500 | GM37: -20614 | GN37: 850 | GO37: 6000 | GP37: -28600 | GQ37: 150 | GR37: 6000 | GS37: 15000 | GT37: 8000 | GU37: 40000 | GV37: -8000 | GW37: 35000 | GY37: 123673 | GZ37: 55925 | HA37: 24258 | HB37: 3364 | HC37: 135860 | HG37: 145946 | HH37: 94429 | HI37: 16854 | HJ37: 3364 | HK37: 158533 | HY37: 14443 | HZ37: -14443
A38: 283 | B38: Hämeenkoski | C38: 2086 | E38: 0.6947236181 | F38: 110.6 | G38: -4655 | K38: 31.1 | L38: 275 | M38: 12 | N38: 13729.57746 | O38: 2670 | P38: 1794 | Q38: 13350 | R38: -11556 | S38: 6684 | T38: 4839 | Y38: 68 | Z38: 580 | AR38: 21,5 | AS38: 60,57 | AU38: 279 | AV38: 2086 | AX38: 0.306066803 | AY38: 100.7 | AZ38: -4998 | BD38: 29.6 | BE38: 135 | BF38: 7 | BG38: 7357.347328 | BH38: 2675 | BI38: 2153 | BJ38: 13296 | BK38: -11143 | BL38: 6790 | BM38: 4555 | BR38: 424 | BS38: 573 | CK38: 21,5 | CM38: 195 | CN38: 55 | CO38: 2086 | CQ38: 1.126796281 | CR38: 88.37978271 | CS38: -4576.701822 | CW38: 33.83770521 | CX38: 106.4237776 | CY38: 6.03575419 | CZ38: 6435.762224 | DA38: 2675 | DB38: 2153 | DC38: 13313 | DD38: -11160 | DE38: 6990 | DF38: 4405 | DK38: 374 | DL38: 593 | ED38: 22 | EE38: 56,4 | EG38: 47 | EH38: 2086 | ET38: 2675 | EU38: 2153 | EV38: 13413 | EW38: -11260 | EX38: 7190 | EY38: 4255 | FD38: 324 | FE38: 593 | FW38: 22,5 | FX38: 56,4 | FZ38: 9274 | GA38: 9048 | GB38: 9148 | GC38: 9248 | GG38: -1273 | GH38: 380 | GI38: 20 | GJ38: -785 | GK38: 460 | GL38: 20 | GM38: -335 | GO38: 20 | GP38: -260 | GR38: 20 | GS38: 5000 | GU38: 1482 | GV38: 200 | GX38: -200 | GY38: 9601 | GZ38: 9197 | HA38: 1206 | HB38: 1151 | HC38: 9004 | HG38: 8344 | HH38: 9000 | HI38: 699 | HJ38: 954 | HK38: 7691 | HY38: 517 | HZ38: -517
A39: 108 | B39: Hämeenkyrö | C39: 10582 | E39: 2.80794702 | F39: 28.1 | G39: -477 | K39: 69.4 | L39: 538 | M39: 32 | N39: 6123.706446 | O39: 32845 | P39: 10256 | Q39: 65177 | R39: -55061 | S39: 34850 | T39: 20900 | Y39: 579 | Z39: 2300 | AR39: 21 | AS39: 680 | AU39: 186 | AV39: 10582 | AX39: -0.1391880696 | AY39: 34.6 | AZ39: -919 | BD39: 62 | BE39: 693 | BF39: 38 | BG39: 6632.285714 | BK39: -54535 | BL39: 36300 | BM39: 20600 | BR39: 2115 | BS39: 3000 | CK39: 21 | CM39: 264 | CN39: 640 | CO39: 10582 | CQ39: 1.028677151 | CR39: 37.09731441 | CS39: -1151.200151 | CW39: 59.08947726 | CX39: 741.3532414 | CY39: 40.06527306 | CZ39: 6753.827254 | DD39: -53700 | DE39: 37285 | DF39: 20300 | DK39: 3535 | DL39: 4600 | ED39: 21 | EE39: 620 | EG39: 214 | EH39: 10582 | EW39: -54000 | EX39: 38335 | EY39: 20000 | FD39: 3885 | FE39: 4700 | FW39: 21 | FX39: 600 | FZ39: 24371 | GG39: -15355 | GH39: 150 | GI39: 50 | GJ39: -21857 | GK39: 1120 | GL39: 50 | GM39: -7490 | GO39: 50 | GP39: -1650 | GR39: 50 | GT39: 1000 | GU39: 4500 | GV39: -500 | GW39: 6000 | GX39: 632 | GY39: 20000 | GZ39: 6764 | HA39: 1704 | HB39: 1484 | HC39: 40000 | HG39: 44000 | HH39: 14474 | HI39: 1836 | HJ39: 664 | HK39: 44000 | HY39: 704 | HZ39: -704
A40: 109 | B40: Hämeenlinna | C40: 67806 | E40: 0.2374185329 | F40: 55.2 | G40: -1535 | K40: 60.8 | L40: 1356 | M40: 69 | N40: 6025.598335 | O40: 119211 | P40: 82962 | Q40: 426011 | R40: -348767 | S40: 267502 | T40: 91350 | Y40: 16667 | Z40: 16617 | AR40: 20,25 | AS40: 3520 | AU40: 256 | AV40: 67806 | AX40: 0.3100123223 | AY40: 54.6 | AZ40: -1722 | BD40: 59.7 | BE40: 1245 | BF40: 62 | BG40: 7307.954428 | BH40: 118023 | BI40: 84730 | BJ40: 433715 | BK40: -354670 | BL40: 276900 | BM40: 85800 | BR40: 14756 | BS40: 17174 | CK40: 20,5 | CM40: 148 | CN40: 3420 | CO40: 67806 | CQ40: 0.9228417579 | CR40: 54.79999262 | CS40: -1748.104887 | CW40: 59.12896282 | CX40: 1397.383712 | CY40: 73.67162936 | CZ40: 6923.222134 | DA40: 119000 | DB40: 88067 | DC40: 447052 | DD40: -364670 | DE40: 284400 | DF40: 83300 | DK40: 16200 | DL40: 18000 | ED40: 20,5 | EE40: 3320 | EG40: 132 | EH40: 67806 | ET40: 121000 | EU40: 94767 | EV40: 453752 | EW40: -364670 | EX40: 293300 | EY40: 84500 | FD40: 19200 | FE40: 19000 | FW40: 20,5 | FX40: 3320 | FZ40: 169584 | GA40: 208676 | GB40: 210676 | GC40: 214676 | GG40: -35422 | GH40: 890 | GI40: 2500 | GJ40: -28913 | GK40: 1090 | GL40: 2400 | GM40: -32453 | GN40: 400 | GO40: 2400 | GP40: -26453 | GR40: 2400 | GS40: 31856 | GT40: 6527 | GU40: 49286 | GV40: 2636 | GW40: 32000 | GX40: 5295 | GY40: 196013 | GZ40: 131000 | HA40: 44552 | HB40: 43577 | HC40: 220600 | HG40: 234100 | HH40: 133673 | HI40: 61208 | HJ40: 43778 | HK40: 239000 | HY40: 20186 | HZ40: -20186
A41: 139 | B41: Ii | C41: 9610 | E41: 1.437906648 | F41: 50.9 | G41: -2512 | K41: 50.2 | L41: 307 | M41: 18 | N41: 6303.084535 | O41: 19586 | P41: 7604 | Q41: 61672 | R41: -54078 | S41: 29827 | T41: 26487 | Y41: 1574 | Z41: 2234 | AR41: 21,25 | AS41: 387 | AU41: 49 | AV41: 9610 | AX41: 0.6965006729 | AY41: 60.2 | AZ41: -2982 | BD41: 45.8 | BE41: 479 | BF41: 25 | BG41: 7101.420514 | BH41: 19322 | BI41: 6727 | BJ41: 61210 | BK41: -54493 | BL41: 30677 | BM41: 26084 | BR41: 1596 | BS41: 2374 | CK41: 21,25 | CM41: 82 | CN41: 377 | CO41: 9610 | CQ41: 0.9469332821 | CR41: 56.25571216 | CS41: -2982.726327 | CW41: 47.43227377 | CX41: 463.7877211 | CY41: 23.86429315 | CZ41: 7093.548387 | DA41: 19516 | DB41: 6753 | DC41: 61824 | DD41: -55071 | DE41: 31348 | DF41: 26708 | DK41: 2336 | DL41: 2374 | ED41: 21,25 | EE41: 377 | EG41: 72 | EH41: 9610 | ET41: 19808 | EU41: 6851 | EV41: 49290 | EW41: -56141 | EX41: 32313 | EY41: 27253 | FD41: 2765 | FE41: 2374 | FW41: 21,25 | FX41: 377 | FZ41: 36009 | GA41: 35562 | GB41: 35918 | GC41: 36456 | GG41: -4559 | GH41: 108 | GI41: 0 | GJ41: -6463 | GK41: 870 | GM41: -3318 | GN41: 100 | GP41: -3476 | GQ41: 200 | GT41: 692 | GU41: 7500 | GV41: 1246 | GW41: 5000 | GX41: -511 | GY41: 29435 | GZ41: 13363 | HA41: 8844 | HB41: 890 | HC41: 33435 | HG41: 34335 | HH41: 17495 | HI41: 9578 | HJ41: 890 | HK41: 35105 | HY41: 2843 | HZ41: -2843
A42: 140 | B42: Iisalmi | C42: 22171 | E42: 0.9519650655 | F42: 33.7 | G42: -876 | K42: 62.2 | L42: 928 | M42: 50 | N42: 6771.842687 | O42: 45998 | P42: 41848 | Q42: 155667 | R42: -113819 | S42: 75790 | T42: 43950 | Y42: 6517 | Z42: 7175 | AR42: 20,5 | AS42: 929 | AU42: 194 | AV42: 22171 | AX42: 1.086801924 | AY42: 35.7 | AZ42: -967 | BD42: 59.5 | BE42: 1056 | BF42: 56 | BG42: 6947.639485 | BH42: 45597 | BI42: 40564 | BJ42: 157548 | BK42: -116984 | BL42: 77891 | BM42: 44123 | BR42: 7089 | BS42: 7307 | CK42: 20,5 | CM42: 107 | CN42: 911 | CO42: 22171 | CQ42: 1.293796616 | CR42: 37.31510991 | CS42: -1137.116053 | CW42: 58.11733991 | CX42: 1059.988273 | CY42: 54.03685878 | CZ42: 7159.848451 | DA42: 46632 | DB42: 40742 | DC42: 160145 | DD42: -119403 | DE42: 78684 | DF42: 46376 | DK42: 7502 | DL42: 7192 | ED42: 20,5 | EE42: 897 | EG42: 135 | EH42: 22171 | ET42: 47895 | EU42: 41002 | EV42: 164367 | EW42: -123365 | EX42: 80949 | EY42: 48508 | FD42: 7564 | FE42: 7113 | FW42: 20,5 | FX42: 885 | FZ42: 89429 | GA42: 91361 | GB42: 92836 | GC42: 95796 | GG42: -12158 | GH42: 1741 | GI42: 664 | GJ42: -9805 | GK42: 311 | GL42: 683 | GM42: -10188 | GN42: 100 | GO42: 683 | GP42: -10730 | GQ42: 210 | GR42: 683 | GS42: 8900 | GT42: 93 | GU42: 8000 | GW42: 9200 | GY42: 42237 | GZ42: 30679 | HA42: 4289 | HB42: 2934 | HC42: 44577 | HG42: 46799 | HH42: 36987 | HI42: 5680 | HJ42: 2528 | HK42: 48650 | HY42: 4886 | HZ42: -4886
A43: 142 | B43: Iitti | C43: 6981 | E43: 0.2967189729 | F43: 35 | G43: -1111 | K43: 69 | L43: 492 | M43: 30 | N43: 6022.564981 | O43: 10321 | P43: 4322 | Q43: 40746 | R43: -36424 | S43: 22988 | T43: 15195 | Y43: 1563 | Z43: 1764 | AR43: 19,75 | AS43: 199 | AU43: 281 | AV43: 6981 | AX43: 0.4603629417 | AY43: 35.8 | AZ43: -1552 | BD43: 63.8 | BE43: 328 | BF43: 19 | BG43: 6405.89504 | BH43: 10187 | BI43: 3771 | BJ43: 40336 | BK43: -36565 | BL43: 23900 | BM43: 14381 | BR43: 1589 | BS43: 1758 | CK43: 20,25 | CM43: 222 | CN43: 193 | CO43: 6981 | CQ43: 1.337198068 | CR43: 37.33282293 | CS43: -1496.060736 | CW43: 61.57838312 | CX43: 401.6616531 | CY43: 23.33257341 | CZ43: 6283.340496 | DA43: 10346 | DB43: 3862 | DC43: 40998 | DD43: -37136 | DE43: 24954 | DF43: 13941 | DK43: 1615 | DL43: 1626 | ED43: 21 | EE43: 193 | EG43: 217 | EH43: 6981 | ET43: 10513 | EU43: 3938 | EV43: 41671 | EW43: -37733 | EX43: 25530 | EY43: 13703 | FD43: 1328 | FE43: 1623 | FW43: 21 | FX43: 193 | FZ43: 27636 | GA43: 27441 | GB43: 27870 | GC43: 28318 | GG43: -4098 | GH43: 618 | GI43: 1028 | GJ43: -1775 | GL43: 521 | GM43: -2447 | GO43: 70 | GP43: -1670 | GR43: 50 | GS43: 1854 | GT43: 1000 | GU43: 2600 | GV43: 500 | GW43: 2000 | GY43: 11610 | GZ43: 6530 | HA43: 1740 | HB43: 4243 | HC43: 12580 | HG43: 12537 | HH43: 9127 | HI43: 2483 | HJ43: 993 | HK43: 12581 | HY43: 555 | HZ43: -555
A44: 143 | B44: Ikaalinen | C44: 7303 | E44: 0.4405436014 | F44: 38.3 | G44: -1751 | K44: 54.3 | L44: 33 | M44: 2 | N44: 6346.033898 | O44: 22773 | P44: 6488 | Q44: 46951 | R44: -40463 | S44: 24967 | T44: 17300 | Y44: 1554 | Z44: 1550 | AR44: 20,75 | AS44: 451 | AU44: 273 | AV44: 7303 | AX44: 1.432512315 | AY44: 60.7 | AZ44: -2635 | BD44: 41.6 | BE44: 149 | BF44: 7 | BG44: 7321.807787 | BH44: 22645 | BI44: 6628 | BJ44: 47437 | BK44: -40809 | BL44: 24950 | BM44: 17550 | BR44: 1400 | BS44: 1750 | CK44: 21,25 | CM44: 133 | CN44: 457 | CO44: 7303 | CQ44: 3.939189189 | CR44: 63.77518206 | CS44: -3178.282897 | CW44: 39.67661934 | CX44: 18.75941394 | CY44: 0.9383033419 | CZ44: 7297.412022 | DA44: 22600 | DB44: 6794 | DC44: 47400 | DD44: -40606 | DE44: 25333 | DF44: 17300 | DK44: 1626 | DL44: 1700 | ED44: 21,25 | EE44: 452 | EG44: 185 | EH44: 7303 | ET44: 13100 | EU44: 6964 | EV44: 47400 | EW44: -40436 | EX44: 26415 | EY44: 16800 | FD44: 2328 | FE44: 1800 | FW44: 21,25 | FX44: 252 | FZ44: 18392 | GA44: 18773 | GB44: 18723 | GC44: 28223 | GG44: -2180 | GH44: 205 | GI44: 80 | GJ44: -1850 | GL44: 100 | GM44: -5990 | GO44: 150 | GP44: -4045 | GR44: 150 | GS44: 6000 | GT44: -4850 | GV44: 12700 | GX44: 3900 | GY44: 26239 | GZ44: 6775 | HA44: 3784 | HB44: 275 | HC44: 25889 | HG44: 29403 | HH44: 0 | HI44: 25996 | HJ44: 306 | HK44: 30369 | HY44: 744 | HZ44: -744
A45: 145 | B45: Ilmajoki | C45: 12099 | E45: 0.4956830879 | F45: 62.8 | G45: -3122 | K45: 50.5 | L45: 27 | M45: 1 | N45: 6511.430493 | O45: 24835 | P45: 8828 | Q45: 68323 | R45: -59495 | S45: 36317 | T45: 26220 | Y45: 2498 | Z45: 3535 | AR45: 19,75 | AS45: 561 | AU45: 252 | AV45: 12099 | AX45: 0.6705267938 | AY45: 64.9 | AZ45: -3317 | BD45: 47.9 | BE45: 124 | BF45: 7 | BG45: 6381.633672 | BH45: 25146 | BI45: 9417 | BJ45: 69831 | BK45: -60414 | BL45: 38118 | BM45: 26050 | BR45: 3217 | BS45: 3079 | CK45: 20,25 | CM45: 144 | CN45: 562 | CO45: 12099 | CQ45: 0.549729973 | CR45: 67.94729388 | CS45: -3710.885197 | CW45: 44.89185922 | CX45: 62.56715431 | CY45: 3.384390196 | CZ45: 6747.747748 | DA45: 25327 | DB45: 9725 | DC45: 70458 | DD45: -60733 | DE45: 39050 | DF45: 26050 | DK45: 3859 | DL45: 3290 | ED45: 20,25 | EE45: 562 | EG45: 229 | EH45: 12099 | ET45: 25564 | EU45: 10062 | EV45: 71141 | EW45: -61079 | EX45: 40004 | EY45: 26050 | FD45: 4434 | FE45: 3357 | FW45: 20,25 | FX45: 562 | FZ45: 36183 | GA45: 37174 | GB45: 37545 | GC45: 37918 | GG45: -7125 | GH45: 50 | GI45: 675 | GJ45: -3958 | GL45: 670 | GM45: -8439 | GO45: 681 | GP45: -7265 | GR45: 691 | GS45: 7400 | GT45: 258 | GU45: 6411 | GV45: 321 | GW45: 6960 | GX45: 348 | GY45: 43597 | GZ45: 31307 | HA45: 2934 | HB45: 2168 | HC45: 43050 | HG45: 47147 | HH45: 37512 | HI45: 3602 | HJ45: 1740 | HK45: 50127 | HY45: 2979 | HZ45: -2979
A46: 146 | B46: Ilomantsi | C46: 5614 | E46: 10.43209877 | F46: 32.6 | G46: -887 | K46: 62.7 | L46: 709 | M46: 32 | N46: 8114.844018 | O46: 22299 | P46: 7759 | Q46: 46891 | R46: -39272 | S46: 17200 | T46: 22390 | Y46: 508 | Z46: 1400 | AR46: 20,25 | AS46: 401,45 | AU46: 159 | AV46: 5614 | AX46: 0.9449367089 | AY46: 30.5 | AZ46: -1199 | BD46: 63.7 | BE46: 695 | BF46: 29 | BG46: 8812.576849 | BH46: 21966 | BI46: 7560 | BJ46: 46452 | BK46: -39021 | BL46: 17950 | BM46: 21650 | BR46: 1352 | BS46: 1400 | CK46: 20,75 | CM46: 100 | CN46: 393,54 | CO46: 5614 | CQ46: 1.234057463 | CR46: 27.5458604 | CS46: -1379.764874 | CW46: 65.43322714 | CX46: 424.6526541 | CY46: 17.53647723 | CZ46: 8838.617741 | DA46: 22186 | DB46: 7518 | DC46: 46913 | DD46: -39408 | DE46: 17900 | DF46: 21800 | DK46: 1070 | DL46: 1450 | ED46: 20,75 | EE46: 393,27 | EG46: 150 | EH46: 5614 | ET46: 22407 | EU46: 7712 | EV46: 47386 | EW46: -39806 | EX46: 18250 | EY46: 21900 | FD46: 1133 | FE46: 1450 | FW46: 20,75 | FX46: 391,57 | FZ46: 19225 | GA46: 18355 | GB46: 18539 | GC46: 18725 | GG46: -2959 | GH46: 0 | GI46: 30 | GJ46: -4317 | GK46: 206 | GL46: 20 | GM46: -3801 | GN46: 588 | GO46: 20 | GP46: -3092 | GR46: 20 | GS46: 3500 | GT46: -1143 | GY46: 8682 | GZ46: 8106 | HA46: 1351 | HB46: 1017 | HC46: 11182 | HG46: 13082 | HH46: 5583 | HI46: 1256 | HJ46: 1017 | HK46: 14982 | HY46: 0 | HZ46: 0
A47: 153 | B47: Imatra | C47: 28219 | E47: 1.240147995 | F47: 44.3 | G47: -2070 | K47: 57.4 | L47: 482 | M47: 25 | N47: 6177.999438 | O47: 79118 | P47: 31853 | Q47: 178754 | R47: -146901 | S47: 104087 | T47: 48756 | Y47: 3267 | Z47: 8268 | AR47: 19,5 | AS47: 1595 | AU47: 40 | AV47: 28219 | AX47: 0.7227441556 | AY47: 43.9 | AZ47: -2174 | BD47: 57.5 | BE47: 445 | BF47: 18 | BG47: 9209.408355 | BH47: 75864 | BI47: 32341 | BJ47: 177180 | BK47: -144839 | BL47: 105315 | BM47: 48285 | BR47: 8333 | BS47: 8258 | CK47: 20 | CM47: 38 | CN47: 1580 | CO47: 28219 | CQ47: 1.260215054 | CR47: 41.56758044 | CS47: -2229.384457 | CW47: 58.33841668 | CX47: 356.07215 | CY47: 16.31255893 | CZ47: 7967.256104 | DD47: -147031 | DE47: 107644 | DF47: 48076 | DK47: 8069 | DL47: 8258 | ED47: 20 | EE47: 1565 | EG47: 54 | EH47: 28219 | EW47: -149256 | EX47: 110432 | EY47: 47773 | FD47: 8227 | FE47: 8258 | FW47: 20 | FX47: 815 | FZ47: 69326 | GA47: 70808 | GG47: -15685 | GH47: 1022 | GI47: 0 | GJ47: -22541 | GK47: 242 | GM47: -10427 | GN47: 26 | GP47: -8466 | GQ47: 26 | GU47: 14600 | GW47: 11000 | GY47: 46486 | GZ47: 40440 | HA47: 10086 | HB47: 0 | HC47: 59981 | HG47: 62478 | HH47: 36984 | HI47: 11257 | HJ47: 0 | HK47: 62989 | HY47: 11458 | HZ47: -11458
A48: 148 | B48: Inari | C48: 6794 | E48: 2.064754098 | F48: 41.3 | G48: -1136 | K48: 63.6 | L48: 948 | M48: 43 | N48: 10950.84394 | O48: 24993 | P48: 7250 | Q48: 52528 | R48: -45278 | S48: 23809 | T48: 22544 | Y48: 1310 | Z48: 1699 | AR48: 19 | AS48: 407,2 | AU48: 12 | AV48: 6794 | AX48: 1.662908243 | AY48: 37.7 | AZ48: -1413 | BD48: 66.2 | BE48: 549 | BF48: 23 | BG48: 8748.217469 | BH48: 25387 | BI48: 8341 | BJ48: 53732 | BK48: -45391 | BL48: 25068 | BM48: 22429 | BR48: 2431 | BS48: 1850 | CK48: 19 | CM48: 15 | CN48: 406,7 | CO48: 6794 | CQ48: 2.320053715 | CR48: 39.3378361 | CS48: -1236.237857 | CW48: 65.98566081 | CX48: 936.4144834 | CY48: 40.55272257 | CZ48: 8428.319105 | DA48: 25452 | DB48: 8342 | DC48: 53787 | DD48: -45445 | DE48: 25421 | DF48: 22429 | DK48: 2722 | DL48: 1763 | ED48: 19 | EE48: 407 | EG48: 21 | EH48: 6794 | ET48: 25489 | EU48: 7703 | EV48: 53281 | EW48: -45578 | EX48: 26090 | EY48: 22429 | FD48: 3308 | FE48: 1658 | FW48: 19 | FX48: 406,5 | FZ48: 21404 | GA48: 22195 | GB48: 22199 | GC48: 22295 | GG48: -5346 | GH48: 246 | GI48: 50 | GJ48: -4143 | GK48: 534 | GL48: 326 | GM48: -663 | GN48: 326 | GO48: 326 | GP48: -4147 | GQ48: 1556 | GR48: 326 | GV48: 600 | GW48: 2599 | GX48: -300 | GY48: 14279 | GZ48: 13812 | HA48: 1568 | HB48: 945 | HC48: 15707 | HG48: 13655 | HH48: 12567 | HI48: 1570 | HJ48: 3376 | HK48: 13808 | HY48: 1630 | HZ48: -1630
A49: 149 | B49: Inkoo | C49: 5562 | E49: 1.280144404 | F49: 51.6 | G49: -2581 | K49: 39.4 | L49: 88 | M49: 5 | N49: 6756.338788 | O49: 11384 | P49: 3665 | Q49: 32987 | R49: -29322 | S49: 25840 | T49: 5030 | Y49: 1308 | Z49: 1267 | AR49: 20,75 | AS49: 286 | AU49: 28 | AV49: 5562 | AX49: 1.348073022 | AY49: 56.5 | AZ49: -2723 | BD49: 40.5 | BE49: 324 | BF49: 17 | BG49: 6817.26255 | BH49: 11348 | BI49: 3959 | BJ49: 32885 | BK49: -28926 | BL49: 25705 | BM49: 4795 | BR49: 1426 | BS49: 1380 | CK49: 20,75 | CM49: 16 | CN49: 287 | CO49: 5562 | CQ49: 0.9040807741 | CR49: 50.45728178 | CS49: -2642.574613 | CW49: 42.95034906 | CX49: 154.4408486 | CY49: 8.564424049 | CZ49: 6581.984898 | DA49: 11461 | DB49: 3999 | DC49: 33214 | DD49: -29215 | DE49: 25962 | DF49: 4843 | DK49: 1440 | DL49: 1394 | ED49: 20,75 | EE49: 287 | EG49: 107 | EH49: 5562 | ET49: 11576 | EU49: 4039 | EV49: 33546 | EW49: -29507 | EX49: 26222 | EY49: 4892 | FD49: 1455 | FE49: 1408 | FW49: 20,75 | FX49: 170 | FZ49: 18631 | GA49: 18361 | GB49: 18544 | GC49: 18730 | GG49: -4913 | GH49: 600 | GI49: 100 | GJ49: -1440 | GL49: 200 | GM49: -620 | GO49: 200 | GP49: -590 | GR49: 200 | GS49: 1500 | GT49: -2100 | GU49: 3903 | GX49: 1000 | GY49: 17264 | GZ49: 10172 | HA49: 3739 | HB49: 0 | HC49: 17078 | HG49: 16058 | HH49: 9779 | HI49: 4580 | HJ49: 0 | HK49: 14993 | HY49: 2239 | HZ49: -2239
A50: 151 | B50: Isojoki | C50: 2257 | E50: 0.2579957356 | F50: 13.8 | G50: -399 | K50: 79.8 | L50: 402 | M50: 20 | N50: 8557.349193 | O50: 4030 | P50: 2488 | Q50: 17158 | R50: -14670 | S50: 6255 | T50: 8100 | Y50: -338 | Z50: 459 | AR50: 22 | AS50: 78,8 | AU50: 304 | AV50: 2257 | AX50: -1.055147059 | AY50: 16.1 | AZ50: -843 | BD50: 76.1 | BE50: 175 | BF50: 8 | BG50: 7810.043668 | BH50: 3831 | BI50: 2514 | BJ50: 16749 | BK50: -14235 | BL50: 6262 | BM50: 8390 | BR50: 385 | BS50: 484 | CK50: 22 | CM50: 292 | CN50: 70,8 | CO50: 2257 | CQ50: 0.9381443299 | CR50: 23.90348198 | CS50: -1216.659282 | CW50: 72.15117931 | CX50: 206.4687638 | CY50: 10.0058827 | CZ50: 7531.67922 | DA50: 3756 | DB50: 2468 | DC50: 16573 | DD50: -14105 | DE50: 6300 | DF50: 8390 | DK50: 553 | DL50: 484 | ED50: 22 | EE50: 71,8 | EG50: 244 | EH50: 2257 | ET50: 3748 | EU50: 2468 | EV50: 16543 | EW50: -14075 | EX50: 6363 | EY50: 8390 | FD50: 646 | FE50: 484 | FW50: 22 | FX50: 71,8 | FZ50: 11824 | GA50: 1155 | GB50: 11559 | GC50: 11547 | GG50: -1072 | GJ50: -561 | GM50: -669 | GP50: -1095 | GU50: 500 | GV50: 350 | GW50: 1050 | GX50: 200 | GY50: 2187 | GZ50: 437 | HA50: 172 | HB50: 42 | HC50: 2412 | HG50: 2137 | HH50: 1462 | HI50: 740 | HJ50: 25 | HK50: 1862 | HY50: 172 | HZ50: -172
A51: 152 | B51: Isokyrö | C51: 4854 | E51: 0.846740638 | F51: 33.3 | G51: -874 | K51: 61.6 | L51: 720 | M51: 41 | N51: 5784.035656 | O51: 12244 | P51: 6989 | Q51: 33872 | R51: -26883 | S51: 14910 | T51: 11949 | Y51: -144 | Z51: 1271 | AR51: 21 | AS51: 235 | AU51: 167 | AV51: 4854 | AX51: 0.5858585859 | AY51: 38.3 | AZ51: -1582 | BD51: 58.5 | BE51: 433 | BF51: 22 | BG51: 7218.993041 | BH51: 11892 | BI51: 7038 | BJ51: 33263 | BK51: -26225 | BL51: 15348 | BM51: 11742 | BR51: 780 | BS51: 1165 | CK51: 21,5 | CM51: 104 | CN51: 230 | CO51: 4854 | CQ51: 0.5078341014 | CR51: 39.59370904 | CS51: -1504.944376 | CW51: 56.33102852 | CX51: 655.3358055 | CY51: 35.21900689 | CZ51: 6791.718171 | DA51: 11897 | DB51: 7054 | DC51: 33192 | DD51: -26138 | DE51: 15679 | DF51: 11742 | DK51: 1198 | DL51: 1166 | ED51: 21,5 | EE51: 230 | EG51: 200 | EH51: 4854 | ET51: 11897 | EU51: 7071 | EV51: 33192 | EW51: -26121 | EX51: 16009 | EY51: 11742 | FD51: 1545 | FE51: 1166 | FW51: 21,5 | FX51: 230 | FZ51: 16566 | GA51: 16634 | GB51: 16609 | GC51: 16609 | GG51: -2052 | GH51: 108 | GI51: 50 | GJ51: -1848 | GL51: 80 | GM51: -2773 | GO51: 50 | GP51: -2073 | GR51: 50 | GS51: 2000 | GU51: 3500 | GW51: 2000 | GY51: 4370 | GZ51: 4120 | HA51: 1740 | HB51: 431 | HC51: 2222 | HG51: 2845 | HH51: 5475 | HI51: 1950 | HJ51: 431 | HK51: 1798 | HY51: 1420 | HZ51: -1420
A52: 164 | B52: Jalasjärvi | C52: 7987 | E52: -19.51230101 | F52: 29.1 | G52: 906 | K52: 33.5 | L52: 1921 | M52: 77 | N52: 9117.589176 | O52: 26968 | P52: 16086 | Q52: 65858 | R52: -49772 | S52: 24889 | T52: 23003 | Y52: -1766 | Z52: 2381 | AR52: 22 | AU52: 320 | AV52: 7987 | AX52: -0.4757142857 | AY52: 57.5 | AZ52: -3333 | BD52: 31.6 | BE52: 1196 | BF52: 46 | BG52: 9556.684426 | BH52: 25425 | BI52: 15704 | BJ52: 64815 | BK52: -49111 | BL52: 25316 | BM52: 22431 | BR52: -1474 | BS52: 2629 | CK52: 22 | CM52: 268 | CO52: 7987 | CQ52: -0.496840705 | CR52: 72.53349376 | CS52: -4108.300989 | CW52: 31.46941702 | CX52: 1000.37561 | CY52: 32.01367773 | CZ52: 11405.6592 | EG52: 304 | EH52: 7987 | FZ52: 31946 | GA52: 34275 | GF52: 1000 | GG52: -2488 | GH52: 84 | GI52: 100 | GJ52: -4442 | GL52: 150 | GM52: 0 | GT52: 1000 | GV52: -996 | GW52: 4847 | GX52: 8307 | GY52: 17700 | GZ52: 2100 | HA52: 1654 | HB52: 2065 | HC52: 41524 | HH52: 1100 | HI52: 9500 | HJ52: 15702 | HY52: 1312 | HZ52: -1312
A53: 165 | B53: Janakkala | C53: 16842 | E53: 0.6542865986 | F53: 47.1 | G53: -2109 | K53: 53.5 | L53: 346 | M53: 21 | N53: 6056.839623 | AR53: 20.5 | AU53: 202 | AV53: 16842 | AX53: 0.3730084349 | AY53: 50.7 | AZ53: -2509 | BD53: 49.6 | BE53: 258 | BF53: 14 | BG53: 6525.500857 | CM53: 194 | CO53: 16842 | CQ53: 0.7900552486 | CR53: 54.98772073 | CS53: -2664.469778 | CW53: 45.73735044 | CX53: 461.8216364 | CY53: 25.56271892 | CZ53: 6594.169339 | EG53: 170 | EH53: 16842 | GM53: 0 | GS53: 2500 | GT53: -218 | GU53: 9525 | GV53: 207 | GW53: 11190 | GX53: -6 | GZ53: 26955 | HA53: 5486 | HB53: 1028 | HH53: 36151 | HI53: 6032 | HJ53: 1028 | HY53: 5623 | HZ53: -5623
A54: 167 | B54: Joensuu | C54: 74471 | E54: 2.122368308 | F54: 32.8 | G54: -854 | K54: 65.3 | L54: 947 | M54: 51 | N54: 6834.133247 | O54: 204495 | P54: 715309 | Q54: 1077851 | R54: -365982 | S54: 253500 | T54: 125052 | Y54: 23501 | Z54: 24134 | AR54: 20,5 | AS54: 4462 | AU54: 122 | AV54: 74471 | AX54: 0.9133723949 | AY54: 37.7 | AZ54: -1182 | BD54: 61.2 | BE54: 999 | BF54: 51 | BG54: 7100.771222 | BH54: 208397 | BI54: 730329 | BJ54: 1103060 | BK54: -376191 | BL54: 258000 | BM54: 128744 | BR54: 24797 | BS54: 26653 | CK54: 20,5 | CM54: 161 | CN54: 4510 | CO54: 74471 | CQ54: 1.807131999 | CR54: 39.62642159 | CS54: -1396.369056 | CW54: 60.14980017 | CX54: 1005.881484 | CY54: 50.49510226 | CZ54: 7270.93768 | DD54: -367441 | DE54: 263250 | DF54: 133971 | DK54: 31772 | DL54: 28065 | ED54: 20,5 | EE54: 4550 | EG54: 109 | EH54: 74471 | EW54: -371204 | EX54: 272800 | EY54: 137687 | FD54: 40872 | FE54: 29133 | FW54: 20,5 | FX54: 4600 | FZ54: 763530 | GA54: 780093 | GG54: -53327 | GH54: 2078 | GI54: 4950 | GJ54: -53562 | GK54: 655 | GL54: 4530 | GM54: -41714 | GN54: 394 | GO54: 4030 | GP54: -28705 | GQ54: 215 | GR54: 4030 | GS54: 19000 | GT54: -10509 | GU54: 26000 | GV54: 7339 | GW54: 33400 | GX54: -3217 | GY54: 156704 | GZ54: 71776 | HA54: 20664 | HB54: 32044 | HC54: 185104 | HG54: 195104 | HH54: 100257 | HI54: 30506 | HJ54: 30896 | HK54: 182304 | HY54: 9446 | HZ54: -9446
A55: 169 | B55: Jokioinen | C55: 5595 | E55: 0.8566206336 | F55: 41.4 | G55: -1742 | K55: 56.2 | L55: 56 | M55: 3 | N55: 5920.190275 | O55: 14455 | P55: 4030 | Q55: 30820 | R55: -26790 | S55: 18753 | T55: 9120 | Y55: 975 | Z55: 967 | AR55: 20,5 | AS55: 230 | AU55: 110 | AV55: 5595 | AX55: 1.001552795 | AY55: 48.2 | AZ55: -1896 | BD55: 51.6 | BE55: 259 | BF55: 16 | BG55: 5995.746943 | BH55: 9863 | BI55: 3518 | BJ55: 30263 | BK55: -26745 | BL55: 18838 | BM55: 9415 | BR55: 1365 | BS55: 1208 | CK55: 20,5 | CM55: 125 | CN55: 227 | CO55: 5595 | CQ55: 1.378209577 | CR55: 47.48687643 | CS55: -2147.631814 | CW55: 52.4668435 | CX55: 85.07596068 | CY55: 4.947320462 | CZ55: 6276.675603 | DA55: 9775 | DB55: 3532 | DC55: 30293 | DD55: -26761 | DE55: 18987 | DF55: 9314 | DK55: 1397 | DL55: 1207 | ED55: 20,5 | EE55: 227 | EG55: 125 | EH55: 5595 | ET55: 9824 | EU55: 3550 | EV55: 30516 | EW55: -26966 | EX55: 19265 | EY55: 9314 | FD55: 1469 | FE55: 1207 | FW55: 20,5 | FX55: 227 | FZ55: 12673 | GA55: 17834 | GB55: 17947 | GC55: 18109 | GG55: -6645 | GH55: 750 | GI55: 10 | GJ55: -5020 | GK55: 716 | GL55: 10 | GM55: -594 | GN55: 16 | GO55: 10 | GP55: -985 | GQ55: 116 | GR55: 10 | GS55: 1001 | GT55: 1860 | GU55: 2405 | GV55: 110 | GW55: 1000 | GX55: 240 | GY55: 16268 | GZ55: 5566 | HA55: 4387 | HB55: 558 | HC55: 19141 | HG55: 18311 | HH55: 6542 | HI55: 4832 | HJ55: 558 | HK55: 17711 | HY55: 2224 | HZ55: -2224
A56: 171 | B56: Joroinen | C56: 5213 | E56: 0.2153846154 | F56: 45.5 | G56: -2963 | K56: 47.7 | L56: 139 | M56: 5 | N56: 9229.314863 | O56: 10608 | P56: 13292 | Q56: 40498 | R56: -27301 | S56: 16489 | T56: 12115 | Y56: 1158 | Z56: 1400 | AR56: 20,25 | AS56: 240 | AU56: 266 | AV56: 5213 | AX56: 0.4118993135 | AY56: 49.8 | AZ56: -3363 | BD56: 44.3 | BE56: 218 | BF56: 9 | BG56: 9166.509167 | BH56: 9303 | BI56: 6583 | BJ56: 35097 | BK56: -28514 | BL56: 16632 | BM56: 12002 | BR56: -4 | BS56: 742 | CK56: 20,25 | CM56: 170 | CN56: 220 | CO56: 5213 | CQ56: 0.5502935421 | CR56: 56.49729279 | CS56: -3327.258776 | CW56: 44.9541979 | CX56: 456.9345866 | CY56: 20.95415984 | CZ56: 7959.332438 | DA56: 9303 | DB56: 6583 | DC56: 35105 | DD56: -28522 | DE56: 16715 | DF56: 12266 | DK56: 336 | DL56: 742 | ED56: 20,25 | EE56: 220 | EG56: 180 | EH56: 5213 | ET56: 9303 | EU56: 6583 | EV56: 35105 | EW56: -28522 | EX56: 17055 | EY56: 12429 | FD56: 840 | FE56: 742 | FW56: 20,25 | FX56: 220 | FZ56: 22362 | GA56: 21964 | GB56: 21972 | GC56: 21972 | GG56: -2918 | GI56: 113 | GJ56: -1750 | GK56: 110 | GL56: 315 | GM56: -1030 | GN56: 80 | GO56: 100 | GP56: -465 | GQ56: 10 | GR56: 150 | GS56: 2300 | GT56: 2000 | GU56: 5320 | GV56: -1500 | GW56: 3930 | GX56: -500 | GY56: 16109 | GZ56: 6601 | HA56: 3959 | HB56: 415 | HC56: 16223 | HG56: 15360 | HH56: 10835 | HI56: 2663 | HJ56: 310 | HK56: 14497 | HY56: 1768 | HZ56: -1768
A57: 172 | B57: Joutsa | C57: 4857 | E57: 0.6150643452 | F57: 53.5 | G57: -2978 | K57: 28.3 | L57: 215 | M57: 11 | N57: 7306.373538 | O57: 12971 | P57: 10456 | Q57: 38933 | R57: -28477 | S57: 14680 | T57: 14435 | Y57: 419 | Z57: 911 | AR57: 21 | AS57: 280 | AU57: 147 | AV57: 4857 | AX57: 0.2728306177 | AY57: 59.7 | AZ57: -3499 | BD57: 23.5 | BE57: 156 | BF57: 7 | BG57: 8424.050633 | BH57: 12927 | BI57: 9633 | BJ57: 37875 | BK57: -28242 | BL57: 14910 | BM57: 14703 | BR57: 1215 | BS57: 1236 | CK57: 21 | CM57: 197 | CN57: 275 | CO57: 4857 | CQ57: 0.2616093584 | CR57: 65.33869083 | CS57: -4262.301832 | CW57: 19.89008806 | CX57: 78.03170681 | CY57: 3.305969793 | CZ57: 8615.194565 | DA57: 12800 | DB57: 9700 | DC57: 37700 | DD57: -28000 | DE57: 14900 | DF57: 14840 | DK57: 1590 | DL57: 1210 | ED57: 21 | EE57: 275 | EG57: 240 | EH57: 4857 | ET57: 8300 | EU57: 7700 | EV57: 35700 | EW57: -28000 | EX57: 14900 | EY57: 14840 | FD57: 1580 | FE57: 1200 | FW57: 21 | FX57: 165 | FZ57: 20000 | GA57: 19191 | GB57: 19300 | GC57: 23500 | GG57: -930 | GH57: 145 | GI57: 100 | GJ57: -1198 | GK57: 17 | GL57: 150 | GM57: -975 | GO57: 150 | GP57: -950 | GR57: 100 | GT57: 500 | GU57: 3000 | GV57: 1927 | GW57: 6000 | GX57: -927 | GY57: 18246 | GZ57: 8683 | HA57: 4212 | HB57: 923 | HC57: 18066 | HG57: 17353 | HH57: 12246 | HI57: 5654 | HJ57: 923 | HK57: 16624 | HY57: 2380 | HZ57: -2380
A58: 174 | B58: Juankoski | C58: 4995 | E58: 0.5197762685 | F58: 68 | G58: -4001 | K58: 39.4 | L58: 263 | M58: 12 | N58: 8186.941314 | O58: 13816 | P58: 7426 | Q58: 37794 | R58: -30368 | S58: 15317 | T58: 13909 | Y58: -990 | Z58: 1483 | AR58: 21,5 | AS58: 314 | AU58: 236 | AV58: 4995 | AX58: 0.6194782609 | AY58: 57.8 | AZ58: -3287 | BD58: 43 | BE58: 314 | BF58: 15 | BG58: 7705.674455 | BH58: 13018 | BI58: 7550 | BJ58: 37566 | BK58: -30016 | BL58: 15701 | BM58: 14474 | BR58: 249 | BS58: 1437 | CK58: 21,5 | CM58: 72 | CN58: 309 | CO58: 4995 | CQ58: 0.2451730419 | CR58: 68.1645047 | CS58: -4285.485485 | CW58: 29.97574778 | CX58: 284.0840841 | CY58: 12.627941 | CZ58: 8211.211211 | DA58: 13013 | DB58: 7034 | DC58: 37374 | DD58: -30340 | DE58: 15860 | DF58: 14726 | DK58: 317 | DL58: 1373 | ED58: 21,5 | EE58: 309 | EG58: 249 | EH58: 4995 | FW58: 0 | FX58: 0 | FZ58: 19929 | GA58: 20317 | GB58: 20376 | GD58: 850 | GE58: 700 | GG58: -1889 | GH58: 182 | GI58: 50 | GJ58: -1974 | GK58: 470 | GL58: 487 | GM58: -1954 | GN58: 35 | GO58: 150 | GV58: 500 | GX58: 6600 | GY58: 24682 | GZ58: 17374 | HA58: 2481 | HB58: 1168 | HC58: 25582 | HG58: 27082 | HH58: 12382 | HI58: 9596 | HJ58: 1152 | HY58: 1948 | HZ58: -1948
A59: 176 | B59: Juuka | C59: 5203 | F59: 12.7 | G59: 1426 | K59: 84.4 | L59: 1930 | M59: 95 | N59: 7395.928847 | O59: 19121 | P59: 6949 | Q59: 42529 | R59: -35580 | S59: 13380 | T59: 20970 | Y59: -847 | Z59: 1640 | AR59: 20,75 | AS59: 343 | AU59: 262 | AV59: 5203 | AY59: 15.5 | AZ59: 938 | BD59: 80.2 | BE59: 1561 | BF59: 69 | BG59: 8262.772352 | BH59: 19575 | BI59: 7223 | BJ59: 41251 | BK59: -34028 | BL59: 13950 | BM59: 20650 | BR59: 819 | BS59: 1880 | CK59: 20,75 | CM59: 275 | CN59: 350 | CO59: 5203 | CR59: 15.34988713 | CS59: 718.8160677 | CW59: 79.80955354 | CX59: 1466.077263 | CY59: 65.50951742 | CZ59: 8168.556602 | DA59: 19274 | DB59: 7195 | DC59: 40913 | DD59: -33718 | DE59: 13900 | DF59: 20650 | DK59: 1079 | DL59: 1880 | ED59: 20,75 | EE59: 345 | EG59: 206 | EH59: 5203 | ET59: 19003 | EU59: 7187 | EV59: 40316 | EW59: -33129 | EX59: 13750 | EY59: 20650 | FD59: 1517 | FE59: 1880 | FW59: 20,75 | FX59: 340 | FZ59: 18630 | GA59: 16595 | GB59: 16627 | GC59: 16324 | GG59: -9154 | GH59: 266 | GJ59: -5837 | GK59: 289 | GM59: -2927 | GN59: 548 | GP59: -2604 | GY59: 6429 | GZ59: 0 | HA59: 0 | HB59: 130 | HC59: 4079 | HH59: 0 | HI59: 0 | HJ59: 130 | HK59: 3428 | HY59: 0 | HZ59: 0
A60: 177 | B60: Juupajoki | C60: 2039 | E60: 1.258706468 | F60: 34.8 | G60: -1640 | K60: 65.3 | L60: 172 | M60: 10 | N60: 6394.428152 | AR60: 20 | AU60: 107 | AV60: 2039 | AX60: -1.913580247 | AY60: 49.8 | AZ60: -2501 | BD60: 55 | BE60: 80 | BF60: 4 | BG60: 6953.04004 | CM60: 302 | CO60: 2039 | CQ60: 0.3881700555 | CR60: 47.36140922 | CS60: -2897.008337 | CW60: 52.8333824 | CX60: 4.413928396 | CY60: 0.2105094521 | CZ60: 7653.261403 | EG60: 216 | EH60: 2039 | GJ60: 0 | GS60: 700 | GT60: 200 | GU60: 700 | GV60: 261 | GW60: 778 | GX60: 1067 | GZ60: 1979 | HA60: 842 | HB60: 157 | HH60: 2329 | HI60: 2170 | HJ60: 157 | HY60: 532 | HZ60: -532
A61: 178 | B61: Juva | C61: 6684 | E61: 0.3515754561 | F61: 37.7 | G61: -2249 | K61: 53.8 | L61: 217 | M61: 9 | N61: 8901.767604 | O61: 19592 | P61: 10202 | Q61: 48218 | R61: -38016 | S61: 19597 | T61: 19463 | Y61: 1343 | Z61: 1553 | AR61: 19,75 | AS61: 381 | AU61: 277 | AV61: 6684 | AX61: 2.522707035 | AY61: 39 | AZ61: -2576 | BD61: 64.3 | BE61: 334 | BF61: 13 | BG61: 9213.917146 | BH61: 16990 | BI61: 6570 | BJ61: 44887 | BK61: -38317 | BL61: 19750 | BM61: 19750 | BR61: 1516 | BS61: 1539 | CK61: 19,75 | CM61: 47 | CN61: 308 | CO61: 6684 | CQ61: 1.417548227 | CR61: 46.11188318 | CS61: -2771.394375 | CW61: 65.97059224 | CX61: 284.5601436 | CY61: 12.84469361 | CZ61: 8086.175943 | DA61: 16990 | DB61: 6570 | DC61: 44887 | DD61: -38317 | DE61: 19750 | DF61: 19750 | DK61: 1516 | DL61: 1539 | ED61: 19,75 | EE61: 308 | EG61: 139 | EH61: 6684 | ET61: 16990 | EU61: 6570 | EV61: 44887 | EW61: -38317 | EX61: 19750 | EY61: 19750 | FD61: 1516 | FE61: 1539 | FW61: 20,25 | FX61: 200 | FZ61: 24975 | GA61: 24596 | GB61: 24596 | GC61: 24596 | GG61: -4051 | GH61: 487 | GI61: 200 | GJ61: -3534 | GK61: 318 | GL61: 200 | GM61: -2343 | GO61: 200 | GP61: -8147 | GT61: 2000 | GU61: 4000 | GV61: -500 | GW61: 4000 | GX61: -1500 | GY61: 16000 | GZ61: 7360 | HA61: 4684 | HB61: 502 | HC61: 17800 | HG61: 18500 | HH61: 10473 | HI61: 5375 | HJ61: 1037 | HK61: 19000 | HY61: 941 | HZ61: -941
A62: 179 | B62: Jyväskylä | C62: 134658 | E62: 0.6714427183 | F62: 57.6 | G62: -2793 | K62: 58 | L62: 61 | M62: 3 | N62: 6723.213339 | O62: 335696 | P62: 312193 | Q62: 920021 | R62: -607828 | S62: 482100 | T62: 144252 | Y62: 27253 | Z62: 51371 | AR62: 20 | AS62: 5675 | AU62: 246 | AV62: 134658 | AX62: 0.5014615998 | AY62: 66.7 | AZ62: -3401 | BD62: 51.5 | BE62: 21 | BF62: 1 | BG62: 6486.559986 | BH62: 311090 | BI62: 313892 | BJ62: 933407 | BK62: -619515 | BL62: 492200 | BM62: 152492 | BR62: 31000 | BS62: 51937 | CK62: 20 | CM62: 220 | CN62: 5705 | CO62: 134658 | CQ62: 1.539645853 | CR62: 63.83569809 | CS62: -3500.349032 | CW62: 48.96630934 | CX62: 33.35858248 | CY62: 1.803414827 | CZ62: 6751.570646 | DA62: 312000 | DB62: 317646 | DC62: 942628 | DD62: -624982 | DE62: 509089 | DF62: 150967 | DK62: 38797 | DL62: 51116 | ED62: 20 | EE62: 5704 | EG62: 171 | EH62: 134658 | ET62: 320000 | EU62: 320869 | EV62: 951425 | EW62: -630556 | EX62: 528267 | EY62: 149457 | FD62: 49691 | FE62: 49691 | FW62: 20 | FX62: 5687 | FZ62: 362797 | GA62: 366300 | GB62: 369000 | GC62: 370000 | GG62: -51376 | GH62: 300 | GI62: 11000 | GJ62: -48248 | GK62: 485 | GL62: 11000 | GM62: -50433 | GN62: 100 | GO62: 10900 | GP62: -51260 | GQ62: 100 | GR62: 10900 | GS62: 85000 | GT62: -3900 | GU62: 80000 | GV62: 9047 | GW62: 30000 | GX62: 4931 | GY62: 420000 | GZ62: 246968 | HA62: 65253 | HB62: 282935 | HC62: 436000 | HG62: 446800 | HH62: 313373 | HI62: 83565 | HJ62: 225463 | HK62: 447500 | HY62: 25477 | HZ62: -25477
A63: 181 | B63: Jämijärvi | C63: 1971 | E63: -0.107830552 | F63: 38.4 | G63: -1947 | K63: 40.8 | L63: 67 | M63: 4 | N63: 6294.558163 | O63: 2609 | P63: 707 | Q63: 11801 | R63: -11094 | S63: 5997 | T63: 5495 | Y63: 338 | Z63: 321 | AR63: 21,5 | AS63: 48 | AU63: 303 | AV63: 1971 | AX63: 0.02418207681 | AY63: 39.2 | AZ63: -2088 | BD63: 36.2 | BE63: 60 | BF63: 3 | BG63: 6506.545821 | BH63: 2561 | BI63: 1025 | BJ63: 11872 | BK63: -10847 | BL63: 5969 | BM63: 5509 | BR63: 575 | BS63: 363 | CK63: 21,5 | CM63: 253 | CN63: 47 | CO63: 1971 | CQ63: 0.6191222571 | CR63: 41.78110019 | CS63: -2256.722476 | CW63: 34.2849956 | CX63: 152.7143582 | CY63: 8.185441812 | CZ63: 6809.741248 | DA63: 2535 | DB63: 747 | DC63: 11924 | DD63: -11177 | DE63: 6163 | DF63: 5509 | DK63: 440 | DL63: 376 | ED63: 21,5 | EE63: 46 | EG63: 213 | EH63: 1971 | ET63: 2499 | EU63: 752 | EV63: 11990 | EW63: -11238 | EX63: 6270 | EY63: 5509 | FD63: 486 | FE63: 380 | FW63: 21,5 | FX63: 45 | FZ63: 8236 | GA63: 8347 | GB63: 8435 | GC63: 8537 | GD63: 350 | GE63: 260 | GF63: 260 | GG63: -1212 | GH63: 34 | GI63: 56 | GJ63: -422 | GK63: 9 | GL63: 32 | GM63: -353 | GO63: 32 | GP63: -384 | GR63: 32 | GS63: 1060 | GT63: 150 | GU63: 840 | GV63: -150 | GW63: 1188 | GY63: 4203 | GZ63: 2495 | HA63: 773 | HB63: 107 | HC63: 4488 | HG63: 4381 | HH63: 3311 | HI63: 591 | HJ63: 107 | HK63: 4259 | HY63: 716 | HZ63: -716
A64: 182 | B64: Jämsä | C64: 22138 | E64: 0.8708427107 | F64: 42.2 | G64: -1814 | K64: 59.5 | L64: 397 | M64: 18 | N64: 8204.114276 | O64: 67865 | P64: 41042 | Q64: 159210 | R64: -118554 | S64: 82777 | T64: 44555 | Y64: 8209 | Z64: 8664 | AR64: 21 | AS64: 1564 | AU64: 158 | AV64: 22138 | AX64: 0.3566670704 | AY64: 41.8 | AZ64: -2050 | BD64: 57.7 | BE64: 257 | BF64: 12 | BG64: 7926.679789 | BH64: 66739 | BI64: 42286 | BJ64: 163680 | BK64: -121762 | BL64: 85400 | BM64: 44000 | BR64: 7625 | BS64: 8458 | CK64: 21 | CM64: 203 | CN64: 1509 | CO64: 22138 | CQ64: 1.488040228 | CR64: 39.07694338 | CS64: -1828.710814 | CW64: 58.37762928 | CX64: 538.5310326 | CY64: 25.41158127 | CZ64: 7735.206432 | DA64: 65000 | DB64: 42567 | DC64: 164230 | DD64: -121700 | DE64: 85700 | DF64: 46200 | DK64: 9434 | DL64: 8658 | ED64: 21 | EE64: 1469 | EG64: 68 | EH64: 22138 | ET64: 63100 | EU64: 43560 | EV64: 165110 | EW64: -121920 | EX64: 86700 | EY64: 47200 | FD64: 11123 | FE64: 8858 | FW64: 21 | FX64: 1425 | FZ64: 70099 | GA64: 74506 | GB64: 78980 | GC64: 83700 | GG64: -13199 | GH64: 820 | GI64: 544 | GJ64: -11980 | GK64: 225 | GL64: 310 | GM64: -10340 | GN64: 445 | GO64: 250 | GP64: -9089 | GQ64: 230 | GR64: 250 | GS64: 10000 | GT64: 1081 | GU64: 10000 | GV64: -235 | GW64: 4000 | GY64: 43418 | GZ64: 35194 | HA64: 8182 | HB64: 7307 | HC64: 45918 | HG64: 46768 | HH64: 31310 | HI64: 12108 | HJ64: 5846 | HK64: 45018 | HY64: 6948 | HZ64: -6948
A65: 186 | B65: Järvenpää | C65: 39953 | E65: 6.162642522 | F65: 28.8 | G65: -1340 | K65: 72.4 | L65: 32 | M65: 2 | N65: 5780.398296 | O65: 101836 | P65: 85263 | Q65: 272083 | R65: -188726 | S65: 172991 | T65: 24199 | Y65: 10522 | Z65: 13520 | AR65: 19,75 | AS65: 1970 | AU65: 53 | AV65: 39953 | AX65: 3.171627368 | AY65: 32.9 | AZ65: -1599 | BD65: 68.3 | BE65: 13 | BF65: 1 | BG65: 6074.05539 | BH65: 105307 | BI65: 87585 | BJ65: 278118 | BK65: -192423 | BL65: 177410 | BM65: 21468 | BR65: 8458 | BS65: 15020 | CK65: 19,75 | CM65: 118 | CN65: 1870 | CO65: 39953 | CQ65: 5.336144578 | CR65: 33.21295237 | CS65: -1768.578079 | CW65: 67.06640738 | CX65: 2.80329387 | CY65: 0.1649784091 | CZ65: 6202.037394 | DB65: 86161 | DC65: 280157 | DD65: -193996 | DE65: 186295 | DF65: 20124 | DK65: 12511 | DL65: 16270 | ED65: 19,75 | EE65: 1870 | EG65: 131 | EH65: 39953 | EU65: 90382 | EV65: 290507 | EW65: -200125 | EX65: 194842 | EY65: 19520 | FD65: 14268 | FE65: 17420 | FW65: 19,75 | FX65: 1870 | FZ65: 111385 | GA65: 112542 | GG65: -41644 | GH65: 4465 | GI65: 6354 | GJ65: -24405 | GK65: 4683 | GL65: 7358 | GM65: -22980 | GN65: 2840 | GO65: 7156 | GP65: -23202 | GQ65: 2678 | GR65: 6836 | GT65: 1020 | GV65: 8564 | GX65: 7237 | GY65: 65316 | GZ65: 5090 | HA65: 29042 | HB65: 5021 | HC65: 70300 | HG65: 71495 | HH65: 1500 | HI65: 44318 | HJ65: 5009 | HK65: 74179 | HY65: 2326 | HZ65: -2326
A66: 202 | B66: Kaarina | C66: 31798 | E66: 10.86783042 | F66: 48.4 | G66: -1850 | K66: 53.6 | L66: 551 | M66: 34 | N66: 5853.640488 | O66: 75297 | P66: 33317 | Q66: 184145 | R66: -153628 | S66: 127100 | T66: 28300 | Y66: 4572 | Z66: 7300 | AR66: 19 | AS66: 1764 | AU66: 74 | AV66: 31798 | AX66: 6.451038576 | AY66: 48.4 | AZ66: -2230 | BD66: 53.1 | BE66: 185 | BF66: 11 | BG66: 5973.950196 | BH66: 77263 | BI66: 32778 | BJ66: 186698 | BK66: -154530 | BL66: 129800 | BM66: 26700 | BR66: 3080 | BS66: 7700 | CK66: 19,25 | CM66: 121 | CN66: 1847 | CO66: 31798 | CQ66: 14.68718593 | CR66: 51.76746281 | CS66: -2109.189257 | CW66: 50.73558144 | CX66: 687.7162086 | CY66: 43.05328112 | CZ66: 5830.36669 | DA66: 78422 | DB66: 33270 | DC66: 189498 | DD66: -156847 | DE66: 135100 | DF66: 25000 | DK66: 4379 | DL66: 7800 | ED66: 19,25 | EE66: 1847 | EG66: 108 | EH66: 31798 | ET66: 79598 | EU66: 33768 | EV66: 192341 | EW66: -159201 | EX66: 139600 | EY66: 23500 | FD66: 5043 | FE66: 7900 | FW66: 19,25 | FX66: 1847 | FZ66: 83548 | GA66: 83172 | GB66: 84420 | GC66: 85686 | GG66: -15543 | GH66: 0 | GI66: 2800 | GJ66: -14596 | GL66: 2700 | GM66: -19405 | GO66: 3000 | GP66: -19685 | GR66: 3300 | GT66: -10155 | GV66: -4 | GX66: 10000 | GY66: 68000 | GZ66: 2533 | HA66: 50461 | HB66: 765 | HC66: 65700 | HG66: 80700 | HH66: 1620 | HI66: 60457 | HJ66: 2385 | HK66: 95700 | HY66: 460 | HZ66: =HY66*-1 -> -460
A67: 204 | B67: Kaavi | C67: 3261 | E67: 1.12864494 | F67: 28.9 | G67: -1273 | K67: 58.6 | L67: 348 | M67: 19 | N67: 6828.951256 | O67: 7300 | P67: 3437 | Q67: 24648 | R67: -21211 | S67: 8957 | T67: 12962 | Y67: 787 | Z67: 689 | AR67: 20,5 | AS67: 160 | AU67: 223 | AV67: 3261 | AX67: 0.3519637462 | AY67: 27.1 | AZ67: -1390 | BD67: 57.1 | BE67: 237 | BF67: 12 | BG67: 7502.564103 | BH67: 7297 | BI67: 3472 | BJ67: 24787 | BK67: -21315 | BL67: 9300 | BM67: 12495 | BR67: 553 | BS67: 656 | CK67: 21,25 | CM67: 227 | CN67: 163 | CO67: 3261 | CQ67: 1.448445172 | CR67: 24.78583666 | CS67: -1288.255136 | CW67: 59.01584765 | CX67: 249.0033732 | CY67: 11.81926942 | CZ67: 7689.665747 | DA67: 7327 | DB67: 3506 | DC67: 25026 | DD67: -21520 | DE67: 9300 | DF67: 12700 | DK67: 524 | DL67: 982 | ED67: 21,25 | EE67: 163 | EG67: 173 | EH67: 3261 | ET67: 7327 | EU67: 3506 | EV67: 25435 | EW67: -21929 | EX67: 9500 | EY67: 12950 | FD67: 530 | FE67: 833 | FW67: 21,25 | FX67: 163 | FZ67: 14253 | GA67: 14216 | GB67: 14521 | GC67: 14828 | GG67: -2015 | GH67: 0 | GI67: 20 | GJ67: -3134 | GK67: 133 | GL67: 25 | GM67: -2924 | GN67: 288 | GP67: -440 | GS67: 500 | GU67: 500 | GY67: 3300 | GZ67: 3859 | HA67: 553 | HB67: 441 | HC67: 5700 | HG67: 8100 | HH67: 3267 | HI67: 565 | HJ67: 441 | HK67: 7900 | HY67: 479 | HZ67: -479
A68: 205 | B68: Kajaani | C68: 37868 | E68: 0.9087346025 | F68: 38.3 | G68: -1909 | K68: 60.4 | L68: 226 | M68: 12 | N68: 7033.723222 | O68: 97109 | P68: 63078 | Q68: 295361 | R68: -232921 | S68: 137000 | T68: 98796 | Y68: 7082 | Z68: 12570 | AR68: 21 | AS68: 2100 | AU68: 185 | AV68: =C68 -> 37868 | AX68: 0.7214444189 | AY68: 43.4 | AZ68: -2279 | BD68: 57 | BE68: 201 | BF68: 10 | BG68: 7219.972085 | BH68: 94865 | BI68: 64070 | BJ68: 307399 | BK68: -244099 | BL68: 138500 | BM68: 101968 | BR68: 11535 | BS68: 13166 | CK68: 21 | CM68: 105 | CN68: 2090 | CO68: =AV68 -> 37868 | CQ68: 1.836327345 | CR68: 35.24783425 | CS68: -2315.385022 | CW68: 68.56852738 | CX68: 160.3464667 | CY68: 5.507120334 | CZ68: 10627.41629 | DA68: 95250 | DB68: 65033 | DC68: 313500 | DD68: -249300 | DE68: 140100 | DF68: 103468 | DK68: -4899 | DL68: 14170 | ED68: 21 | EE68: 2070 | EG68: 28 | EH68: =CO68 -> 37868 | ET68: 96205 | EU68: 65337 | EV68: 319810 | EW68: -255310 | EX68: 144400 | EY68: 105270 | FD68: -4803 | FE68: 15160 | FW68: 21 | FX68: 2050 | FZ68: 156891 | GA68: 157865 | GB68: 161022 | GC68: 164242 | GG68: -16041 | GH68: 437 | GI68: 356 | GJ68: -30684 | GK68: 280 | GL68: 600 | GM68: -29100 | GO68: 250 | GP68: -20100 | GR68: 250 | GS68: 12100 | GT68: 515 | GU68: 25550 | GV68: -3005 | GW68: 19445 | GX68: -7071 | GY68: 91000 | GZ68: 50650 | HA68: 20873 | HB68: 7758 | HC68: 107000 | HG68: 122000 | HH68: 69806 | HI68: 12578 | HJ68: 69551 | HK68: 127000 | HY68: 9462 | HZ68: -9462
A69: 208 | B69: Kalajoki | C69: 12644 | E69: 1.95842511 | F69: 51 | G69: -1570 | K69: 58.9 | L69: 1124 | M69: 59 | N69: 7012.840837 | O69: 44328 | P69: 23580 | Q69: 84795 | R69: -61467 | S69: 36477 | T69: 29221 | Y69: 4700 | Z69: 4700 | AR69: 19,5 | AS69: 1137 | AU69: 34 | AV69: 12644 | AX69: 1.238785682 | AY69: 54.9 | AZ69: -1834 | BD69: 56.6 | BE69: 1062 | BF69: 51 | BG69: 7607.762376 | BH69: 44004 | BI69: 21202 | BJ69: 84135 | BK69: -63159 | BL69: 37744 | BM69: 29448 | BR69: 4183 | BS69: 3920 | CK69: 20 | CM69: 41 | CN69: 1140 | CO69: 12644 | CQ69: 1.045562599 | CR69: 56.61817233 | CS69: -2056.232205 | CW69: 55.45307286 | CX69: 1195.665929 | CY69: 56.67697206 | CZ69: 7700.094907 | DA69: 44432 | DB69: 21460 | DC69: 86082 | DD69: -64848 | DE69: 37811 | DF69: 29948 | DK69: 3061 | DL69: 4000 | ED69: 20 | EE69: 1140 | EG69: 91 | EH69: 12644 | ET69: 45143 | EU69: 21745 | EV69: 88532 | EW69: -67013 | EX69: 39366 | EY69: 30563 | FD69: 3066 | FE69: 4200 | FW69: 20 | FX69: 1140 | FZ69: 60071 | GA69: 29648 | GB69: 31001 | GC69: 32438 | GG69: -9334 | GH69: 1904 | GI69: 500 | GJ69: -9939 | GK69: 1400 | GL69: 700 | GM69: -11165 | GN69: 1529 | GO69: 700 | GP69: -7145 | GQ69: 1450 | GR69: 500 | GT69: 1600 | GU69: 5000 | GV69: 2600 | GX69: 7000 | GY69: 39000 | GZ69: 13490 | HA69: 16952 | HB69: 1664 | HC69: 38400 | HG69: 43900 | HH69: 8219 | HI69: 28219 | HJ69: 1471 | HK69: 45900 | HY69: 3053 | HZ69: -3053
A70: 211 | B70: Kangasala | C70: 30345 | E70: 1.931598342 | F70: 43.6 | G70: -952 | K70: 56.6 | L70: 1320 | M70: 68 | N70: 7096.082433 | O70: 91084 | P70: 46036 | Q70: 185616 | R70: -139742 | S70: 116301 | T70: 34141 | Y70: 10656 | Z70: 13198 | AR70: 20,5 | AS70: 1899 | AU70: 37 | AV70: 30345 | AX70: 1.302251895 | AY70: 45.7 | AZ70: -1288 | BD70: 54.5 | BE70: 1029 | BF70: 50 | BG70: 7587.963885 | BH70: 92630 | BI70: 46420 | BJ70: 191313 | BK70: -145034 | BL70: 120175 | BM70: 34284 | BR70: 8854 | BS70: 13561 | CK70: 21 | CM70: 59 | CN70: 1879 | CO70: 30345 | CQ70: 1.847129008 | CR70: 48.0126945 | CS70: -1455.231504 | CW70: 53.50311176 | CX70: 1190.673917 | CY70: 58.21638098 | CZ70: 7465.183721 | DA70: 93169 | DB70: 46830 | DC70: 193008 | DD70: -146319 | DE70: 124665 | DF70: 33066 | DK70: 11009 | DL70: 13644 | ED70: 21 | EE70: 1862 | EG70: 48 | EH70: 30345 | ET70: 92906 | EU70: 47224 | EV70: 194249 | EW70: -147166 | EX70: 128525 | EY70: 32051 | FD70: 12684 | FE70: 13759 | FW70: 21 | FX70: 1841 | FZ70: 68685 | GA70: 70371 | GB70: 71191 | GC70: 72877 | GG70: -25310 | GH70: 356 | GI70: 2000 | GJ70: -20484 | GL70: 1000 | GM70: -21442 | GN70: 0 | GO70: 1000 | GP70: -21869 | GR70: 1000 | GS70: 7000 | GT70: -1100 | GU70: 12000 | GW70: 13000 | GX70: 4205 | GY70: 72352 | GZ70: 42754 | HA70: 7338 | HB70: 172 | HC70: 82957 | HG70: 91199 | HH70: 50139 | HI70: 13565 | HJ70: 109 | HK70: 97836 | HY70: 7141 | HZ70: -7141
A71: 213 | B71: Kangasniemi | C71: 5801 | E71: 0.7656623625 | F71: 45.1 | G71: -2663 | K71: 54.3 | L71: 49 | M71: 2 | N71: 7402.557545 | O71: 18769 | P71: 4574 | Q71: 39078 | R71: -34504 | S71: 16190 | T71: 19826 | Y71: -320 | Z71: 1300 | AR71: 20 | AS71: 399 | AU71: 187 | AV71: 5801 | AX71: 1.139801774 | AY71: 41.3 | AZ71: -2426 | BD71: 56.1 | BE71: 84 | BF71: 4 | BG71: 7025.004282 | BH71: 18889 | BI71: 4792 | BJ71: 40179 | BK71: -35387 | BL71: 17571 | BM71: 19100 | BR71: 1394 | BS71: 1370 | CK71: 20 | CM71: 56 | CN71: 378 | CO71: 5801 | CQ71: 1.814096916 | CR71: 39.28222249 | CS71: -2387.519393 | CW71: 57.13833569 | CX71: 91.01878986 | CY71: 4.421806167 | CZ71: 7513.187381 | DA71: 18700 | DB71: 4900 | DC71: 39800 | DD71: -34900 | DE71: 17550 | DF71: 18900 | DK71: 1600 | DL71: 1600 | ED71: 20 | EE71: 375 | EG71: 116 | EH71: 5801 | ET71: 18700 | EU71: 4900 | EV71: 39800 | EW71: -34900 | EX71: 17550 | EY71: 18900 | FD71: 1600 | FE71: 1600 | FW71: 20 | FX71: 375 | FZ71: 16212 | GA71: 15966 | GB71: 15929 | GC71: 15929 | GG71: -5407 | GH71: 500 | GI71: 200 | GJ71: -7523 | GK71: 1723 | GL71: 200 | GM71: -10230 | GN71: 2911 | GO71: 200 | GP71: -1607 | GR71: 200 | GT71: 1982 | GV71: 500 | GX71: 760 | GY71: 14309 | GZ71: 6917 | HA71: 5982 | HB71: 1880 | HC71: 18609 | HG71: 24409 | HH71: 4858 | HI71: 6552 | HJ71: 1942 | HK71: 24709 | HY71: 1782 | HZ71: -1782
A72: 214 | B72: Kankaanpää | C72: 11972 | E72: -0.03909774436 | F72: 49.8 | G72: -2168 | K72: 34.1 | L72: 152 | M72: 8 | N72: 6608.875642 | O72: 22616 | P72: 17034 | Q72: 81174 | R72: -64230 | S72: 39667 | T72: 26025 | Y72: 2004 | Z72: 2650 | AR72: 21,5 | AS72: 500 | AU72: 296 | AV72: 11972 | AX72: 0.3420234394 | AY72: 51.1 | AZ72: -2429 | BD72: 30.7 | BE72: 144 | BF72: 8 | BG72: 6738.312286 | BH72: 22329 | BI72: 15311 | BJ72: 79236 | BK72: -64008 | BL72: 40587 | BM72: 25564 | BR72: 2805 | BS72: 2805 | CK72: 21,5 | CM72: 204 | CN72: 500 | CO72: 11972 | CQ72: 0.3933962264 | CR72: 57.04114993 | CS72: -2828.015369 | CW72: 26.23796004 | CX72: 238.6401604 | CY72: 12.38323972 | CZ72: 7033.995991 | DA72: 22313 | DB72: 15293 | DC72: 79646 | DD72: -64436 | DE72: 41456 | DF72: 25400 | DK72: 2994 | DL72: 3040 | ED72: 21,5 | EE72: 500 | EG72: 236 | EH72: 11972 | ET72: 22313 | EU72: 15293 | EV72: 79914 | EW72: -64704 | EX72: 42392 | EY72: 25300 | FD72: 3494 | FE72: 3230 | FW72: 21,5 | FX72: 500 | FZ72: 49619 | GA72: 48332 | GB72: 48633 | GC72: 48791 | GE72: 850 | GG72: -4643 | GH72: 101 | GI72: 100 | GJ72: -9948 | GK72: 480 | GL72: 100 | GM72: -6896 | GO72: 100 | GP72: -6490 | GQ72: 870 | GR72: 100 | GS72: 7400 | GU72: 4000 | GW72: 10000 | GY72: 34255 | GZ72: 20970 | HA72: 3730 | HB72: 1881 | HC72: 40855 | HG72: 44655 | HH72: 26444 | HI72: 4561 | HJ72: 1748 | HK72: 46755 | HY72: 3569 | HZ72: -3569
A73: 216 | B73: Kannonkoski | C73: 1520 | E73: 2.019906323 | F73: 68.8 | G73: -2830 | K73: 54.7 | L73: 2910 | M73: 89 | N73: 11939.76684 | O73: 4065 | P73: 6018 | Q73: 15711 | R73: -9693 | S73: 4195 | T73: 6372 | Y73: 879 | Z73: 868 | AR73: 21 | AS73: 94 | AU73: 2 | AV73: 1520 | AX73: 1.111310592 | AY73: 71.9 | AZ73: -4350 | BD73: 53.7 | BE73: 1442 | BF73: 43 | BG73: 12355.44108 | BH73: 4188 | BI73: 6188 | BJ73: 15859 | BK73: -9671 | BL73: 4285 | BM73: 6160 | BR73: 759 | BS73: 857 | CK73: 21 | CM73: 8 | CN73: 93 | CO73: 1520 | CQ73: 1.221507353 | CR73: 68.28317679 | CS73: -4709.868421 | CW73: 54.14116338 | CX73: 1396.052632 | CY73: 42.58467121 | CZ73: 11965.78947 | DA73: 4279 | DB73: 6481 | DC73: 16120 | DD73: -9639 | DE73: 4355 | DF73: 6010 | DK73: 718 | DL73: 808 | ED73: 21 | EE73: 93 | EG73: 10 | EH73: 1520 | ET73: 4353 | EU73: 6592 | EV73: 16237 | EW73: -9645 | EX73: 4435 | EY73: 5840 | FD73: 617 | FE73: 905 | FW73: 21 | FX73: 93 | FZ73: 9150 | GA73: 9149 | GB73: 9059 | GC73: 9059 | GG73: -804 | GH73: 0 | GI73: 98 | GJ73: -2035 | GK73: 1568 | GM73: -1346 | GN73: 366 | GP73: -1455 | GQ73: 244 | GS73: 2400 | GU73: 1200 | GV73: 280 | GW73: 1620 | GX73: -70 | GY73: 9138 | GZ73: 4949 | HA73: 3263 | HB73: 0 | HC73: 9140 | HG73: 9140 | HH73: 5543 | HI73: 3745 | HJ73: 0 | HK73: 9140 | HY73: 707 | HZ73: -707
A74: 217 | B74: Kannus | C74: 5675 | E74: -0.04291845494 | F74: 30.8 | G74: -1461 | K74: 62.8 | L74: 40 | M74: 2 | N74: 6251.711427 | O74: 9934 | P74: 3480 | Q74: 33221 | R74: -29741 | S74: 17812 | T74: 12769 | Y74: 862 | Z74: 992 | AR74: 20,5 | AS74: 253 | AU74: 290 | AV74: 5675 | AX74: -0.4722617354 | AY74: 39.4 | AZ74: -1993 | BD74: 54.1 | BE74: 76 | BF74: 4 | BG74: 6415.620642 | BH74: 9685 | BI74: 3253 | BJ74: 33106 | BK74: -29853 | BL74: 17973 | BM74: 12834 | BR74: 943 | BS74: 1074 | CK74: 20,5 | CM74: 274 | CN74: 242 | CO74: 5675 | CQ74: 2.948148148 | CR74: 47.41686634 | CS74: -2663.788546 | CW74: 49.22744692 | CX74: 37.88546256 | CY74: 2.003958121 | CZ74: 6900.440529 | DA74: 9782 | DB74: 3286 | DC74: 33437 | DD74: -30151 | DE74: 18271 | DF74: 12834 | DK74: 943 | DL74: 1074 | ED74: 20,5 | EE74: 243 | EG74: 156 | EH74: 5675 | ET74: 9880 | EU74: 3319 | EV74: 33771 | EW74: -30452 | EX74: 18573 | EY74: 12834 | FD74: 943 | FE74: 1074 | FW74: 20,5 | FX74: 243 | FZ74: 20601 | GA74: 20761 | GB74: 20969 | GC74: 21179 | GG74: -1020 | GH74: 70 | GI74: 50 | GJ74: -1161 | GL74: 50 | GM74: -1250 | GO74: 50 | GP74: -4156 | GR74: 98 | GT74: 2694 | GV74: 3500 | GX74: 5100 | GY74: 13942 | GZ74: 2368 | HA74: 4163 | HB74: 477 | HC74: 14077 | HG74: 14302 | HH74: 1316 | HI74: 12626 | HJ74: 1314 | HK74: 17384 | HY74: 865 | HZ74: -865
A75: 218 | B75: Karijoki | C75: 1462 | E75: 0.2634408602 | F75: 23.8 | G75: -470 | K75: 65.7 | L75: 726 | M75: 43 | N75: 6094.957433 | O75: 1723 | P75: 1045 | Q75: 9629 | R75: -8584 | S75: 4097 | T75: 4530 | Y75: 38 | Z75: 209 | AR75: 21,5 | AS75: 39 | AU75: 267 | AV75: 1462 | AX75: 0.3065326633 | AY75: 25.9 | AZ75: -640 | BD75: 62.7 | BE75: 841 | BF75: 46 | BG75: 6618.890357 | BH75: 1758 | BI75: 1117 | BJ75: 9451 | BK75: -8334 | BL75: 4144 | BM75: 4437 | BR75: 221 | BS75: 228 | CK75: 22 | CM75: 212 | CN75: 38 | CO75: 1462 | CQ75: -0.3179487179 | CR75: 34.70771881 | CS75: -1320.109439 | CW75: 55.24424412 | CX75: 727.0861833 | CY75: 36.05566397 | CZ75: 7360.465116 | DA75: 1758 | DB75: 1082 | DC75: 9363 | DD75: -8281 | DE75: 4144 | DF75: 4397 | DK75: 234 | DL75: 228 | ED75: 22 | EE75: 38 | EG75: 294 | EH75: 1462 | ET75: 1754 | EU75: 1080 | EV75: 9357 | EW75: -8277 | EX75: 4144 | EY75: 4397 | FD75: 237 | FE75: 228 | FW75: 22 | FX75: 38 | FZ75: 7210 | GA75: 7002 | GB75: 6940 | GC75: 6938 | GG75: -804 | GH75: 300 | GI75: 40 | GJ75: -413 | GM75: -207 | GO75: 40 | GP75: -157 | GR75: 40 | GU75: 600 | GW75: 1095 | GY75: 2500 | GZ75: 907 | HA75: 343 | HB75: 260 | HC75: 2500 | HG75: 2500 | HH75: 1875 | HI75: 336 | HJ75: 165 | HK75: 2400 | HY75: 342 | HZ75: -342
A76: 224 | B76: Karkkila | C76: 9074 | E76: 0.8582384958 | F76: 78.6 | G76: -4238 | K76: 13.7 | L76: 149 | M76: 9 | N76: 6157.671382 | O76: 13904 | P76: 7393 | Q76: 53122 | R76: -45729 | S76: 32109 | T76: 15600 | Y76: 1319 | Z76: 2000 | AR76: 20,75 | AS76: 235,4 | AU76: 146 | AV76: 9074 | AX76: 0.3539635439 | AY76: 84 | AZ76: -4683 | BD76: 11.5 | BE76: 27 | BF76: 1 | BG76: 6610.593267 | BH76: 13668 | BI76: 7047 | BJ76: 52508 | BK76: -45461 | BL76: 32200 | BM76: 16399 | BR76: 2530 | BS76: 2000 | CK76: 20,75 | CM76: 196 | CN76: 230,1 | CO76: 9074 | CQ76: 0.6572706935 | CR76: 83.62007756 | CS76: -4762.61847 | CW76: 12.03620429 | CX76: 182.9402689 | CY76: 10.1477189 | CZ76: 6580.119021 | DA76: 13777 | DB76: 7098 | DC76: 52751 | DD76: -45653 | DE76: 33101 | DF76: 16462 | DK76: 3089 | DL76: 2570 | ED76: 20,75 | EE76: 230,1 | EG76: 165 | EH76: 9074 | ET76: 13915 | EU76: 7158 | EV76: 53524 | EW76: -46366 | EX76: 34208 | EY76: 16452 | FD76: 3443 | FE76: 2720 | FW76: 20,75 | FX76: 230,1 | FZ76: 35446 | GA76: 34740 | GB76: 35282 | GC76: 35917 | GD76: 1000 | GG76: -4450 | GH76: 709 | GJ76: -11175 | GK76: 901 | GM76: -4165 | GN76: 357 | GP76: -1105 | GQ76: 357 | GS76: 9500 | GT76: -7200 | GV76: 7080 | GX76: 5800 | GY76: 45140 | GZ76: 22902 | HA76: 13501 | HB76: 0 | HC76: 52294 | HG76: 53187 | HH76: 15140 | HI76: 26380 | HJ76: 0 | HK76: 63260 | HY76: 3101 | HZ76: -3101
A77: 226 | B77: Karstula | C77: 4343 | E77: 2.126436782 | F77: 49.5 | G77: -1427 | K77: 51.2 | L77: 2104 | M77: 97 | N77: 7907.888839 | O77: 12779 | P77: 9521 | Q77: 35229 | R77: -25708 | S77: 11500 | T77: 15500 | Y77: 1186 | Z77: 1649 | AR77: 19,5 | AS77: 276 | AU77: 204 | AV77: 4343 | AX77: 0.7326923077 | AY77: 48.1 | AZ77: -1667 | BD77: 49.8 | BE77: 1840 | BF77: 79 | BG77: 8548.21755 | BH77: 12272 | BI77: 9212 | BJ77: 35065 | BK77: -25853 | BL77: 12379 | BM77: 15000 | BR77: 1484 | BS77: 1765 | CK77: 20 | CM77: 211 | CN77: 260 | CO77: 4343 | CQ77: 1.52238806 | CR77: 51.28646846 | CS77: -3029.70297 | CW77: 46.10630048 | CX77: 713.7923095 | CY77: 25.68322135 | CZ77: 10144.14 | DA77: 11800 | DB77: 9100 | DC77: 34700 | DD77: -25600 | DE77: 12300 | DF77: 15100 | DK77: 1800 | DL77: 1800 | ED77: 20 | EE77: 260 | EG77: 225 | EH77: 4343 | ET77: 11400 | EU77: 8820 | EV77: 34700 | EW77: -25880 | EX77: 12500 | EY77: 15200 | FD77: 1820 | FE77: 1800 | FW77: 20 | FX77: 260 | FZ77: 19889 | GA77: 20205 | GB77: 20550 | GC77: 20950 | GG77: -2121 | GH77: 58 | GI77: 250 | GJ77: -2535 | GK77: 110 | GL77: 370 | GM77: -2670 | GN77: 0 | GO77: 130 | GP77: -1920 | GR77: 100 | GS77: 2000 | GT77: -1800 | GV77: -100 | GX77: 1995 | GY77: 14600 | GZ77: 1417 | HA77: 12519 | HB77: 1882 | HC77: 14683 | HG77: 14483 | HH77: 600 | HI77: 14403 | HJ77: 850 | HK77: 14483 | HY77: 291 | HZ77: -291
A78: 230 | B78: Karvia | C78: 2523 | E78: 37.31818182 | F78: 11.6 | G78: -163 | K78: 88.5 | L78: 142 | M78: 8 | N78: 6289.342055 | O78: 4158 | P78: 1387 | Q78: 16077 | R78: -14690 | S78: 6156 | T78: 8645 | Y78: 550 | Z78: 837 | AR78: 19,75 | AS78: 88 | AU78: 118 | AV78: 2523 | AX78: 42.9375 | AY78: 15.4 | AZ78: -245 | BD78: 84.8 | BE78: 446 | BF78: 25 | BG78: 6479.764244 | BH78: 4096 | BI78: 1348 | BJ78: 16075 | BK78: -14727 | BL78: 6361 | BM78: 8468 | BR78: 517 | BS78: 832 | CK78: 19,75 | CM78: 77 | CN78: 86 | CO78: 2523 | CQ78: 326.6666667 | CR78: 9.240015024 | CS78: 78.08164883 | CW78: 90.03666302 | CX78: 377.7249306 | CY78: 21.94051974 | CZ78: 6283.78914 | DA78: 4097 | DB78: 1344 | DC78: 15976 | DD78: -14632 | DE78: 6344 | DF78: 8272 | DK78: 390 | DL78: 832 | ED78: 19,75 | EE78: 86 | EG78: 95 | EH78: 2523 | ET78: 4095 | EU78: 1348 | EV78: 15969 | EW78: -14621 | EX78: 6495 | EY78: 8072 | FD78: 342 | FE78: 740 | FW78: 19,75 | FX78: 86 | FZ78: 10523 | GA78: 10532 | GB78: 10464 | GC78: 10459 | GG78: -531 | GJ78: -1272 | GK78: 120 | GM78: -837 | GP78: -697 | GT78: 400 | GV78: 250 | GX78: -150 | GY78: 0 | GZ78: 0 | HA78: 400 | HB78: 246 | HC78: 335 | HG78: 782 | HH78: 0 | HI78: 500 | HJ78: 246 | HK78: 1138 | HY78: 17 | HZ78: -17
A79: 231 | B79: Kaskinen | C79: 1350 | E79: -18.44067797 | F79: 53.9 | G79: -2526 | K79: 76.9 | L79: 126 | M79: 5 | N79: 8408.831909 | AR79: 21 | AU79: 319 | AV79: 1350 | AX79: 0.2388059701 | AY79: 44.8 | AZ79: -2645 | BD79: 76.1 | BE79: 46 | BF79: 2 | BG79: 7625.180897 | CM79: 263 | CO79: 1350 | CQ79: 27 | CR79: 38.87435736 | CS79: -2290.37037 | CW79: 77.04651529 | CX79: 434.8148148 | CY79: 19.82007401 | CZ79: 8007.407407 | EG79: 8 | EH79: 1350 | GE79: 800 | GJ79: 0 | GZ79: 3068 | HA79: 0 | HB79: 0 | HH79: 3068 | HI79: 0 | HJ79: 0 | HY79: 0 | HZ79: 0
A80: 232 | B80: Kauhajoki | C80: 14081 | E80: 0.2721186035 | F80: 49.2 | G80: -2983 | K80: 39.2 | L80: 524 | M80: 20 | N80: 9370.657459 | O80: 24317 | P80: 45238 | Q80: 124294 | R80: -79240 | S80: 44785 | T80: 35738 | Y80: 1367 | Z80: 4190 | AR80: 22 | AS80: 485 | AU80: 284 | AV80: 14081 | AX80: 0.1763355593 | AY80: 54 | AZ80: -3475 | BD80: 33.5 | BE80: 633 | BF80: 24 | BG80: 9637.7497 | BH80: 24035 | BI80: 45634 | BJ80: 125371 | BK80: -79921 | BL80: 45282 | BM80: 36394 | BR80: 9260 | BS80: 4540 | CK80: 22 | CM80: 252 | CN80: 481 | CO80: 14081 | CQ80: 1.331560284 | CR80: 57.96963871 | CS80: -3874.085647 | CW80: 31.79249262 | CX80: 736.0272708 | CY80: 26.95611897 | CZ80: 9966.195583 | DA80: 24275 | DB80: 47841 | DC80: 128709 | DD80: -80886 | DE80: 47424 | DF80: 36758 | DK80: 3050 | DL80: 4600 | ED80: 23 | EE80: 478 | EG80: 112 | EH80: 14081 | ET80: 24518 | EU80: 48683 | EV80: 130119 | EW80: -81616 | EX80: 48372 | EY80: 37310 | FD80: 3741 | FE80: 4750 | FW80: 23 | FX80: 475 | FZ80: 93259 | GA80: 94827 | GB80: 97198 | GC80: 99141 | GD80: 1200 | GE80: 1500 | GG80: -7626 | GJ80: -3731 | GM80: -7219 | GP80: -5355 | GS80: 10600 | GT80: 600 | GU80: 8000 | GV80: 3150 | GW80: 15600 | GX80: -3950 | GY80: 61822 | GZ80: 32579 | HA80: 12400 | HB80: 1778 | HC80: 56245 | HG80: 60366 | HH80: 48259 | HI80: 12414 | HJ80: 1450 | HK80: 63286 | HY80: 3128 | HZ80: -3128
A81: 233 | B81: Kauhava | C81: 17065 | E81: 1.466420343 | F81: 31.2 | G81: -856 | K81: 61.1 | L81: 835 | M81: 48 | N81: 6338.777874 | O81: 32638 | P81: 13049 | Q81: 111534 | R81: -98485 | S81: 56280 | T81: 44314 | Y81: 1679 | Z81: 3756 | AR81: 21,75 | AS81: 613 | AU81: 92 | AV81: 17065 | AX81: 0.7177100303 | AY81: 31.1 | AZ81: -935 | BD81: 61 | BE81: 780 | BF81: 43 | BG81: 6555.749331 | BH81: 34872 | BI81: 13304 | BJ81: 111566 | BK81: -98262 | BL81: 56992 | BM81: 44774 | BR81: 2885 | BS81: 4343 | CK81: 21,75 | CM81: 151 | CN81: 602 | CO81: 17065 | CQ81: 0.77071949 | CR81: 35.95435004 | CS81: -1266.100205 | CW81: 56.23302538 | CX81: 793.8470554 | CY81: 41.09996841 | CZ81: 7049.98535 | DA81: 35001 | DB81: 13396 | DC81: 112240 | DD81: -98844 | DE81: 57790 | DF81: 45177 | DK81: 3183 | DL81: 5000 | ED81: 21,75 | EE81: 604 | EG81: 215 | EH81: 17065 | ET81: 35280 | EU81: 13528 | EV81: 113277 | EW81: -99749 | EX81: 59003 | EY81: 45629 | FD81: 3663 | FE81: 5000 | FW81: 21,75 | FX81: 600 | FZ81: 71756 | GA81: 69836 | GB81: 70231 | GC81: 70934 | GG81: -13360 | GI81: 750 | GJ81: -11089 | GK81: 40 | GL81: 650 | GM81: -8665 | GN81: 75 | GO81: 100 | GP81: -6355 | GR81: 100 | GS81: 3500 | GT81: -81 | GU81: 5000 | GV81: -248 | GW81: 10000 | GX81: 210 | GY81: 36371 | GZ81: 19398 | HA81: 4057 | HB81: 4335 | HC81: 42557 | HG81: 47265 | HH81: 26503 | HI81: 4017 | HJ81: 2896 | HK81: 49665 | HY81: 4056 | HZ81: -4056
A82: 235 | B82: Kauniainen | C82: 9101 | F82: 11.2 | G82: 165 | K82: 92 | L82: 609 | M82: 28 | N82: 7876.121267 | O82: 35446 | P82: 11876 | Q82: 66959 | R82: -55083 | S82: 53000 | T82: 2000 | Y82: 4117 | Z82: 6450 | AR82: 16,5 | AS82: 692 | AU82: 7 | AV82: 9101 | AY82: 12.8 | AZ82: -112 | BD82: 91.1 | BE82: 536 | BF82: 24 | BG82: 8214.478114 | BH82: 34781 | BI82: 16667 | BJ82: 68214 | BK82: -51547 | BL82: 56000 | BM82: -513 | BR82: 9141 | BS82: 6600 | CK82: 16,5 | CM82: 6 | CN82: 692 | CO82: 9101 | CR82: 13.49647391 | CS82: -141.4130315 | CW82: 90.54849492 | CX82: 618.9429733 | CY82: 28.75386337 | CZ82: 7856.82892 | DA82: 35175 | DB82: 18503 | DC82: 68638 | DD82: -50135 | DE82: 57000 | DF82: -1500 | DK82: 10545 | DL82: 6700 | ED82: 16,5 | EE82: 692 | EG82: 24 | EH82: 9101 | ET82: 35646 | EU82: 11241 | EV82: 69566 | EW82: -58325 | EX82: 59000 | EY82: -2100 | FD82: 3556 | FE82: 6800 | FW82: 16,5 | FX82: 692 | FZ82: 21874 | GA82: 23912 | GB82: 23859 | GC82: 24176 | GG82: -14487 | GI82: 2000 | GJ82: -13786 | GL82: 6650 | GM82: -14085 | GO82: 8358 | GP82: -6767 | GR82: 1000 | GV82: 1000 | GY82: 7500 | GZ82: 0 | HA82: 0 | HB82: 6034 | HC82: 5000 | HG82: 1500 | HH82: 0 | HI82: 1000 | HJ82: 6034 | HK82: 3500 | HY82: 0 | HZ82: 0
A83: 236 | B83: Kaustinen | C83: 4288 | E83: 1.178440607 | F83: 60.4 | G83: -3334 | K83: 34.1 | L83: 748 | M83: 35 | N83: 7833.411215 | O83: 12013 | P83: 10350 | Q83: 32588 | R83: -22238 | S83: 13910 | T83: 9415 | Y83: 1266 | Z83: 1262 | AR83: 21 | AS83: 225 | AU83: 63 | AV83: 4288 | AX83: -0.296692112 | AY83: 62.6 | AZ83: -3924 | BD83: 29 | BE83: 172 | BF83: 8 | BG83: 8083.974808 | BH83: 11474 | BI83: 9453 | BJ83: 31711 | BK83: -22258 | BL83: 14980 | BM83: 9001 | BR83: 1382 | BS83: 1301 | CK83: 21,5 | CM83: 309 | CN83: 222 | CO83: 4288 | CQ83: 1.008417508 | CR83: 66.65297092 | CS83: -4388.059701 | CW83: 26.99173722 | CX83: 237.4067164 | CY83: 10.43618695 | CZ83: 8303.171642 | DA83: 11474 | DB83: 9689 | DC83: 31843 | DD83: -22154 | DE83: 15354 | DF83: 8820 | DK83: 1666 | DL83: 1301 | ED83: 21,5 | EE83: 222 | EG83: 118 | EH83: 4288 | ET83: 11588 | EU83: 9931 | EV83: 32092 | EW83: -22161 | EX83: 15968 | EY83: 8820 | FD83: 2266 | FE83: 1301 | FW83: 21,5 | FX83: 222 | FZ83: 16814 | GA83: 16463 | GB83: 16710 | GC83: 16877 | GD83: 650 | GF83: 555 | GG83: -7736 | GH83: 679 | GI83: 400 | GJ83: -8630 | GK83: 250 | GL83: 239 | GM83: -1598 | GO83: 130 | GP83: -1667 | GR83: 177 | GS83: 2000 | GV83: 600 | GW83: 5000 | GX83: -600 | GY83: 22931 | GZ83: 14038 | HA83: 1572 | HB83: 0 | HC83: 29940 | HG83: 29712 | HH83: 16031 | HI83: 1570 | HJ83: 0 | HK83: 28934 | HY83: 1503 | HZ83: -1503
A84: 239 | B84: Keitele | C84: 2427 | E84: -0.1775700935 | F84: 33 | G84: -1669 | K84: 60.7 | L84: 61 | M84: 3 | N84: 6930.66561 | O84: 6669 | P84: 3093 | Q84: 17483 | R84: -14390 | S84: 7048 | T84: 7659 | Y84: 495 | Z84: 471 | AR84: 19,5 | AS84: 124 | AU84: 294 | AV84: 2427 | AX84: 1.107142857 | AY84: 40 | AZ84: -1935 | BD84: 53.4 | BE84: 161 | BF84: 8 | BG84: 7128.029079 | BH84: 6591 | BI84: 3225 | BJ84: 17148 | BK84: -13923 | BL84: 7089 | BM84: 7243 | BR84: 568 | BS84: 551 | CK84: 19,5 | CM84: 240 | CN84: 124 | CO84: 2427 | CQ84: 2.826923077 | CR84: 39.00551858 | CS84: -2114.544705 | CW84: 52.39448333 | CX84: 48.6196951 | CY84: 2.318083961 | CZ84: 7655.541821 | DA84: 6657 | DB84: 3289 | DC84: 17394 | DD84: -14105 | DE84: 7190 | DF84: 7300 | DK84: 564 | DL84: 490 | ED84: 19,5 | EE84: 124 | EG84: 220 | EH84: 2427 | ET84: 6723 | EU84: 3355 | EV84: 17644 | EW84: -14289 | EX84: 7280 | EY84: 7420 | FD84: 592 | FE84: 500 | FW84: 19,5 | FX84: 124 | FZ84: 8665 | GA84: 8454 | GB84: 8623 | GC84: 8795 | GG84: -1700 | GH84: 71 | GJ84: -681 | GK84: 35 | GM84: -485 | GP84: -270 | GT84: 1136 | GU84: 870 | GV84: 69 | GX84: 600 | GY84: 5436 | GZ84: 387 | HA84: 3310 | HB84: 699 | HC84: 5956 | HG84: 5956 | HH84: 1127 | HI84: 3979 | HJ84: 503 | HK84: 5956 | HY84: 61 | HZ84: -61
A85: 240 | B85: Kemi | C85: 22120 | E85: 0.593695637 | F85: 65.2 | G85: -3892 | K85: 42.1 | L85: 95 | M85: 4 | N85: 8672.306799 | O85: 69519 | P85: 41959 | Q85: 169875 | R85: -128164 | S85: 85000 | T85: 45057 | Y85: 804 | Z85: 3912 | AR85: 20,75 | AS85: 1455 | AU85: 221 | AV85: 22120 | AX85: 0.6409967725 | AY85: 63.9 | AZ85: -3841 | BD85: 43.2 | BE85: 76 | BF85: 4 | BG85: 7054.1852 | BI85: 43414 | BJ85: 170254 | BK85: -126840 | BL85: 87230 | BM85: 43258 | BR85: 2994 | BS85: 4000 | CK85: 21,25 | CM85: 99 | CN85: 1435 | CO85: 22120 | CQ85: 0.732717784 | CR85: 60.22418435 | CS85: -3843.80651 | CW85: 44.59642682 | CX85: 133.8155515 | CY85: 6.138496852 | CZ85: 7956.781193 | DD85: -128743 | DE85: 91600 | DF85: 43907 | DK85: 5720 | DL85: 4000 | ED85: 21,25 | EE85: 1420 | EG85: 153 | EH85: 22120 | EW85: -130674 | EX85: 91500 | EY85: 44565 | FD85: 5169 | FE85: 4000 | FW85: 21,25 | FX85: 1405 | FZ85: 67869 | GD85: 900 | GG85: -4535 | GH85: 309 | GI85: 150 | GJ85: -4392 | GK85: 365 | GL85: 1000 | GM85: -3533 | GN85: 100 | GO85: 400 | GP85: -4151 | GQ85: 144 | GR85: 500 | GS85: 8000 | GT85: 1900 | GU85: 8000 | GV85: 474 | GW85: 13000 | GX85: -3575 | GY85: 80901 | GZ85: 52812 | HA85: 28147 | HB85: 19667 | HC85: 81619 | HG85: 79144 | HH85: 53359 | HI85: 26070 | HJ85: 18876 | HK85: 77663 | HY85: 9559 | HZ85: -9559
A86: 320 | B86: Kemijärvi | C86: 7983 | E86: 0.9083602304 | F86: 52.6 | G86: -3163 | K86: 52.7 | L86: 500 | M86: 20 | N86: 22477.99879 | O86: 36406 | P86: 12707 | Q86: 69680 | R86: -56973 | S86: 27760 | T86: 30065 | Y86: 1551 | Z86: 3035 | AR86: 20,5 | AS86: 649 | AU86: 95 | AV86: 7983 | AX86: 0.4551049964 | AY86: 53.7 | AZ86: -3557 | BD86: 50.8 | BE86: 389 | BF86: 15 | BG86: 9747.806747 | BH86: 30946 | BI86: 11920 | BJ86: 62986 | BK86: -51066 | BL86: 28044 | BM86: 26172 | BR86: 3832 | BS86: 3173 | CK86: 20,5 | CM86: 98 | CN86: 572,5 | CO86: 7983 | CQ86: 0.6012962963 | CR86: 51.42840859 | CS86: -3730.176625 | CW86: 51.36714618 | CX86: 299.636728 | CY86: 11.16313562 | CZ86: 9797.194037 | DD86: -49628 | DE86: 28080 | DF86: 25700 | DK86: 4807 | DL86: 3255 | ED86: 20,5 | EE86: 561 | EG86: 114 | EH86: 7983 | EW86: -49014 | EX86: 28468 | EY86: 24900 | FD86: 5393 | FE86: 3350 | FW86: 20,5 | FX86: 550 | FZ86: 22603 | GA86: 22676 | GG86: -6124 | GJ86: -7895 | GK86: 1131 | GM86: -5106 | GN86: 139 | GP86: -7962 | GQ86: 310 | GS86: 4500 | GU86: 5500 | GW86: 5284 | GY86: 32673 | GZ86: 22727 | HA86: 4852 | HB86: 1010 | HC86: 34871 | HG86: 37187 | HH86: 23487 | HI86: 5126 | HJ86: 1340 | HK86: 37255 | HY86: 4403 | HZ86: -4403
A87: 241 | B87: Keminmaa | C87: 8565 | E87: 0.6128839845 | F87: 32.2 | G87: -1361 | K87: 65.3 | L87: 320 | M87: 18 | N87: 6658.189454 | O87: 26006 | P87: 5640 | Q87: 53437 | R87: -47797 | S87: 33938 | T87: 13254 | Y87: -605 | Z87: 1940 | AR87: 21 | AS87: 543,6 | AU87: 226 | AV87: 8565 | AX87: 0.07558945908 | AY87: 36.3 | AZ87: -1893 | BD87: 60.5 | BE87: 48 | BF87: 3 | BG87: 6932.090856 | BH87: 4902 | BI87: 5502 | BJ87: 52720 | BK87: -47218 | BL87: 34766 | BM87: 12380 | BR87: -55 | BS87: 2028 | CK87: 21,25 | CM87: 245 | CN87: 522 | CO87: 8565 | CQ87: -0.15594682 | CR87: 42.47592745 | CS87: -2246.234676 | CW87: 53.46267141 | CX87: 190.1926445 | CY87: 9.966893523 | CZ87: 6965.090485 | DA87: 4840 | DB87: 5881 | DC87: 51953 | DD87: -46072 | DE87: 35636 | DF87: 12508 | DK87: 2019 | DL87: 1940 | ED87: 21,25 | EE87: 513,5 | EG87: 288 | EH87: 8565 | ET87: 4812 | EU87: 5947 | EV87: 51662 | EW87: -45715 | EX87: 36409 | EY87: 12508 | FD87: 3110 | FE87: 1752 | FW87: 21,25 | FX87: 512,5 | FZ87: 21703 | GA87: 22278 | GB87: 21897 | GC87: 21782 | GG87: -1509 | GH87: 335 | GI87: 100 | GJ87: -1627 | GK87: 330 | GL87: 100 | GM87: -1485 | GN87: 382 | GO87: 100 | GP87: -892 | GR87: 100 | GS87: 2000 | GU87: 4186 | GW87: 3474 | GX87: 3200 | GY87: 19126 | GZ87: 8306 | HA87: 2529 | HB87: 5008 | HC87: 20657 | HG87: 21898 | HH87: 10901 | HI87: 5666 | HJ87: 4925 | HK87: 22862 | HY87: 2686 | HZ87: -2686
A88: 322 | B88: Kemiönsaari | C88: 7012 | E88: 1.28125 | F88: 49.2 | G88: -2245 | K88: 56.5 | L88: 809 | M88: 42 | N88: 6858.775965 | O88: 25270 | P88: 15070 | Q88: 55944 | R88: -40874 | S88: 20940 | T88: 22100 | Y88: 1766 | Z88: 2700 | AR88: 19,75 | AS88: 484 | AU88: 16 | AV88: 7012 | AX88: 1.573463573 | AY88: 44.9 | AZ88: -2218 | BD88: 59.4 | BE88: 513 | BF88: 26 | BG88: 7311.378092 | BH88: 25600 | BI88: 14987 | BJ88: 56213 | BK88: -41226 | BL88: 21640 | BM88: 22000 | BR88: 2043 | BS88: 3076 | CK88: 19,75 | CM88: 22 | CN88: 486 | CO88: 7012 | CQ88: 1.449144914 | CR88: 45.1100644 | CS88: -1937.393041 | CW88: 59.48810888 | CX88: 976.4689104 | CY88: 46.30723193 | CZ88: 7696.662864 | DA88: 25935 | DB88: 15072 | DC88: 56780 | DD88: -41708 | DE88: 21740 | DF88: 21699 | DK88: 1357 | DL88: 3291 | ED88: 19,75 | EE88: 480 | EG88: 26 | EH88: 7012 | ET88: 26385 | EU88: 15298 | EV88: 57681 | EW88: -42383 | EX88: 21840 | EY88: 21139 | FD88: 206 | FE88: 3482 | FW88: 19,75 | FX88: 480 | FZ88: 21290 | GA88: 21189 | GB88: 21509 | GC88: 21883 | GG88: -6678 | GH88: 1215 | GI88: 270 | GJ88: -9647 | GK88: 440 | GL88: 402 | GM88: -5410 | GN88: 50 | GO88: 205 | GP88: -6023 | GQ88: 50 | GR88: 237 | GW88: 4500 | GY88: 20279 | GZ88: 14687 | HA88: 1950 | HB88: 1 | HC88: 23813 | HG88: 27665 | HH88: 14149 | HI88: 1997 | HJ88: 1 | HK88: 33558 | HY88: 3797 | HZ88: -3797
A89: 244 | B89: Kempele | C89: 16605 | E89: 1.468567503 | F89: 37.1 | G89: -1226 | K89: 65.2 | L89: 329 | M89: 22 | N89: 5058.39822 | O89: 42286 | P89: 10259 | Q89: 85351 | R89: -75092 | S89: 61050 | T89: 20000 | Y89: 4958 | Z89: 4958 | AR89: 20,5 | AS89: 1007 | AU89: 165 | AV89: 16605 | AX89: 1.130343167 | AY89: 41.9 | AZ89: -1637 | BD89: 61 | BE89: 185 | BF89: 11 | BG89: 5928.584508 | BH89: 42726 | BI89: 10321 | BJ89: 87049 | BK89: -77000 | BL89: 62380 | BM89: 20900 | BR89: 5452 | BS89: 5420 | CK89: 20,5 | CM89: 122 | CN89: 1007 | CO89: 16605 | CQ89: 1.121106513 | CR89: 45.25765246 | CS89: -1903.643481 | CW89: 58.25936706 | CX89: 309.3646492 | CY89: 19.12216738 | CZ89: 5905.088829 | DA89: 43495 | DB89: 10527 | DC89: 88616 | DD89: -78366 | DE89: 63628 | DF89: 21318 | DK89: 5657 | DL89: 5529 | ED89: 20,5 | EE89: 1007 | EG89: 162 | EH89: 16605 | ET89: 44278 | EU89: 10738 | EV89: 90211 | EW89: -79756 | EX89: 64900 | EY89: 21744 | FD89: 5892 | FE89: 5639 | FW89: 20,5 | FX89: 1007 | FZ89: 32363 | GA89: 33466 | GB89: 34069 | GC89: 34682 | GG89: -6846 | GI89: 2063 | GJ89: -11596 | GK89: 86 | GL89: 1830 | GM89: -16810 | GN89: 10 | GO89: 1867 | GP89: -15757 | GR89: 1904 | GS89: 3800 | GT89: 2980 | GU89: 13700 | GV89: -4600 | GW89: 8700 | GY89: 33140 | GZ89: 13120 | HA89: 7248 | HB89: 0 | HC89: 38870 | HG89: 49760 | HH89: 27050 | HI89: 4620 | HJ89: 0 | HK89: 59420 | HY89: 2648 | HZ89: -2648
A90: 245 | B90: Kerava | C90: 34913 | E90: 1.317558577 | F90: 30.6 | G90: -1420 | K90: 78.3 | L90: 81 | M90: 5 | N90: 5208.399664 | O90: 77373 | P90: 67219 | Q90: 227182 | R90: -159963 | S90: 149986 | T90: 18500 | Y90: 12503 | Z90: 10600 | AR90: 19 | AS90: 1750 | AU90: 20 | AV90: 34913 | AX90: 1.289396976 | AY90: 35.4 | AZ90: -1662 | BD90: 76.3 | BE90: 94 | BF90: 6 | BG90: 6221.999942 | BH90: 78323 | BI90: 67800 | BJ90: 228829 | BK90: -161029 | BL90: 152163 | BM90: 18303 | BR90: 13427 | BS90: 11700 | CK90: 19 | CM90: 40 | CN90: 1750 | CO90: 34913 | CQ90: 1.761376784 | CR90: 33.18294553 | CS90: -1643.313379 | CW90: 77.28464992 | CX90: 118.0076189 | CY90: 7.046100936 | CZ90: 6112.995159 | DA90: 79844 | DB90: 69156 | DC90: 233272 | DD90: -164116 | DE90: 155850 | DF90: 18511 | DK90: 14166 | DL90: 13500 | ED90: 19,25 | EE90: 1750 | EG90: 57 | EH90: 34913 | ET90: 81441 | EU90: 70540 | EV90: 237938 | EW90: -167398 | EX90: 159491 | EY90: 18718 | FD90: 14641 | FE90: 14500 | FW90: 19,25 | FX90: 1750 | FZ90: 96186 | GA90: 96035 | GB90: 97900 | GC90: 99858 | GG90: -18689 | GH90: 0 | GI90: 4500 | GJ90: -19323 | GK90: 0 | GL90: 4500 | GM90: -26733 | GO90: 4500 | GP90: -24573 | GR90: 4500 | GT90: 8700 | GU90: 10000 | GV90: 8700 | GW90: 16000 | GX90: -8000 | GY90: 51674 | GZ90: 13458 | HA90: 26691 | HB90: 6552 | HC90: 56470 | HG90: 67937 | HH90: 20307 | HI90: 26281 | HJ90: 5991 | HK90: 76769 | HY90: 16684 | HZ90: -16684
A91: 249 | B91: Keuruu | C91: 10310 | E91: 1.275751759 | F91: 41.7 | G91: -2549 | K91: 58.7 | L91: 149 | M91: 7 | N91: 6933.137885 | O91: 34242 | P91: 19244 | Q91: 78540 | R91: -59296 | S91: 33770 | T91: 27643 | Y91: 2219 | Z91: 3131 | AR91: 20,5 | AS91: 717 | AU91: 97 | AV91: 10310 | AX91: 0.7578279826 | AY91: 53.8 | AZ91: -3295 | BD91: 51 | BE91: 157 | BF91: 6 | BG91: 9132.723112 | BH91: 34507 | BI91: 19037 | BJ91: 78330 | BK91: -59293 | BL91: 34598 | BM91: 27134 | BR91: 2600 | BS91: 3409 | CK91: 20,5 | CM91: 145 | CN91: 727 | CO91: 10310 | CQ91: 1.864510847 | CR91: 54.99389376 | CS91: -3701.163919 | CW91: 49.69311103 | CX91: 132.2987391 | CY91: 5.713990589 | CZ91: 8451.018429 | DA91: 34700 | DB91: 19192 | DC91: 78712 | DD91: -59520 | DE91: 34600 | DF91: 27000 | DK91: 2460 | DL91: 3500 | ED91: 20,5 | EE91: 720 | EG91: 78 | EH91: 10310 | ET91: 34800 | EU91: 19642 | EV91: 78562 | EW91: -58920 | EX91: 35400 | EY91: 27500 | FD91: 3810 | FE91: 3600 | FW91: 20,5 | FX91: 720 | FZ91: 33581 | GA91: 33088 | GB91: 33163 | GC91: 37200 | GG91: -11943 | GH91: 1245 | GI91: 300 | GJ91: -19547 | GK91: 1527 | GL91: 280 | GM91: -14398 | GN91: 70 | GO91: 250 | GP91: -5885 | GQ91: 25 | GR91: 250 | GT91: 1600 | GU91: 3247 | GV91: 8000 | GW91: 981 | GX91: 4500 | GY91: 35000 | GZ91: 10666 | HA91: 9224 | HB91: 0 | HC91: 50000 | HG91: 61500 | HH91: 10083 | HI91: 21853 | HJ91: 0 | HK91: 63200 | HY91: 2835 | HZ91: -2835
A92: 250 | B92: Kihniö | C92: 2111 | E92: 1.48189415 | F92: 27.9 | G92: -630 | K92: 73.3 | L92: 866 | M92: 47 | N92: 6533.272143 | O92: 7005 | P92: 3708 | Q92: 16046 | R92: -12338 | S92: 5791 | T92: 5872 | Y92: -704 | Z92: 864 | AR92: 20,5 | AS92: 164 | AU92: 213 | AV92: 2111 | AX92: 1.742971888 | AY92: 32.3 | AZ92: -1278 | BD92: 68.8 | BE92: 476 | BF92: 24 | BG92: 7232.883093 | BH92: 7174 | BI92: 3906 | BJ92: 16871 | BK92: -12965 | BL92: 6250 | BM92: 6057 | BR92: -783 | BS92: 808 | CK92: 21,5 | CM92: 130 | CN92: 164 | CO92: 2111 | CQ92: -1.102505695 | CR92: 46.78722036 | CS92: -2606.347703 | CW92: 57.24809589 | CX92: 241.5916627 | CY92: 10.58331912 | CZ92: 8332.070109 | DB92: 3909 | DC92: 16897 | DD92: -12988 | DE92: 6250 | DF92: 6057 | DK92: -805 | DL92: 808 | ED92: 21,5 | EE92: 164 | EG92: 302 | EH92: 2111 | EU92: 3909 | EV92: 16905 | EW92: -12996 | EX92: 6405 | EY92: 6057 | FD92: -658 | FE92: 806 | FW92: 21,5 | FX92: 164 | FZ92: 6275 | GA92: 6937 | GG92: -1074 | GJ92: -1361 | GM92: -100 | GU92: 1300 | GW92: 2500 | GY92: 6453 | GZ92: 1229 | HA92: 215 | HB92: 129 | HC92: 8711 | HG92: 9611 | HH92: 4243 | HI92: 439 | HJ92: 144 | HK92: 10311 | HY92: 226 | HZ92: -226
A93: 256 | B93: Kinnula | C93: 1769 | E93: 5.1640625 | F93: 57.1 | G93: -1963 | K93: 60 | L93: 561 | M93: 23 | N93: 8087.555066 | O93: 5866 | P93: 3838 | Q93: 15086 | R93: -11248 | S93: 4417 | T93: 7697 | Y93: 866 | Z93: 803 | AR93: 20,5 | AS93: 88 | AU93: 94 | AV93: 1769 | AX93: 1.261363636 | AY93: 59.6 | AZ93: -2621 | BD93: 58.5 | BE93: 12 | BF93: 1 | BG93: 9079.365079 | BH93: 6001 | BI93: 4057 | BJ93: 14980 | BK93: -10923 | BL93: 4417 | BM93: 7279 | BR93: 773 | BS93: 724 | CK93: 20,5 | CM93: 221 | CN93: 88 | CO93: 1769 | CQ93: 27.525 | CR93: 58.02257954 | CS93: -2556.811758 | CW93: 58.71448034 | CX93: 89.31599774 | CY93: 3.873589468 | CZ93: 8416.054268 | DA93: 6001 | DB93: 4057 | DC93: 14980 | DD93: -10923 | DE93: 4417 | DF93: 7137 | DK93: 631 | DL93: 723 | ED93: 21 | EE93: 88 | EG93: 31 | EH93: 1769 | ET93: 6001 | EU93: 4057 | EV93: 14981 | EW93: -10924 | EX93: 4417 | EY93: 6926 | FD93: 419 | FE93: 718 | FW93: 21 | FX93: 88 | FZ93: 6443 | GA93: 6172 | GB93: 6178 | GC93: 6178 | GG93: -545 | GJ93: -1030 | GK93: 500 | GM93: -925 | GN93: 400 | GP93: -525 | GT93: 710 | GV93: 470 | GX93: 295 | GY93: 6500 | GZ93: 25 | HA93: 5795 | HB93: 0 | HC93: 7000 | HG93: 7400 | HH93: 0 | HI93: 6500 | HJ93: 100 | HK93: 7400 | HY93: 115 | HZ93: -115
A94: 257 | B94: Kirkkonummi | C94: 37899 | E94: 3.006215908 | F94: 53.9 | G94: -2227 | K94: 45.1 | L94: 565 | M94: 34 | N94: 5594.670897 | O94: 95367 | P94: 29527 | Q94: 219552 | R94: -190025 | S94: 176759 | T94: 21948 | Y94: 8277 | Z94: 16000 | AR94: 19,5 | AS94: 1877 | AU94: 21 | AV94: 37899 | AX94: 0.6292016807 | AY94: 57.1 | AZ94: -2448 | BD94: 41.8 | BE94: 547 | BF94: 32 | BG94: 6307.10464 | BH94: 97340 | BI94: 29794 | BJ94: 223182 | BK94: -193388 | BL94: 181351 | BM94: 21500 | BR94: 8042 | BS94: 14500 | CK94: 19,5 | CM94: 171 | CN94: 1896 | CO94: 37899 | CQ94: 0.8312928956 | CR94: 55.95983336 | CS94: -2610.543814 | CW94: 39.59129239 | CX94: 530.8055622 | CY94: 30.11539298 | CZ94: 6433.388744 | DA94: 99639 | DB94: 30338 | DC94: 231924 | DD94: -201586 | DE94: 186339 | DF94: 22000 | DK94: 11166 | DL94: 15000 | ED94: 19,5 | EE94: 1928 | EG94: 210 | EH94: 37899 | ET94: 101169 | EU94: 30911 | EV94: 236936 | EW94: -206025 | EX94: 192847 | EY94: 22000 | FD94: 11166 | FE94: 16000 | FW94: 19,5 | FX94: 1969 | FZ94: 90509 | GA94: 89810 | GB94: 96629 | GC94: 99587 | GG94: -22532 | GH94: 1190 | GI94: 2500 | GJ94: -22105 | GK94: 352 | GL94: 2200 | GM94: -33946 | GN94: 1321 | GO94: 1600 | GP94: -58251 | GQ94: 1246 | GR94: 1600 | GU94: 12500 | GV94: -229 | GW94: 10000 | GX94: -204 | GY94: 90344 | GZ94: 75628 | HA94: 9221 | HB94: 1450 | HC94: 98168 | HG94: 116653 | HH94: 80342 | HI94: 8791 | HJ94: 1450 | HK94: 156092 | HY94: 7251 | HZ94: -7251
A95: 260 | B95: Kitee | C95: 11197 | E95: -0.09828009828 | F95: 33.6 | G95: -2359 | K95: 24.5 | L95: 498 | M95: 16 | N95: 11695.29116 | O95: 32859 | P95: 11539 | Q95: 77331 | R95: -65792 | S95: 34867 | T95: 35636 | Y95: 4443 | Z95: 1995 | AR95: 22,5 | AS95: 697 | AU95: 297 | AV95: 11197 | AX95: 0.8402465039 | AY95: 35.7 | AZ95: -2463 | BD95: 29.5 | BE95: 498 | BF95: 19 | BG95: 9464.301552 | BH95: 33014 | BI95: 11421 | BJ95: 76980 | BK95: -65559 | BL95: 35200 | BM95: 35300 | BR95: 5024 | BS95: 2750 | CK95: 22,5 | CM95: 52 | CN95: 697 | CO95: 11197 | CQ95: 0.625464684 | CR95: 44.0715409 | CS95: -2652.585514 | CW95: 33.7841614 | CX95: 156.2918639 | CY95: 7.261906115 | CZ95: 7855.586318 | DA95: 32396 | DB95: 11606 | DC95: 75731 | DD95: -64125 | DE95: 35200 | DF95: 34700 | DK95: 5668 | DL95: 3080 | ED95: 22,5 | EE95: 697 | EG95: 164 | EH95: 11197 | ET95: 32180 | EU95: 11891 | EV95: 75352 | EW95: -63461 | EX95: 35200 | EY95: 34700 | FD95: 6132 | FE95: 2880 | FW95: 22,5 | FX95: 690 | FZ95: 36382 | GA95: 35359 | GB95: 34791 | GC95: 34640 | GD95: 1100 | GE95: 1000 | GG95: -9507 | GH95: 1557 | GI95: 300 | GJ95: -8424 | GK95: 1972 | GL95: 200 | GM95: -3262 | GN95: 50 | GO95: 200 | GP95: -1660 | GQ95: 100 | GR95: 200 | GS95: 6250 | GT95: 153 | GV95: 500 | GW95: 4000 | GX95: 863 | GY95: 23600 | GZ95: 14634 | HA95: 9383 | HB95: 108 | HC95: 24200 | HG95: 24200 | HH95: 13327 | HI95: 11093 | HJ95: 108 | HK95: 24200 | HY95: 3565 | HZ95: -3565
A96: 261 | B96: Kittilä | C96: 6478 | E96: 0.8666910153 | F96: 64.1 | G96: -3817 | K96: 43.9 | L96: 350 | M96: 16 | N96: 11174.86861 | O96: 22854 | P96: 7112 | Q96: 54011 | R96: -46899 | S96: 23635 | T96: 21088 | Y96: -1604 | Z96: 1244 | AR96: 19,5 | AS96: 450 | AU96: 108 | AV96: 6478 | AX96: 0.6539483217 | AY96: 63 | AZ96: -3928 | BD96: 42.7 | BE96: 413 | BF96: 18 | BG96: 8398.872887 | BH96: 26859 | BI96: 6721 | BJ96: 54480 | BK96: -47759 | BL96: 25700 | BM96: 20799 | BR96: -345 | BS96: 2735 | CK96: 19,5 | CM96: 55 | CN96: 450 | CO96: 6478 | CQ96: 0.4087241553 | CR96: 65.7571076 | CS96: -4405.372028 | CW96: 38.94001904 | CX96: 249.7684471 | CY96: 9.956167709 | CZ96: 9156.684162 | DA96: 27053 | DB96: 7491 | DC96: 55222 | DD96: -47731 | DE96: 25700 | DF96: 20799 | DK96: -311 | DL96: 2735 | ED96: 19,5 | EE96: 450 | EG96: 212 | EH96: 6478 | ET96: 27619 | EU96: 7620 | EV96: 56343 | EW96: -48723 | EX96: 25700 | EY96: 20799 | FD96: -1302 | FE96: 2735 | FW96: 19,5 | FX96: 450 | FZ96: 22478 | GA96: 19985 | GB96: 20375 | GC96: 20775 | GG96: -9467 | GH96: 1039 | GI96: 300 | GJ96: -5768 | GK96: 480 | GL96: 300 | GM96: -10124 | GN96: 1012 | GO96: 300 | GP96: -6765 | GQ96: 570 | GR96: 300 | GS96: 2432 | GT96: 3188 | GU96: 6024 | GV96: -1467 | GW96: 5000 | GX96: 1377 | GY96: 30642 | GZ96: 15253 | HA96: 7427 | HB96: 560 | HC96: 36275 | HG96: 43698 | HH96: 19162 | HI96: 7337 | HJ96: 525 | HK96: 51195 | HY96: 2822 | HZ96: -2822
A97: 263 | B97: Kiuruvesi | C97: 8866 | E97: 0.8319821079 | F97: 44.2 | G97: -1769 | K97: 57.4 | L97: 793 | M97: 42 | N97: 6770.936776 | O97: 16851 | P97: 7190 | Q97: 59504 | R97: -52370 | S97: 24100 | T97: 30000 | Y97: 2431 | Z97: 3850 | AR97: 20,75 | AS97: 320 | AU97: 153 | AV97: 8866 | AX97: 0.3870879121 | AY97: 46.2 | AZ97: -2057 | BD97: 55.4 | BE97: 698 | BF97: 35 | BG97: 7224.162866 | BH97: 16538 | BI97: 7339 | BJ97: 58918 | BK97: -51636 | BL97: 24200 | BM97: 29800 | BR97: 2762 | BS97: 2781 | CK97: 20,75 | CM97: 174 | CN97: 315 | CO97: 8866 | CQ97: 0.3925091352 | CR97: 54.14637412 | CS97: -2736.747124 | CW97: 49.40744528 | CX97: 704.3762689 | CY97: 32.48339794 | CZ97: 7914.730431 | DA97: 16312 | DB97: 7339 | DC97: 58887 | DD97: -51605 | DE97: 24200 | DF97: 29700 | DK97: 2722 | DL97: 2741 | ED97: 20,75 | EE97: 310 | EG97: 238 | EH97: 8866 | ET97: 16293 | EU97: 7339 | EV97: 58868 | EW97: -51586 | EX97: 24200 | EY97: 29600 | FD97: 2700 | FE97: 2719 | FW97: 20,75 | FX97: 310 | FZ97: 37486 | GA97: 37249 | GB97: 37449 | GC97: 37449 | GG97: -6389 | GH97: 380 | GJ97: -3118 | GM97: -2860 | GP97: -2995 | GS97: 3500 | GV97: 3999 | GW97: 3000 | GX97: 5997 | GY97: 29500 | GZ97: 17280 | HA97: 3309 | HB97: 1478 | HC97: 29700 | HG97: 29700 | HH97: 14230 | HI97: 13030 | HJ97: 1342 | HK97: 29900 | HY97: 3038 | HZ97: -3038
A98: 265 | B98: Kivijärvi | C98: 1259 | E98: 0.8718330849 | F98: 21.6 | G98: -594 | K98: 79.2 | L98: 690 | M98: 31 | N98: 12895.05247 | O98: 2307 | P98: 1655 | Q98: 10315 | R98: -8660 | S98: 3155 | T98: 5809 | Y98: 303 | Z98: 538 | AR98: 20 | AS98: 50,5 | AU98: 282 | AV98: 1259 | AX98: 1.627272727 | AY98: 19 | AZ98: -860 | BD98: 80.5 | BE98: 286 | BF98: 13 | BG98: 7999.23254 | BH98: 2276 | BI98: 1727 | BJ98: 9990 | BK98: -8263 | BL98: 3425 | BM98: 5441 | BR98: 516 | BS98: 549 | CK98: 21 | CM98: 169 | CN98: 50,5 | CO98: 1259 | CQ98: 0.009803921569 | CR98: 18.35227273 | CS98: -1076.250993 | CW98: 79.1804294 | CX98: 124.7021446 | CY98: 5.015315946 | CZ98: 9075.456712 | DA98: 2282 | DB98: 1730 | DC98: 9810 | DD98: -8080 | DE98: 3500 | DF98: 5238 | DK98: 658 | DL98: 540 | ED98: 21,5 | EE98: 50,5 | EG98: 277 | EH98: 1259 | ET98: 2288 | EU98: 1730 | EV98: 9810 | EW98: -8080 | EX98: 3624 | EY98: 5120 | FD98: 664 | FE98: 510 | FW98: 22 | FX98: 50,5 | FZ98: 7065 | GA98: 6800 | GB98: 6617 | GC98: 6617 | GG98: -2577 | GH98: 327 | GJ98: -4765 | GK98: 781 | GM98: -320 | GP98: -421 | GY98: 950 | GZ98: 1144 | HA98: 97 | HB98: 1052 | HC98: 4958 | HG98: 4645 | HH98: 950 | HI98: 97 | HJ98: 691 | HK98: 4332 | HY98: 97 | HZ98: -97
A99: 271 | B99: Kokemäki | C99: 7769 | E99: 0.5303430079 | F99: 42.2 | G99: -2030 | K99: 40.4 | L99: 242 | M99: 14 | N99: 6641.504671 | O99: 17557 | P99: 6447 | Q99: 49438 | R99: -42991 | S99: 25875 | T99: 18352 | Y99: 1060 | Z99: 1220 | AR99: 20,75 | AS99: 325 | AU99: 235 | AV99: 7769 | AX99: 0.1211641885 | AY99: 44.2 | AZ99: -2231 | BD99: 37.1 | BE99: 230 | BF99: 13 | BG99: 6652.350184 | BH99: 17819 | BI99: 5927 | BJ99: 49388 | BK99: -43461 | BL99: 26740 | BM99: 17905 | BR99: 1107 | BS99: 1480 | CK99: 21,25 | CM99: 231 | CN99: 325 | CO99: 7769 | CQ99: 0.2594339623 | CR99: 45.83984573 | CS99: -2388.853134 | CW99: 35.82243251 | CX99: 326.5542541 | CY99: 16.58051174 | CZ99: 7188.698674 | DA99: 17997 | DB99: 5986 | DC99: 49881 | DD99: -43895 | DE99: 27087 | DF99: 17906 | DK99: 977 | DL99: 1500 | ED99: 21,25 | EE99: 325 | EG99: 255 | EH99: 7769 | ET99: 18177 | EU99: 6107 | EV99: 50380 | EW99: -44273 | EX99: 27439 | EY99: 18139 | FD99: 1078 | FE99: 1500 | FW99: 21,25 | FX99: 325 | FZ99: 27586 | GA99: 27362 | GB99: 27636 | GC99: 27911 | GG99: -3105 | GH99: 125 | GI99: 20 | GJ99: -5423 | GK99: 1425 | GL99: 10 | GM99: -4951 | GN99: 1175 | GO99: 10 | GP99: -1690 | GR99: 10 | GS99: 3600 | GT99: 500 | GV99: 4000 | GW99: 3800 | GX99: -100 | GY99: 21316 | GZ99: 9676 | HA99: 5039 | HB99: 242 | HC99: 24906 | HG99: 27641 | HH99: 8655 | HI99: 8468 | HJ99: 1246 | HK99: 28186 | HY99: 2577 | HZ99: -2577
A100: 272 | B100: Kokkola | C100: 47031 | E100: 0.5124729064 | F100: 72.8 | G100: -4872 | K100: 38.4 | L100: 122 | M100: 5 | N100: 7438.359987 | O100: 167671 | P100: 205749 | Q100: 434176 | R100: -230760 | S100: 175137 | T100: 76883 | Y100: 20109 | Z100: 21330 | AR100: 20,5 | AS100: 3046 | AU100: 143 | AV100: 47031 | AX100: 0.3912948082 | AY100: 81.7 | AZ100: -5508 | BD100: 34 | BE100: 276 | BF100: 11 | BG100: 9393.17555 | BH100: 166837 | BI100: 146412 | BJ100: 401088 | BK100: -256925 | BL100: 179932 | BM100: 79536 | BR100: 2913 | BS100: 14241 | CK100: 21 | CM100: 96 | CN100: 3046 | CO100: 47031 | CQ100: 0.6238199532 | CR100: 82.10676048 | CS100: -5773.064574 | CW100: 32.35186664 | CX100: 405.8387021 | CY100: 15.53872215 | CZ100: 9533.031405 | DA100: 168923 | DB100: 148372 | DC100: 406178 | DD100: -260082 | DE100: 187316 | DF100: 81500 | DK100: 2982 | DL100: 15341 | ED100: 21 | EE100: 3046 | EG100: 66 | EH100: 47031 | ET100: 171034 | EU100: 150360 | EV100: 411357 | EW100: -263301 | EX100: 194629 | EY100: 83000 | FD100: 3070 | FE100: 16844 | FW100: 21 | FX100: 3046 | FZ100: 162143 | GA100: 160459 | GB100: 162464 | GC100: 164495 | GG100: -57289 | GH100: 1320 | GI100: 2445 | GJ100: -42443 | GK100: 2669 | GL100: 2542 | GM100: -27147 | GN100: 2442 | GO100: 2746 | GP100: -45072 | GQ100: 1942 | GR100: 2613 | GS100: 61992 | GT100: -928 | GU100: 69802 | GV100: 1273 | GW100: 65605 | GX100: -10430 | GY100: 303531 | GZ100: 161269 | HA100: 33447 | HB100: 3514 | HC100: 339235 | HG100: 357374 | HH100: 212037 | HI100: 38894 | HJ100: 2838 | HK100: 391800 | HY100: 25357 | HZ100: -25357
B101: KOKO MAA (Manner-Suomi) | C101: 5422604 | E101: 1.470066041 | F101: 45.3 | G101: -1797 | K101: 64.2 | L101: 698 | M101: 36 | N101: 7153.649426 | O101: 14369953 | P101: 11268359 | Q101: 38010636 | R101: -27309974 | S101: 20060179 | T101: 7691793 | Y101: 1665948 | Z101: 2452494 | AR101: 19.75 | AS101: 241075 | AU101: - | AV101: 5422604 | AX101: 0.9931606097 | AY101: 48.3 | AZ101: -2127 | BD101: 62.1 | BE101: 619 | BF101: 30 | BG101: 7481.31377 | BH101: 14166311 | BI101: 10255483 | BJ101: 37419893 | BK101: -27764675 | BL101: 20603368 | BM101: 7618805 | BR101: 1630646 | BS101: 2474015 | CK101: 19.85 | CM101: - | CN101: 237075 | CO101: 5422604 | CQ101: 1.319371239 | CR101: 50.71641386 | CS101: -2246.564197 | CW101: 60.44107974 | CX101: 797.3285529 | CY101: 37.69979894 | CZ101: 7719.535116 | DA101: 12389035 | DB101: 9038183 | DC101: 34982981 | DD101: -27787824 | DE101: 21009796 | DF101: 7593217 | DK101: 1721328 | DL101: 2523571 | EE101: 234926 | EG101: 0 | EH101: 5422604 | ET101: 12388394 | EU101: 9201565 | EV101: 35309757 | EW101: -28132140 | EX101: 21660024 | EY101: 7591480 | FD101: 1986624 | FE101: 2567355 | FX101: 228816 | FZ101: 17172481 | GA101: 17040467 | GB101: 14790425 | GC101: 15032368 | GD101: 20000 | GE101: 20000 | GF101: 20000 | GG101: -4136168 | GH101: 228903 | GI101: 566137 | GJ101: -3685980 | GK101: 199911 | GL101: 453038 | GM101: -3553405 | GN101: 92787 | GO101: 385297 | GP101: -3447334 | GQ101: 96814 | GR101: 395065 | GS101: 1764529 | GT101: 44700 | GU101: 2125190 | GV101: 463855 | GW101: 2724696 | GX101: 362801 | GY101: 14680561 | GZ101: 8209512 | HA101: 2738111 | HB101: 4351604 | HC101: 16015215 | HG101: 17484933 | HH101: 9886108 | HI101: 3900735 | HJ101: 4288514 | HK101: 18496611 | HY101: 1315633 | HZ101: -1315633
A102: 273 | B102: Kolari | C102: 3885 | E102: 1.305410122 | F102: 46.9 | G102: -2830 | K102: 44.8 | L102: 178 | M102: 8 | N102: 7866.788321 | O102: 15393 | P102: 4717 | Q102: 29193 | R102: -24476 | S102: 13690 | T102: 12710 | Y102: 1663 | Z102: 1500 | AR102: 20 | AS102: 325 | AU102: 41 | AV102: 3885 | AX102: 0.941475827 | AY102: 51.1 | AZ102: -3266 | BD102: 41.4 | BE102: 91 | BF102: 4 | BG102: 8372.177524 | BH102: 15507 | BI102: 4750 | BJ102: 29731 | BK102: -24981 | BL102: 14550 | BM102: 12850 | BR102: 2269 | BS102: 1550 | CK102: 20 | CM102: 61 | CN102: 326 | CO102: 3885 | CQ102: 2.045482483 | CR102: 51.88104852 | CS102: -3387.902188 | CW102: 43.19105691 | CX102: 259.7168597 | CY102: 10.83318626 | CZ102: 8750.579151 | DA102: 15700 | DB102: 4861 | DC102: 30496 | DD102: -25635 | DE102: 14570 | DF102: 12850 | DK102: 1599 | DL102: 1590 | ED102: 20 | EE102: 326 | EG102: 9 | EH102: 3885 | ET102: 15900 | EU102: 4920 | EV102: 31277 | EW102: -26357 | EX102: 14700 | EY102: 12850 | FD102: 992 | FE102: 1630 | FW102: 20 | FX102: 326 | FZ102: 10011 | GA102: 10342 | GB102: 10800 | GC102: 11300 | GG102: -3542 | GH102: 837 | GI102: 240 | GJ102: -2118 | GK102: 10 | GL102: 30 | GM102: -2561 | GN102: 45 | GO102: 30 | GP102: -1459 | GQ102: 45 | GR102: 30 | GS102: 1500 | GU102: 1500 | GV102: 1200 | GW102: 2592 | GX102: 500 | GY102: 13110 | GZ102: 8032 | HA102: 1354 | HB102: 1288 | HC102: 12893 | HG102: 13500 | HH102: 9063 | HI102: 3307 | HJ102: 1288 | HK102: 14000 | HY102: 1391 | HZ102: -1391
A103: 275 | B103: Konnevesi | C103: 2846 | E103: 0.9517391304 | F103: 24 | G103: -383 | K103: 75.7 | L103: 816 | M103: 44 | N103: 35535.90971 | O103: 6887 | P103: 4108 | Q103: 20564 | R103: -16456 | S103: 8260 | T103: 9185 | Y103: 1045 | Z103: 800 | AR103: 21 | AS103: 176 | AU103: 192 | AV103: 2846 | AX103: 0.1138487681 | AY103: 56.7 | AZ103: -2744 | BD103: 55 | BE103: 649 | BF103: 25 | BG103: 9531.680441 | BH103: 6994 | BI103: 3939 | BJ103: 20978 | BK103: -17039 | BL103: 8625 | BM103: 8877 | BR103: 535 | BS103: 519 | CK103: 21,5 | CM103: 242 | CN103: 176 | CO103: 2846 | CQ103: 0.9027272727 | CR103: 54.49499502 | CS103: -2931.131413 | CW103: 53.58219151 | CX103: 683.4153197 | CY103: 31.70015628 | CZ103: 7868.938862 | EG103: 138 | EH103: 2846 | FZ103: 11325 | GA103: 11875 | GG103: -2352 | GH103: 32 | GI103: 150 | GJ103: -4512 | GK103: 400 | GL103: 200 | GT103: -50 | GU103: 7250 | GV103: 450 | GW103: 800 | GX103: 80 | GY103: 10266 | GZ103: 2097 | HA103: 473 | HB103: 396 | HC103: 13621 | HH103: 8166 | HI103: 975 | HJ103: 396 | HY103: 846 | HZ103: -846
A104: 276 | B104: Kontiolahti | C104: 14422 | E104: 0.8794701987 | F104: 63.5 | G104: -2721 | K104: 43.4 | L104: 185 | M104: 11 | N104: 5333.928571 | O104: 25691 | P104: 12921 | Q104: 78893 | R104: -65972 | S104: 45980 | T104: 21940 | Y104: 932 | Z104: 4531 | AR104: 19,75 | AS104: 665 | AU104: 89 | AV104: 14422 | AX104: 0.4460684802 | AY104: 67.5 | AZ104: -2995 | BD104: 40.2 | BE104: 199 | BF104: 12 | BG104: 6131.484731 | BH104: 24557 | BI104: 13061 | BJ104: 78427 | BK104: -65366 | BL104: 48718 | BM104: 21801 | BR104: 3944 | BS104: 4533 | CK104: 20,5 | CM104: 149 | CN104: 669 | CO104: 14422 | CQ104: 0.7174048659 | CR104: 68.72472398 | CS104: -2981.486618 | CW104: 38.27521063 | CX104: 535.2239634 | CY104: 31.48640494 | CZ104: 6204.479268 | DA104: 24868 | DB104: 13301 | DC104: 79143 | DD104: -65842 | DE104: 50609 | DF104: 21189 | DK104: 4649 | DL104: 4601 | ED104: 20,5 | EE104: 670 | EG104: 124 | EH104: 14422 | ET104: 25116 | EU104: 13511 | EV104: 79933 | EW104: -66422 | EX104: 52387 | EY104: 20426 | FD104: 4984 | FE104: 4702 | FW104: 20,5 | FX104: 670 | FZ104: 45360 | GA104: 45338 | GB104: 45718 | GC104: 46175 | GG104: -7887 | GH104: 1270 | GI104: 660 | GJ104: -5040 | GK104: 34 | GL104: 670 | GM104: -4530 | GO104: 700 | GP104: -4086 | GR104: 700 | GS104: 4757 | GT104: 5000 | GU104: 9000 | GW104: 8000 | GX104: 7000 | GY104: 50100 | GZ104: 27833 | HA104: 10857 | HB104: 23 | HC104: 50100 | HG104: 48400 | HH104: 30892 | HI104: 18487 | HJ104: 23 | HK104: 47000 | HY104: 5816 | HZ104: -5816
A105: 280 | B105: Korsnäs | C105: 2218 | E105: 3.991017964 | F105: 17 | G105: 1 | K105: 73.4 | L105: 855 | M105: 45 | N105: 6972.876834 | O105: 5849 | P105: 3786 | Q105: 16629 | R105: -12843 | S105: 7570 | T105: 6190 | Y105: 891 | Z105: 790 | AR105: 21 | AS105: 123 | AU105: 27 | AV105: 2218 | AX105: 1.632575758 | AY105: 21.1 | AZ105: -657 | BD105: 70.6 | BE105: 537 | BF105: 25 | BG105: 7830.645161 | BH105: 5870 | BI105: 3670 | BJ105: 16674 | BK105: -13004 | BL105: 7700 | BM105: 6222 | BR105: 905 | BS105: 850 | CK105: 21 | CM105: 126 | CN105: 126 | CO105: 2218 | CQ105: 1.912536443 | CR105: 18.51439183 | CS105: -798.4670875 | CW105: 71.01194831 | CX105: 270.0631199 | CY105: 12.50557685 | CZ105: 7882.32642 | DA105: 5987 | DB105: 3563 | DC105: 16608 | DD105: -13045 | DE105: 7700 | DF105: 6208 | DK105: 819 | DL105: 850 | ED105: 21 | EE105: 124 | EG105: 151 | EH105: 2218 | ET105: 6042 | EU105: 3550 | EV105: 16598 | EW105: -13048 | EX105: 7700 | EY105: 6208 | FD105: 816 | FE105: 850 | FW105: 21 | FX105: 124 | FZ105: 8020 | GA105: 8026 | GB105: 7969 | GC105: 7970 | GG105: -2633 | GH105: 137 | GI105: 30 | GJ105: -1619 | GK105: 105 | GL105: 30 | GM105: -3331 | GN105: 142 | GO105: 30 | GP105: -1449 | GQ105: 38 | GR105: 60 | GU105: 780 | GV105: 220 | GX105: 629 | GY105: 2321 | GZ105: 623 | HA105: 240 | HB105: 0 | HC105: 2046 | HG105: 4318 | HH105: 852 | HI105: 234 | HJ105: 0 | HK105: 4790 | HY105: 240 | HZ105: -240
A106: 284 | B106: Koski tl | C106: 2423 | E106: 6.363636364 | F106: 17.6 | G106: -363 | K106: 77.5 | L106: 388 | M106: 22 | N106: 6664.48177 | O106: 6756 | P106: 2821 | Q106: 16292 | R106: -13471 | S106: 6270 | T106: 7460 | Y106: 285 | Z106: 643 | AR106: 19,5 | AS106: 167 | AU106: 109 | AV106: 2423 | AX106: 5.623853211 | AY106: 17.8 | AZ106: -136 | BD106: 77.4 | BE106: 631 | BF106: 35 | BG106: 6533.877551 | BH106: 7060 | BI106: 3006 | BJ106: 16225 | BK106: -13219 | BL106: 6220 | BM106: 7393 | BR106: 428 | BS106: 670 | CK106: 19,5 | CM106: 88 | CN106: 169 | CO106: 2423 | CQ106: 14.125 | CR106: 16.74074074 | CS106: 61.08130417 | CW106: 79.34488557 | CX106: 835.3281057 | CY106: 43.31125051 | CZ106: 7039.620305 | DA106: 7102 | DB106: 3002 | DC106: 16260 | DD106: -13258 | DE106: 6220 | DF106: 7393 | DK106: 390 | DL106: 670 | ED106: 19,5 | EE106: 167 | EG106: 33 | EH106: 2423 | ET106: 7093 | EU106: 3002 | EV106: 16248 | EW106: -13246 | EX106: 6220 | EY106: 7393 | FD106: 402 | FE106: 670 | FW106: 19,5 | FX106: 167 | FZ106: 7801 | GA106: 7454 | GB106: 7453 | GC106: 7450 | GG106: -1421 | GI106: 15 | GJ106: -1333 | GL106: 15 | GM106: -1670 | GO106: 15 | GP106: -1503 | GR106: 15 | GY106: 800 | GZ106: 500 | HA106: 100 | HB106: 23 | HC106: 700 | HG106: 1400 | HH106: 300 | HI106: 101 | HJ106: 23 | HK106: 2200 | HY106: 100 | HZ106: -100
A107: 285 | B107: Kotka | C107: 54771 | E107: 0.3631912763 | F107: 75.3 | G107: -3867 | K107: 51.6 | L107: 236 | M107: 12 | N107: 6565.39184 | O107: 157828 | P107: 109263 | Q107: 390128 | R107: -282741 | S107: 211067 | T107: 90840 | Y107: 19166 | Z107: 20230 | AR107: 20,5 | AS107: 3107 | AU107: 214 | AV107: 54771 | AX107: -0.286994842 | AY107: 81.7 | AZ107: -4626 | BD107: 47.2 | BE107: . | BF107: . | BG107: 7912.361271 | BH107: 159547 | BI107: 104722 | BJ107: 394429 | BK107: -291195 | BL107: 213596 | BM107: 93500 | BR107: 17253 | BS107: 18118 | CK107: 20,5 | CM107: 305 | CN107: 3099 | CO107: 54771 | CQ107: 0.2646446863 | CR107: 78.06194649 | CS107: -4744.572858 | CW107: 45.63757685 | CX107: 0 | CY107: 0 | CZ107: 8055.576856 | DB107: 105000 | DC107: 397000 | DD107: -292000 | DE107: 215600 | DF107: 96300 | DK107: 19900 | DL107: 20000 | ED107: 20,5 | EE107: 3099 | EG107: 243 | EH107: 54771 | EU107: 107000 | EV107: 404000 | EW107: -297000 | EX107: 221300 | EY107: 99000 | FD107: 23300 | FE107: 20000 | FW107: 20,5 | FX107: 3099 | FZ107: 167080 | GA107: 164718 | GF107: 1700 | GG107: -20692 | GH107: 144 | GI107: 2000 | GJ107: -20697 | GK107: 169 | GL107: 2000 | GM107: -36472 | GN107: 60 | GP107: -18476 | GQ107: 160 | GS107: 23805 | GT107: -2059 | GU107: 23805 | GV107: 9968 | GW107: 30000 | GX107: 9117 | GY107: 261536 | GZ107: 196758 | HA107: 32631 | HB107: 4781 | HC107: 262661 | HG107: 277498 | HH107: 194307 | HI107: 58966 | HJ107: 4781 | HK107: 272324 | HY107: 26950 | HZ107: -26950
A108: 286 | B108: Kouvola | C108: 86926 | E108: 0.8585200721 | F108: 36.4 | G108: -1639 | K108: 61.7 | L108: 217 | M108: 12 | N108: 6762.387657 | O108: 285619 | P108: 97673 | Q108: 584008 | R108: -490864 | S108: 323000 | T108: 164500 | Y108: 6757 | Z108: 21500 | AR108: 20 | AU108: 197 | AV108: 86926 | AX108: 0.1098994258 | AY108: 42.4 | AZ108: -2093 | BD108: 56.3 | BE108: 229 | BF108: 11 | BG108: 7385.183743 | BH108: 280606 | BI108: 77013 | BJ108: 572148 | BK108: -497928 | BL108: 333220 | BM108: 163000 | BR108: 8184 | BS108: 20104 | CK108: 20,5 | CM108: 241 | CO108: 86926 | CQ108: 1.051174692 | CR108: 46.23526669 | CS108: -2241.607804 | CW108: 53.98348328 | CX108: 404.1598601 | CY108: 20.46198796 | CZ108: 7209.384994 | DB108: 74387 | DC108: 576399 | DD108: -502014 | DE108: 347200 | DF108: 165000 | DK108: 19286 | DL108: 20500 | ED108: 21 | EG108: 154 | EH108: 86926 | EU108: 76632 | EV108: 584816 | EW108: -510184 | EX108: 362000 | EY108: 167000 | FD108: 27916 | FE108: 20500 | FW108: 21,5 | FZ108: 207294 | GA108: 198705 | GG108: -91200 | GH108: 1334 | GI108: 73843 | GJ108: -42322 | GK108: 1760 | GL108: 1600 | GM108: -83032 | GN108: 1670 | GO108: 1600 | GP108: -78262 | GQ108: 1750 | GR108: 1600 | GS108: 30000 | GT108: 301 | GU108: 44661 | GV108: 5669 | GW108: 55855 | GX108: -5970 | GY108: 228895 | GZ108: 109684 | HA108: 22066 | HB108: 23296 | HC108: 234568 | HG108: 297068 | HH108: 164364 | HI108: 21754 | HJ108: 21583 | HK108: 344568 | HY108: 21744 | HZ108: -21744
A109: 287 | B109: Kristiinankaupunki | C109: 7001 | E109: 0.6409239786 | F109: 54.2 | G109: -2447 | K109: 40.7 | L109: 387 | M109: 19 | N109: 14674.74634 | O109: 22614 | P109: 7906 | Q109: 47804 | R109: -39898 | S109: 22134 | T109: 19441 | Y109: 1342 | Z109: 1723 | AR109: 21 | AS109: 490 | AU109: 274 | AV109: 7001 | AX109: -0.01823185415 | AY109: 57.1 | AZ109: -2913 | BD109: 35.4 | BE109: 403 | BF109: 20 | BG109: 7525.726435 | BH109: 224667 | BI109: 8061 | BJ109: 47417 | BK109: -39356 | BL109: 22466 | BM109: 19041 | BR109: 1742 | BS109: 2087 | CK109: 21,5 | CM109: 276 | CN109: 490 | CO109: 7001 | CQ109: 0.2117298897 | CR109: 64.21767581 | CS109: -3546.207685 | CW109: 31.89785434 | CX109: 450.5070704 | CY109: 20.52031158 | CZ109: 8013.283817 | DA109: 24707 | DB109: 5935 | DC109: 46315 | DD109: -40380 | DE109: 22915 | DF109: 19422 | DK109: 1699 | DL109: 1500 | ED109: 21,5 | EE109: 490 | EG109: 262 | EH109: 7001 | ET109: 24707 | EU109: 5935 | EV109: 46315 | EW109: -40380 | EX109: 22915 | EY109: 19422 | FD109: 1699 | FE109: 1500 | FW109: 21,5 | FX109: 290 | FZ109: 19729 | GA109: 1970 | GB109: 16655 | GC109: 16655 | GG109: -3479 | GI109: 1000 | GJ109: -4929 | GL109: 1000 | GM109: -5876 | GP109: -2292 | GS109: 8010 | GT109: -340 | GU109: 6100 | GW109: 7186 | GY109: 25552 | GZ109: 14485 | HA109: 1417 | HB109: 119 | HC109: 28485 | HG109: 31879 | HH109: 20470 | HI109: 3002 | HJ109: 0 | HK109: 30804 | HY109: 2310 | HZ109: -2310
A110: 288 | B110: Kruunupyy | C110: 6682 | E110: 0.5985772358 | F110: 37.3 | G110: -1618 | K110: 39 | L110: 551 | M110: 30 | N110: 7297.260889 | O110: 10566 | P110: 3931 | Q110: 42140 | R110: -38210 | S110: 20984 | T110: 16906 | Y110: -478 | Z110: 930 | AR110: 20 | AS110: 208 | AU110: 247 | AV110: 6682 | AX110: 0.3700673725 | AY110: 41.2 | AZ110: -2042 | BD110: 34 | BE110: 485 | BF110: 25 | BG110: 7176.117612 | BH110: 10152 | BI110: 3984 | BJ110: 41673 | BK110: -37690 | BL110: 22250 | BM110: 16000 | BR110: 159 | BS110: 1100 | CK110: 20,75 | CM110: 208 | CN110: 203 | CO110: 6682 | CQ110: 0.04820819113 | CR110: 47.1160591 | CS110: -2581.113439 | CW110: 26.23506962 | CX110: 253.3672553 | CY110: 12.36063049 | CZ110: 7481.741993 | DA110: 10152 | DB110: 3984 | DC110: 41673 | DD110: -37690 | DE110: 22250 | DF110: 16000 | DK110: 139 | DL110: 1200 | ED110: 20,75 | EE110: 198 | EG110: 284 | EH110: 6682 | ET110: 10152 | EU110: 3974 | EV110: 41656 | EW110: -37683 | EX110: 22250 | EY110: 16000 | FD110: 126 | FE110: 1300 | FW110: 20,75 | FX110: 198 | FZ110: 27736 | GA110: 27655 | GB110: 27655 | GC110: 27655 | GG110: -2683 | GI110: 90 | GJ110: -2554 | GL110: 70 | GM110: -2685 | GO110: 70 | GP110: -2175 | GR110: 70 | GS110: 2500 | GU110: 4000 | GW110: 4000 | GY110: 15750 | GZ110: 7625 | HA110: 1669 | HB110: 60 | HC110: 18106 | HG110: 20612 | HH110: 11474 | HI110: 2010 | HJ110: 0 | HK110: 22621 | HY110: 1528 | HZ110: -1528
A111: 290 | B111: Kuhmo | C111: 9104 | E111: 0.1922272048 | F111: 29.5 | G111: -114 | K111: 64.1 | L111: 1515 | M111: 76 | N111: 7094.600386 | O111: 17113 | P111: 9003 | Q111: 68589 | R111: -59586 | S111: 28377 | T111: 31942 | Y111: 1328 | Z111: 1697 | AR111: 21,5 | AS111: 394 | AU111: 268 | AV111: 9104 | AX111: -0.04886769964 | AY111: 34.9 | AZ111: -583 | BD111: 58.8 | BE111: 1601 | BF111: 75 | BG111: 7745.779221 | BH111: 17690 | BI111: 6376 | BJ111: 66723 | BK111: -60347 | BL111: 29083 | BM111: 31851 | BR111: 1428 | BS111: 1879 | CK111: 21,5 | CM111: 265 | CN111: 394 | CO111: 9104 | CQ111: 0.6148222838 | CR111: 34.30186103 | CS111: -481.8760984 | CW111: 58.43264339 | CX111: 1898.725835 | CY111: 83.3307799 | CZ111: 8316.673989 | DA111: 17700 | DB111: 6441 | DC111: 67000 | DD111: -60559 | DE111: 29200 | DF111: 31350 | DK111: 601 | DL111: 1947 | ED111: 21,5 | EE111: 394 | EG111: 174 | EH111: 9104 | ET111: 16000 | EU111: 6509 | EV111: 65303 | EW111: -58794 | EX111: 29700 | EY111: 30850 | FD111: 2346 | FE111: 2155 | FW111: 21,5 | FX111: 354 | FZ111: 43636 | GA111: 43266 | GB111: 43700 | GC111: 45000 | GG111: -5903 | GH111: 220 | GJ111: -11828 | GK111: 1846 | GM111: -9593 | GN111: 5869 | GP111: -2190 | GS111: 3408 | GT111: -42 | GU111: 4557 | GW111: 7093 | GY111: 22629 | GZ111: 10357 | HA111: 3111 | HB111: 1811 | HC111: 25198 | HG111: 28320 | HH111: 14215 | HI111: 4059 | HJ111: 276 | HK111: 28164 | HY111: 3111 | HZ111: -3111
A112: 291 | B112: Kuhmoinen | C112: 2409 | E112: 1.731660232 | F112: 18.6 | G112: 61 | K112: 81.4 | L112: 1113 | M112: 57 | N112: 8669.860279 | O112: 4965 | P112: 3115 | Q112: 19684 | R112: -16569 | S112: 7700 | T112: 9030 | Y112: 203 | Z112: 1198 | AR112: 19,75 | AS112: 97 | AU112: 22 | AV112: 2409 | AX112: 2.121827411 | AY112: 15.2 | AZ112: 303 | BD112: 83.7 | BE112: 1262 | BF112: 60 | BG112: 7668.170632 | BH112: 4879 | BI112: 3013 | BJ112: 18921 | BK112: -15908 | BL112: 8013 | BM112: 9046 | BR112: 1186 | BS112: 1144 | CK112: 20,75 | CM112: 18 | CN112: 97 | CO112: 2409 | CQ112: 1.932631579 | CR112: 23.02188552 | CS112: -244.9149024 | CW112: 76.86383982 | CX112: 1293.897883 | CY112: 53.4786594 | CZ112: 8831.050228 | DA112: 4733 | DB112: 3052 | DC112: 18584 | DD112: -15532 | DE112: 7980 | DF112: 9000 | DK112: 1473 | DL112: 1171 | ED112: 20,75 | EE112: 95 | EG112: 97 | EH112: 2409 | ET112: 4701 | EU112: 3052 | EV112: 18304 | EW112: -15252 | EX112: 8130 | EY112: 9000 | FD112: 1903 | FE112: 1171 | FW112: 20,75 | FX112: 95 | FZ112: 12588 | GA112: 12077 | GB112: 11899 | GC112: 11649 | GG112: -1922 | GJ112: -1518 | GM112: -820 | GP112: -790 | GW112: 700 | GX112: 1500 | GY112: 2970 | GZ112: 1021 | HA112: 565 | HB112: 383 | HC112: 2700 | HG112: 3700 | HH112: 917 | HI112: 1844 | HJ112: 359 | HK112: 3500 | HY112: 780 | HZ112: -780
A113: 297 | B113: Kuopio | C113: 106342 | E113: 3.207939799 | F113: 43.9 | G113: -2057 | K113: 59 | L113: 461 | M113: 23 | N113: 6353.914998 | O113: 290846 | P113: 222238 | Q113: 751735 | R113: -545627 | S113: 402498 | T113: 148940 | Y113: 22989 | Z113: 45901 | AR113: 20,5 | AS113: 5377 | AU113: 65 | AV113: 106342 | AX113: 0.6988029492 | AY113: 46.6 | AZ113: -2584 | BD113: 55.6 | BE113: 111 | BF113: 5 | BG113: 7801.113037 | BH113: 311128 | BI113: 195974 | BJ113: 770642 | BK113: -590798 | BL113: 423700 | BM113: 161500 | BR113: 15270 | BS113: 40600 | CK113: 20,5 | CM113: 109 | CN113: 6029 | CO113: 106342 | CQ113: 1.460458522 | CR113: 50.88578768 | CS113: -2655.470087 | CW113: 51.6109628 | CX113: 496.8027684 | CY113: 23.32677884 | CZ113: 7773.59839 | DA113: 315654 | DB113: 184294 | DC113: 782111 | DD113: -599430 | DE113: 435800 | DF113: 166200 | DK113: 23500 | DL113: 41900 | ED113: 20,5 | EE113: 6060 | EG113: 110 | EH113: 106342 | ET113: 320393 | EU113: 201674 | EV113: 793774 | EW113: -608230 | EX113: 465600 | EY113: 169600 | FD113: 47800 | FE113: 42400 | FW113: 20,5 | FX113: 6100 | FZ113: 322167 | GA113: 349614 | GB113: 354324 | GC113: 359643 | GG113: -73637 | GH113: 2541 | GI113: 6241 | GJ113: -51167 | GK113: 195 | GL113: 8589 | GM113: -48000 | GN113: 1000 | GO113: 3500 | GP113: -47500 | GQ113: 1000 | GR113: 5000 | GS113: 27500 | GU113: 46600 | GW113: 75700 | GX113: -13800 | GY113: 286000 | GZ113: 141952 | HA113: 30009 | HB113: 69291 | HC113: 312400 | HG113: 333900 | HH113: 220068 | HI113: 28666 | HJ113: 50710 | HK113: 329900 | HY113: 12990 | HZ113: -12990
A114: 300 | B114: Kuortane | C114: 3819 | F114: 14 | G114: -87 | K114: 83.3 | L114: 123 | M114: 7 | N114: 27156.68203 | O114: 11467 | P114: 3797 | Q114: 26584 | R114: -22787 | S114: 11108 | T114: 12059 | Y114: 411 | Z114: 1080 | AR114: 21 | AS114: 229 | AU114: 181 | AV114: 3819 | AX114: -40.46153846 | AY114: 26.4 | AZ114: -922 | BD114: 71.4 | BE114: 118 | BF114: 6 | BG114: 7597.557807 | BH114: 11874 | BI114: 3845 | BJ114: 26353 | BK114: -22508 | BL114: 11219 | BM114: 12416 | BR114: 1137 | BS114: 1134 | CK114: 21 | CM114: 293 | CN114: 232 | CO114: 3819 | CQ114: -18.42857143 | CR114: 38.05211251 | CS114: -1941.084053 | CW114: 60.92902526 | CX114: 26.4467138 | CY114: 1.218677686 | CZ114: 7920.921707 | DA114: 12000 | DB114: 3860 | DC114: 26665 | DD114: -22805 | DE114: 11443 | DF114: 12540 | DK114: 1188 | DL114: 1150 | ED114: 21 | EE114: 230 | EG114: 298 | EH114: 3819 | ET114: 12200 | EU114: 3937 | EV114: 26930 | EW114: -22993 | EX114: 11672 | EY114: 12540 | FD114: 1229 | FE114: 1200 | FW114: 21 | FX114: 230 | FZ114: 12107 | GA114: 11707 | GB114: 11830 | GC114: 11950 | GG114: -1977 | GH114: 65 | GI114: 36 | GJ114: -1380 | GK114: 163 | GM114: -550 | GN114: 60 | GP114: -310 | GU114: 690 | GV114: 2702 | GX114: 3468 | GY114: 8426 | GZ114: 0 | HA114: 0 | HB114: 1942 | HC114: 7428 | HG114: 7200 | HH114: 684 | HI114: 6172 | HJ114: 2167 | HK114: 7000 | HY114: 0 | HZ114: 0
A115: 301 | B115: Kurikka | C115: 14322 | E115: -1.394495413 | F115: 29 | G115: -140 | K115: 80.1 | L115: 1269 | M115: 64 | N115: 6466.850638 | O115: 25345 | P115: 9607 | Q115: 98346 | R115: -88739 | S115: 38959 | T115: 35598 | Y115: -6448 | Z115: 4000 | AR115: 19 | AS115: 592 | AU115: 312 | AV115: 14322 | AX115: 0.8021786492 | AY115: 42.5 | AZ115: -801 | BD115: 73 | BE115: 1414 | BF115: 71 | BG115: 7250.781521 | BH115: 25461 | BI115: 9513 | BJ115: 91912 | BK115: -82399 | BL115: 39009 | BM115: 35069 | BR115: -837 | BS115: 4032 | CK115: 19 | CM115: 188 | CN115: 590 | CO115: 14322 | CQ115: 1.924437299 | CR115: 50.57998152 | CS115: -939.2542941 | CW115: 71.29430647 | CX115: 1788.507192 | CY115: 76.43705648 | CZ115: 8540.427315 | DA115: 50385 | DB115: 30691 | DC115: 154365 | DD115: -123674 | DE115: 65042 | DF115: 58906 | DK115: 6694 | DL115: 5700 | ED115: 20 | EE115: 1176 | EG115: 90 | EH115: 14322 | ET115: 50547 | EU115: 30971 | EV115: 155269 | EW115: -124298 | EX115: 65692 | EY115: 59495 | FD115: 7249 | FE115: 5700 | FW115: 20 | FX115: 1176 | FZ115: 59589 | GA115: 58851 | GB115: 89384 | GC115: 89984 | GG115: -16782 | GH115: 90 | GI115: 17313 | GJ115: -3898 | GK115: 206 | GL115: 200 | GM115: -6000 | GP115: -6000 | GS115: 5000 | GU115: 10000 | GV115: 2000 | GW115: 13000 | GX115: -1200 | GY115: 41887 | GZ115: 12111 | HA115: 1929 | HB115: 2290 | HC115: 44853 | HG115: 77303 | HH115: 24089 | HI115: 9194 | HJ115: 12358 | HK115: 72484 | HY115: 1962 | HZ115: -1962
A116: 304 | B116: Kustavi | C116: 869 | E116: 1.485507246 | F116: 29.7 | G116: -458 | K116: 72.2 | L116: 1317 | M116: 59 | N116: 21756.20767 | O116: 2201 | P116: 1185 | Q116: 7124 | R116: -5939 | S116: 3676 | T116: 2522 | Y116: 234 | Z116: 242 | AR116: 19,25 | AS116: 45 | AU116: 68 | AV116: 869 | AX116: 2.897674419 | AY116: 25.7 | AZ116: -825 | BD116: 74 | BE116: 817 | BF116: 32 | BG116: 9193.475816 | BH116: 2304 | BI116: 1336 | BJ116: 7265 | BK116: -5929 | BL116: 3940 | BM116: 2300 | BR116: 284 | BS116: 259 | CK116: 19,25 | CM116: 11 | CN116: 47 | CO116: 869 | CQ116: 3.035573123 | CR116: 29.20634921 | CS116: -937.8596087 | CW116: 73.12205153 | CX116: 814.7295742 | CY116: 30.95591759 | CZ116: 9606.444189 | DA116: 2304 | DB116: 1336 | DC116: 7265 | DD116: -5929 | DE116: 3940 | DF116: 2240 | DK116: 284 | DL116: 259 | ED116: 19,25 | EE116: 47 | EG116: 5 | EH116: 869 | ET116: 2304 | EU116: 1336 | EV116: 7265 | EW116: -5929 | EX116: 3940 | EY116: 2200 | FD116: 284 | FE116: 259 | FW116: 19,25 | FX116: 47 | FZ116: 3923 | GA116: 3931 | GB116: 3931 | GC116: 3931 | GG116: -1206 | GH116: 543 | GI116: 50 | GJ116: -1700 | GK116: 1003 | GM116: -560 | GN116: 225 | GP116: -130 | GS116: 425 | GU116: 195 | GV116: 11 | GW116: 470 | GY116: 1730 | GZ116: 1090 | HA116: 181 | HB116: 0 | HC116: 1700 | HG116: 1614 | HH116: 1303 | HI116: 227 | HJ116: 0 | HK116: 1550 | HY116: 174 | HZ116: -174
A117: 305 | B117: Kuusamo | C117: 15952 | E117: 0.5418698325 | F117: 36.6 | G117: -820 | K117: 65 | L117: 1091 | M117: 53 | N117: 6542.661699 | O117: 55051 | P117: 19527 | Q117: 111358 | R117: -92431 | S117: 51574 | T117: 45695 | Y117: 5487 | Z117: 4700 | AR117: 20 | AS117: 1039 | AU117: 231 | AV117: 15952 | AX117: 1.148317171 | AY117: 38.3 | AZ117: -873 | BD117: 63.2 | BE117: 1301 | BF117: 66 | BG117: 7172.264489 | BH117: 53175 | BI117: 19404 | BJ117: 111460 | BK117: -92456 | BL117: 52519 | BM117: 43637 | BR117: 4100 | BS117: 4800 | CK117: 20 | CM117: 113 | CN117: 1040 | CO117: 15952 | CQ117: 1.817979404 | CR117: 36.27915797 | CS117: -885.9077232 | CW117: 63.38663806 | CX117: 1370.925276 | CY117: 64.988276 | CZ117: 7699.661484 | DA117: 52875 | DB117: 19008 | DC117: 110836 | DD117: -91832 | DE117: 52926 | DF117: 43606 | DK117: 4950 | DL117: 4800 | ED117: 20 | EE117: 1040 | EG117: 102 | EH117: 15952 | ET117: 53675 | EU117: 19404 | EV117: 112019 | EW117: -93015 | EX117: 54109 | EY117: 43606 | FD117: 4950 | FE117: 4800 | FW117: 20 | FX117: 1040 | FZ117: 42832 | GA117: 44286 | GB117: 43986 | GC117: 44486 | GG117: -8470 | GH117: 892 | GI117: 300 | GJ117: -7925 | GK117: 1700 | GL117: 100 | GM117: -5830 | GN117: 929 | GO117: 200 | GP117: -4820 | GQ117: 1206 | GR117: 200 | GS117: 9750 | GT117: -500 | GU117: 6500 | GV117: -1000 | GX117: 1000 | GY117: 48200 | GZ117: 21515 | HA117: 4608 | HB117: 6481 | HC117: 47100 | HG117: 48100 | HH117: 20498 | HI117: 6453 | HJ117: 6482 | HK117: 47700 | HY117: 4686 | HZ117: -4686
A118: 312 | B118: Kyyjärvi | C118: 1431 | E118: 0.7231270358 | F118: 64.8 | G118: -878 | K118: 57.3 | L118: 3218 | M118: 165 | N118: 7137.059215 | O118: 2673 | P118: 2667 | Q118: 12101 | R118: -9434 | S118: 4000 | T118: 5000 | Y118: 0 | Z118: 565 | AR118: 20,5 | AS118: 52 | AU118: 98 | AV118: 1431 | AX118: -0.6303854875 | AY118: 80.3 | AZ118: -1831 | BD118: 49.3 | BE118: 3285 | BF118: 148 | BG118: 8075.561607 | BH118: 2691 | BI118: 2348 | BJ118: 11518 | BK118: -9170 | BL118: 4343 | BM118: 4524 | BR118: 19 | BS118: 551 | CK118: 20,5 | CM118: 317 | CN118: 50 | CO118: 1431 | CQ118: -0.9126344086 | CR118: 85.18236358 | CS118: -2796.645702 | CW118: 41.6379142 | CX118: 3301.18798 | CY118: 135.5017682 | CZ118: 8892.382949 | DA118: 2700 | DB118: 2500 | DC118: 11600 | DD118: -9100 | DE118: 4600 | DF118: 4600 | DK118: 550 | DL118: 600 | ED118: 20,5 | EE118: 50 | EG118: 303 | EH118: 1431 | ET118: 2700 | EU118: 2500 | EV118: 11600 | EW118: -9100 | EX118: 4700 | EY118: 4700 | FD118: 650 | FE118: 650 | FW118: 20,5 | FX118: 50 | FZ118: 7857 | GA118: 7506 | GB118: 7550 | GC118: 7550 | GG118: -1561 | GH118: 196 | GJ118: -1492 | GK118: 180 | GM118: -370 | GN118: 10 | GP118: -420 | GS118: 1100 | GU118: 2000 | GW118: 1900 | GY118: 8842 | GZ118: 5031 | HA118: 780 | HB118: 356 | HC118: 10101 | HG118: 9871 | HH118: 7642 | HI118: 605 | HJ118: 356 | HK118: 9621 | HY118: 780 | HZ118: -780
A119: 316 | B119: Kärkölä | C119: 4755 | E119: 2.571428571 | F119: 48.1 | G119: -2264 | K119: 41.8 | L119: 489 | M119: 28 | N119: 6292.413506 | O119: 2324 | P119: 6108 | Q119: 31802 | R119: -25694 | S119: 15479 | T119: 8142 | Y119: -2208 | Z119: 1295 | AR119: 21 | AS119: 41 | AU119: 103 | AV119: 4755 | AX119: -1.493556701 | AY119: 49.1 | AZ119: -2654 | BD119: 35 | BE119: 121 | BF119: 7 | BG119: 6490.779547 | BH119: 2232 | BI119: 7472 | BJ119: 30755 | BK119: -23283 | BL119: 16170 | BM119: 7944 | BR119: 616 | BS119: 1405 | CK119: 21,75 | CM119: 314 | CN119: 41 | CO119: 4755 | CQ119: -0.5041322314 | CR119: 57.06518022 | CS119: -3016.61409 | CW119: 26.38682569 | CX119: 377.0767613 | CY119: 20.70831883 | CZ119: 6646.267087 | DA119: 2232 | DB119: 11972 | DC119: 30756 | DD119: -18784 | DE119: 16806 | DF119: 7700 | DK119: 5538 | DL119: 1400 | ED119: 22,5 | EE119: 41 | EG119: 291 | EH119: 4755 | ET119: 2232 | EU119: 5972 | EV119: 30748 | EW119: -24776 | EX119: 17696 | EY119: 7500 | FD119: 216 | FE119: 1450 | FW119: 22,75 | FX119: 41 | FZ119: 27714 | GA119: 26511 | GB119: 26511 | GC119: 26511 | GD119: 730 | GF119: 620 | GG119: -2377 | GH119: 310 | GI119: 21 | GJ119: -2164 | GK119: 312 | GL119: 10 | GM119: -2000 | GO119: 10 | GP119: -720 | GR119: 10 | GS119: 1523 | GW119: 2158 | GX119: 1000 | GY119: 13911 | GZ119: 9616 | HA119: 598 | HB119: 906 | HC119: 16746 | HG119: 19587 | HH119: 10685 | HI119: 1598 | HJ119: 862 | HK119: 20020 | HY119: 524 | HZ119: -524
A120: 317 | B120: Kärsämäki | C120: 2721 | E120: 0.5941883768 | F120: 81 | G120: -1955 | K120: 40.8 | L120: 2897 | M120: 135 | N120: 7808.797446 | O120: 4747 | P120: 3038 | Q120: 20641 | R120: -17603 | S120: 6844 | T120: 10823 | Y120: 485 | Z120: 510 | AR120: 21,5 | AS120: 90 | AU120: 119 | AV120: 2721 | AX120: 0.1834196891 | AY120: 84.7 | AZ120: -2159 | BD120: 39.5 | BE120: 2889 | BF120: 137 | BG120: 7690.57971 | BH120: 5732 | BI120: 3402 | BJ120: 20263 | BK120: -16861 | BL120: 6890 | BM120: 10690 | BR120: 845 | BS120: 565 | CK120: 21,5 | CM120: 225 | CN120: 134 | CO120: 2721 | CQ120: 1.180731364 | CR120: 75.5980118 | CS120: -2224.549798 | CW120: 40.5915493 | CX120: 2968.761485 | CY120: 139.5725444 | CZ120: 7763.68982 | DA120: 5789 | DB120: 3239 | DC120: 20282 | DD120: -17043 | DE120: 7017 | DF120: 10510 | DK120: 633 | DL120: 540 | ED120: 21,5 | EE120: 111 | EG120: 42 | EH120: 2721 | ET120: 5847 | EU120: 3238 | EV120: 20386 | EW120: -17148 | EX120: 7137 | EY120: 10394 | FD120: 513 | FE120: 510 | FW120: 21,5 | FX120: 111 | FZ120: 13750 | GA120: 11799 | GB120: 12094 | GC120: 12370 | GD120: 500 | GF120: 360 | GG120: -2192 | GH120: 86 | GI120: 58 | GJ120: -796 | GK120: 250 | GL120: 270 | GM120: -276 | GP120: -99 | GS120: 2950 | GU120: 1875 | GX120: 700 | GY120: 14753 | GZ120: 11131 | HA120: 1691 | HB120: 120 | HC120: 15030 | HG120: 14560 | HH120: 10527 | HI120: 1912 | HJ120: 270 | HK120: 14133 | HY120: 1691 | HZ120: -1691
A121: 319 | B121: Köyliö | C121: 2688 | E121: -0.06878306878 | F121: 24.9 | G121: -1005 | K121: 59.6 | L121: 135 | M121: 9 | N121: 5527.46077 | O121: 4726 | P121: 1966 | Q121: 15767 | R121: -13801 | S121: 9030 | T121: 4963 | Y121: 340 | Z121: 303 | AR121: 20,5 | AS121: 121 | AU121: 289 | AV121: 2688 | AX121: -1.062176166 | AY121: 28.7 | AZ121: -1223 | BD121: 52.7 | BE121: 119 | BF121: 8 | BG121: 5750.545455 | BH121: 4832 | BI121: 2061 | BJ121: 15731 | BK121: -13670 | BL121: 9370 | BM121: 4683 | BR121: 525 | BS121: 318 | CK121: 20,5 | CM121: 280 | CN121: 120 | CO121: 2688 | CQ121: 2.949152542 | CR121: 28.52209045 | CS121: -1239.955357 | CW121: 53.22494953 | CX121: 157.3660714 | CY121: 9.913001605 | CZ121: 5794.270833 | DA121: 4817 | DB121: 1918 | DC121: 15702 | DD121: -13784 | DE121: 9650 | DF121: 4683 | DK121: 539 | DL121: 293 | ED121: 21 | EE121: 119 | EG121: 208 | EH121: 2688 | ET121: 4858 | EU121: 1918 | EV121: 15729 | EW121: -13811 | EX121: 9850 | EY121: 4683 | FD121: 713 | FE121: 272 | FW121: 21,5 | FX121: 118 | FZ121: 9085 | GA121: 8908 | GB121: 8901 | GC121: 8893 | GG121: -510 | GH121: 40 | GI121: 20 | GJ121: -536 | GK121: 10 | GL121: 15 | GM121: -406 | GO121: 5 | GP121: -337 | GR121: 5 | GT121: 800 | GV121: 700 | GX121: 500 | GY121: 2817 | GZ121: 1131 | HA121: 958 | HB121: 246 | HC121: 2507 | HG121: 2300 | HH121: 816 | HI121: 2158 | HJ121: 428 | HK121: 2100 | HY121: 158 | HZ121: -158
A122: 398 | B122: Lahti | C122: 103364 | E122: 1.86452584 | F122: 78.1 | G122: -2944 | K122: 54.4 | L122: 846 | M122: 45 | N122: 5679.008484 | O122: 279877 | P122: 222936 | Q122: 733134 | R122: -510469 | S122: 382800 | T122: 151000 | Y122: 33179 | Z122: 35034 | AR122: 20,25 | AS122: 6100 | AU122: 91 | AV122: 103364 | AX122: 1.451085584 | AY122: 87.8 | AZ122: -3571 | BD122: 50.7 | BE122: 547 | BF122: 27 | BG122: 7302.884989 | BH122: 275374 | BI122: 223600 | BJ122: 745006 | BK122: -521827 | BL122: 395300 | BM122: 155000 | BR122: 36237 | BS122: 36949 | CK122: 20,25 | CM122: 58 | CN122: 6094 | CO122: 103364 | CQ122: 0.555114666 | CR122: 103.3439579 | CS122: -4589.915251 | CW122: 44.57543103 | CX122: 663.7030301 | CY122: 31.56960479 | CZ122: 7673.571069 | DA122: 278048 | DB122: 219456 | DC122: 748154 | DD122: -529119 | DE122: 404300 | DF122: 153500 | DK122: 35932 | DL122: 38455 | ED122: 20,25 | EE122: 5878 | EG122: 256 | EH122: 103364 | ET122: 276594 | EU122: 221500 | EV122: 754073 | EW122: -532994 | EX122: 414200 | EY122: 152000 | FD122: 39649 | FE122: 39631 | FW122: 20,25 | FX122: 5787 | FZ122: 288611 | GA122: 296902 | GB122: 299996 | GC122: 305834 | GG122: -92868 | GH122: 398 | GI122: 20200 | GJ122: -101017 | GK122: 2534 | GL122: 23425 | GM122: -67645 | GN122: 69 | GO122: 5675 | GP122: -74006 | GQ122: 50 | GR122: 5675 | GS122: 60129 | GT122: -1386 | GU122: 70003 | GV122: 22375 | GW122: 90006 | GX122: 38373 | GY122: 582500 | GZ122: 335281 | HA122: 44563 | HB122: 261632 | HC122: 665000 | HG122: 744000 | HH122: 426009 | HI122: 133421 | HJ122: 372110 | HK122: 807000 | HY122: 19835 | HZ122: -19835
A123: 399 | B123: Laihia | C123: 8007 | E123: 0.1200387222 | F123: 27.4 | G123: -1144 | K123: 66.2 | L123: 62 | M123: 4 | N123: 5705.40779 | O123: 18255 | P123: 7080 | Q123: 50391 | R123: -43311 | S123: 28950 | T123: 14060 | Y123: -371 | Z123: 1655 | AR123: 20,75 | AS123: 437 | AU123: 285 | AV123: 8007 | AX123: 0.6013824885 | AY123: 30.8 | AZ123: -1528 | BD123: 61.3 | BE123: 13 | BF123: 1 | BG123: 6356.687101 | BH123: 19311 | BI123: 6774 | BJ123: 49243 | BK123: -42469 | BL123: 30100 | BM123: 13240 | BR123: 771 | BS123: 1790 | CK123: 21,5 | CM123: 205 | CN123: 437 | CO123: 8007 | CQ123: -0.4331428571 | CR123: 42.11502396 | CS123: -2158.236543 | CW123: 49.90075806 | CX123: 73.56063444 | CY123: 3.922869186 | CZ123: 6844.386162 | DA123: 19581 | DB123: 6869 | DC123: 49932 | DD123: -43063 | DE123: 30700 | DF123: 13400 | DK123: 907 | DL123: 1840 | ED123: 21,5 | EE123: 437 | EG123: 296 | EH123: 8007 | ET123: 19816 | EU123: 6951 | EV123: 50531 | EW123: -43580 | EX123: 32500 | EY123: 13600 | FD123: 2360 | FE123: 1900 | FW123: 22 | FX123: 437 | FZ123: 26532 | GA123: 24217 | GB123: 24556 | GC123: 24851 | GG123: -4114 | GI123: 175 | GJ123: -7000 | GL123: 50 | GM123: -6200 | GO123: 50 | GP123: -7000 | GR123: 50 | GT123: 2300 | GU123: 3000 | GV123: -122 | GW123: 4000 | GX123: 3523 | GY123: 18447 | GZ123: 4037 | HA123: 3227 | HB123: 1298 | HC123: 19642 | HG123: 22644 | HH123: 7536 | HI123: 7393 | HJ123: 1175 | HK123: 26043 | HY123: 926 | HZ123: -926
A124: 400 | B124: Laitila | C124: 8487 | E124: 4.745974955 | F124: 29.9 | G124: -1209 | K124: 70.7 | L124: 9 | M124: 0 | N124: 7042.221694 | O124: 27326 | P124: 10238 | Q124: 55306 | R124: -45068 | S124: 27000 | T124: 19311 | Y124: 1225 | Z124: 2014 | AR124: 20,25 | AS124: 507 | AU124: 137 | AV124: 8487 | AX124: 3.565217391 | AY124: 32.3 | AZ124: -1403 | BD124: 67.8 | BE124: 2 | BF124: 0 | BG124: 6636.524823 | BH124: 28328 | BI124: 10109 | BJ124: 56655 | BK124: -46546 | BL124: 28104 | BM124: 19071 | BR124: 602 | BS124: 2108 | CK124: 20,75 | CM124: 153 | CN124: 507 | CO124: 8487 | CQ124: 4.691056911 | CR124: 37.35756578 | CS124: -1752.68057 | CW124: 63.57918421 | CX124: 11.78272652 | CY124: 0.596103281 | CZ124: 7214.681277 | DA124: 28255 | DB124: 10210 | DC124: 57160 | DD124: -46950 | DE124: 28596 | DF124: 19071 | DK124: 690 | DL124: 2193 | ED124: 20,75 | EE124: 507 | EG124: 197 | EH124: 8487 | ET124: 28537 | EU124: 10313 | EV124: 57716 | EW124: -47403 | EX124: 29396 | EY124: 19071 | FD124: 1036 | FE124: 2237 | FW124: 20,75 | FX124: 507 | FZ124: 22151 | GA124: 22711 | GB124: 22954 | GC124: 23183 | GG124: -5141 | GH124: 462 | GI124: 100 | GJ124: -3161 | GK124: 283 | GL124: 100 | GM124: -5998 | GN124: 588 | GO124: 100 | GP124: -1867 | GQ124: 56 | GR124: 100 | GS124: 1000 | GT124: 200 | GV124: 1500 | GW124: 1300 | GX124: 1550 | GY124: 2514 | GZ124: 772 | HA124: 7971 | HB124: 787 | HC124: 2800 | HG124: 5854 | HH124: 1405 | HI124: 11030 | HJ124: 774 | HK124: 850 | HY124: 271 | HZ124: -271
A125: 407 | B125: Lapinjärvi | C125: 2820 | E125: 0.2836095764 | F125: 30.4 | G125: -1696 | K125: 56.3 | L125: 131 | M125: 6 | N125: 10911.86798 | O125: 6904 | P125: 3442 | Q125: 19771 | R125: -16329 | S125: 8722 | T125: 6850 | Y125: -153 | Z125: 670 | AR125: 20,5 | AS125: 122 | AU125: 301 | AV125: 2820 | AX125: 2.995893224 | AY125: 31.5 | AZ125: -2041 | BD125: 57.7 | BE125: 57 | BF125: 2 | BG125: 8401.55532 | BH125: 5826 | BI125: 3321 | BJ125: 18777 | BK125: -15456 | BL125: 8502 | BM125: 6342 | BR125: -65 | BS125: 720 | CK125: 20,5 | CM125: 26 | CN125: 112 | CO125: 2820 | CQ125: 3.355555556 | CR125: 31.22703236 | CS125: -1897.163121 | CW125: 58.89136034 | CX125: 122.6950355 | CY125: 5.455527237 | CZ125: 8208.865248 | DB125: 3233 | DC125: 18543 | DD125: -15310 | DE125: 8950 | DF125: 6276 | DK125: 443 | DL125: 760 | ED125: 21 | EE125: 110 | EG125: 64 | EH125: 2820 | EU125: 3265 | EV125: 18580 | EW125: -15315 | EX125: 9342 | EY125: 6276 | FD125: 843 | FE125: 835 | FW125: 21,75 | FX125: 110 | FZ125: 10448 | GA125: 10665 | GG125: -2398 | GJ125: -1278 | GK125: 140 | GM125: -1314 | GP125: -139 | GS125: 2250 | GT125: 300 | GU125: 1200 | GV125: -349 | GW125: 400 | GX125: -200 | GY125: 7327 | GZ125: 3729 | HA125: 869 | HB125: 251 | HC125: 8597 | HG125: 9474 | HH125: 4627 | HI125: 369 | HJ125: 251 | HK125: 8825 | HY125: 213 | HZ125: =HY125*-1 -> -213
A126: 402 | B126: Lapinlahti | C126: 10176 | E126: 2.037555697 | F126: 35.4 | G126: -1836 | K126: 63.2 | L126: 149 | M126: 8 | N126: 6446.851531 | O126: 33109 | P126: 8279 | Q126: 67200 | R126: -58921 | S126: 28870 | T126: 30110 | Y126: 902 | Z126: 2425 | AR126: 19,5 | AS126: 636 | AU126: 126 | AV126: 10176 | AX126: -0.6381880734 | AY126: 46.8 | AZ126: -2554 | BD126: 57.1 | BE126: 38 | BF126: 2 | BG126: 8374.574789 | BH126: 32815 | BI126: 8121 | BJ126: 67154 | BK126: -59033 | BL126: 29880 | BM126: 29450 | BR126: 1013 | BS126: 2426 | CK126: 20,25 | CM126: 291 | CN126: 620 | CO126: 10176 | CQ126: 0.6615226337 | CR126: 48.70812251 | CS126: -2678.65566 | CW126: 53.15855181 | CX126: 160.3773585 | CY126: 7.963316979 | CZ126: 7350.923742 | DA126: 32333 | DB126: 8001 | DC126: 66172 | DD126: -58171 | DE126: 30180 | DF126: 29950 | DK126: 2674 | DL126: 2640 | ED126: 20,25 | EE126: 611 | EG126: 246 | EH126: 10176 | ET126: 32040 | EU126: 8091 | EV126: 65572 | EW126: -57481 | EX126: 30481 | EY126: 30200 | FD126: 3915 | FE126: 2760 | FW126: 20,25 | FX126: 606 | FZ126: 25462 | GA126: 25416 | GB126: 25042 | GC126: 24816 | GG126: -7098 | GH126: 321 | GI126: 200 | GJ126: -4042 | GK126: 340 | GL126: 70 | GM126: -2670 | GN126: 100 | GP126: -739 | GS126: 2500 | GT126: -1500 | GU126: 5600 | GV126: 1500 | GW126: 5600 | GX126: -500 | GY126: 28200 | GZ126: 14261 | HA126: 1942 | HB126: 1944 | HC126: 29600 | HG126: 29100 | HH126: 21736 | HI126: 3456 | HJ126: 11491 | HK126: 26300 | HY126: 1488 | HZ126: -1488
A127: 403 | B127: Lappajärvi | C127: 3317 | E127: 0.8827598762 | F127: 34.8 | G127: -1533 | K127: 70 | L127: 211 | M127: 12 | N127: 27187.71828 | O127: 5330 | P127: 3629 | Q127: 23048 | R127: -19419 | S127: 10200 | T127: 10014 | Y127: 678 | Z127: 1149 | AR127: 21 | AS127: 83 | AU127: 286 | AV127: 3317 | AX127: 0.8471153846 | AY127: 43.5 | AZ127: -2309 | BD127: 62.4 | BE127: 350 | BF127: 17 | BG127: 7571.681939 | BH127: 4804 | BI127: 2690 | BJ127: 22134 | BK127: -19444 | BL127: 10467 | BM127: 9976 | BR127: 853 | BS127: 1089 | CK127: 21 | CM127: 97 | CN127: 82 | CO127: 3317 | CQ127: 1.005390836 | CR127: 58.35328124 | CS127: -3447.995176 | CW127: 54.8680587 | CX127: 227.3138378 | CY127: 9.656830064 | CZ127: 8591.799819 | DA127: 4800 | DB127: 2693 | DC127: 22108 | DD127: -19415 | DE127: 10588 | DF127: 9901 | DK127: 780 | DL127: 1191 | ED127: 21 | EE127: 80 | EG127: 141 | EH127: 3317 | ET127: 4800 | EU127: 2693 | EV127: 22184 | EW127: -19491 | EX127: 11040 | EY127: 9838 | FD127: 924 | FE127: 1201 | FW127: 21,5 | FX127: 80 | FZ127: 15016 | GA127: 15057 | GB127: 15000 | GC127: 15000 | GE127: 450 | GG127: -3000 | GH127: 1000 | GI127: 270 | GJ127: -2501 | GK127: 70 | GL127: 30 | GM127: -1392 | GN127: 0 | GO127: 50 | GP127: -550 | GR127: 50 | GS127: 1000 | GT127: 800 | GU127: 2162 | GV127: 1000 | GW127: 3037 | GX127: 1200 | GY127: 2322 | GZ127: 1531 | HA127: 3031 | HB127: 1972 | HC127: 1127 | HG127: 1392 | HH127: 5147 | HI127: 4880 | HJ127: 1810 | HK127: 550 | HY127: 651 | HZ127: -651
A128: 405 | B128: Lappeenranta | C128: 72658 | E128: 0.8365663524 | F128: 64.8 | G128: -2831 | K128: 50.9 | L128: 294 | M128: 17 | N128: 5632.040813 | O128: 103967 | P128: 71 | Q128: 457451 | R128: -457380 | S128: 287700 | T128: 102600 | Y128: 18700 | Z128: 20000 | AR128: 21 | AS128: 2324 | AU128: 166 | AV128: 72658 | AX128: 0.4493518338 | AY128: 72.6 | AZ128: -3276 | BD128: 48.1 | BE128: 311 | BF128: 17 | BG128: 6503.93516 | BH128: 105614 | BI128: 81 | BJ128: 462163 | BK128: -462082 | BL128: 291300 | BM128: 99100 | BR128: 20100 | BS128: 20000 | CK128: 21 | CM128: 166 | CN128: 2225 | CO128: 72658 | CQ128: 0.9243611147 | CR128: 71.4053613 | CS128: -3459.67409 | CW128: 47.32923686 | CX128: 268.4769743 | CY128: 14.53912157 | CZ128: 6740.028627 | DA128: 108126 | DB128: 83 | DC128: 471581 | DD128: -471498 | DE128: 297800 | DF128: 99100 | DK128: 20500 | DL128: 20000 | ED128: 21 | EE128: 2190 | EG128: 115 | EH128: 72658 | ET128: 110000 | EU128: 84 | EV128: 472100 | EW128: -472016 | EX128: 298700 | EY128: 99100 | FD128: 19700 | FE128: 20000 | FW128: 21 | FX128: 2160 | FZ128: 302703 | GA128: 306202 | GB128: 312515 | GC128: 315000 | GG128: -23611 | GH128: 1300 | GJ128: -33500 | GK128: 3100 | GL128: 4300 | GM128: -32900 | GN128: 1400 | GO128: 5800 | GP128: -36400 | GQ128: 1400 | GS128: 13058 | GT128: 12397 | GU128: 75000 | GV128: -24626 | GW128: 40000 | GX128: -840 | GY128: 220000 | GZ128: 122784 | HA128: 78108 | HB128: 119456 | HC128: 217400 | HG128: 229000 | HH128: 182682 | HI128: 53884 | HJ128: 119656 | HK128: 229300 | HY128: 21416 | HZ128: -21416
A129: 408 | B129: Lapua | C129: 14692 | E129: 1.005638474 | F129: 44.5 | G129: -2067 | K129: 54.2 | L129: 327 | M129: 18 | N129: 5717.962836 | O129: 42820 | P129: 13923 | Q129: 90824 | R129: -77531 | S129: 48150 | T129: 32800 | Y129: 3270 | Z129: 4500 | AR129: 21 | AS129: 904 | AU129: 200 | AV129: 14692 | AX129: 0.8353879623 | AY129: 50.2 | AZ129: -2503 | BD129: 48.8 | BE129: 289 | BF129: 15 | BG129: 6880.750853 | BH129: 42691 | BI129: 13916 | BJ129: 89470 | BK129: -76071 | BL129: 48600 | BM129: 33000 | BR129: 5058 | BS129: 4600 | CK129: 21 | CM129: 127 | CN129: 904 | CO129: 14692 | CQ129: 0.5764914353 | CR129: 59.89239504 | CS129: -3297.100463 | CW129: 42.03407342 | CX129: 193.5747345 | CY129: 9.613535965 | CZ129: 7349.509937 | DB129: 13515 | DC129: 89538 | DD129: -76028 | DE129: 49900 | DF129: 33000 | DK129: 6282 | DL129: 4700 | ED129: 21 | EE129: 904 | EG129: 223 | EH129: 14692 | EU129: 14260 | EV129: 90106 | EW129: -76346 | EX129: 51250 | EY129: 33000 | FD129: 7214 | FE129: 4800 | FW129: 21 | FX129: 404 | FZ129: 36175 | GA129: 34750 | GG129: -13860 | GH129: 553 | GI129: 1800 | GJ129: -11034 | GK129: 1048 | GL129: 900 | GM129: -9151 | GN129: 420 | GO129: 1300 | GP129: -9232 | GQ129: 600 | GR129: 1300 | GS129: 5000 | GU129: 4000 | GV129: 4000 | GW129: 13000 | GY129: 44768 | GZ129: 20932 | HA129: 3325 | HB129: 2243 | HC129: 48853 | HG129: 49853 | HH129: 28771 | HI129: 8782 | HJ129: 2168 | HK129: 49853 | HY129: 2937 | HZ129: -2937
A130: 410 | B130: Laukaa | C130: 18588 | E130: 36.88505747 | F130: 43.1 | G130: -2067 | K130: 43.1 | L130: 26 | M130: 2 | N130: 5187.356448 | O130: 39360 | P130: 26269 | Q130: 116468 | R130: -90199 | S130: 61186 | T130: 32234 | Y130: 4973 | Z130: 4730 | AR130: 20,5 | AS130: 850 | AU130: 218 | AV130: 18588 | AX130: 9.008810573 | AY130: 51.4 | AZ130: -2590 | BD130: 36.6 | BE130: 30 | BF130: 2 | BG130: 6038.417835 | BH130: 39057 | BI130: 27365 | BJ130: 118566 | BK130: -91201 | BL130: 64750 | BM130: 32650 | BR130: 6429 | BS130: 5424 | CK130: 21,5 | CM130: 191 | CN130: 844 | CO130: 18588 | CQ130: 14.37623762 | CR130: 60.57365321 | CS130: -3212.018507 | CW130: 31.16738351 | CX130: 47.23477512 | CY130: 2.659369658 | CZ130: 6482.999785 | DD130: -92770 | DE130: 66450 | DF130: 33300 | DK130: 7451 | DL130: 5966 | ED130: 21,5 | EE130: 848 | EG130: 254 | EH130: 18588 | EW130: -94823 | EX130: 68500 | EY130: 33950 | FD130: 7287 | FE130: 6287 | FW130: 21,5 | FX130: 848 | FZ130: 57251 | GA130: 58432 | GG130: -17917 | GH130: 799 | GI130: 969 | GJ130: -17181 | GK130: 1675 | GL130: 1001 | GM130: -16160 | GN130: 1000 | GO130: 75 | GP130: -10510 | GR130: 75 | GT130: 2900 | GV130: 9300 | GX130: 11300 | GY130: 69445 | GZ130: 32 | HA130: 27106 | HB130: 370 | HC130: 77784 | HG130: 84819 | HH130: 19 | HI130: 47706 | HJ130: 289 | HK130: 87354 | HY130: 63 | HZ130: -63
A131: 416 | B131: Lemi | C131: 3130 | E131: 2.702830189 | F131: 13.4 | G131: -240 | K131: 78.9 | L131: 322 | M131: 22 | N131: 6704.693611 | O131: 5111 | P131: 1987 | Q131: 16997 | R131: -15010 | S131: 10035 | T131: 5811 | Y131: 767 | Z131: 786 | AR131: 21 | AS131: 129 | AU131: 232 | AV131: =C131 -> 3130 | AX131: 0 | AY131: 25.5 | AZ131: -1096 | BD131: 64.9 | BE131: 96 | BF131: 6 | BG131: 6218.045113 | BH131: 5050 | BI131: 1856 | BJ131: 17241 | BK131: -15385 | BL131: 10375 | BM131: 5787 | BR131: 709 | BS131: 631 | CK131: 21 | CM131: 250 | CN131: 127 | CO131: =AV131 -> 3130 | CQ131: 2.411622276 | CR131: 30.01618123 | CS131: -1430.670927 | CW131: 59.9939976 | CX131: 77.95527157 | CY131: 4.704701532 | CZ131: 6047.923323 | DA131: 5049 | DB131: 1617 | DC131: 17331 | DD131: -15714 | DE131: 10924 | DF131: 5636 | DK131: 736 | DL131: 643 | ED131: 21,75 | EE131: 127 | EG131: 148 | EH131: =CO131 -> 3130 | ET131: 5087 | EU131: 1535 | EV131: 17518 | EW131: -15983 | EX131: 11384 | EY131: 5486 | FD131: 742 | FE131: 690 | FW131: 21,75 | FX131: 127 | FZ131: 10577 | GA131: 10909 | GB131: 11059 | GC131: 11229 | GG131: -1553 | GH131: 365 | GI131: 10 | GJ131: -993 | GK131: 100 | GL131: 10 | GM131: -2650 | GO131: 10 | GP131: -660 | GR131: 10 | GU131: 1735 | GV131: 315 | GW131: 1220 | GY131: 4058 | GZ131: 730 | HA131: 110 | HB131: 458 | HC131: 4260 | HG131: 6230 | HH131: 3248 | HI131: 420 | HJ131: 458 | HK131: 6167 | HY131: 110 | HZ131: -110
A132: 418 | B132: Lempäälä | C132: 21829 | E132: 1.609417741 | F132: 43.2 | G132: -1746 | K132: 55.4 | L132: 415 | M132: 24 | N132: 5426.129835 | O132: 62810 | P132: 23121 | Q132: 127350 | R132: -104585 | S132: 86096 | T132: 25314 | Y132: 6100 | Z132: 8480 | AR132: 20,5 | AU132: 77 | AV132: 21829 | AX132: 0.977874818 | AY132: 48.4 | AZ132: -2278 | BD132: 51.2 | BE132: 171 | BF132: 9 | BG132: 6753.63806 | BH132: 63650 | BI132: 11699 | BJ132: 130390 | BK132: -119094 | BL132: 87966 | BM132: 23500 | BR132: 4288 | BS132: 9574 | CK132: 20,5 | CM132: 75 | CO132: 21829 | CQ132: 1.240155505 | CR132: 54.94926316 | CS132: -2751.889688 | CW132: 48.22672842 | CX132: 288.1029823 | CY132: 14.38201719 | CZ132: 7311.741262 | DA132: 64666 | DB132: 23247 | DC132: 132741 | DD132: -109886 | DE132: 94017 | DF132: 22400 | DK132: 5817 | DL132: 10495 | ED132: 21 | EG132: 86 | EH132: 21829 | ET132: 65695 | EU132: 23655 | EV132: 135632 | EW132: -112369 | EX132: 99553 | EY132: 21300 | FD132: 7771 | FE132: 10231 | FW132: 21 | FZ132: 46193 | GA132: 47230 | GB132: 48174 | GC132: 49138 | GG132: -23315 | GH132: 375 | GI132: 800 | GJ132: -18462 | GK132: 450 | GL132: 800 | GM132: -8603 | GN132: 23 | GO132: 800 | GP132: -10610 | GQ132: 10 | GR132: 800 | GS132: 5000 | GU132: 13500 | GW132: 19500 | GY132: 63964 | GZ132: 28145 | HA132: 5370 | HB132: 405 | HC132: 74843 | HG132: 76390 | HH132: 46152 | HI132: 7619 | HJ132: 405 | HK132: 77987 | HY132: 5084 | HZ132: -5084
A133: 420 | B133: Leppävirta | C133: 10170 | E133: 4.271442987 | F133: 18.9 | G133: -498 | K133: 80.4 | L133: 426 | M133: 25 | N133: 6669.101394 | O133: 22390 | P133: 9622 | Q133: 63223 | R133: -53601 | S133: 32455 | T133: 24637 | Y133: 3978 | Z133: 3949 | AR133: 20 | AS133: 505 | AU133: 86 | AV133: 10170 | AX133: 1.429778247 | AY133: 21.5 | AZ133: -858 | BD133: 77.1 | BE133: 262 | BF133: 14 | BG133: 6709.94744 | BH133: 21865 | BI133: 9789 | BJ133: 63552 | BK133: -53763 | BL133: 32649 | BM133: 24583 | BR133: 3800 | BS133: 3800 | CK133: 20 | CM133: 175 | CN133: 491 | CO133: 10170 | CQ133: 5.589721254 | CR133: 27.03697607 | CS133: -848.0825959 | CW133: 72.92652298 | CX133: 740.806293 | CY133: 39.38119379 | CZ133: 6866.076696 | DA133: 22000 | DB133: 10063 | DC133: 64060 | DD133: -53997 | DE133: 32845 | DF133: 24529 | DK133: 3850 | DL133: 3850 | ED133: 20 | EE133: 491 | EG133: 29 | EH133: 10170 | ET133: 17500 | EU133: 10052 | EV133: 64674 | EW133: -54622 | EX133: 33500 | EY133: 24529 | FD133: 3850 | FE133: 3850 | FW133: 22 | FX133: 381 | FZ133: 33934 | GA133: 34454 | GB133: 35000 | GC133: 37000 | GG133: -6000 | GH133: -114 | GI133: -60 | GJ133: -3617 | GL133: -60 | GM133: -5735 | GO133: -60 | GP133: -8875 | GR133: -60 | GU133: 4000 | GW133: 5000 | GY133: 12148 | GZ133: 3021 | HA133: 611 | HB133: 4725 | HC133: 9974 | HG133: 10361 | HH133: 9287 | HI133: 1523 | HJ133: 4573 | HK133: 15598 | HY133: 611 | HZ133: -611
A134: 421 | B134: Lestijärvi | C134: 818 | E134: 0.9264705882 | F134: 42.6 | G134: -1583 | K134: 70.7 | L134: 694 | M134: 28 | N134: 18613.93152 | O134: 2481 | P134: 3927 | Q134: 9064 | R134: -5137 | S134: 1995 | T134: 3201 | Y134: 18 | Z134: 265 | AR134: 20 | AS134: 48 | AU134: 38 | AV134: 818 | AX134: 0.3773234201 | AY134: 36.6 | AZ134: -1596 | BD134: 73.8 | BE134: 380 | BF134: 15 | BG134: 9013.173653 | BH134: 2321 | BI134: 2041 | BJ134: 7301 | BK134: -5260 | BL134: 2160 | BM134: 3153 | BR134: 12 | BS134: 316 | CK134: 20 | CM134: 116 | CN134: 47 | CO134: 818 | CQ134: 16.05882353 | CR134: 39.99721371 | CS134: -1843.520782 | CW134: 71.59786688 | CX134: 447.4327628 | CY134: 18.0527027 | CZ134: 9046.454768 | DA134: 2188 | DB134: 1778 | DC134: 7040 | DD134: -5262 | DE134: 2360 | DF134: 3100 | DK134: 147 | DL134: 301 | ED134: 21 | EE134: 47 | EG134: 133 | EH134: 818 | ET134: 2200 | EU134: 1789 | EV134: 7054 | EW134: -5265 | EX134: 2760 | EY134: 3050 | FD134: 484 | FE134: 292 | FW134: 21 | FX134: 47 | FZ134: 5420 | GA134: 4270 | GB134: 4156 | GC134: 4158 | GG134: -1327 | GH134: 600 | GJ134: -978 | GK134: 50 | GM134: -109 | GP134: -42 | GT134: 568 | GV134: -130 | GW134: 798 | GX134: -547 | GY134: 1603 | GZ134: 1306 | HA134: 1042 | HB134: 519 | HC134: 2817 | HG134: 3060 | HH134: 1603 | HI134: 365 | HJ134: 771 | HK134: 2891 | HY134: 502 | HZ134: -502
A135: 422 | B135: Lieksa | C135: 12303 | E135: 2.467940814 | F135: 30.2 | G135: -1011 | K135: 65.5 | L135: 703 | M135: 35 | N135: 7815.176798 | O135: 39812 | P135: 15292 | Q135: 88674 | R135: -73522 | S135: 40519 | T135: 38980 | Y135: 6315 | Z135: 3629 | AR135: 21 | AS135: 923 | AU135: 129 | AV135: 12303 | AX135: 0.4363698396 | AY135: 34.1 | AZ135: -1410 | BD135: 60.5 | BE135: 736 | BF135: 34 | BG135: 7869.828212 | BH135: 40588 | BI135: 13561 | BJ135: 88412 | BK135: -74970 | BL135: 40699 | BM135: 38328 | BR135: 4532 | BS135: 3694 | CK135: 21 | CM135: 213 | CN135: 904 | CO135: 12303 | CQ135: 0.8214621901 | CR135: 30.00458335 | CS135: -1467.203121 | CW135: 61.42318542 | CX135: 528.4077054 | CY135: 24.48195991 | CZ135: 7877.997236 | DA135: 40400 | DB135: 13408 | DC135: 87772 | DD135: -74376 | DE135: 39784 | DF135: 38000 | DK135: 3728 | DL135: 3700 | ED135: 21 | EE135: 899 | EG135: 211 | EH135: 12303 | ET135: 40300 | EU135: 13246 | EV135: 87342 | EW135: -74216 | EX135: 39926 | EY135: 38020 | FD135: 4050 | FE135: 3800 | FW135: 21 | FX135: 896 | FZ135: 33904 | GA135: 32572 | GB135: 32300 | GC135: 32100 | GG135: -5195 | GI135: 60 | GJ135: -6570 | GK135: 870 | GL135: 60 | GM135: -4965 | GN135: 10 | GO135: 60 | GP135: -3760 | GR135: 60 | GS135: 7000 | GU135: 6000 | GY135: 20517 | GZ135: 12744 | HA135: 2404 | HB135: 694 | HC135: 19208 | HG135: 15708 | HH135: 13198 | HI135: 2709 | HJ135: 1252 | HK135: 15208 | HY135: 1317 | HZ135: -1317
A136: 423 | B136: Lieto | C136: 17172 | E136: 1.247852761 | F136: 51.3 | G136: -2306 | K136: 44 | L136: 112 | M136: 7 | N136: 5373.337328 | O136: 47829 | P136: 29457 | Q136: 108553 | R136: -79096 | S136: 64000 | T136: 18882 | Y136: 3939 | Z136: 4518 | AR136: 19 | AS136: 880 | AU136: 198 | AV136: 17172 | AX136: 0.6285504407 | AY136: 56.8 | AZ136: -2540 | BD136: 39.1 | BE136: 106 | BF136: 7 | BG136: 5808.905598 | BH136: 53577 | BI136: 28094 | BJ136: 117482 | BK136: -89388 | BL136: 72619 | BM136: 21852 | BR136: 4389 | BS136: 4908 | CK136: 19,5 | CM136: 184 | CN136: 1000 | CO136: 17172 | CQ136: 1.142893337 | CR136: 54.51053717 | CS136: -2871.418588 | CW136: 36.60807381 | CX136: 299.3244817 | CY136: 15.48537799 | CZ136: 7055.264384 | DA136: 54022 | DB136: 28426 | DC136: 119199 | DD136: -90773 | DE136: 74843 | DF136: 20630 | DK136: 4005 | DL136: 4944 | ED136: 19,5 | EE136: 1000 | EG136: 181 | EH136: 17172 | ET136: 54656 | EU136: 28532 | EV136: 212011 | EW136: -183479 | EX136: 77385 | EY136: 20573 | FD136: 4765 | FE136: 5027 | FW136: 19,5 | FX136: 1000 | FZ136: 46156 | GA136: 47830 | GB136: 48991 | GC136: 50515 | GG136: -5847 | GH136: 225 | GI136: 2056 | GJ136: -8006 | GL136: 2756 | GM136: -9926 | GO136: 2850 | GP136: -9585 | GR136: 2400 | GS136: 20000 | GT136: -13470 | GV136: 7456 | GW136: 2719 | GX136: 4708 | GY136: 39004 | GZ136: 27544 | HA136: 5341 | HB136: 593 | HC136: 50084 | HG136: 54664 | HH136: 13483 | HI136: 27511 | HJ136: 580 | HK136: 59244 | HY136: 2603 | HZ136: -2603
A137: 425 | B137: Liminka | C137: 9577 | E137: 1.755855608 | F137: 47 | G137: -2176 | K137: 59.1 | L137: 129 | M137: 7 | N137: 7512.439983 | O137: 28393 | P137: 7078 | Q137: 53902 | R137: -46824 | S137: 27885 | T137: 24264 | Y137: 4701 | Z137: 4143 | AR137: 20,5 | AS137: 728 | AU137: 36 | AV137: 9577 | AX137: 1.456375839 | AY137: 47.9 | AZ137: -2157 | BD137: 58.6 | BE137: 140 | BF137: 8 | BG137: 6381.573367 | BH137: 27572 | BI137: 6705 | BJ137: 53152 | BK137: -46447 | BL137: 28200 | BM137: 22992 | BR137: 4006 | BS137: 4005 | CK137: 20,5 | CM137: 49 | CN137: 726 | CO137: 9577 | CQ137: 2.885961301 | CR137: 50.82100175 | CS137: -2366.398663 | CW137: 57.2855105 | CX137: 375.6917615 | CY137: 19.58058745 | CZ137: 7003.236922 | DA137: 27226 | DB137: 6686 | DC137: 52767 | DD137: -46081 | DE137: 28530 | DF137: 22192 | DK137: 3830 | DL137: 3825 | ED137: 20,75 | EE137: 724 | EG137: 19 | EH137: 9577 | ET137: 26976 | EU137: 6746 | EV137: 52235 | EW137: -45489 | EX137: 28830 | EY137: 21392 | FD137: 3845 | FE137: 3710 | FW137: 21 | FX137: 722 | FZ137: 17726 | GA137: 17385 | GB137: 17370 | GC137: 17370 | GG137: -7995 | GH137: 350 | GI137: 425 | GJ137: -1800 | GK137: 150 | GL137: 125 | GM137: -3620 | GN137: 1150 | GO137: 125 | GP137: -3690 | GQ137: 700 | GR137: 125 | GS137: 8000 | GT137: 800 | GV137: 3200 | GX137: 5000 | GY137: 24752 | GZ137: 15592 | HA137: 3018 | HB137: 745 | HC137: 24613 | HG137: 24852 | HH137: 9501 | HI137: 13218 | HJ137: 716 | HK137: 25497 | HY137: 1949 | HZ137: -1949
A138: 426 | B138: Liperi | C138: 12396 | E138: 0.7538153615 | F138: 41.3 | G138: -2569 | K138: 30.3 | L138: 209 | M138: 10 | N138: 8410.711379 | O138: 34848 | P138: 24701 | Q138: 86182 | R138: -61481 | S138: 38400 | T138: 25800 | Y138: 2366 | Z138: 2240 | AR138: 21,5 | AS138: 850 | AU138: 209 | AV138: 12396 | AX138: -0.3228718831 | AY138: 48.1 | AZ138: -2972 | BD138: 21.4 | BE138: 275 | BF138: 12 | BG138: 8390.981689 | BH138: 34702 | BI138: 24106 | BJ138: 86627 | BK138: -62521 | BL138: 39700 | BM138: 25500 | BR138: 2290 | BS138: 2383 | CK138: 21,5 | CM138: 299 | CN138: 800 | CO138: 12396 | CQ138: 0.8042955008 | CR138: 44.6477299 | CS138: -2907.954179 | CW138: 23.76269907 | CX138: 293.9657954 | CY138: 12.78375287 | CZ138: 8393.272023 | DD138: -62740 | DE138: 40800 | DF138: 25700 | DK138: 3210 | DL138: 2700 | ED138: 21,5 | EE138: 750 | EG138: 145 | EH138: 12396 | EW138: -63200 | EX138: 42000 | EY138: 26000 | FD138: 4250 | FE138: 2700 | FW138: 21,5 | FX138: 550 | FZ138: 38044 | GA138: 38357 | GF138: 1250 | GG138: -6153 | GJ138: -12637 | GK138: 1040 | GM138: -4555 | GP138: -2925 | GS138: 5000 | GT138: -2400 | GU138: 6000 | GV138: 3628 | GW138: 5000 | GX138: -1781 | GY138: 34600 | GZ138: 19590 | HA138: 6037 | HB138: 1784 | HC138: 39500 | HG138: 40000 | HH138: 21097 | HI138: 8546 | HJ138: 1530 | HK138: 40000 | HY138: 3322 | HZ138: -3322
A139: 444 | B139: Lohja | C139: 47703 | E139: 1.873370577 | F139: 35.7 | G139: -1831 | K139: 59.4 | L139: 111 | M139: 6 | N139: 6063.333837 | O139: 132315 | P139: 51142 | Q139: 290251 | R139: -239109 | S139: 180405 | T139: 62021 | Y139: 2523 | Z139: 12524 | AR139: 20 | AS139: 3300 | AU139: 150 | AV139: 47703 | AX139: 0.3860826098 | AY139: 39.2 | AZ139: -2143 | BD139: 54.9 | BE139: 109 | BF139: 6 | BG139: 6899.608571 | BH139: 130079 | BI139: 50695 | BJ139: 286766 | BK139: -236071 | BL139: 189008 | BM139: 60200 | BR139: 12425 | BS139: 12595 | CK139: 20,5 | CM139: 226 | CN139: 3300 | CO139: 47703 | CQ139: 1.419856006 | CR139: 40.65137368 | CS139: -2222.92099 | CW139: 53.62609758 | CX139: 59.30444626 | CY139: 3.326862729 | CZ139: 6506.467099 | DA139: 130447 | DB139: 50271 | DC139: 288783 | DD139: -238512 | DE139: 195677 | DF139: 61103 | DK139: 17555 | DL139: 13541 | ED139: 20,5 | EE139: 3300 | EG139: 194 | EH139: 47703 | ET139: 130898 | EU139: 51091 | EV139: 292524 | EW139: -241433 | EX139: 201457 | EY139: 62142 | FD139: 21454 | FE139: 14823 | FW139: 20,5 | FX139: 3300 | FZ139: 123141 | GA139: 119622 | GB139: 121941 | GC139: 124040 | GG139: -31011 | GI139: 3500 | GJ139: -23925 | GK139: 615 | GL139: 2500 | GM139: -29615 | GO139: 2500 | GP139: -17220 | GR139: 2500 | GS139: 10000 | GT139: -3296 | GV139: 13551 | GW139: 15000 | GX139: -5579 | GY139: 1929 | GZ139: 45367 | HA139: 13483 | HB139: 2843 | HC139: 2109 | HG139: 2308 | HH139: 58025 | HI139: 23226 | HJ139: 3410 | HK139: 2174 | HY139: 5677 | HZ139: -5677
A140: 430 | B140: Loimaa | C140: 16700 | E140: 0.5448251584 | F140: 37.7 | G140: -2136 | K140: 52.2 | L140: 155 | M140: 8 | N140: 6582.680437 | O140: 49467 | P140: 17951 | Q140: 109751 | R140: -91826 | S140: 52981 | T140: 42086 | Y140: 3029 | Z140: 3593 | AR140: 20,5 | AS140: 1021 | AU140: 163 | AV140: 16700 | AX140: -0.1151903652 | AY140: 47.2 | AZ140: -2641 | BD140: 44.5 | BE140: 197 | BF140: 10 | BG140: 7381.25112 | BH140: 47283 | BI140: 17050 | BJ140: 108136 | BK140: -91112 | BL140: 53451 | BM140: 41647 | BR140: 3605 | BS140: 3692 | CK140: 20,5 | CM140: 277 | CN140: 990 | CO140: 16700 | CQ140: 1.143755459 | CR140: 44.79696435 | CS140: -2376.646707 | CW140: 46.31156072 | CX140: 249.9401198 | CY140: 12.88696594 | CZ140: 7079.101796 | DA140: 17190 | DB140: 15803 | DC140: 107635 | DD140: -91857 | DE140: 54932 | DF140: 41100 | DK140: 3837 | DL140: 3901 | ED140: 20,5 | EE140: 980 | EG140: 106 | EH140: 16700 | ET140: 46275 | EU140: 15678 | EV140: 105396 | EW140: -89743 | EX140: 56305 | EY140: 39800 | FD140: 5974 | FE140: 3930 | FW140: 20,5 | FX140: 530 | FZ140: 46829 | GA140: 46807 | GB140: 46519 | GC140: 45425 | GG140: -4074 | GH140: 87 | GI140: 492 | GJ140: -6087 | GK140: 250 | GL140: 691 | GM140: -8746 | GN140: 288 | GO140: 386 | GP140: -3266 | GQ140: 750 | GR140: 381 | GS140: 7400 | GT140: -7000 | GU140: 2500 | GV140: 11000 | GW140: 8500 | GX140: -4000 | GY140: 39496 | GZ140: 22867 | HA140: 7530 | HB140: 679 | HC140: 41578 | HG140: 46050 | HH140: 23248 | HI140: 15384 | HJ140: 644 | HK140: 42442 | HY140: 8094 | HZ140: -8094
A141: 433 | B141: Loppi | C141: 8341 | E141: 0.9135723431 | F141: 49.6 | G141: -2384 | K141: 49.8 | L141: 93 | M141: 6 | N141: 5800.644622 | O141: 18768 | P141: 8971 | Q141: 49118 | R141: -40205 | S141: 26339 | T141: 15942 | Y141: 1733 | Z141: 1692 | AR141: 20 | AS141: 434 | AU141: 71 | AV141: 8341 | AX141: 0.6659110724 | AY141: 44.8 | AZ141: -2195 | BD141: 53.8 | BE141: 141 | BF141: 8 | BG141: 6073.536468 | BH141: 18883 | BI141: 8862 | BJ141: 50082 | BK141: -41278 | BL141: 27725 | BM141: 15126 | BR141: 1271 | BS141: 1742 | CK141: 20,5 | CM141: 36 | CN141: 434 | CO141: 8341 | CQ141: 0.7544378698 | CR141: 42.83286961 | CS141: -2154.298046 | CW141: 56.27373978 | CX141: 113.7753267 | CY141: 6.732720417 | CZ141: 6168.085361 | DA141: 18863 | DB141: 8982 | DC141: 50273 | DD141: -41349 | DE141: 28560 | DF141: 14846 | DK141: 1731 | DL141: 1999 | ED141: 20,5 | EE141: 434 | EG141: 96 | EH141: 8341 | ET141: 18854 | EU141: 9168 | EV141: 50482 | EW141: -41372 | EX141: 29228 | EY141: 14816 | FD141: 2248 | FE141: 1923 | FW141: 20,5 | FX141: 431 | FZ141: 25186 | GA141: 25873 | GB141: 26084 | GC141: 26302 | GG141: -3709 | GI141: 100 | GJ141: -5651 | GK141: 170 | GL141: 100 | GM141: -3442 | GO141: 300 | GP141: -4370 | GR141: 500 | GS141: 1500 | GT141: -1300 | GU141: 3500 | GW141: 2000 | GX141: 1800 | GY141: 15010 | GZ141: 12230 | HA141: 5918 | HB141: 1620 | HC141: 16491 | HG141: 16642 | HH141: 7632 | HI141: 8018 | HJ141: 1497 | HK141: 16170 | HY141: 3878 | HZ141: -3878
A142: 434 | B142: Loviisa | C142: 15493 | E142: 2.225886232 | F142: 27.7 | G142: -1229 | K142: 61.7 | L142: 462 | M142: 23 | N142: 6801.50463 | O142: 50342 | P142: 21078 | Q142: 109598 | R142: -88520 | S142: 64100 | T142: 24600 | Y142: 1013 | Z142: 2921 | AR142: 19,75 | AS142: 1022 | AU142: 33 | AV142: 15493 | AX142: 1.676842684 | AY142: 25.3 | AZ142: -1169 | BD142: 63.6 | BE142: 372 | BF142: 18 | BG142: 7661.060635 | BH142: 49318 | BI142: 19081 | BJ142: 106774 | BK142: -87693 | BL142: 63150 | BM142: 24000 | BR142: 408 | BS142: 2747 | CK142: 19,75 | CM142: 50 | CN142: 1007 | CO142: 15493 | CQ142: 2.273394031 | CR142: 27.10723235 | CS142: -1300.006455 | CW142: 63.46937881 | CX142: 493.6422901 | CY142: 22.25950498 | CZ142: 8094.494288 | DA142: 49948 | DB142: 18352 | DC142: 108240 | DD142: -89888 | DE142: 63850 | DF142: 24200 | DK142: 1037 | DL142: 2900 | ED142: 19,75 | EE142: 996 | EG142: 41 | EH142: 15493 | ET142: 49950 | EU142: 18628 | EV142: 107838 | EW142: -89210 | EX142: 66650 | EY142: 24100 | FD142: 2275 | FE142: 3000 | FW142: 19,8 | FX142: 990 | FZ142: 45764 | GA142: 44141 | GB142: 44777 | GC142: 44800 | GG142: -16971 | GH142: 4827 | GJ142: -10537 | GK142: 150 | GM142: -10515 | GN142: 540 | GP142: -9395 | GT142: -280 | GV142: -473 | GW142: 5000 | GX142: 497 | GY142: 30154 | GZ142: 16348 | HA142: 3598 | HB142: 1737 | HC142: 36753 | HG142: 44923 | HH142: 14621 | HI142: 3621 | HJ142: 1767 | HK142: 51258 | HY142: 3602 | HZ142: -3602
A143: 435 | B143: Luhanka | C143: 763 | E143: 0.8879310345 | F143: 40.4 | G143: -2132 | K143: 53.8 | L143: 137 | M143: 6 | N143: 8509.975062 | O143: 2207 | P143: 1048 | Q143: 6379 | R143: -5331 | S143: 2183 | T143: 3246 | Y143: 83 | Z143: 255 | AR143: 19 | AS143: 42 | AU143: 241 | AV143: 763 | AX143: 0.1782178218 | AY143: 44.5 | AZ143: -2798 | BD143: 49.6 | BE143: 348 | BF143: 14 | BG143: 9278.137128 | BH143: 2183 | BI143: 1100 | BJ143: 6328 | BK143: -5228 | BL143: 2250 | BM143: 3054 | BR143: 68 | BS143: 215 | CK143: 19 | CM143: 230 | CN143: 41 | CO143: 763 | CQ143: 1.263598326 | CR143: 40.34975132 | CS143: -2689.38401 | CW143: 52.36669785 | CX143: 231.9790301 | CY143: 9.91026231 | CZ143: 8543.905636 | DA143: 2195 | DB143: 1100 | DC143: 6365 | DD143: -5265 | DE143: 2270 | DF143: 3000 | DK143: 3 | DL143: 200 | ED143: 19 | EE143: 41 | EG143: 100 | EH143: 763 | ET143: 2196 | EU143: 1100 | EV143: 6366 | EW143: -5266 | EX143: 2270 | EY143: 3000 | FD143: 4 | FE143: 200 | FW143: 19 | FX143: 41 | FZ143: 3482 | GA143: 3461 | GB143: 3481 | GC143: 3488 | GG143: -60 | GH143: 83 | GJ143: -130 | GK143: 164 | GM143: -150 | GN143: 150 | GP143: -95 | GQ143: 100 | GS143: 20 | GU143: 732 | GW143: 111 | GY143: 1400 | GZ143: 1078 | HA143: 118 | HB143: 132 | HC143: 1300 | HG143: 1200 | HH143: 1447 | HI143: 110 | HJ143: 127 | HK143: 1100 | HY143: 138 | HZ143: -138
A144: 436 | B144: Lumijoki | C144: 2084 | E144: 0.6283367556 | F144: 45.6 | G144: -2222 | K144: 49.6 | L144: 42 | M144: 3 | N144: 7401.08002 | O144: 6132 | P144: 1450 | Q144: 12472 | R144: -11033 | S144: 5040 | T144: 6057 | Y144: 0 | Z144: 630 | AR144: 20,5 | AS144: 144 | AU144: 257 | AV144: 2084 | AX144: 2.179551122 | AY144: 40 | AZ144: -1988 | BD144: 52.9 | BE144: 57 | BF144: 4 | BG144: 5814.958718 | BH144: 5941 | BI144: 1442 | BJ144: 12440 | BK144: -11008 | BL144: 5250 | BM144: 5830 | BR144: 0 | BS144: 690 | CK144: 20,5 | CM144: 43 | CN144: 140 | CO144: 2084 | CQ144: 0.7547169811 | CR144: 47.53316914 | CS144: -2466.410749 | CW144: 45.79430836 | CX144: 124.7600768 | CY144: 6.570657066 | CZ144: 6930.422265 | DA144: 6361 | DB144: 1496 | DC144: 12940 | DD144: -11445 | DE144: 5420 | DF144: 6100 | DL144: 670 | ED144: 20,5 | EE144: 140 | EG144: 242 | EH144: 2084 | ET144: 6361 | EU144: 1505 | EV144: 12940 | EW144: -11445 | EX144: 5420 | EY144: 6100 | FE144: 670 | FW144: 20,5 | FX144: 140 | FZ144: 4692 | GA144: 4824 | GB144: 4865 | GC144: 4865 | GG144: -1820 | GI144: 30 | GJ144: -375 | GK144: 0 | GL144: 30 | GM144: -160 | GO144: 30 | GP144: -240 | GR144: 30 | GT144: 400 | GV144: -100 | GX144: 1550 | GY144: 6151 | GZ144: 2876 | HA144: 719 | HB144: 0 | HC144: 6481 | HG144: 6596 | HH144: 2238 | HI144: 2169 | HJ144: 0 | HK144: 6791 | HY144: 318 | HZ144: -318
A145: 440 | B145: Luoto | C145: 5065 | E145: 0.3223635004 | F145: 58 | G145: -1372 | K145: 53.7 | L145: 1176 | M145: 72 | N145: 5473.684211 | O145: 9523 | P145: 2817 | Q145: 27826 | R145: -25016 | S145: 13662 | T145: 12005 | Y145: 731 | Z145: 1053 | AR145: 19,5 | AS145: 248 | AU145: 251 | AV145: 5065 | AX145: 1.409530387 | AY145: 58.7 | AZ145: -1305 | BD145: 52.8 | BE145: 1475 | BF145: 91 | BG145: 5916.834474 | BH145: 9791 | BI145: 2914 | BJ145: 28528 | BK145: -25622 | BL145: 14620 | BM145: 11681 | BR145: 885 | BS145: 1147 | CK145: 20 | CM145: 44 | CN145: 248 | CO145: 5065 | CQ145: 0.7504786216 | CR145: 57.78754422 | CS145: -1455.281343 | CW145: 52.7000291 | CX145: 1390.918065 | CY145: 83.15305265 | CZ145: 6105.429418 | DB145: 2843 | DC145: 29084 | DD145: -26249 | DE145: 15265 | DF145: 11820 | DK145: 875 | DL145: 1163 | ED145: 20 | EE145: 248 | EG145: 186 | EH145: 5065 | EU145: 2798 | EV145: 29602 | EW145: -26812 | EX145: 15744 | EY145: 12100 | FD145: 1155 | FE145: 1214 | FW145: 20 | FX145: 248 | FZ145: 15260 | GA145: 15739 | GG145: -3242 | GH145: 60 | GI145: 170 | GJ145: -2061 | GK145: 110 | GL145: 200 | GM145: -2280 | GN145: 162 | GO145: 100 | GP145: -5080 | GQ145: 80 | GR145: 100 | GS145: 1000 | GT145: 1600 | GV145: 2800 | GW145: 2000 | GX145: -400 | GY145: 14238 | GZ145: 6508 | HA145: 2906 | HB145: 270 | HC145: 15087 | HG145: 16053 | HH145: 5945 | HI145: 5063 | HJ145: 570 | HK145: 19265 | HY145: 1337 | HZ145: -1337
A146: 441 | B146: Luumäki | C146: 4992 | F146: 10.3 | G146: 3571 | K146: 92.4 | L146: 3255 | M146: 209 | N146: 5678.257472 | O146: 8272 | P146: 4678 | Q146: 32303 | R146: -27625 | S146: 15936 | T146: 12104 | Y146: 984 | Z146: 1684 | AR146: 19 | AS146: 149 | AU146: 102 | AV146: 4992 | AY146: 10.3 | AZ146: 3340 | BD146: 92.2 | BE146: 3375 | BF146: 193 | BG146: 6389.287137 | BH146: 8145 | BI146: 4501 | BJ146: 32935 | BK146: -28434 | BL146: 16608 | BM146: 12291 | BR146: 933 | BS146: 1898 | CK146: 19,75 | CM146: 28 | CN146: 144 | CO146: 4992 | CR146: 8.898776418 | CS146: 3373.998397 | CW146: 92.90066778 | CX146: 3394.831731 | CY146: 191.2576526 | CZ146: 6478.766026 | DA146: 8235 | DB146: 4024 | DC146: 33284 | DD146: -29260 | DE146: 16722 | DF146: 12144 | DK146: 25 | DL146: 2037 | ED146: 19,75 | EE146: 144 | EG146: 76 | EH146: 4992 | ET146: 8097 | EU146: 3897 | EV146: 33388 | EW146: -29491 | EX146: 17048 | EY146: 12144 | FD146: 120 | FE146: 2087 | FW146: 19,75 | FX146: 144 | FZ146: 20921 | GA146: 21736 | GB146: 22134 | GC146: 22418 | GG146: -2732 | GI146: 100 | GJ146: -4075 | GK146: 1000 | GL146: 100 | GM146: -3053 | GN146: 100 | GO146: 100 | GP146: -2868 | GR146: 100 | GY146: 2700 | GZ146: 0 | HA146: 0 | HB146: 917 | HH146: 0 | HI146: 0 | HJ146: 965 | HY146: 0 | HZ146: 0
A147: 442 | B147: Luvia | C147: 3355 | E147: 0.424863388 | F147: 42.6 | G147: -1718 | K147: 49.6 | L147: 199 | M147: 13 | N147: 6406.50164 | O147: 7656 | P147: 2363 | Q147: 18526 | R147: -16163 | S147: 11790 | T147: 4843 | Y147: 409 | Z147: 738 | AR147: 20,5 | AS147: 180 | AU147: 305 | AV147: 3355 | AX147: -0.00390625 | AY147: 44.8 | AZ147: -1992 | BD147: 45.3 | BE147: 83 | BF147: 5 | BG147: 5733.333333 | BH147: 7563 | BI147: 2327 | BJ147: 18502 | BK147: -16175 | BL147: 12245 | BM147: 4615 | BR147: 594 | BS147: 790 | CK147: 20,5 | CM147: 259 | CN147: 185 | CO147: 3355 | CQ147: -0.03598971722 | CR147: 46.73570227 | CS147: -2312.66766 | CW147: 39.2303545 | CX147: 241.728763 | CY147: 14.18171801 | CZ147: 6221.460507 | DA147: 7638 | DB147: 2350 | DC147: 18687 | DD147: -16337 | DE147: 12562 | DF147: 4661 | DK147: 794 | DL147: 798 | ED147: 20,5 | EE147: 185 | EG147: 283 | EH147: 3355 | ET147: 7715 | EU147: 2374 | EV147: 18874 | EW147: -16500 | EX147: 12688 | EY147: 4708 | FD147: 802 | FE147: 806 | FW147: 20,5 | FX147: 185 | FZ147: 8685 | GA147: 8751 | GB147: 8839 | GC147: 8927 | GG147: -2037 | GI147: 115 | GJ147: -4707 | GL147: 60 | GM147: -4804 | GO147: 61 | GP147: -743 | GR147: 61 | GS147: 1000 | GT147: -100 | GU147: 1000 | GV147: 200 | GW147: 1060 | GX147: 300 | GY147: 7175 | GZ147: 4626 | HA147: 621 | HB147: 110 | HC147: 10866 | HG147: 14666 | HH147: 5209 | HI147: 1241 | HJ147: 106 | HK147: 14406 | HY147: 515 | HZ147: -515
A148: 475 | B148: Maalahti | C148: 5580 | E148: 2.445528455 | F148: 41.3 | G148: -2313 | K148: 54.1 | L148: 188 | M148: 9 | N148: 10071.85629 | O148: 22392 | P148: 8534 | Q148: 41754 | R148: -33220 | S148: 18198 | T148: 16000 | Y148: 818 | Z148: 1440 | AR148: 21 | AS148: 630 | AU148: 157 | AV148: 5580 | AX148: 1.061668682 | AY148: 41 | AZ148: -2528 | BD148: 52 | BE148: 128 | BF148: 6 | BG148: 7801.825994 | BH148: 22432 | BI148: 8657 | BJ148: 41855 | BK148: -33198 | BL148: 19233 | BM148: 15620 | BR148: 1497 | BS148: 1500 | CK148: 21,5 | CM148: 178 | CN148: 625 | CO148: 5580 | CQ148: 0.3858921162 | CR148: 46.84137737 | CS148: -3034.408602 | CW148: 46.18967525 | CX148: 198.2078853 | CY148: 8.675535116 | CZ148: 8339.0681 | DA148: 22736 | DB148: 8905 | DC148: 42603 | DD148: -33698 | DE148: 19822 | DF148: 15620 | DK148: 1494 | DL148: 1698 | ED148: 21,5 | EE148: 625 | EG148: 266 | EH148: 5580 | ET148: 23087 | EU148: 9095 | EV148: 43451 | EW148: -34356 | EX148: 20425 | EY148: 15620 | FD148: 1339 | FE148: 1878 | FW148: 21,5 | FX148: 625 | FZ148: 15086 | GA148: 14927 | GB148: 15300 | GC148: 15683 | GG148: -4553 | GH148: 772 | GI148: 50 | GJ148: -8246 | GK148: 1371 | GL148: 70 | GM148: -7249 | GN148: 979 | GO148: 70 | GP148: -7750 | GQ148: 1008 | GR148: 70 | GS148: 4200 | GT148: -2700 | GU148: 1000 | GX148: 3100 | GY148: 13400 | GZ148: 9103 | HA148: 595 | HB148: 1791 | HC148: 18418 | HG148: 22723 | HH148: 8910 | HI148: 3697 | HJ148: 1806 | HK148: 27689 | HY148: 597 | HZ148: -597
A149: 480 | B149: Marttila | C149: 2056 | E149: 1.651026393 | F149: 17.3 | G149: -634 | K149: 81.1 | L149: 90 | M149: 5 | N149: 4905.477308 | O149: 3822 | P149: 1959 | Q149: 12362 | R149: -10403 | S149: 5918 | T149: 4580 | Y149: 79 | Z149: 414 | AR149: 20,25 | AS149: 81 | AU149: 171 | AV149: 2056 | AX149: -1.167192429 | AY149: 32.9 | AZ149: -1214 | BD149: 67.7 | BE149: 303 | BF149: 18 | BG149: 6304.412494 | BH149: 3846 | BI149: 2035 | BJ149: 12764 | BK149: -10729 | BL149: 6069 | BM149: 4722 | BR149: 49 | BS149: 436 | CK149: 20,25 | CM149: 306 | CN149: 83 | CO149: 2056 | CQ149: 1.344947735 | CR149: 26.96765826 | CS149: -1098.249027 | CW149: 69.74950082 | CX149: 154.1828794 | CY149: 8.598127369 | CZ149: 6545.233463 | DA149: 3885 | DB149: 2113 | DC149: 13100 | DD149: -10987 | DE149: 6112 | DF149: 4860 | DK149: -15 | DL149: 450 | ED149: 20,25 | EE149: 83 | EG149: 219 | EH149: 2056 | ET149: 3940 | EU149: 2195 | EV149: 13450 | EW149: -11255 | EX149: 6238 | EY149: 5000 | FD149: -17 | FE149: 500 | FW149: 20,75 | FX149: 83 | FZ149: 6873 | GA149: 7188 | GB149: 7475 | GC149: 7740 | GG149: -637 | GH149: 90 | GJ149: -1106 | GK149: 240 | GM149: -780 | GN149: 200 | GP149: -1160 | GQ149: 320 | GU149: 1900 | GY149: 1201 | GZ149: 432 | HA149: 248 | HB149: 103 | HC149: 1042 | HG149: 1248 | HH149: 1770 | HI149: 256 | HJ149: 103 | HK149: 1588 | HY149: 251 | HZ149: -251
A150: 481 | B150: Masku | C150: 9729 | E150: 0.8767263427 | F150: 73.8 | G150: -3177 | K150: 41 | L150: 93 | M150: 6 | N150: 60072.56047 | O150: 16673 | P150: 7945 | Q150: 51570 | R150: -43625 | S150: 36660 | T150: 8560 | Y150: 1525 | Z150: 2450 | AR150: 19,75 | AS150: 386 | AU150: 219 | AV150: 9729 | AX150: 0.00157294534 | AY150: 75.2 | AZ150: -3373 | BD150: 36.7 | BE150: 189 | BF150: 12 | BG150: 5773.13618 | BH150: 16204 | BI150: 7500 | BJ150: 51856 | BK150: -44356 | BL150: 39100 | BM150: 8130 | BR150: 2774 | BS150: 2500 | CK150: 20,75 | CM150: 261 | CN150: 380 | CO150: 9729 | CQ150: 0.3329140461 | CR150: 77.31196524 | CS150: -3705.725152 | CW150: 32.87295556 | CX150: 131.8737794 | CY150: 7.916138411 | CZ150: 6080.481036 | DA150: 16204 | DB150: 6800 | DC150: 52450 | DD150: -45650 | DE150: 40030 | DF150: 7900 | DK150: 2160 | DL150: 2500 | ED150: 20,75 | EE150: 374 | EG150: 259 | EH150: 9729 | ET150: 16204 | EU150: 6800 | EV150: 53250 | EW150: -46450 | EX150: 41270 | EY150: 8100 | FD150: 2780 | FE150: 2500 | FW150: 20,75 | FX150: 370 | FZ150: 29278 | GA150: 30128 | GB150: 30722 | GC150: 31522 | GG150: -6985 | GI150: 2410 | GJ150: -3080 | GL150: 1800 | GM150: -3588 | GO150: 800 | GP150: -3465 | GR150: 800 | GS150: 4168 | GT150: 1000 | GU150: 2000 | GV150: 1000 | GW150: 2000 | GX150: 2000 | GY150: 34500 | GZ150: 13998 | HA150: 14194 | HB150: 192 | HC150: 33700 | HG150: 34500 | HH150: 13373 | HI150: 17460 | HJ150: 192 | HK150: 34500 | HY150: 1909 | HZ150: -1909
A151: 483 | B151: Merijärvi | C151: 1153 | E151: 1.309711286 | F151: 53.8 | G151: -1425 | K151: 61.2 | L151: 1882 | M151: 100 | N151: 9552.058111 | O151: 2177 | P151: 1428 | Q151: 7927 | R151: -6499 | S151: 2629 | T151: 4150 | Y151: 347 | Z151: 386 | AR151: 21 | AS151: 37,5 | AU151: 73 | AV151: 1153 | AX151: 1.215517241 | AY151: 52.6 | AZ151: -1324 | BD151: 62.5 | BE151: 2063 | BF151: 104 | BG151: 7253.401361 | BH151: 2168 | BI151: 1530 | BJ151: 7969 | BK151: -6439 | BL151: 2715 | BM151: 3900 | BR151: 268 | BS151: 389 | CK151: 21 | CM151: 37 | CN151: 37,5 | CO151: 1153 | CQ151: 1.358916479 | CR151: 50.97727828 | CS151: -1168.256722 | CW151: 63.22375958 | CX151: 2333.044232 | CY151: 114.8765649 | CZ151: 7412.83608 | DA151: 2159 | DB151: 1483 | DC151: 7968 | DD151: -6485 | DE151: 2730 | DF151: 3900 | DK151: 231 | DL151: 387 | ED151: 21,5 | EE151: 37,5 | EG151: 61 | EH151: 1153 | ET151: 2157 | EU151: 1464 | EV151: 7973 | EW151: -6509 | EX151: 2750 | EY151: 3900 | FD151: 228 | FE151: 378 | FW151: 21,5 | FX151: 37,5 | FZ151: 4512 | GA151: 4549 | GB151: 4560 | GC151: 4570 | GG151: -653 | GI151: 230 | GJ151: -442 | GL151: 137 | GM151: -300 | GP151: -300 | GS151: 200 | GT151: 56 | GU151: 300 | GV151: -27 | GW151: 300 | GX151: 11 | GY151: 2900 | GZ151: 2402 | HA151: 816 | HB151: 122 | HC151: 3020 | HG151: 2940 | HH151: 2213 | HI151: 800 | HJ151: 78 | HK151: 2940 | HY151: 373 | HZ151: -373
A152: 484 | B152: Merikarvia | C152: 3226 | E152: 1.186213071 | F152: 18.8 | G152: -257 | K152: 80.4 | L152: 702 | M152: 37 | N152: 10559.24389 | O152: 7155 | P152: 3589 | Q152: 24612 | R152: -21023 | S152: 8750 | T152: 12450 | Y152: 114 | Z152: 1135 | AR152: 19,5 | AS152: 117 | AU152: 133 | AV152: 3226 | AX152: 1.285714286 | AY152: 15.8 | AZ152: -522 | BD152: 83.2 | BE152: 113 | BF152: 5 | BG152: 7895.074946 | BH152: 7287 | BI152: 3782 | BJ152: 24655 | BK152: -20873 | BL152: 9015 | BM152: 12398 | BR152: 558 | BS152: 1138 | CK152: 19,5 | CM152: 199 | CN152: 117 | CO152: 3226 | CQ152: 6.926829268 | CR152: 17.29158513 | CS152: -392.1264724 | CW152: 81.99300699 | CX152: 597.33416 | CY152: 27.38388164 | CZ152: 7961.872288 | DA152: 7360 | DB152: 3852 | DC152: 25056 | DD152: -21204 | DE152: 9195 | DF152: 12233 | DK152: 226 | DL152: 1161 | ED152: 19,5 | EE152: 117 | EG152: 12 | EH152: 3226 | ET152: 7433 | EU152: 3921 | EV152: 25399 | EW152: -21478 | EX152: 9379 | EY152: 11976 | FD152: -144 | FE152: 1172 | FW152: 20 | FX152: 117 | FZ152: 14970 | GA152: 14852 | GB152: 15149 | GC152: 15374 | GG152: -2344 | GH152: 294 | GI152: 50 | GJ152: -1558 | GK152: 295 | GL152: 100 | GM152: -1267 | GO152: 50 | GP152: -1254 | GR152: 50 | GV152: -113 | GW152: 1000 | GX152: 66 | GY152: 2900 | GZ152: 1254 | HA152: 323 | HB152: 221 | HC152: 2200 | HG152: 2727 | HH152: 1706 | HI152: 275 | HJ152: 211 | HK152: 4505 | HY152: 322 | HZ152: -322
A153: 489 | B153: Miehikkälä | C153: 2145 | E153: 1.508706468 | F153: 14 | G153: 485 | K153: 80.7 | L153: 1548 | M153: 54 | N153: 6373.361686 | O153: 9371 | P153: 12628 | Q153: 25192 | R153: -12564 | S153: 5625 | T153: 7441 | Y153: 561 | Z153: 665 | AR153: 20 | AS153: 231 | AU153: 170 | AV153: 2145 | AX153: 2.72972973 | AY153: 17.3 | AZ153: 315 | BD153: 76.3 | BE153: 1834 | BF153: 59 | BG153: 11315.11254 | BH153: 9322 | BI153: 12824 | BJ153: 25173 | BK153: -12349 | BL153: 5650 | BM153: 7468 | BR153: 671 | BS153: 679 | CK153: 20 | CM153: 164 | CN153: 231 | CO153: 2145 | CQ153: 4.510948905 | CR153: 23.13083126 | CS153: -923.0769231 | CW153: 70.51064731 | CX153: 1263.403263 | CY153: 36.68137655 | CZ153: 12571.56177 | DA153: 9322 | DB153: 12824 | DC153: 25173 | DD153: -12349 | DE153: 5650 | DF153: 7468 | DK153: 671 | DL153: 679 | ED153: 20 | EE153: 231 | EG153: 157 | EH153: 2145 | ET153: 9322 | EU153: 12824 | EV153: 25173 | EW153: -12349 | EX153: 5650 | EY153: 7468 | FD153: 671 | FE153: 679 | FW153: 20 | FX153: 231 | FZ153: 12126 | GA153: 12064 | GB153: 12064 | GC153: 12064 | GG153: -6331 | GH153: 432 | GI153: 27 | GJ153: -4255 | GK153: 771 | GL153: 100 | GM153: -2215 | GN153: 250 | GP153: -2420 | GQ153: 450 | GU153: 706 | GW153: 1894 | GY153: 6203 | GZ153: 53 | HA153: 105 | HB153: 337 | HC153: 9137 | HG153: 9137 | HH153: 2313 | HI153: 226 | HJ153: 378 | HK153: 9137 | HY153: 105 | HZ153: -105
A154: 491 | B154: Mikkeli | C154: 54635 | E154: 0.5923083556 | F154: 66.8 | G154: -3480 | K154: 49.6 | L154: 320 | M154: 15 | N154: 7853.63116 | O154: 160250 | P154: 137663 | Q154: 423265 | R154: -286182 | S154: 192600 | T154: 100965 | Y154: 15820 | Z154: 19200 | AR154: 20 | AS154: 3458 | AU154: 139 | AV154: 54635 | AX154: 0.6857565439 | AY154: 59.2 | AZ154: -3424 | BD154: 51.1 | BE154: 2 | BF154: 0 | BG154: 8200.686106 | BH154: 154953 | BI154: 130435 | BJ154: 413010 | BK154: -283208 | BL154: 196410 | BM154: 101715 | BR154: 19051 | BS154: 19200 | CK154: 20 | CM154: 48 | CN154: 3254 | CO154: 54635 | CQ154: 0.5862507005 | CR154: 57.24579375 | CS154: -3585.284159 | CW154: 49.50673183 | CX154: 1.812025259 | CY154: 0.08270771344 | CZ154: 7996.705409 | DA154: 157466 | DB154: 132970 | DC154: 417424 | DD154: -284509 | DE154: 197774 | DF154: 103610 | DK154: 19444 | DL154: 19400 | ED154: 20 | EE154: 3056 | EG154: 163 | EH154: 54635 | ET154: 112594 | EU154: 102825 | EV154: 391778 | EW154: -289503 | EX154: 200814 | EY154: 106907 | FD154: 20487 | FE154: 19700 | FW154: 20 | FX154: 1800 | FZ154: 177005 | GA154: 173128 | GB154: 176605 | GC154: 196605 | GG154: -27414 | GH154: 1206 | GI154: 6900 | GJ154: -26735 | GK154: 1275 | GL154: 5760 | GM154: -33814 | GN154: 1155 | GO154: 2800 | GP154: -38219 | GQ154: 1125 | GR154: 2800 | GS154: 49000 | GT154: -9014 | GU154: 23000 | GV154: 150 | GW154: 25000 | GX154: -992 | GY154: 183351 | GZ154: 78910 | HA154: 82618 | HB154: 27236 | HC154: 183044 | HG154: 193259 | HH154: 98769 | HI154: 71076 | HJ154: 27157 | HK154: 206916 | HY154: 23127 | HZ154: -23127
A155: 494 | B155: Muhos | C155: 8998 | E155: 1.094129816 | F155: 50.4 | G155: -2185 | K155: 48.5 | L155: 366 | M155: 18 | N155: 11717.92095 | O155: 31849 | P155: 14220 | Q155: 62252 | R155: -48064 | S155: 27675 | T155: 22269 | Y155: 1314 | Z155: 3601 | AR155: 20 | AS155: 516 | AU155: 55 | AV155: 8998 | AX155: 0.6985482494 | AY155: 52.7 | AZ155: -2519 | BD155: 47.1 | BE155: 316 | BF155: 14 | BG155: 7990.612427 | BH155: 31968 | BI155: 13717 | BJ155: 62777 | BK155: -49100 | BL155: 28350 | BM155: 23755 | BR155: 2519 | BS155: 2368 | CK155: 20,5 | CM155: 70 | CN155: 541 | CO155: 8998 | CQ155: 1.060618307 | CR155: 52.6893006 | CS155: -2486.99711 | CW155: 47.99291356 | CX155: 384.7521671 | CY155: 17.52 | CZ155: 8015.670149 | DA155: 32259 | DB155: 14091 | DC155: 63706 | DD155: -49619 | DE155: 28775 | DF155: 23702 | DK155: 2384 | DL155: 2439 | ED155: 20,5 | EG155: 51 | EH155: 8998 | ET155: 32742 | EU155: 14550 | EV155: 64975 | EW155: -50465 | EX155: 29351 | EY155: 23702 | FD155: 2113 | FE155: 2512 | FW155: 20,5 | FZ155: 22386 | GA155: 22359 | GB155: 22918 | GC155: 23491 | GG155: -6773 | GH155: 535 | GI155: 100 | GJ155: -15278 | GK155: 1506 | GL155: 100 | GM155: -4070 | GN155: 35 | GO155: 100 | GP155: -2727 | GQ155: 70 | GR155: 100 | GS155: 4000 | GU155: 6000 | GW155: 5000 | GY155: 31527 | GZ155: 19890 | HA155: 4026 | HB155: 0 | HC155: 35527 | HG155: 35527 | HH155: 21831 | HI155: 4658 | HJ155: 0 | HK155: 35527 | HY155: 3680 | HZ155: -3680
A156: 495 | B156: Multia | C156: 1777 | E156: 0.4003724395 | F156: 41.4 | G156: -2408 | K156: 37.8 | L156: 162 | M156: 7 | N156: 8951.034192 | AR156: 21 | AU156: 295 | AV156: 1777 | AX156: 0.115902965 | AY156: 40.1 | AZ156: -2382 | BD156: 35.5 | BE156: 313 | BF156: 13 | BG156: 8902.53304 | CM156: 235 | CO156: 1777 | CQ156: 1.696095076 | CR156: 32.74501661 | CS156: -2033.764772 | CW156: 42.76378327 | CX156: 357.9065841 | CY156: 16.18377022 | CZ156: 8072.031514 | EG156: 45 | EH156: 1777 | GE156: 250 | GF156: 240 | GJ156: 0 | GM156: 0 | GS156: 950 | GT156: -750 | GV156: 900 | GW156: 102 | GX156: -250 | GZ156: 3056 | HA156: 672 | HB156: 21 | HH156: 2080 | HI156: 1178 | HJ156: 62 | HY156: 562 | HZ156: -562
A157: 498 | B157: Muonio | C157: 2383 | E157: 0.5592476489 | F157: 49 | G157: -3020 | K157: 26.5 | L157: 120 | M157: 6 | N157: 5764.362943 | O157: 7018 | P157: 3025 | Q157: 18858 | R157: -15833 | S157: 8050 | T157: 8492 | Y157: 579 | Z157: 570 | AR157: 20,75 | AS157: 161,5 | AU157: 195 | AV157: 2383 | AX157: 0.2412723041 | AY157: 53.5 | AZ157: -3368 | BD157: 22 | BE157: 103 | BF157: 5 | BG157: 8058.897243 | BH157: 7363 | BI157: 3144 | BJ157: 19175 | BK157: -16031 | BL157: 8490 | BM157: 8490 | BR157: 739 | BS157: 570 | CK157: 21 | CM157: 209 | CN157: 161 | CO157: 2383 | CQ157: 0.06704824203 | CR157: 61.06048053 | CS157: -4108.26689 | CW157: 14.84362964 | CX157: 175.4091481 | CY157: 7.203493862 | CZ157: 8887.956358 | DA157: 7377 | DB157: 3055 | DC157: 19250 | DD157: -16195 | DE157: 8550 | DF157: 8500 | DK157: 725 | DL157: 570 | ED157: 21 | EE157: 161 | EG157: 282 | EH157: 2383 | ET157: 7347 | EU157: 3016 | EV157: 19194 | EW157: -16178 | EX157: 8550 | EY157: 8500 | FD157: 742 | FE157: 570 | FW157: 21 | FX157: 161 | FZ157: 10025 | GA157: 9813 | GB157: 9858 | GC157: 9830 | GG157: -1910 | GH157: 1146 | GI157: 0 | GJ157: -1498 | GK157: 670 | GM157: -3695 | GN157: 2925 | GP157: -3250 | GQ157: 2488 | GS157: 2000 | GT157: -200 | GV157: 2000 | GW157: 2200 | GX157: 200 | GY157: 8850 | GZ157: 4522 | HA157: 1446 | HB157: 71 | HC157: 10000 | HG157: 11850 | HH157: 4473 | HI157: 3659 | HJ157: 121 | HK157: 14450 | HY157: 1194 | HZ157: -1194
A158: 499 | B158: Mustasaari | C158: 19153 | E158: 2.458382181 | F158: 46.1 | G158: -1834 | K158: 52.3 | L158: 300 | M158: 17 | N158: 6766.899767 | O158: 61142 | P158: 36198 | Q158: 133633 | R158: -97686 | S158: 75300 | T158: 28056 | Y158: 5372 | Z158: 7000 | AR158: 20,75 | AS158: 1093 | AU158: 189 | AV158: 19153 | AX158: 1.304812834 | AY158: 53.7 | AZ158: -2731 | BD158: 45.7 | BE158: 253 | BF158: 13 | BG158: 7183.936461 | BH158: 63006 | BI158: 38340 | BJ158: 137893 | BK158: -99724 | BL158: 77900 | BM158: 26700 | BR158: 4396 | BS158: 7200 | CK158: 20,75 | CM158: 173 | CN158: 1093 | CO158: 19153 | CQ158: 1.134700536 | CR158: 61.45036296 | CS158: -3552.446092 | CW158: 40.23016747 | CX158: 48.34751736 | CY158: 2.369531688 | CZ158: 7447.397275 | DA158: 63006 | DB158: 38340 | DC158: 137893 | DD158: -99724 | DE158: 80050 | DF158: 26700 | DK158: 6446 | DL158: 7300 | ED158: 20,75 | EE158: 1093 | EG158: 188 | EH158: 19153 | ET158: 63006 | EU158: 38340 | EV158: 137893 | EW158: -99724 | EX158: 82900 | EY158: 26700 | FD158: 9196 | FE158: 7400 | FW158: 20,75 | FX158: 1093 | FZ158: 49726 | GA158: 51773 | GB158: 51773 | GC158: 51773 | GG158: -19703 | GH158: 0 | GI158: 2469 | GJ158: -9633 | GK158: 200 | GL158: 650 | GM158: -8251 | GO158: 700 | GP158: -10758 | GQ158: 800 | GR158: 750 | GS158: 10000 | GT158: -3100 | GV158: 12000 | GW158: 15000 | GX158: 1000 | GY158: 67000 | GZ158: 27620 | HA158: 4610 | HB158: 1784 | HC158: 72700 | HG158: 73900 | HH158: 25500 | HI158: 29510 | HJ158: 1531 | HK158: 74100 | HY158: 1610 | HZ158: -1610
A159: 500 | B159: Muurame | C159: 9572 | E159: 0.7158980974 | F159: 50.7 | G159: -2372 | K159: 49.5 | L159: 33 | M159: 2 | N159: 5983.590254 | O159: 19126 | P159: 7824 | Q159: 51074 | R159: -43571 | S159: 37518 | T159: 9545 | Y159: 3642 | Z159: 3166 | AR159: 19,5 | AS159: 372 | AU159: 174 | AV159: 9572 | AX159: 0.832046332 | AY159: 48.3 | AZ159: -2403 | BD159: 48.7 | BE159: 7 | BF159: 0 | BG159: 5864.980667 | BH159: 18657 | BI159: 7821 | BJ159: 50967 | BK159: -43495 | BL159: 38019 | BM159: 8255 | BR159: 3002 | BS159: 3208 | CK159: 19,5 | CM159: 90 | CN159: 386 | CO159: 9572 | CQ159: 1.983327292 | CR159: 45.45319933 | CS159: -2271.416632 | CW159: 51.56179444 | CX159: 39.17676557 | CY159: 2.459745534 | CZ159: 5813.414125 | DA159: 19030 | DB159: 7972 | DC159: 51989 | DD159: -44373 | DE159: 38962 | DF159: 8186 | DK159: 2942 | DL159: 3489 | ED159: 19,5 | EE159: 391 | EG159: 43 | EH159: 9572 | ET159: 17804 | EU159: 8133 | EV159: 53000 | EW159: -45230 | EX159: 40320 | EY159: 7999 | FD159: 3262 | FE159: 3634 | FW159: 19,5 | FX159: 355 | FZ159: 25167 | GA159: 24656 | GB159: 25149 | GC159: 27259 | GG159: -6789 | GH159: 0 | GI159: 860 | GJ159: -10060 | GK159: 1024 | GL159: 1690 | GM159: -2842 | GN159: 33 | GO159: 1060 | GP159: -2202 | GQ159: 24 | GR159: 1060 | GS159: 335 | GT159: 1950 | GV159: 2800 | GX159: 2600 | GY159: 21700 | GZ159: 11576 | HA159: 5632 | HB159: 353 | HC159: 25426 | HG159: 25197 | HH159: 6629 | HI159: 10527 | HJ159: 281 | HK159: 24017 | HY159: 3083 | HZ159: -3083
A160: 503 | B160: Mynämäki | C160: 7950 | E160: 0.9383259912 | F160: 28.1 | G160: -1240 | K160: 70.4 | L160: 86 | M160: 5 | N160: 8018.426295 | O160: 13998 | P160: 5088 | Q160: 47374 | R160: -42286 | S160: 25694 | T160: 16670 | Y160: 16 | Z160: 2222 | AR160: 20,5 | AS160: 286 | AU160: 240 | AV160: 7950 | AX160: 0.03544494721 | AY160: 31.9 | AZ160: -1479 | BD160: 65.7 | BE160: 130 | BF160: 8 | BG160: 6095.638005 | BH160: 14015 | BI160: 5205 | BJ160: 46704 | BK160: -41499 | BL160: 26004 | BM160: 16075 | BR160: 537 | BS160: 1760 | CK160: 20,5 | CM160: 243 | CN160: 290 | CO160: 7950 | CQ160: 0.624915369 | CR160: 43.15586161 | CS160: -1778.113208 | CW160: 56.65129263 | CX160: 642.8930818 | CY160: 36.30042225 | CZ160: 6464.27673 | DA160: 13966 | DB160: 4874 | DC160: 47119 | DD160: -42245 | DE160: 26654 | DF160: 15673 | DK160: 39 | DL160: 1760 | ED160: 20,5 | EE160: 289 | EG160: 245 | EH160: 7950 | ET160: 13933 | EU160: 4874 | EV160: 47612 | EW160: -42738 | EX160: 27331 | EY160: 15373 | FD160: 223 | FE160: 1760 | FW160: 20,5 | FX160: 289 | FZ160: 29531 | GA160: 28739 | GB160: 29229 | GC160: 29754 | GG160: -4518 | GH160: 170 | GI160: 100 | GJ160: -2095 | GK160: 140 | GL160: 475 | GM160: -1814 | GN160: 65 | GO160: 100 | GP160: -1465 | GQ160: 5 | GR160: 100 | GS160: 2500 | GU160: 1786 | GW160: 2000 | GX160: 6000 | GY160: 10375 | GZ160: 5578 | HA160: 1230 | HB160: 0 | HC160: 11975 | HG160: 13675 | HH160: 6375 | HI160: 7591 | HJ160: 0 | HK160: 14925 | HY160: 1263 | HZ160: -1263
A161: 504 | B161: Myrskylä | C161: 1987 | E161: 3.474056604 | F161: 20.8 | G161: 374 | K161: 79 | L161: 1355 | M161: 89 | N161: 6260.692464 | O161: 2215 | P161: 1277 | Q161: 11990 | R161: -10713 | S161: 6020 | T161: 4458 | Y161: -21 | Z161: 398 | AR161: 21 | AS161: 47 | AU161: 29 | AV161: 1987 | AX161: 5.666666667 | AY161: 23.3 | AZ161: -61 | BD161: 76.8 | BE161: 1080 | BF161: 63 | BG161: 6259.036145 | BH161: 2108 | BI161: 1330 | BJ161: 11770 | BK161: -10440 | BL161: 6270 | BM161: 4387 | BR161: 443 | BS161: 510 | CK161: 21,5 | CM161: 152 | CN161: 45 | CO161: 1987 | CQ161: 0.03050847458 | CR161: 40.71840115 | CS161: -1454.453951 | CW161: 64.61766773 | CX161: 639.1545043 | CY161: 31.92273259 | CZ161: 7308.002013 | DA161: 2106 | DB161: 1297 | DC161: 11766 | DD161: -10469 | DE161: 6390 | DF161: 4300 | DK161: 437 | DL161: 550 | ED161: 21,5 | EE161: 45 | EG161: 279 | EH161: 1987 | ET161: 2110 | EU161: 1297 | EV161: 11773 | EW161: -10476 | EX161: 6570 | EY161: 4200 | FD161: 500 | FE161: 550 | FW161: 21,5 | FX161: 45 | FZ161: 8714 | GA161: 8720 | GB161: 8720 | GC161: 8722 | GG161: -1648 | GH161: 273 | GI161: 10 | GJ161: -2004 | GK161: 893 | GL161: 10 | GM161: -383 | GO161: 10 | GP161: -3322 | GQ161: 250 | GR161: 10 | GT161: -5 | GV161: 1 | GX161: 2236 | GY161: 2950 | GZ161: 463 | HA161: 34 | HB161: 0 | HC161: 3550 | HG161: 3350 | HH161: 158 | HI161: 2272 | HJ161: 0 | HK161: 5850 | HY161: 33 | HZ161: -33
A162: 505 | B162: Mäntsälä | C162: 20534 | E162: 1.563591496 | F162: 52.3 | G162: -2682 | K162: 53.9 | L162: 4 | M162: 0 | N162: 7690.219314 | O162: 53516 | P162: 29681 | Q162: 129002 | R162: -99321 | S162: 74550 | T162: 24818 | Y162: 990 | Z162: 5250 | AR162: 19,75 | AS162: 1275 | AU162: 78 | AV162: 20534 | AX162: 0.9793594306 | AY162: 57.9 | AZ162: -3139 | BD162: 50.9 | BE162: 4 | BF162: 0 | BG162: 6933.294267 | BH162: 52879 | BI162: 30025 | BJ162: 129776 | BK162: -99751 | BL162: 78350 | BM162: 26100 | BR162: 5642 | BS162: 5900 | CK162: 20,5 | CM162: 92 | CN162: 1229 | CO162: 20534 | CQ162: 1.497370398 | CR162: 56.51316283 | CS162: -3242.134996 | CW162: 50.60615117 | CX162: 37.54748222 | CY162: 1.936772631 | CZ162: 7076.117659 | DD162: -102660 | DE162: 80700 | DF162: 26100 | DK162: 4943 | DL162: 5900 | ED162: 20,5 | EE162: 1225 | EG162: 69 | EH162: 20534 | EW162: -105700 | EX162: 84000 | EY162: 26300 | FD162: 5143 | FE162: 5900 | FW162: 20,5 | FX162: 1220 | FZ162: 58825 | GA162: 59238 | GG162: -44976 | GH162: 80 | GJ162: -7237 | GM162: -14797 | GP162: -21294 | GT162: 5238 | GU162: 20000 | GV162: -7140 | GX162: 10006 | GY162: 56170 | GZ162: 17871 | HA162: 27482 | HB162: 1721 | HC162: 57570 | HG162: 66670 | HH162: 25087 | HI162: 32283 | HJ162: 1596 | HK162: 81970 | HY162: 4931 | HZ162: -4931
A163: 508 | B163: Mänttä-Vilppula | C163: 10898 | E163: -0.3095930233 | F163: 36.6 | G163: -1973 | K163: 56.4 | L163: 80 | M163: 4 | N163: 6826.372595 | O163: 19762 | P163: 14879 | Q163: 78496 | R163: -63617 | S163: 41650 | T163: 24950 | Y163: 2870 | Z163: 2770 | AR163: 22 | AS163: 346 | AU163: 300 | AV163: 10898 | AX163: -0.4220907298 | AY163: 41.2 | AZ163: -2430 | BD163: 49.5 | BE163: 49 | BF163: 3 | BG163: 7090.721093 | BH163: 18746 | BI163: 20378 | BJ163: 83249 | BK163: -62871 | BL163: 41250 | BM163: 24000 | BR163: 22209 | BS163: 2175 | CK163: 22 | CM163: 289 | CN163: 331 | CO163: 10898 | CQ163: 0.6535864441 | CR163: 35.68522026 | CS163: -2243.897963 | CW163: 53.83052543 | CX163: 77.62892274 | CY163: 3.391284293 | CZ163: 8355.11103 | DA163: 18558 | DB163: 20512 | DC163: 82621 | DD163: -62109 | DE163: 41980 | DF163: 23700 | DK163: 33209 | DL163: 2403 | ED163: 22 | EE163: 325 | EG163: 73 | EH163: 10898 | ET163: 18373 | EU163: 20647 | EV163: 83266 | EW163: -62619 | EX163: 42561 | EY163: 23500 | FD163: 31425 | FE163: 2460 | FW163: 22 | FX163: 323 | FZ163: 53071 | GA163: 59418 | GB163: 58893 | GC163: 59672 | GE163: 1400 | GF163: 1000 | GG163: -4350 | GH163: 30 | GJ163: -11538 | GK163: 2080 | GM163: -8314 | GN163: 1020 | GP163: -6587 | GS163: 5000 | GT163: -1000 | GU163: 10000 | GV163: -4000 | GX163: 8000 | GY163: 27000 | GZ163: 8482 | HA163: 10669 | HB163: 17 | HC163: 31700 | HG163: 32173 | HH163: 7918 | HI163: 15527 | HJ163: 3517 | HK163: 29673 | HY163: 2013 | HZ163: -2013
A164: 507 | B164: Mäntyharju | C164: 6287 | E164: 0.6236979167 | F164: 53.4 | G164: -2589 | K164: 39.5 | L164: 82 | M164: 4 | N164: 6209.368873 | O164: 19684 | P164: 6388 | Q164: 42138 | R164: -35750 | S164: 19000 | T164: 18100 | Y164: 1245 | Z164: 1215 | AR164: 19,75 | AS164: 357,65 | AU164: 283 | AV164: 6287 | AX164: 2.416450216 | AY164: 49.4 | AZ164: -2333 | BD164: 41.5 | BE164: 347 | BF164: 19 | BG164: 6778.949025 | BH164: 19949 | BI164: 6232 | BJ164: 42189 | BK164: -35957 | BL164: 19800 | BM164: 17900 | BR164: 1612 | BS164: 1187 | CK164: 19,75 | CM164: 45 | CN164: 370,25 | CO164: 6287 | CQ164: 2.367003367 | CR164: 47.66557111 | CS164: -2406.871322 | CW164: 45.38946443 | CX164: 443.1366311 | CY164: 21.45247036 | CZ164: 7539.685064 | DB164: 6523 | DC164: 43169 | DD164: -36646 | DE164: 20320 | DF164: 17749 | DK164: 1630 | DL164: 1443 | ED164: 19,75 | EE164: 370,25 | EG164: 59 | EH164: 6287 | EU164: 6621 | EV164: 43816 | EW164: -37195 | EX164: 20676 | EY164: 17661 | FD164: 1360 | FE164: 1587 | FW164: 19,75 | FX164: 370,25 | FZ164: 17644 | GA164: 17493 | GG164: -1457 | GJ164: -2267 | GK164: 271 | GM164: -2055 | GP164: -1400 | GQ164: 85 | GS164: 3800 | GT164: 1350 | GU164: 5000 | GV164: -5100 | GX164: 1300 | GY164: 15012 | GZ164: 6906 | HA164: 9754 | HB164: 1578 | HC164: 14720 | HG164: 12960 | HH164: 9473 | HI164: 6460 | HJ164: 1442 | HK164: 12664 | HY164: 328 | HZ164: -328
A165: 529 | B165: Naantali | C165: 18859 | E165: 5.033530572 | F165: 52.3 | G165: -2730 | K165: 58.5 | L165: 154 | M165: 8 | N165: 7328.719723 | O165: 54799 | P165: 54866 | Q165: 140180 | R165: -85466 | S165: 76440 | T165: 18510 | Y165: 10026 | Z165: 10586 | AR165: 18,5 | AS165: 1081 | AU165: 88 | AV165: 18859 | AX165: 5.353016688 | AY165: 59.7 | AZ165: -3016 | BD165: 53.6 | BE165: 384 | BF165: 21 | BG165: 6681.948576 | BH165: 55073 | BI165: 54558 | BJ165: 143258 | BK165: -88852 | BL165: 79879 | BM165: 18000 | BR165: 9549 | BS165: 10500 | CK165: 18,5 | CM165: 115 | CN165: 1061 | CO165: 18859 | CQ165: 25.85892857 | CR165: 45.00436936 | CS165: -2641.444403 | CW165: 59.02764084 | CX165: 140.1983138 | CY165: 7.544718244 | CZ165: 6782.544143 | DA165: 55348 | DB165: 57598 | DC165: 146438 | DD165: -88992 | DE165: 81215 | DF165: 17500 | DK165: 10245 | DL165: 10500 | ED165: 18,5 | EE165: 1050 | EG165: 17 | EH165: 18859 | ET165: 55625 | EU165: 57169 | EV165: 149723 | EW165: -92706 | EX165: 82607 | EY165: 17000 | FD165: 7423 | FE165: 10500 | FW165: 18,5 | FX165: 1050 | FZ165: 55121 | GA165: 57326 | GB165: 59619 | GC165: 62003 | GG165: -12392 | GH165: 545 | GI165: 100 | GJ165: -7817 | GK165: 605 | GL165: 100 | GM165: -6147 | GN165: 200 | GO165: 100 | GP165: -7728 | GQ165: 100 | GR165: 100 | GT165: 4000 | GV165: 8000 | GX165: -12000 | GY165: 46582 | GZ165: 1782 | HA165: 40408 | HB165: 1144 | HC165: 42035 | HG165: 37026 | HH165: 1225 | HI165: 36253 | HJ165: 2764 | HK165: 36521 | HY165: 735 | HZ165: -735
A166: 531 | B166: Nakkila | C166: 5706 | E166: 2.302425107 | F166: 18.8 | G166: -398 | K166: 73.4 | L166: 365 | M166: 24 | N166: 6022.093565 | O166: 13746 | P166: 3885 | Q166: 34094 | R166: -30209 | S166: 18357 | T166: 11476 | Y166: -374 | Z166: 1326 | AR166: 20,25 | AS166: 307 | AU166: 183 | AV166: 5706 | AX166: -0.1050228311 | AY166: 25.4 | AZ166: -779 | BD166: 65.2 | BE166: 396 | BF166: 24 | BG166: 6018.270402 | BH166: 13422 | BI166: 3862 | BJ166: 33493 | BK166: -29631 | BL166: 18982 | BM166: 11202 | BR166: 540 | BS166: 1324 | CK166: 20,75 | CM166: 249 | CN166: 307 | CO166: 5706 | CQ166: 1.572093023 | CR166: 30.53577233 | CS166: -966.3512093 | CW166: 59.03071619 | CX166: 653.5226078 | CY166: 38.07230769 | CZ166: 6265.334735 | DA166: 13556 | DB166: 3881 | DC166: 33828 | DD166: -29947 | DE166: 19393 | DF166: 10917 | DK166: 313 | DL166: 1324 | ED166: 20,75 | EE166: 306 | EG166: 221 | EH166: 5706 | ET166: 13692 | EU166: 3901 | EV166: 34166 | EW166: -30265 | EX166: 19862 | EY166: 10632 | FD166: 129 | FE166: 1354 | FW166: 20,75 | FX166: 305 | FZ166: 16539 | GA166: 16257 | GB166: 16419 | GC166: 16583 | GG166: -1630 | GI166: 25 | GJ166: -1315 | GL166: 25 | GM166: -3083 | GO166: 25 | GP166: -5142 | GQ166: 830 | GR166: 25 | GU166: 2000 | GW166: 3000 | GY166: 6350 | GZ166: 1850 | HA166: 400 | HB166: 1335 | HC166: 7450 | HG166: 10400 | HH166: 5350 | HI166: 900 | HJ166: 1294 | HK166: 15000 | HY166: 402 | HZ166: -402
A167: 532 | B167: Nastola | C167: 14985 | E167: 1.504492512 | F167: 44.6 | G167: -2014 | K167: 58.5 | L167: 109 | M167: 7 | N167: 6516.848746 | O167: 22295 | P167: 9059 | Q167: 76492 | R167: -67433 | S167: 53300 | T167: 19315 | Y167: 4488 | Z167: 4590 | AR167: 20,5 | AS167: 500 | AU167: 30 | AV167: 14985 | AX167: 0.6575034578 | AY167: 54.3 | AZ167: -2584 | BD167: 53.1 | BE167: 128 | BF167: 8 | BG167: 6094.019361 | BH167: 20814 | BI167: 9337 | BJ167: 76142 | BK167: -66805 | BL167: 54150 | BM167: 18565 | BR167: 5065 | BS167: 5600 | CK167: 20,75 | CM167: 110 | CN167: 500 | CO167: 14985 | CQ167: 0.5294395466 | CR167: 60.17619958 | CS167: -2983.583584 | CW167: 48.42740965 | CX167: 120.4537871 | CY167: 6.991520927 | CZ167: 6288.421755 | DA167: 20850 | DB167: 9650 | DC167: 76200 | DD167: -66550 | DE167: 54600 | DF167: 18600 | DK167: 5937 | DL167: 5500 | ED167: 20,75 | EE167: 500 | EG167: 218 | EH167: 14985 | ET167: 21070 | EU167: 9790 | EV167: 77000 | EW167: -67210 | EX167: 55500 | EY167: 18700 | FD167: 6168 | FE167: 5800 | FW167: 20,75 | FX167: 500 | FZ167: 49272 | GA167: 50505 | GB167: 50500 | GC167: 51350 | GG167: -11201 | GH167: 175 | GI167: 400 | GJ167: -11136 | GK167: 2193 | GL167: 400 | GM167: -12050 | GN167: 745 | GO167: 400 | GP167: -10350 | GQ167: 200 | GR167: 400 | GS167: 7000 | GU167: 8650 | GV167: 3000 | GW167: 11175 | GY167: 44515 | GZ167: 20815 | HA167: 5075 | HB167: 2365 | HC167: 48615 | HG167: 54240 | HH167: 25975 | HI167: 12040 | HJ167: 1849 | HK167: 57815 | HY167: 5054 | HZ167: -5054
A168: 535 | B168: Nivala | C168: 10942 | E168: 0.1257238647 | F168: 72.5 | G168: -2706 | K168: 43.4 | L168: 1609 | M168: 79 | N168: 5282.973546 | O168: 22061 | P168: 15679 | Q168: 76717 | R168: -61072 | S168: 31221 | T168: 31337 | Y168: 1770 | Z168: 1708 | AR168: 21,5 | AS168: 430 | AU168: 259 | AV168: 10942 | AX168: 0.4068123393 | AY168: 79.3 | AZ168: -3222 | BD168: 40.3 | BE168: 1595 | BF168: 75 | BG168: 7771.688666 | BH168: 21628 | BI168: 15212 | BJ168: 77311 | BK168: -62119 | BL168: 31993 | BM168: 31880 | BR168: 2224 | BS168: 2000 | CK168: 21,5 | CM168: 146 | CN168: 430 | CO168: 10942 | CQ168: 0.5217305021 | CR168: 76.81461369 | CS168: -3515.170901 | CW168: 40.92219616 | CX168: 1472.125754 | CY168: 69.94979299 | CZ168: 7681.593859 | DA168: 21756 | DB168: 14954 | DC168: 77819 | DD168: -62867 | DE168: 32441 | DF168: 32199 | DK168: 2193 | DL168: 2000 | ED168: 21,5 | EE168: 530 | EG168: 198 | EH168: 10942 | ET168: 21861 | EU168: 14985 | EV168: 78082 | EW168: -63117 | EX168: 33152 | EY168: 32521 | FD168: 2876 | FE168: 2000 | FW168: 21,5 | FX168: 530 | FZ168: 49779 | GA168: 50442 | GB168: 50836 | GC168: 51022 | GD168: 1100 | GG168: -2666 | GH168: 477 | GI168: 400 | GJ168: -3442 | GK168: 60 | GL168: 400 | GM168: -2955 | GN168: 475 | GO168: 200 | GP168: -4168 | GQ168: 1138 | GR168: 200 | GT168: 6500 | GV168: 13000 | GW168: 7300 | GX168: -2500 | GY168: 51100 | GZ168: 23994 | HA168: 19458 | HB168: 2685 | HC168: 50800 | HG168: 50700 | HH168: 22153 | HI168: 29066 | HJ168: 2146 | HK168: 50500 | HY168: 6414 | HZ168: -6414
A169: 536 | B169: Nokia | C169: 32690 | E169: 1.74547605 | F169: 42.3 | G169: -1521 | K169: 60.1 | L169: 513 | M169: 33 | N169: 11080.59826 | O169: 90893 | P169: 31014 | Q169: 182668 | R169: -153636 | S169: 123250 | T169: 40400 | Y169: 12084 | Z169: 9576 | AR169: 19,75 | AS169: 1935 | AU169: 54 | AV169: 32690 | AX169: 1.671408535 | AY169: 41.6 | AZ169: -1487 | BD169: 53.8 | BE169: 607 | BF169: 38 | BG169: 5880.540273 | BH169: 92167 | BI169: 30308 | BJ169: 184601 | BK169: -156361 | BL169: 125438 | BM169: 39250 | BR169: 10369 | BS169: 9903 | CK169: 19,75 | CM169: 27 | CN169: 1965 | CO169: 32690 | CQ169: 1.749637287 | CR169: 38.4363475 | CS169: -1369.440196 | CW169: 56.07500925 | CX169: 696.0538391 | CY169: 39.76600655 | CZ169: 6388.865096 | DA169: 93178 | DB169: 30492 | DC169: 186996 | DD169: -158668 | DE169: 131157 | DF169: 38151 | DK169: 12208 | DL169: 11146 | ED169: 19,75 | EE169: 1985 | EG169: 46 | EH169: 32690 | ET169: 94222 | EU169: 30781 | EV169: 189070 | EW169: -160459 | EX169: 135690 | EY169: 36853 | FD169: 13629 | FE169: 12133 | FW169: 19,75 | FX169: 1985 | FZ169: 66449 | GA169: 64864 | GB169: 65804 | GC169: 66462 | GG169: -42270 | GH169: 925 | GI169: 35058 | GJ169: -18690 | GK169: 1801 | GL169: 3730 | GM169: -16113 | GN169: 1467 | GO169: 3767 | GP169: -22020 | GQ169: 2700 | GR169: 3803 | GU169: 10000 | GW169: 8000 | GY169: 65778 | GZ169: 42237 | HA169: 8053 | HB169: 174 | HC169: 69384 | HG169: 77229 | HH169: 41680 | HI169: 8854 | HJ169: 171 | HK169: 82278 | HY169: 8256 | HZ169: -8256
A170: 538 | B170: Nousiainen | C170: 4872 | E170: 0.5048543689 | F170: 50.3 | G170: -2450 | K170: 52.2 | L170: 2 | M170: 0 | N170: 6310.42885 | O170: 8999 | P170: 3238 | Q170: 27053 | R170: -23815 | S170: 16435 | T170: 8645 | Y170: 1125 | Z170: 989 | AR170: 20,5 | AS170: 225 | AU170: 260 | AV170: 4872 | AX170: 0 | AY170: 50.9 | AZ170: -2501 | BD170: 49.3 | BE170: 3 | BF170: 0 | BG170: 5903.012794 | BH170: 8865 | BI170: 3492 | BJ170: 28043 | BK170: -24551 | BL170: 16904 | BM170: 8021 | BR170: 227 | BS170: 911 | CK170: 21 | CM170: 262 | CN170: 223 | CO170: 4872 | CQ170: 0.7652764306 | CR170: 46.99348237 | CS170: -2562.397373 | CW170: 48.7400733 | CX170: 6.362889984 | CY170: 0.3741485351 | CZ170: 6207.307061 | DA170: 8866 | DB170: 3486 | DC170: 28041 | DD170: -24555 | DE170: 17602 | DF170: 8021 | DK170: 920 | DL170: 1041 | ED170: 21 | EE170: 220 | EG170: 227 | EH170: 4872 | ET170: 8860 | EU170: 3336 | EV170: 28032 | EW170: -24696 | EX170: 18090 | EY170: 8021 | FD170: 1267 | FE170: 1035 | FW170: 21 | FX170: 217 | FZ170: 15808 | GA170: 16787 | GB170: 16789 | GC170: 16787 | GG170: -1728 | GH170: 84 | GI170: 230 | GJ170: -2107 | GK170: 304 | GL170: 80 | GM170: -1325 | GN170: 84 | GO170: 100 | GP170: -535 | GQ170: 84 | GR170: 100 | GS170: 5000 | GT170: 647 | GV170: 1061 | GW170: 750 | GX170: -311 | GY170: 8217 | GZ170: 8211 | HA170: 1597 | HB170: 145 | HC170: 8493 | HG170: 7489 | HH170: 7092 | HI170: 1668 | HJ170: 145 | HK170: 6518 | HY170: 775 | HZ170: -775
A171: 541 | B171: Nurmes | C171: 8191 | E171: 2.699651568 | F171: 29.1 | G171: -368 | K171: 69.9 | L171: 992 | M171: 49 | N171: 4962.229547 | O171: 20624 | P171: 11902 | Q171: 60193 | R171: -48311 | S171: 24060 | T171: 26780 | Y171: 2630 | Z171: 3262 | AR171: 20,5 | AS171: 478 | AU171: 64 | AV171: 8191 | AX171: 1.035044423 | AY171: 25.8 | AZ171: -702 | BD171: 72.3 | BE171: 493 | BF171: 24 | BG171: 7498.675975 | BH171: 17118 | BI171: 11626 | BJ171: 59935 | BK171: -48329 | BL171: 24277 | BM171: 26945 | BR171: 3037 | BS171: 2972 | CK171: 20,5 | CM171: 101 | CN171: 469 | CO171: 8191 | CQ171: 1.246943765 | CR171: 30.36322558 | CS171: -1355.512147 | CW171: 67.73472023 | CX171: 280.0634843 | CY171: 12.83017422 | CZ171: 7967.403247 | DA171: 14024 | DB171: 10845 | DC171: 59310 | DD171: -48467 | DE171: 24734 | DF171: 27544 | DK171: 3933 | DL171: 2894 | ED171: 20,5 | EE171: 463 | EG171: 155 | EH171: 8191 | ET171: 14206 | EU171: 10908 | EV171: 60782 | EW171: -49894 | EX171: 25989 | EY171: 28421 | FD171: 4619 | FE171: 2805 | FW171: 21,25 | FX171: 461 | FZ171: 28698 | GA171: 32597 | GB171: 36944 | GC171: 38152 | GG171: -3600 | GH171: 0 | GI171: 0 | GJ171: -4817 | GK171: 157 | GM171: -3870 | GN171: 357 | GP171: -2660 | GQ171: 100 | GS171: 4200 | GW171: 4500 | GY171: 13027 | GZ171: 9332 | HA171: 1763 | HB171: 407 | HC171: 13763 | HG171: 14606 | HH171: 10028 | HI171: 2012 | HJ171: 407 | HK171: 14345 | HY171: 1157 | HZ171: -1157
A172: 543 | B172: Nurmijärvi | C172: 41178 | E172: 1.945399393 | F172: 50.1 | G172: -1872 | K172: 55.1 | L172: 511 | M172: 33 | N172: 6895.665108 | O172: 105049 | P172: 71975 | Q172: 266069 | R172: -194094 | S172: 173550 | T172: 25352 | Y172: 5647 | Z172: 14774 | AR172: 19,5 | AU172: 51 | AV172: 41178 | AX172: 1.155687457 | AY172: 55.7 | AZ172: -2191 | BD172: 52.5 | BE172: 544 | BF172: 33 | BG172: 6031.38584 | BH172: 105131 | BI172: 76299 | BJ172: 266318 | BK172: -190019 | BL172: 177243 | BM172: 23502 | BR172: 11939 | BS172: 15543 | CK172: 19,5 | CM172: 76 | CO172: 41178 | CQ172: 1.458952228 | CR172: 58.68248425 | CS172: -2529.77318 | CW172: 50.13418911 | CX172: 490.6017776 | CY172: 28.01164725 | CZ172: 6392.685415 | DA172: 106319 | DB172: 75380 | DC172: 269117 | DD172: -193737 | DE172: 184052 | DF172: 23502 | DK172: 14197 | DL172: 16963 | ED172: 19,5 | EG172: 121 | EH172: 41178 | ET172: 107263 | EU172: 77149 | EV172: 272957 | EW172: -195808 | EX172: 194729 | EY172: 23502 | FD172: 22350 | FE172: 18677 | FW172: 20 | FZ172: 107176 | GA172: 105949 | GB172: 105037 | GC172: 105210 | GG172: -40110 | GH172: -1050 | GI172: 6480 | GJ172: -35450 | GK172: -830 | GL172: 5950 | GM172: -37881 | GN172: -830 | GO172: 4550 | GP172: -26550 | GQ172: -530 | GR172: 5000 | GS172: 30000 | GT172: -28707 | GV172: 17897 | GW172: 35000 | GX172: -14498 | GY172: 123309 | GZ172: 47491 | HA172: 28152 | HB172: 2093 | HC172: 147459 | HG172: 169159 | HH172: 66866 | HI172: 28889 | HJ172: 3483 | HK172: 171844 | HY172: 9170 | HZ172: -9170
A173: 545 | B173: Närpiö | C173: 9335 | E173: 1.645678306 | F173: 32.2 | G173: -266 | K173: 66.7 | L173: 1276 | M173: 70 | N173: 5426.476877 | O173: 25042 | P173: 7998 | Q173: 61521 | R173: -53523 | S173: 30500 | T173: 24100 | Y173: 1471 | Z173: 2210 | AR173: 20,5 | AS173: 860 | AU173: 123 | AV173: 9335 | AX173: 0.6506348596 | AY173: 39 | AZ173: -751 | BD173: 61.6 | BE173: 1214 | BF173: 60 | BG173: 7402.665245 | BH173: 25174 | BI173: 8128 | BJ173: 63286 | BK173: -55158 | BL173: 31880 | BM173: 25150 | BR173: 2087 | BS173: 2646 | CK173: 21 | CM173: 154 | CN173: 860 | CO173: 9335 | CQ173: 0.9346382384 | CR173: 40.24407685 | CS173: -762.8280664 | CW173: 59.7082346 | CX173: 1533.04767 | CY173: 75.78439196 | CZ173: 7383.61007 | DA173: 25300 | DB173: 8291 | DC173: 63762 | DD173: -55471 | DE173: 32520 | DF173: 25000 | DK173: 2256 | DL173: 2480 | ED173: 21 | EE173: 863 | EG173: 167 | EH173: 9335 | ET173: 25427 | EU173: 8457 | EV173: 64235 | EW173: -55778 | EX173: 33170 | EY173: 24800 | FD173: 2363 | FE173: 2580 | FW173: 21 | FX173: 865 | FZ173: 22139 | GA173: 22763 | GB173: 22990 | GC173: 23220 | GG173: -4942 | GI173: 150 | GJ173: -4412 | GK173: 430 | GL173: 315 | GM173: -4874 | GN173: 800 | GO173: 100 | GP173: -3314 | GR173: 100 | GS173: 2961 | GU173: 3000 | GV173: 3492 | GW173: 5240 | GX173: -1492 | GY173: 19268 | GZ173: 9700 | HA173: 2114 | HB173: 869 | HC173: 21268 | HG173: 23268 | HH173: 12580 | HI173: 4589 | HJ173: 819 | HK173: 24268 | HY173: 1743 | HZ173: -1743
A174: 560 | B174: Orimattila | C174: 16347 | E174: 1.885498108 | F174: 37.8 | G174: -1600 | K174: 57 | L174: 282 | M174: 18 | N174: 101075.9494 | O174: 25975 | P174: 9515 | Q174: 93185 | R174: -83670 | S174: 53702 | T174: 32429 | Y174: 3844 | Z174: 2507 | AR174: 20,5 | AS174: 526 | AU174: 61 | AV174: 16347 | AX174: 0.8901923979 | AY174: 38.9 | AZ174: -1884 | BD174: 56.3 | BE174: 167 | BF174: 10 | BG174: 6346.01227 | BH174: 25090 | BI174: 9382 | BJ174: 92925 | BK174: -83543 | BL174: 53800 | BM174: 31310 | BR174: 2885 | BS174: 2900 | CK174: 20,5 | CM174: 120 | CN174: 520 | CO174: 16347 | CQ174: 0.8273365511 | CR174: 47.49876336 | CS174: -2192.206521 | CW174: 50.87242456 | CX174: 384.2295222 | CY174: 21.63879109 | CZ174: 6481.128036 | DA174: 25466 | DB174: 9669 | DC174: 94312 | DD174: -84643 | DE174: 56324 | DF174: 30010 | DK174: 2906 | DL174: 2900 | ED174: 21 | EE174: 520 | EG174: 199 | EH174: 16347 | ET174: 25848 | EU174: 9960 | EV174: 95727 | EW174: -85767 | EX174: 58013 | EY174: 29700 | FD174: 3161 | FE174: 2900 | FW174: 21 | FX174: 520 | FZ174: 60405 | GA174: 61151 | GB174: 62068 | GC174: 62999 | GG174: -6845 | GH174: 558 | GI174: 300 | GJ174: -9576 | GK174: 206 | GL174: 300 | GM174: -7864 | GO174: 500 | GP174: -4957 | GR174: 450 | GT174: 1000 | GU174: 3700 | GV174: 1500 | GW174: 7884 | GX174: 4000 | GY174: 35300 | GZ174: 18829 | HA174: 6099 | HB174: 12086 | HC174: 41500 | HG174: 47200 | HH174: 21694 | HI174: 12719 | HJ174: 19480 | HK174: 51300 | HY174: 3606 | HZ174: -3606
A175: 561 | B175: Oripää | C175: 1423 | E175: 0.9597701149 | F175: 20.7 | G175: 79 | K175: 76.2 | L175: 795 | M175: 47 | N175: 6834.202294 | O175: 3282 | P175: 1236 | Q175: 8811 | R175: -7575 | S175: 3988 | T175: 3800 | Y175: 282 | Z175: 305 | AR175: 19,5 | AS175: 71 | AU175: 278 | AV175: 1423 | AX175: -1.208791209 | AY175: 31.1 | AZ175: -1162 | BD175: 65.2 | BE175: 36 | BF175: 2 | BG175: 7290.794979 | BH175: 3192 | BI175: 1236 | BJ175: 8756 | BK175: -7520 | BL175: 4066 | BM175: 3626 | BR175: 117 | BS175: 341 | CK175: 19,5 | CM175: 279 | CN175: 66 | CO175: 1423 | CQ175: 2.265 | CR175: 33.24953547 | CS175: -1471.539002 | CW175: 61.88044832 | CX175: 281.0962755 | CY175: 14.67484169 | CZ175: 6991.567112 | DB175: 1298 | DC175: 9016 | DD175: -7718 | DE175: 4135 | DF175: 3484 | DK175: -169 | DL175: 330 | ED175: 19,5 | EE175: 65 | EG175: 143 | EH175: 1423 | EU175: 1363 | EV175: 9286 | EW175: -7923 | EX175: 4286 | EY175: 3228 | FD175: -480 | FE175: 330 | FW175: 19,5 | FX175: 62 | FZ175: 4412 | GA175: 4517 | GG175: -2336 | GH175: 596 | GI175: 6 | GJ175: -894 | GL175: 146 | GM175: -104 | GO175: 6 | GP175: -54 | GR175: 6 | GU175: 467 | GV175: 644 | GW175: 779 | GX175: -545 | GY175: 2748 | GZ175: 375 | HA175: 52 | HB175: 0 | HC175: 3611 | HG175: 3674 | HH175: 1338 | HI175: 152 | HJ175: 0 | HK175: 4236 | HY175: 52 | HZ175: -52
A176: 562 | B176: Orivesi | C176: 9630 | E176: 1.240855275 | F176: 34.4 | G176: -1038 | K176: 61.7 | L176: 653 | M176: 37 | N176: 7371.526023 | O176: 19313 | P176: 11330 | Q176: 69410 | R176: -58118 | S176: 30500 | T176: 23900 | Y176: -4242 | Z176: 2454 | AR176: 21,5 | AS176: 380 | AU176: 101 | AV176: 9630 | AX176: -0.5386586929 | AY176: 44.5 | AZ176: -1824 | BD176: 51.5 | BE176: 543 | BF176: 27 | BG176: 7317.208233 | BH176: 18626 | BI176: 11497 | BJ176: 66634 | BK176: -55175 | BL176: 32900 | BM176: 23000 | BR176: 216 | BS176: 2853 | CK176: 22,25 | CM176: 298 | CN176: 375 | CO176: 9630 | CQ176: -0.2014877102 | CR176: 51.0046418 | CS176: -2419.833853 | CW176: 44.88754522 | CX176: 518.172378 | CY176: 24.99176706 | CZ176: 7567.80893 | DA176: 18639 | DB176: 11306 | DC176: 66231 | DD176: -54963 | DE176: 33800 | DF176: 21800 | DK176: -32 | DL176: 2814 | ED176: 22,25 | EE176: 370 | EG176: 295 | EH176: 9630 | ET176: 18768 | EU176: 11296 | EV176: 66333 | EW176: -55075 | EX176: 34660 | EY176: 20900 | FD176: -324 | FE176: 3025 | FW176: 22,25 | FX176: 370 | FZ176: 42688 | GA176: 40106 | GB176: 39849 | GC176: 39815 | GG176: -7783 | GH176: 1300 | GI176: 410 | GJ176: -1919 | GK176: 60 | GL176: 370 | GM176: -3600 | GO176: 370 | GP176: -2569 | GR176: 370 | GU176: 6000 | GW176: 8000 | GY176: 28362 | GZ176: 10671 | HA176: 1829 | HB176: 1575 | HC176: 30462 | HG176: 33962 | HH176: 18612 | HI176: 3229 | HJ176: 2286 | HK176: 36962 | HY176: 1919 | HZ176: -1919
A177: 563 | B177: Oulainen | C177: 7772 | E177: 0.3275535939 | F177: 53.2 | G177: -1964 | K177: 49.9 | L177: 1410 | M177: 69 | N177: 6524.505069 | O177: 23436 | P177: 12253 | Q177: 58435 | R177: -46182 | S177: 24320 | T177: 22165 | Y177: 1682 | Z177: 1711 | AR177: 21,5 | AS177: 480 | AU177: 258 | AV177: 7772 | AX177: 0.7316068275 | AY177: 59 | AZ177: -1882 | BD177: 49.5 | BE177: 1618 | BF177: 84 | BG177: 7011.596789 | BH177: 24027 | BI177: 13979 | BJ177: 60155 | BK177: -46176 | BL177: 24760 | BM177: 22900 | BR177: 2004 | BS177: 2012 | CK177: 21,75 | CM177: 81 | CN177: 480 | CO177: 7772 | CQ177: 0.7521856086 | CR177: 60.13487401 | CS177: -1963.072568 | CW177: 48.77859133 | CX177: 1772.38806 | CY177: 89.37491112 | CZ177: 7238.291302 | DA177: 24150 | DB177: 14348 | DC177: 60970 | DD177: -46622 | DE177: 25057 | DF177: 23250 | DK177: 2301 | DL177: 2233 | ED177: 21,75 | EE177: 480 | EG177: 172 | EH177: 7772 | ET177: 11850 | EU177: 9258 | EV177: 56325 | EW177: -47067 | EX177: 25730 | EY177: 23280 | FD177: 2650 | FE177: 2583 | FW177: 21,75 | FX177: 480 | FZ177: 29196 | GA177: 29905 | GB177: 30503 | GC177: 41433 | GG177: -4556 | GH177: 1345 | GI177: 790 | GJ177: -8122 | GK177: 1319 | GL177: 119 | GM177: -5345 | GN177: 400 | GO177: 100 | GP177: -3645 | GQ177: 200 | GR177: 100 | GS177: 2000 | GT177: 1050 | GU177: 2000 | GV177: 1250 | GW177: 1300 | GX177: 3600 | GY177: 25666 | GZ177: 9387 | HA177: 13025 | HB177: 320 | HC177: 29016 | HG177: 30716 | HH177: 7060 | HI177: 17856 | HJ177: 240 | HK177: 31616 | HY177: 2649 | HZ177: -2649
A178: 564 | B178: Oulu | C178: 193798 | E178: 5.249181591 | F178: 45.6 | G178: -831 | K178: 73.3 | L178: 1249 | M178: 61 | N178: 5396.684065 | O178: 535466 | P178: 449125 | Q178: 1346103 | R178: -912978 | S178: 709723 | T178: 227354 | Y178: 30956 | Z178: 104298 | AR178: 20 | AS178: 11770 | AU178: 25 | AV178: 193798 | AX178: 1.987443496 | AY178: 42.7 | AZ178: -1519 | BD178: 70.9 | BE178: 821 | BF178: 33 | BG178: 9121.175916 | BH178: 517871 | BI178: 262391 | BJ178: 1199581 | BK178: -950483 | BL178: 730729 | BM178: 248354 | BR178: 47265 | BS178: 84996 | CK178: 20 | CM178: 74 | CN178: 11410 | CO178: 193798 | CQ178: 2.16124046 | CR178: 58.14465521 | CS178: -2569.04096 | CW178: 60.0251545 | CX178: 650.1924684 | CY178: 29.77835316 | CZ178: 7969.555929 | DA178: 518172 | DB178: 254553 | DC178: 1206264 | DD178: -965038 | DE178: 757367 | DF178: 244354 | DK178: 52110 | DL178: 86232 | ED178: 20 | EE178: 11363 | EG178: 83 | EH178: 193798 | ET178: 518153 | EU178: 256208 | EV178: 1219175 | EW178: -976294 | EX178: 786254 | EY178: 242354 | FD178: 63245 | FE178: 86810 | FW178: 20 | FX178: 11308 | FZ178: 472218 | GA178: 459495 | GB178: 466178 | GC178: 479089 | GG178: -166822 | GH178: 2810 | GI178: 6068 | GJ178: -121771 | GK178: 381 | GL178: 6000 | GM178: -132440 | GN178: 317 | GO178: 6100 | GP178: -112216 | GQ178: 200 | GR178: 6000 | GS178: 30960 | GU178: 52200 | GV178: 29203 | GW178: 125000 | GX178: 8797 | GY178: 646120 | GZ178: 202526 | HA178: 17522 | HB178: 8286 | HC178: 662243 | HG178: 714932 | HH178: 377778 | HI178: 162715 | HJ178: 7661 | HK178: 756449 | HY178: 15208 | HZ178: -15208
A179: 309 | B179: Outokumpu | C179: 7262 | E179: 0.6511811024 | F179: 44.2 | G179: -2088 | K179: 51.3 | L179: 255 | M179: 14 | N179: 6910.952805 | O179: 13864 | P179: 12845 | Q179: 54129 | R179: -41284 | S179: 23031 | T179: 19775 | Y179: 1650 | Z179: 1632 | AR179: 22,25 | AS179: 300 | AU179: 244 | AV179: 7262 | AX179: -0.2055666004 | AY179: 46.2 | AZ179: -2447 | BD179: 46.9 | BE179: 183 | BF179: 10 | BG179: 6877.434291 | BH179: 13652 | BI179: 11298 | BJ179: 52861 | BK179: -41563 | BL179: 23599 | BM179: 20031 | BR179: 2097 | BS179: 1640 | CK179: 22,25 | CM179: 286 | CN179: 300 | CO179: 7262 | CQ179: 1.17671131 | CR179: 42.53279721 | CS179: -2335.444781 | CW179: 47.80273677 | CX179: 214.4037455 | CY179: 10.82485714 | CZ179: 7229.413385 | DA179: 13766 | DB179: 11411 | DC179: 53367 | DD179: -41956 | DE179: 24075 | DF179: 20231 | DK179: 2179 | DL179: 1846 | ED179: 22,25 | EE179: 300 | EG179: 88 | EH179: 7262 | ET179: 13881 | EU179: 11525 | EV179: 53878 | EW179: -42353 | EX179: 24333 | EY179: 20535 | FD179: 2290 | FE179: 2021 | FW179: 22,25 | FX179: 300 | FZ179: 33479 | GA179: 33053 | GB179: 33383 | GC179: 33717 | GF179: 960 | GG179: -4039 | GH179: 516 | GI179: 20 | GJ179: -10523 | GK179: 375 | GM179: -7759 | GN179: 375 | GP179: -450 | GR179: 12000 | GS179: 2500 | GU179: 3000 | GW179: 2000 | GX179: 120 | GY179: 17414 | GZ179: 12956 | HA179: 2143 | HB179: 3382 | HC179: 25487 | HG179: 30799 | HH179: 13109 | HI179: 2546 | HJ179: 3278 | HK179: 27701 | HY179: 1862 | HZ179: -1862
A180: 576 | B180: Padasjoki | C180: 3279 | E180: 0.8527454243 | F180: 55.9 | G180: -1111 | K180: 63.4 | L180: 2063 | M180: 108 | N180: 6266.832203 | AR180: 20 | AU180: 66 | AV180: 3279 | AX180: 0.8016898608 | AY180: 55.8 | AZ180: -1046 | BD180: 63.2 | BE180: 2197 | BF180: 114 | BG180: 7030.003 | CM180: 31 | CO180: 3279 | CQ180: 0.7184223665 | CR180: 58.57744334 | CS180: -1403.47667 | CW180: 61.01564352 | CX180: 2193.351632 | CY180: 100.7437541 | CZ180: 7946.63007 | EG180: 93 | EH180: 3279 | GJ180: 0 | GS180: 500 | GU180: 1840 | GW180: 2000 | GZ180: 7270 | HA180: 1794 | HB180: 832 | HH180: 7272 | HI180: 1949 | HJ180: 970 | HY180: 1794 | HZ180: -1794
A181: 577 | B181: Paimio | C181: 10590 | E181: 0.63072 | F181: 75.1 | G181: -3571 | K181: 22.3 | L181: 177 | M181: 11 | N181: 6749.408983 | O181: 23785 | P181: 7153 | Q181: 58246 | R181: -51093 | S181: 39500 | T181: 12940 | Y181: 1368 | Z181: 1900 | AR181: 20,25 | AS181: 580 | AU181: 228 | AV181: 10590 | AX181: 0.8968583284 | AY181: 71.5 | AZ181: -3636 | BD181: 21.8 | BE181: 63 | BF181: 4 | BG181: 5818.714002 | BH181: 24513 | BI181: 7142 | BJ181: 60426 | BK181: -53284 | BL181: 40740 | BM181: 12516 | BR181: 165 | BS181: 1850 | CK181: 20,75 | CM181: 94 | CN181: 585 | CO181: 10590 | CQ181: 0.3627948641 | CR181: 68.77885295 | CS181: -1954.01322 | CW181: 43.52054429 | CX181: 206.3267233 | CY181: 10.42843506 | CZ181: 7221.529745 | DA181: 24682 | DB181: 7167 | DC181: 60884 | DD181: -53717 | DE181: 42150 | DF181: 12500 | DK181: 1315 | DL181: 1900 | ED181: 20,75 | EE181: 585 | EG181: 257 | EH181: 10590 | ET181: 24830 | EU181: 7337 | EV181: 61281 | EW181: -53944 | EX181: 43550 | EY181: 12600 | FD181: 2577 | FE181: 2000 | FW181: 20,75 | FX181: 585 | FZ181: 28108 | GA181: 28236 | GB181: 28447 | GC181: 28629 | GD181: 1100 | GG181: -4084 | GH181: 170 | GI181: 118 | GJ181: -4629 | GK181: 255 | GL181: 120 | GM181: -4327 | GN181: 175 | GO181: 120 | GP181: -1717 | GQ181: 120 | GR181: 120 | GT181: 3500 | GU181: 7000 | GV181: -500 | GW181: 3000 | GX181: 2500 | GY181: 39620 | GZ181: 13668 | HA181: 16157 | HB181: 30 | HC181: 43220 | HG181: 45520 | HH181: 18053 | HI181: 18157 | HJ181: 20 | HK181: 43920 | HY181: 2808 | HZ181: -2808
A182: 578 | B182: Paltamo | C182: 3620 | E182: 0.7663280116 | F182: 51.4 | G182: -1897 | K182: 44.3 | L182: 1165 | M182: 60 | N182: 6492.744276 | O182: 6693 | P182: 3514 | Q182: 26191 | R182: -22677 | S182: 10580 | T182: 12203 | Y182: -129 | Z182: 1050 | AR182: 22 | AS182: 124 | AU182: 154 | AV182: 3620 | AX182: 0.4060568603 | AY182: 62.6 | AZ182: -2708 | BD182: 38.4 | BE182: 1159 | BF182: 56 | BG182: 7516.163505 | BH182: 6770 | BI182: 3418 | BJ182: 26220 | BK182: -22802 | BL182: 10800 | BM182: 12240 | BR182: 45 | BS182: 1012 | CK182: 22 | CM182: 189 | CN182: 126 | CO182: 3620 | CQ182: 0.9206852792 | CR182: 54.88232158 | CS182: -2658.287293 | CW182: 40.19543168 | CX182: 1084.254144 | CY182: 52.40799678 | CZ182: 7551.381215 | DA182: 6659 | DB182: 3020 | DC182: 26271 | DD182: -23251 | DE182: 11147 | DF182: 12607 | DK182: 273 | DL182: 1108 | ED182: 22 | EE182: 126 | EG182: 119 | EH182: 3620 | ET182: 6692 | EU182: 3030 | EV182: 26626 | EW182: -23596 | EX182: 11478 | EY182: 12858 | FD182: 493 | FE182: 1210 | FW182: 22 | FX182: 126 | FZ182: 17158 | GA182: 17135 | GB182: 17366 | GC182: 17677 | GG182: -286 | GH182: 0 | GI182: 312 | GJ182: -2965 | GL182: 500 | GM182: -1705 | GO182: 100 | GP182: -1035 | GR182: 100 | GT182: 1757 | GV182: 3600 | GW182: 2850 | GX182: -1900 | GY182: 11494 | GZ182: 7901 | HA182: 3143 | HB182: 381 | HC182: 13945 | HG182: 15350 | HH182: 7845 | HI182: 5063 | HJ182: 354 | HK182: 15855 | HY182: 1344 | HZ182: -1344
A183: 445 | B183: Parainen | C183: 15507 | E183: 1.939278132 | F183: 52.1 | G183: -2936 | K183: 54.1 | L183: 78 | M183: 4 | N183: 8472.746705 | O183: 50913 | P183: 25710 | Q183: 115814 | R183: -90104 | S183: 62939 | T183: 31400 | Y183: 2833 | Z183: 4150 | AR183: 19,75 | AS183: 1146 | AU183: 145 | AV183: 15507 | AX183: 0.9082311734 | AY183: 56.4 | AZ183: -3267 | BD183: 51.2 | BE183: 110 | BF183: 5 | BG183: 7361.416361 | BH183: 50305 | BI183: 26198 | BJ183: 116152 | BK183: -89954 | BL183: 63517 | BM183: 30398 | BR183: 3325 | BS183: 4200 | CK183: 19,75 | CM183: 181 | CN183: 1129 | CO183: 15507 | CQ183: 0.4349631763 | CR183: 52.63138569 | CS183: -3179.467337 | CW183: 52.82124761 | CX183: 148.4490875 | CY183: 6.499957452 | CZ183: 8336.041788 | DA183: 50833 | DB183: 26716 | DC183: 117464 | DD183: -90748 | DE183: 66432 | DF183: 30404 | DK183: 5372 | DL183: 4300 | ED183: 20,25 | EE183: 1131 | EG183: 75 | EH183: 15507 | ET183: 51443 | EU183: 27250 | EV183: 118997 | EW183: -91747 | EX183: 68655 | EY183: 29972 | FD183: 6164 | FE183: 4400 | FW183: 20,25 | FX183: 1129 | FZ183: 46804 | GA183: 47505 | GB183: 47947 | GC183: 48546 | GG183: -7173 | GH183: 655 | GI183: 889 | GJ183: -7811 | GK183: 809 | GL183: 388 | GM183: -8767 | GP183: -9941 | GS183: 15000 | GT183: -10965 | GU183: 14000 | GV183: -4016 | GX183: 13457 | GY183: 47827 | GZ183: 28595 | HA183: 11068 | HB183: 284 | HC183: 50338 | HG183: 50167 | HH183: 23567 | HI183: 20471 | HJ183: 318 | HK183: 49204 | HY183: 2092 | HZ183: -2092
A184: 580 | B184: Parikkala | C184: 5509 | E184: 1.368932039 | F184: 15.1 | G184: -227 | K184: 80.2 | L184: 258 | M184: 13 | N184: 7607.874294 | O184: 11814 | P184: 10503 | Q184: 42271 | R184: -31768 | S184: 15740 | T184: 16325 | Y184: 294 | Z184: 1518 | AR184: 19,5 | AS184: 213 | AU184: 217 | AV184: 5509 | AX184: 0.2243902439 | AY184: 17.3 | AZ184: -485 | BD184: 77.7 | BE184: 181 | BF184: 9 | BG184: 7683.598641 | BH184: 11309 | BI184: 10338 | BJ184: 41592 | BK184: -31254 | BL184: 15980 | BM184: 16325 | BR184: 1065 | BS184: 1544 | CK184: 19,5 | CM184: 238 | CN184: 205 | CO184: 5509 | CQ184: 6.458461538 | CR184: 18.31143677 | CS184: -728.9889272 | CW184: 76.41574586 | CX184: 147.7582138 | CY184: 6.537073707 | CZ184: 8250.136141 | DA184: 11286 | DB184: 10334 | DC184: 41584 | DD184: -31250 | DE184: 15940 | DF184: 16325 | DK184: 1029 | DL184: 1750 | ED184: 19,5 | EE184: 204 | EG184: 98 | EH184: 5509 | ET184: 11273 | EU184: 10327 | EV184: 41543 | EW184: -31216 | EX184: 16190 | EY184: 16325 | FD184: 1312 | FE184: 1950 | FW184: 19,5 | FX184: 204 | FZ184: 26848 | GA184: 26652 | GB184: 26697 | GC184: 26670 | GG184: -2818 | GH184: 192 | GI184: 130 | GJ184: -6075 | GK184: 1133 | GL184: 180 | GM184: -4537 | GN184: 860 | GO184: 200 | GP184: -2367 | GQ184: 150 | GR184: 200 | GS184: 500 | GU184: 500 | GW184: 2000 | GY184: 5153 | GZ184: 1264 | HA184: 171 | HB184: 182 | HC184: 2793 | HG184: 2455 | HH184: 3114 | HI184: 359 | HJ184: 158 | HK184: 2117 | HY184: 649 | HZ184: =HY184*-1 -> -649
A185: 581 | B185: Parkano | C185: 6836 | E185: 2.676870748 | F185: 34.5 | G185: -1116 | K185: 59.8 | L185: 670 | M185: 41 | N185: 6969.492982 | O185: 21135 | P185: 8086 | Q185: 45023 | R185: -37197 | S185: 21280 | T185: 16800 | Y185: 994 | Z185: 1550 | AR185: 20,5 | AS185: 442 | AU185: 70 | AV185: 6836 | AX185: 1.170752325 | AY185: 34.6 | AZ185: -1613 | BD185: 59.2 | BE185: 210 | BF185: 11 | BG185: 6830.586875 | BH185: 12011 | BI185: 7789 | BJ185: 44761 | BK185: -37235 | BL185: 21520 | BM185: 16976 | BR185: 1416 | BS185: 1610 | CK185: 20,5 | CM185: 138 | CN185: 225 | CO185: 6836 | CQ185: 2.206439394 | CR185: 43.38124959 | CS185: -2056.173201 | CW185: 51.13702766 | CX185: 406.5242832 | CY185: 20.15048274 | CZ185: 7363.662961 | DA185: 12142 | DB185: 7806 | DC185: 45305 | DD185: -37764 | DE185: 21890 | DF185: 17196 | DK185: 1459 | DL185: 1610 | ED185: 20,5 | EE185: 220 | EG185: 224 | EH185: 6836 | ET185: 12263 | EU185: 7874 | EV185: 45859 | EW185: -38253 | EX185: 22140 | EY185: 17346 | FD185: 1373 | FE185: 1610 | FW185: 20,5 | FX185: 215 | FZ185: 18224 | GA185: 27778 | GB185: 28191 | GC185: 28624 | GG185: -3685 | GH185: 380 | GI185: 100 | GJ185: -2975 | GK185: 110 | GL185: 100 | GM185: -1730 | GO185: 100 | GP185: -1380 | GR185: 100 | GU185: 405 | GV185: 1000 | GW185: 3000 | GX185: 1000 | GY185: 15200 | GZ185: 8598 | HA185: 983 | HB185: 698 | HC185: 16600 | HG185: 16800 | HH185: 11559 | HI185: 2046 | HJ185: 690 | HK185: 16500 | HY185: 954 | HZ185: -954
A186: 599 | B186: Pedersören kunta | C186: 10970 | E186: 1.309911454 | F186: 36 | G186: -1368 | K186: 58.1 | L186: 286 | M186: 16 | N186: 8680.899698 | O186: 27978 | P186: 15355 | Q186: 73370 | R186: -58172 | S186: 35300 | T186: 25400 | Y186: 2555 | Z186: 2000 | AR186: 20,5 | AS186: 710 | AU186: 175 | AV186: 10970 | AX186: 0.4409005629 | AY186: 47.6 | AZ186: -1939 | BD186: 49.6 | BE186: 583 | BF186: 30 | BG186: 7010.511883 | BH186: 27851 | BI186: 15483 | BJ186: 72401 | BK186: -57075 | BL186: 35100 | BM186: 24000 | BR186: 2001 | BS186: 2000 | CK186: 20,5 | CM186: 207 | CN186: 710 | CO186: 10970 | CQ186: 2.364705882 | CR186: 45.72805435 | CS186: -1995.62443 | CW186: 49.6743669 | CX186: 764.5396536 | CY186: 38.76232985 | CZ186: 7199.179581 | DA186: 28121 | DB186: 15634 | DC186: 73070 | DD186: -57593 | DE186: 36000 | DF186: 23700 | DK186: 2054 | DL186: 2150 | ED186: 20,5 | EE186: 708 | EG186: 79 | EH186: 10970 | ET186: 28261 | EU186: 15807 | EV186: 73619 | EW186: -57969 | EX186: 37000 | EY186: 23600 | FD186: 2548 | FE186: 2300 | FW186: 20,5 | FX186: 705 | FZ186: 37199 | GA186: 36329 | GB186: 36701 | GC186: 37068 | GG186: -3846 | GH186: 350 | GI186: 100 | GJ186: -5492 | GK186: 1246 | GL186: 100 | GM186: -4448 | GN186: 152 | GO186: 100 | GP186: -5390 | GQ186: 154 | GR186: 100 | GS186: 7000 | GT186: -1100 | GU186: 7000 | GV186: 3000 | GX186: 5000 | GY186: 2600 | GZ186: 11286 | HA186: 3354 | HB186: 852 | HC186: 2900 | HG186: 3130 | HH186: 6987 | HI186: 18476 | HJ186: 1946 | HK186: 3400 | HY186: 1465 | HZ186: -1465
A187: 583 | B187: Pelkosenniemi | C187: 966 | E187: 1.513184584 | F187: 47 | G187: -2679 | K187: 59.9 | L187: 1255 | M187: 46 | N187: 9930.113052 | O187: 3702 | P187: 1464 | Q187: 8138 | R187: -6674 | S187: 4380 | T187: 4090 | Y187: 310 | Z187: 354 | AR187: 19,5 | AS187: 62 | AU187: 14 | AV187: 966 | AX187: 0.997983871 | AY187: 44 | AZ187: -2828 | BD187: 61.6 | BE187: 923 | BF187: 33 | BG187: 10352.02492 | BH187: 3583 | BI187: 1235 | BJ187: 8266 | BK187: -7031 | BL187: 4530 | BM187: 4100 | BR187: 354 | BS187: 343 | CK187: 19,5 | CM187: 29 | CN187: 62 | CO187: 966 | CQ187: 0.4879649891 | CR187: 42.30172681 | CS187: -3236.024845 | CW187: 61.31440686 | CX187: 626.2939959 | CY187: 21.35431776 | CZ187: 10704.96894 | DA187: 3630 | DB187: 1205 | DC187: 8399 | DD187: -7194 | DE187: 4725 | DF187: 4150 | DK187: 457 | DL187: 313 | ED187: 19,5 | EE187: 62 | EG187: 202 | EH187: 966 | ET187: 3691 | EU187: 1229 | EV187: 8431 | EW187: -7202 | EX187: 4820 | EY187: 3950 | FD187: 318 | FE187: 297 | FW187: 19,5 | FX187: 62 | FZ187: 4821 | GA187: 4903 | GB187: 4996 | GC187: 4974 | GG187: -1912 | GH187: 1391 | GI187: 50 | GJ187: -625 | GK187: 200 | GL187: 50 | GM187: -1570 | GN187: 1160 | GO187: 50 | GP187: -370 | GR187: 50 | GS187: 306 | GU187: 34 | GW187: 300 | GY187: 2813 | GZ187: 2925 | HA187: 432 | HB187: 2432 | HC187: 2848 | HG187: 2748 | HH187: 2435 | HI187: 403 | HJ187: 2475 | HK187: 2663 | HY187: 433 | HZ187: -433
A188: 854 | B188: Pello | C188: 3739 | E188: 2.910344828 | F188: 26.3 | G188: -709 | K188: 68.3 | L188: 993 | M188: 50 | N188: 11914.11043 | O188: 16427 | P188: 5418 | Q188: 31544 | R188: -26126 | S188: 11368 | T188: 15190 | Y188: 512 | Z188: 1323 | AR188: 20,25 | AS188: 304 | AU188: 10 | AV188: 3739 | AX188: 0.6909620991 | AY188: 25.6 | AZ188: -1142 | BD188: 68.6 | BE188: 588 | BF188: 25 | BG188: 8741.031684 | BH188: 14799 | BI188: 3820 | BJ188: 29565 | BK188: -25745 | BL188: 11092 | BM188: 14420 | BR188: -133 | BS188: 1200 | CK188: 20,25 | CM188: 108 | CN188: 261 | CO188: 3739 | CQ188: 1.590106007 | CR188: 26.11884351 | CS188: -1375.501471 | CW188: 67.51864543 | CX188: 476.8654721 | CY188: 19.64486235 | CZ188: 8860.123028 | DA188: 14663 | DB188: 3839 | DC188: 29335 | DD188: -25496 | DE188: 11110 | DF188: 14420 | DK188: 134 | DL188: 1299 | ED188: 20,25 | EE188: 261 | EG188: 184 | EH188: 3739 | ET188: 14601 | EU188: 3851 | EV188: 29300 | EW188: -25449 | EX188: 11322 | EY188: 14420 | FD188: 393 | FE188: 1294 | FW188: 20,25 | FX188: 83 | FZ188: 11041 | GA188: 11813 | GB188: 11722 | GC188: 11745 | GG188: -2020 | GH188: 170 | GJ188: -2285 | GK188: 276 | GM188: -1480 | GN188: 32 | GP188: -790 | GQ188: 32 | GW188: 1037 | GY188: 5217 | GZ188: 3997 | HA188: 719 | HB188: 65 | HC188: 6077 | HG188: 7327 | HH188: 3639 | HI188: 378 | HJ188: 65 | HK188: 7527 | HY188: 946 | HZ188: -946
A189: 584 | B189: Perho | C189: 2923 | E189: 1.126293996 | F189: 38 | G189: -447 | K189: 63.2 | L189: 1798 | M189: 81 | N189: 7528.522337 | O189: 10933 | P189: 3693 | Q189: 21043 | R189: -17350 | S189: 6951 | T189: 11428 | Y189: 1183 | Z189: 1182 | AR189: 21 | AS189: 227 | AU189: 124 | AV189: 2923 | AX189: 1.485422741 | AY189: 41.9 | AZ189: -952 | BD189: 60.5 | BE189: 1591 | BF189: 71 | BG189: 8158.056791 | BH189: 10709 | BI189: 3703 | BJ189: 20817 | BK189: -17114 | BL189: 7090 | BM189: 11250 | BR189: 1200 | BS189: 1200 | CK189: 21 | CM189: 60 | CN189: 219 | CO189: 2923 | CQ189: 1.930555556 | CR189: 41.91743119 | CS189: -1625.384879 | CW189: 59.34198093 | CX189: 1039.001026 | CY189: 42.8888416 | CZ189: 8842.285323 | DA189: 10478 | DB189: 3653 | DC189: 20353 | DD189: -16700 | DE189: 7202 | DF189: 10745 | DK189: 1150 | DL189: 1150 | ED189: 21,25 | EE189: 218 | EG189: 128 | EH189: 2923 | ET189: 10371 | EU189: 3653 | EV189: 20150 | EW189: -16497 | EX189: 7535 | EY189: 10260 | FD189: 1180 | FE189: 1180 | FW189: 21,5 | FX189: 218 | FZ189: 7474 | GA189: 7461 | GB189: 7274 | GC189: 7203 | GG189: -5386 | GH189: 1063 | GI189: 505 | GJ189: -7197 | GK189: 1956 | GL189: 475 | GM189: -5403 | GN189: 900 | GO189: 46 | GP189: -2629 | GQ189: 240 | GR189: 25 | GT189: 2543 | GV189: 2000 | GX189: 500 | GY189: 7031 | GZ189: 1440 | HA189: 3638 | HB189: 0 | HC189: 9115 | HG189: 12930 | HH189: 601 | HI189: 5864 | HJ189: 0 | HK189: 13572 | HY189: 755 | HZ189: -755
A190: 588 | B190: Pertunmaa | C190: 1842 | E190: 2.572890026 | F190: 47.8 | G190: -1883 | K190: 52.3 | L190: 939 | M190: 50 | N190: 8115.706806 | O190: 6355 | P190: 3019 | Q190: 14313 | R190: -11364 | S190: 5386 | T190: 6332 | Y190: 438 | Z190: 602 | AR190: 21 | AS190: 127 | AU190: 44 | AV190: 1842 | AX190: 0.6286549708 | AY190: 48.8 | AZ190: -2265 | BD190: 50.3 | BE190: 737 | BF190: 37 | BG190: 7355.950458 | BK190: -10970 | BL190: 5650 | BM190: 5975 | BR190: 669 | BS190: 669 | CK190: 21 | CM190: 200 | CN190: 123 | CO190: 1842 | CQ190: 0.5189393939 | CR190: 50.00753693 | CS190: -2674.809989 | CW190: 46.70050761 | CX190: 487.5135722 | CY190: 22.51167582 | CZ190: 7904.451683 | DD190: -10970 | DE190: 5650 | DF190: 5975 | DK190: 669 | DL190: 669 | ED190: 21 | EE190: 122 | EG190: 258 | EH190: 1842 | EW190: -10970 | EX190: 5650 | EY190: 5975 | FD190: 669 | FE190: 669 | FW190: 21 | FX190: 122 | FZ190: 6123 | GG190: -1887 | GH190: 430 | GJ190: -295 | GM190: -199 | GP190: -239 | GS190: 500 | GU190: 350 | GW190: 600 | GY190: 5570 | GZ190: 4088 | HA190: 285 | HB190: 233 | HC190: 5599 | HG190: 5308 | HH190: 4563 | HI190: 236 | HJ190: 246 | HK190: 5017 | HY190: 305 | HZ190: -305
A191: 592 | B191: Petäjävesi | C191: 4125 | E191: 1.040785498 | F191: 47.2 | G191: -1201 | K191: 62.6 | L191: 1232 | M191: 67 | N191: 6091.02091 | O191: 11069 | P191: 3689 | Q191: 25981 | R191: -22292 | S191: 11964 | T191: 11409 | Y191: 1114 | Z191: 1155 | AR191: 21,25 | AS191: 262 | AU191: 233 | AV191: 4125 | AX191: -0.2326869806 | AY191: 50.1 | AZ191: -1565 | BD191: 58.6 | BE191: 1256 | BF191: 69 | BG191: 6608.302808 | BH191: 11261 | BI191: 3437 | BJ191: 25855 | BK191: -22418 | BL191: 12257 | BM191: 11131 | BR191: 1043 | BS191: 1050 | CK191: 21,25 | CM191: 278 | CN191: 269 | CO191: 4125 | CQ191: 0.6537911302 | CR191: 48.6886193 | CS191: -1831.515152 | CW191: 56.68979187 | CX191: 1065.69697 | CY191: 57.29476879 | CZ191: 6789.090909 | DA191: 11358 | DB191: 3366 | DC191: 25730 | DD191: -22364 | DE191: 12410 | DF191: 11108 | DK191: 1227 | DL191: 1234 | ED191: 21,25 | EE191: 269 | EG191: 248 | EH191: 4125 | ET191: 8374 | EU191: 3338 | EV191: 26043 | EW191: -22705 | EX191: 12865 | EY191: 11079 | FD191: 1312 | FE191: 1319 | FW191: 21,5 | FX191: 209 | FZ191: 11473 | GA191: 10937 | GB191: 11017 | GC191: 15689 | GG191: -1014 | GI191: 348 | GJ191: -1122 | GL191: 243 | GM191: -2099 | GP191: -1140 | GS191: 1600 | GT191: 1180 | GU191: 500 | GV191: 960 | GX191: 1010 | GY191: 9036 | GZ191: 6548 | HA191: 1752 | HB191: 40 | HC191: 8490 | HG191: 8490 | HH191: 5778 | HI191: 3799 | HJ191: 21 | HK191: 8490 | HY191: 596 | HZ191: -596
A192: 593 | B192: Pieksämäki | C192: 19288 | E192: 0.1160714286 | F192: 48.5 | G192: -2624 | K192: 51.4 | L192: 111 | M192: 6 | N192: 6422.335025 | O192: 55193 | P192: 38314 | Q192: 147008 | R192: -108885 | S192: 62000 | T192: 45600 | Y192: -1462 | Z192: 5589 | AR192: 20,5 | AU192: 275 | AV192: 19288 | AX192: 0.5067942318 | AY192: 52.4 | AZ192: -3072 | BD192: 48.5 | BE192: 19 | BF192: 1 | BG192: 7239.707322 | BH192: 55623 | BI192: 38796 | BJ192: 150833 | BK192: -112131 | BL192: 65100 | BM192: 45500 | BR192: -1600 | BS192: 5705 | CK192: 21,25 | CM192: 155 | CO192: 19288 | CQ192: 0.1064477915 | CR192: 54.76660193 | CS192: -3372.926172 | CW192: 45.62947046 | CX192: 6.584404811 | CY192: 0.3046664476 | CZ192: 7888.324347 | DA192: 55390 | DB192: 39096 | DC192: 150203 | DD192: -111201 | DE192: 65100 | DF192: 45500 | DK192: -870 | DL192: 5732 | ED192: 21,25 | EG192: 264 | EH192: 19288 | ET192: 54740 | EU192: 34190 | EV192: 148222 | EW192: -114096 | EX192: 66500 | EY192: 45500 | FD192: -2412 | FE192: 4658 | FW192: 21,75 | FZ192: 68444 | GA192: 70450 | GB192: 70206 | GC192: 69781 | GG192: -18001 | GH192: 4925 | GI192: 480 | GJ192: -9937 | GK192: 130 | GL192: 7480 | GM192: -12615 | GN192: 120 | GO192: 480 | GP192: -7394 | GQ192: 120 | GR192: 480 | GS192: 8000 | GT192: 2500 | GU192: 7000 | GV192: 5559 | GW192: 9000 | GX192: 6993 | GY192: 68400 | GZ192: 26905 | HA192: 15936 | HB192: 2958 | HC192: 72000 | HG192: 77000 | HH192: 23637 | HI192: 30106 | HJ192: 2386 | HK192: 85900 | HY192: 6568 | HZ192: -6568
A193: 595 | B193: Pielavesi | C193: 4824 | E193: 0.9847972973 | F193: 23.7 | G193: -899 | K193: 69.5 | L193: 588 | M193: 31 | N193: 9086.296444 | O193: 26809 | P193: 4736 | Q193: 36606 | R193: -31870 | S193: 13070 | T193: 18778 | Y193: 276 | Z193: 999 | AR193: 20,75 | AS193: 295 | AU193: 230 | AV193: 4824 | AX193: 0.3271665044 | AY193: 23.6 | AZ193: -1135 | BD193: 67.5 | BE193: 267 | BF193: 13 | BG193: 7649.614292 | BH193: 26911 | BI193: 4724 | BJ193: 36763 | BK193: -32046 | BL193: 13197 | BM193: 18953 | BR193: 477 | BS193: 1206 | CK193: 20,75 | CM193: 223 | CN193: 295 | CO193: 4824 | CQ193: 1.194902549 | CR193: 30.74643401 | CS193: -1201.28524 | CW193: 60.98450636 | CX193: 745.854063 | CY193: 34.48532115 | CZ193: 7894.278607 | DA193: 27186 | DB193: 4764 | DC193: 37126 | DD193: -32369 | DE193: 13149 | DF193: 19135 | DK193: 292 | DL193: 1206 | ED193: 20,75 | EE193: 295 | EG193: 136 | EH193: 4824 | ET193: 26864 | EU193: 4811 | EV193: 37478 | EW193: -32674 | EX193: 13435 | EY193: 19326 | FD193: 469 | FE193: 1206 | FW193: 20,75 | FX193: 295 | FZ193: 19466 | GA193: 19489 | GB193: 19685 | GC193: 19877 | GG193: -6573 | GI193: 50 | GJ193: -3424 | GL193: 50 | GM193: -1475 | GO193: 50 | GP193: -835 | GR193: 50 | GT193: -80 | GU193: 1700 | GV193: 94 | GW193: 3500 | GX193: 320 | GY193: 14264 | GZ193: 3370 | HA193: 809 | HB193: 586 | HC193: 17117 | HG193: 17831 | HH193: 6446 | HI193: 1222 | HJ193: 586 | HK193: 18548 | HY193: 809 | HZ193: -809
A194: 598 | B194: Pietarsaari | C194: 19633 | E194: 0.6082935101 | F194: 64.9 | G194: -5213 | K194: 33.8 | L194: 906 | M194: 27 | N194: 10731.4376 | O194: 113039 | P194: 211077 | Q194: 314680 | R194: -105346 | S194: 77330 | T194: 37683 | Y194: 9810 | Z194: 10540 | AR194: 21,25 | AS194: 2926 | AU194: 75 | AV194: =C194 -> 19633 | AX194: 0.4419369113 | AY194: 66.6 | AZ194: -5569 | BD194: 32 | BE194: 797 | BF194: 24 | BG194: 12339.17683 | BH194: 108951 | BI194: 179334 | BJ194: 288320 | BK194: -109994 | BL194: 78100 | BM194: 35889 | BR194: 5126 | BS194: 7440 | CK194: 21,25 | CM194: 79 | CN194: 2839 | CO194: =AV194 -> 19633 | CQ194: 0.6287878788 | CR194: 66.69147553 | CS194: -5966.38313 | CW194: 28.50328311 | CX194: 976.6209953 | CY194: 27.81303278 | CZ194: 12816.53339 | DA194: 110040 | DB194: 181185 | DC194: 291300 | DD194: -111088 | DE194: 79700 | DF194: 37000 | DK194: 9201 | DL194: 7750 | ED194: 21,25 | EE194: 2809 | EG194: 89 | EH194: =CO194 -> 19633 | ET194: 111140 | EU194: 183150 | EV194: 294251 | EW194: -112087 | EX194: 82100 | EY194: 37500 | FD194: 13015 | FE194: 8060 | FW194: 21,25 | FX194: 2779 | FZ194: 133991 | GA194: 134102 | GB194: 135442 | GC194: 136797 | GG194: -14215 | GH194: 776 | GI194: 0 | GJ194: -12133 | GK194: 830 | GM194: -9274 | GN194: 779 | GP194: -8412 | GQ194: 351 | GS194: 19000 | GT194: 3864 | GU194: 20000 | GV194: 1932 | GW194: 20000 | GX194: -3116 | GY194: 119576 | GZ194: 61508 | HA194: 39568 | HB194: 3356 | HC194: 116720 | HG194: 116081 | HH194: 72625 | HI194: 38384 | HJ194: 3196 | HK194: 111194 | HY194: 12832 | HZ194: -12832
A195: 601 | B195: Pihtipudas | C195: 4354 | E195: -0.3230921705 | F195: 50.8 | G195: -1198 | K195: 56.1 | L195: 1854 | M195: 87 | N195: 7753.333333 | AR195: 21 | AU195: 309 | AV195: 4354 | AX195: 1.520399667 | AY195: 43.8 | AZ195: -1694 | BD195: 53.6 | BE195: 2098 | BF195: 67 | BG195: 11476.01891 | CM195: 57 | CO195: 4354 | CQ195: 2.096586178 | CR195: 48.26773774 | CS195: -2684.657786 | CW195: 52.12174875 | CX195: 1754.708314 | CY195: 55.0671406 | CZ195: 11630.68443 | EG195: 50 | EH195: 4354 | GE195: 600 | GJ195: 0 | GT195: 1500 | GU195: 5000 | GV195: -1000 | GX195: 3500 | GZ195: 7600 | HA195: 4243 | HB195: 0 | HH195: 10488 | HI195: 6993 | HJ195: 0 | HY195: 742 | HZ195: -742
A196: 604 | B196: Pirkkala | C196: 18369 | E196: 1.415825311 | F196: 52.8 | G196: -2536 | K196: 55 | L196: 14 | M196: 1 | N196: 5940.719473 | O196: 55699 | P196: 29273 | Q196: 113424 | R196: -84151 | S196: 79800 | T196: 11900 | Y196: 6519 | Z196: 6073 | AR196: 20 | AS196: 1194 | AU196: 24 | AV196: 18369 | AX196: 1.251440277 | AY196: 61 | AZ196: -2778 | BD196: 51.9 | BE196: 242 | BF196: 14 | BG196: 6311.948367 | BH196: 56778 | BI196: 29154 | BJ196: 114811 | BK196: -85657 | BL196: 82815 | BM196: 10700 | BR196: 7026 | BS196: 7023 | CK196: 20 | CM196: 30 | CN196: 1200 | CO196: 18369 | CQ196: 1.833902311 | CR196: 52.65259368 | CS196: -2605.531058 | CW196: 54.36387137 | CX196: 440.0348413 | CY196: 22.33582914 | CZ196: 7190.810605 | DA196: 57820 | DB196: 30329 | DC196: 117486 | DD196: -87157 | DE196: 86600 | DF196: 10500 | DK196: 9161 | DL196: 7440 | ED196: 20 | EE196: 1224 | EG196: 20 | EH196: 18369 | ET196: 59273 | EU196: 31326 | EV196: 120717 | EW196: -89391 | EX196: 91000 | EY196: 10300 | FD196: 11177 | FE196: 7943 | FW196: 20 | FX196: 1233 | FZ196: 43344 | GA196: 43084 | GB196: 44516 | GC196: 45765 | GG196: -15468 | GH196: 106 | GI196: 3150 | GJ196: -11879 | GL196: 2700 | GM196: -18930 | GO196: 3500 | GP196: -16393 | GR196: 4000 | GU196: 10750 | GV196: 4000 | GW196: 10650 | GX196: -4000 | GY196: 47468 | GZ196: 29376 | HA196: 6134 | HB196: 8 | HC196: 51768 | HG196: 59268 | HH196: 36459 | HI196: 7709 | HJ196: 8 | HK196: 64768 | HY196: 6822 | HZ196: -6822
A197: 607 | B197: Polvijärvi | C197: 4664 | E197: 6.363636364 | F197: 25.4 | G197: 365 | K197: 76.8 | L197: 1390 | M197: 78 | N197: 6485.977396 | O197: 13501 | P197: 7888 | Q197: 33072 | R197: -25184 | S197: 10892 | T197: 15227 | Y197: 990 | Z197: 990 | AR197: 19 | AS197: 285 | AU197: 39 | AV197: 4664 | AX197: 3.746527778 | AY197: 21.6 | AZ197: 445 | BD197: 80 | BE197: 1341 | BF197: 76 | BG197: 6447.123519 | BH197: 13331 | BI197: 7644 | BJ197: 32872 | BK197: -25228 | BL197: 11275 | BM197: 14620 | BR197: 811 | BS197: 1160 | CK197: 19,5 | CM197: 32 | CN197: 285 | CO197: 4664 | CQ197: 4.789583333 | CR197: 19.47563133 | CS197: 609.5626072 | CW197: 81.7635752 | CX197: 1568.396226 | CY197: 84.93637665 | CZ197: 6739.922813 | DA197: 13480 | DB197: 8150 | DC197: 33210 | DD197: -25060 | DE197: 11595 | DF197: 14120 | DK197: 735 | DL197: 1160 | ED197: 19,5 | EE197: 285 | EG197: 65 | EH197: 4664 | ET197: 13630 | EU197: 8400 | EV197: 33560 | EW197: -25160 | EX197: 12200 | EY197: 13600 | FD197: 670 | FE197: 1160 | FW197: 19,5 | FX197: 285 | FZ197: 13930 | GA197: 13545 | GB197: 13700 | GC197: 13850 | GG197: -3909 | GH197: 41 | GI197: 50 | GJ197: -3692 | GK197: 50 | GL197: 10 | GM197: -4045 | GO197: 10 | GP197: -2045 | GR197: 10 | GS197: 1500 | GY197: 2085 | GZ197: 2910 | HA197: 463 | HB197: 819 | HC197: 3390 | HG197: 5050 | HH197: 2086 | HI197: 406 | HJ197: 709 | HK197: 5750 | HY197: 329 | HZ197: -329
A198: 608 | B198: Pomarkku | C198: 2340 | E198: 1.116504854 | F198: 30.1 | G198: -1531 | K198: 59.1 | L198: 68 | M198: 4 | N198: 6589.648033 | O198: 4651 | P198: 1842 | Q198: 16410 | R198: -14568 | S198: 6326 | T198: 8750 | Y198: 461 | Z198: 426 | AR198: 20,5 | AS198: 84 | AU198: 245 | AV198: 2340 | AX198: 0.718875502 | AY198: 28.3 | AZ198: -1501 | BD198: 58.7 | BE198: 81 | BF198: 4 | BG198: 6913.611462 | BH198: 4461 | BI198: 1825 | BJ198: 16356 | BK198: -14531 | BL198: 6533 | BM198: 8023 | BR198: 9 | BS198: 429 | CK198: 20,5 | CM198: 218 | CN198: 82 | CO198: 2340 | CQ198: 8.31981982 | CR198: 19.19221698 | CS198: -1195.726496 | CW198: 70.70205024 | CX198: 0 | CY198: 0 | CZ198: 7082.051282 | DB198: 1875 | DC198: 16637 | DD198: -14762 | DE198: 6897 | DF198: 7886 | DK198: -37 | ED198: 21,5 | EG198: 13 | EH198: 2340 | EU198: 1931 | EV198: 16924 | EW198: -14993 | EX198: 6982 | EY198: 7677 | FD198: -393 | FW198: 21,5 | FZ198: 10568 | GA198: 10716 | GG198: -1774 | GH198: 130 | GJ198: -2910 | GM198: -25 | GP198: -259 | GT198: 338 | GV198: 511 | GX198: -1120 | GY198: 3175 | GZ198: 881 | HA198: 1744 | HB198: 134 | HC198: 4776 | HG198: 4788 | HH198: 479 | HI198: 1136 | HJ198: 129 | HK198: 5440 | HY198: 244 | HZ198: -244
A199: 609 | B199: Pori | C199: 83497 | E199: 0.912708327 | F199: 42.9 | G199: -2643 | K199: 63.5 | L199: 76 | M199: 3 | N199: 8594.445046 | O199: 297877 | P199: 340137 | Q199: 756987 | R199: -429007 | S199: 298260 | T199: 135509 | Y199: 12346 | Z199: 30021 | AR199: 19,25 | AS199: 5824 | AU199: 121 | AV199: 83497 | AX199: 0.8252262606 | AY199: 50.8 | AZ199: -3087 | BD199: 60.5 | BE199: 217 | BF199: 9 | BG199: 8474.539233 | BH199: 293641 | BI199: 335401 | BJ199: 755874 | BK199: -433522 | BL199: 316882 | BM199: 136261 | BR199: 29906 | BS199: 29906 | CK199: 19,75 | CM199: 69 | CN199: 5706 | CO199: 83497 | CQ199: 1.152553729 | CR199: 51.96222465 | CS199: -3144.651904 | CW199: 59.48331402 | CX199: 304.6097465 | CY199: 13.5889051 | CZ199: 8181.862821 | DA199: 292585 | DB199: 323442 | DC199: 754517 | DD199: -432424 | DE199: 328007 | DF199: 132234 | DK199: 38102 | DL199: 30931 | ED199: 20 | EE199: 5683 | EG199: 60 | EH199: 83497 | ET199: 292912 | EU199: 336021 | EV199: 760516 | EW199: -437477 | EX199: 338826 | EY199: 127153 | FD199: 39599 | FE199: 31424 | FW199: 20 | FX199: 5672 | FZ199: 295544 | GA199: 294278 | GB199: 295225 | GC199: 299118 | GG199: -40624 | GH199: 385 | GI199: 5510 | GJ199: -37102 | GK199: 390 | GL199: 5716 | GM199: -35899 | GN199: 460 | GO199: 4051 | GP199: -35424 | GQ199: 460 | GR199: 3951 | GS199: 47000 | GT199: 431 | GU199: 60300 | GV199: 9569 | GW199: 54800 | GY199: 228 | GZ199: 139421 | HA199: 37843 | HB199: 127830 | HC199: 242 | HG199: 236 | HH199: 179874 | HI199: 56175 | HJ199: 124435 | HK199: 228 | HY199: 28427 | HZ199: -28427
A200: 611 | B200: Pornainen | C200: 5145 | E200: 1.718424102 | F200: 46.9 | G200: -2063 | K200: 53.5 | L200: 278 | M200: 20 | N200: 5108.356111 | O200: 7111 | P200: 3269 | Q200: 26419 | R200: -23150 | S200: 18300 | T200: 5600 | Y200: 519 | Z200: 1498 | AR200: 20 | AS200: 140 | AU200: 32 | AV200: 5145 | AX200: 0.4197412554 | AY200: 47.9 | AZ200: -2233 | BD200: 52.7 | BE200: 58 | BF200: 4 | BG200: 5547.011875 | BH200: 6858 | BI200: 3191 | BJ200: 26338 | BK200: -23147 | BL200: 18500 | BM200: 5200 | BR200: 323 | BS200: 1771 | CK200: 20 | CM200: 165 | CN200: 136 | CO200: 5145 | CQ200: 0.5898998694 | CR200: 50.96803074 | CS200: -2412.439261 | CW200: 49.57264957 | CX200: 134.1107872 | CY200: 8.137581182 | CZ200: 6015.354713 | DA200: 6754 | DB200: 2892 | DC200: 25971 | DD200: -23079 | DE200: 19600 | DF200: 5200 | DK200: 1419 | DL200: 1871 | ED200: 20 | EE200: 131 | EG200: 175 | EH200: 5145 | ET200: 6766 | EU200: 2920 | EV200: 25882 | EW200: -22962 | EX200: 20300 | EY200: 5200 | FD200: 2237 | FE200: 1804 | FW200: 20 | FX200: 130 | FZ200: 17708 | GA200: 17960 | GB200: 17702 | GC200: 17601 | GG200: -5840 | GH200: 610 | GI200: 580 | GJ200: -2516 | GL200: 660 | GM200: -2635 | GO200: 333 | GP200: -2050 | GR200: 336 | GV200: 1500 | GW200: 4850 | GX200: -1500 | GY200: 14759 | GZ200: 8273 | HA200: 1909 | HB200: 0 | HC200: 16759 | HG200: 17986 | HH200: 8759 | HI200: 2182 | HJ200: 0 | HK200: 19986 | HY200: 1441 | HZ200: -1441
... 104 more rows
